Workbook

Sheet GE Cover Sheet
A1: County | C1: Appraisal Year | D1: 2025
F3: LIGHT YELLOW SHADED FIELDS ARE FOR USER INPUT THROUGHOUT THIS TEMPLATE
A4: Facility Name
A5: Company/Owner Name | F5: Other colors and non-shaded fields should remain locked to function properly. They contain data and calculations that will populate automatically based on user input into yellow fields.
A6: Situs Address | C6: Situs Zip
A7: Facility Contact
A8: Phone # | F8: USING TEMPLATE
A11: Parcel ID | C11: Quick Ref ID | F11: Excel template contains multiple worksheets identified by color coded tabs at bottom of workbook
F12: Begin by completing required yellow shaded fields on Cover Sheet (brown tab)
F13: Next go to Data Entry-Cost Worksheet (bright blue tab)
F14: Enter data by specific color coded section in Cost worksheet. Very important to enter in correct section
F15: Verify, make adjustments & calcs per section color coded Interpolation tab
F16: Select comparable sales on Depreciation Analysis tab (light blue). Select depreciation %
F17: Verify sales comparison on Sales Comparison tab (hot pink). Select net $/Bu
F18: Review cost & sales comparison approaches on Value Reconciliation tab (bright yellow). Select final value
F19: Even & Pack calculation is not part of template automation- licensed capacity is recommended for entry into Cost tab. May choose to calculate total bushel capacity using Even & Pack tab to enter into Cost tab
A23: Region
A24: Primary Storage Type
A25: Licensed Bu. Capacity | C25: License Type
A26: Bushel Thru-Put
A29: Inspection Date
A30: Review Appraiser
B39: Allen
B40: Anderson
B41: Atchison
B42: Barber
B43: Barton
B44: Bourbon
B45: Brown
B46: Butler
B47: Chase
B48: Chautauqua
B49: Cherokee
B50: Cheyenne
B51: Clark
B52: Clay
B53: Cloud
B54: Coffey
B55: Comanche
B56: Cowley
B57: Crawford
B58: Decatur
B59: Dickinson
B60: Doniphan
B61: Douglas
B62: Edwards
B63: Elk
B64: Ellis
B65: Ellsworth
B66: Finney
B67: Ford
B68: Franklin
B69: Geary
B70: Gove
B71: Graham
B72: Grant
B73: Gray
B74: Greeley
B75: Greenwood
B76: Hamilton
B77: Harper
B78: Harvey
B79: Haskell
B80: Hodgeman
B81: Jackson
B82: Jefferson
B83: Jewell
B84: Johnson
B85: Kearny
B86: Kingman
B87: Kiowa
B88: Labette
B89: Lane
B90: Leavenworth
B91: Lincoln
B92: Linn
B93: Logan
B94: Lyon
B95: Marion
B96: Marshall
B97: McPherson
B98: Meade
B99: Miami
B100: Mitchell
B101: Montgomery
B102: Morris
B103: Morton
B104: Nemaha
B105: Neosho
B106: Ness
B107: Norton
B108: Osage
B109: Osborne
B110: Ottawa
B111: Pawnee
B112: Phillips
B113: Pottawatomie
B114: Pratt
B115: Rawlins
B116: Reno
B117: Republic
B118: Rice
B119: Riley
B120: Rooks
B121: Rush
B122: Russell
B123: Saline
B124: Scott
B125: Sedgwick
B126: Seward
B127: Shawnee
B128: Sheridan
B129: Sherman
B130: Smith
B131: Stafford
B132: Stanton
B133: Stevens
B134: Sumner
B135: Thomas
B136: Trego
B137: Wabaunsee
B138: Wallace
B139: Washington
B140: Wichita
B141: Wilson
B142: Woodson
B143: Wyandotte

Sheet Value Reconciliation
A1: Quick Ref ID# | B1: ='GE Cover Sheet'!D11 -> 0 | C1: Owner | D1: ='GE Cover Sheet'!B5 -> 0 | F1: Tax Year | G1: ='GE Cover Sheet'!D1 -> 2025
A2: Situs | B2: ='GE Cover Sheet'!B6 -> 0 | C2: Situs ZIP | D2: ='GE Cover Sheet'!D6 -> 0 | E2: Region | F2: ='GE Cover Sheet'!B23 -> 0 | G2: ='GE Cover Sheet'!B24 -> 0
A4: Cost Approach Summary
A5: Total Replacement Cost New (RCN) | F5: =' Data Entry-Cost Worksheet'!G104 -> 
A6: Market Accrued Depreciation - (%) - From Depreciation Analysis Tab | E6: =' Data Entry-Cost Worksheet'!F105 -> 0
A7: Additional Functional Obsolescence (%) - User Input | E7: =' Data Entry-Cost Worksheet'!F106 -> 0
A8: Additional Economic Obsolescence (%) - User Input | E8: =' Data Entry-Cost Worksheet'!F107 -> 0
A9: Total Obsolescence & Depreciation cannot be more than 95% | E9: =' Data Entry-Cost Worksheet'!F108 -> 0 | F9: =' Data Entry-Cost Worksheet'!G108 -> 
A10: Total Replacement Cost New Less Depreciation (RCNLD) | F10: =' Data Entry-Cost Worksheet'!G110 -> 
A12: Sales Comparison Approach Summary
A13: Sale # | B13: Type | C13: Eff Age | D13: Bu Capacity | F13: Net $/Bu
A14: ='Sales Comparison'!A23 -> 0 | B14: ='Sales Comparison'!B23 ->  | C14: ='Sales Comparison'!C23 ->  | D14: ='Sales Comparison'!D23 ->  | F14: ='Sales Comparison'!F23 -> 
A15: ='Sales Comparison'!A24 -> 0 | B15: ='Sales Comparison'!B24 ->  | C15: ='Sales Comparison'!C24 ->  | D15: ='Sales Comparison'!D24 ->  | F15: ='Sales Comparison'!F24 -> 
A16: ='Sales Comparison'!A25 -> 0 | B16: ='Sales Comparison'!B25 ->  | C16: ='Sales Comparison'!C25 ->  | D16: ='Sales Comparison'!D25 ->  | F16: ='Sales Comparison'!F25 -> 
D17: Finalized Net$/Bu | F17: =ROUND(IF('Sales Comparison'!F28="",'Sales Comparison'!B28, 'Sales Comparison'!F28),2) -> 0
A19: Reconciliation of Values
B20: Type | C20: Eff Age | D20: Bu Capacity
A21: ='Sales Comparison'!A22 -> Subject Property | B21: ='Sales Comparison'!B22 ->  | C21: ='Sales Comparison'!C22 ->  | D21: ='Sales Comparison'!D22 -> 
A23: Value Approaches | C23: Net $/Bu | D23: Bu Capacity | F23: Value
A24: Cost Approach | C24: =' Data Entry-Cost Worksheet'!D110 -> 0 | D24: =' Data Entry-Cost Worksheet'!D90 -> 0 | F24: =ROUND((D24*C24),-2) -> 0
A25: Sales Comparison Approach | C25: =ROUND(IF(TRIM('Sales Comparison'!F28)="",'Sales Comparison'!B28, 'Sales Comparison'!F28),2) -> 0 | D25: =' Data Entry-Cost Worksheet'!D90 -> 0 | F25: =ROUND((D25*C25),-2) -> 0
A26: Override Value | D26: =' Data Entry-Cost Worksheet'!D90 -> 0 | F26: =ROUND((D26*C26),-2) -> 0
A28: Final Value Conclusion (Select Net $/Bu from Dropdown) | D28: =' Data Entry-Cost Worksheet'!D90 -> 0 | F28: =ROUND((D28*C28),-2) -> 0
A30: Notes:

Sheet Data Entry-Cost Worksheet
A1: Quick Ref ID# | B1: ='GE Cover Sheet'!D11 -> 0 | C1: Owner | D1: ='GE Cover Sheet'!B5 -> 0 | F1: Tax Year | G1: ='GE Cover Sheet'!D1 -> 2025 | I1: LIGHT YELLOW SHADED FIELDS ARE FOR USER INPUT THROUGHOUT THIS TEMPLATE | N1: Depre | O1: =MATCH(OFFSET($A$1,P3-2,0),'Depreciation Analysis'!$A:$A,0) -> 35 | P1: =MATCH(OFFSET($A$1,Q3-2,0),'Depreciation Analysis'!$A:$A,0) -> 41 | Q1: =MATCH(OFFSET($A$1,R3-2,0),'Depreciation Analysis'!$A:$A,0) -> 41 | R1: =MATCH(OFFSET($A$1,S3-2,0),'Depreciation Analysis'!$A:$A,0) -> 47 | S1: =MATCH(OFFSET($A$1,T3-2,0),'Depreciation Analysis'!$A:$A,0) -> 51 | T1: =MATCH(OFFSET($A$1,U3-2,0),'Depreciation Analysis'!$A:$A,0) -> 55 | U1: =MATCH(OFFSET($A$1,V3-2,0),'Depreciation Analysis'!$A:$A,0) -> 66 | V1: =MATCH(OFFSET($A$1,W3-2,0),'Depreciation Analysis'!$A:$A,0) -> 74 | W1: =MATCH(OFFSET($A$1,X3-2,0),'Depreciation Analysis'!$A:$A,0) -> 77 | X1: =MATCH(OFFSET($A$1,Y3-2,0),'Depreciation Analysis'!$A:$A,0) -> 80 | Y1: =MATCH(OFFSET($A$1,Z3-2,0),'Depreciation Analysis'!$A:$A,0) -> 83 | Z1: =MATCH(OFFSET($A$1,AA3-2,0),'Depreciation Analysis'!$A:$A,0) -> 85 | AA1: =MATCH(OFFSET($A$1,AB3-2,0),'Depreciation Analysis'!$A:$A,0) -> 87 | AB1: =MATCH(OFFSET($A$1,AC3-2,0),'Depreciation Analysis'!$A:$A,0) -> 89 | AC1: =MATCH(OFFSET($A$1,AD3-2,0),'Depreciation Analysis'!$A:$A,0) -> 92 | AD1: =MATCH(OFFSET($A$1,AE3-2,0),'Depreciation Analysis'!$A:$A,0) ->  | AE1: =MATCH(OFFSET($A$1,AF3-2,0),'Depreciation Analysis'!$A:$A,0) ->  | AF1: =MATCH(OFFSET($A$1,AG3-2,0),'Depreciation Analysis'!$A:$A,0) -> 
A2: Situs | B2: ='GE Cover Sheet'!B6 -> 0 | C2: Situs ZIP | D2: ='GE Cover Sheet'!D6 -> 0 | E2: Region | F2: ='GE Cover Sheet'!B23 -> 0 | G2: ='GE Cover Sheet'!B24 -> 0 | I2: Enter data by specific color coded & alpha-numeric section ie… purple line A1 concrete slip form "elevator" vs purple line A8 concrete slip form "annex"- each have different costs as seen in purple Concrete Interpolation tab | N2: =MATCH("Market Accrued Depreciation",'Depreciation Analysis'!D:D,0) -> 99 | O2: Imp/Struct Name-Dscrp Concrete "Slip Form" Elevator Storage | P2: Imp/Struct Name-Dscrp Concrete "Slip Form" Annex Storage | Q2: Imp/Struct Name-Dscrp Concrete "Jump Form" Annex Storage | R2: Imp/Struct Name-Dscrp Concrete "Jump Form" Annex Storage | S2: Imp/Struct Name-Dscrp Wood Crib/Metal Clad Elevator Storage | T2: Imp/Struct Name-Dscrp Wood Crib/Metal Clad Annex Storage | U2: Imp/Struct Name-Dscrp Corrugated Steel-Upright Steel Storage | V2: Imp/Struct Name-Dscrp Bolted Steel-Upright Steel Storage | W2: Imp/Struct Name-Dscrp Flat Storage "Wood" - NO Load/Unload | X2: Imp/Struct Name-Dscrp Flat Storage "Steel" - NO Load/Unload | Y2: Imp/Struct Name-Dscrp Flat Storage "Concrete" - NO Load/Unload | Z2: Imp/Struct Name-Dscrp Misc Steel Hopper Bins | AA2: Imp/Struct Name-Dscrp Misc Fiberglass Hopper Bins | AB2: Imp/Struct Name-Dscrp Misc Steel Tanks | AC2: Imp/Struct Name-Dscrp Misc Permanent Ground/Bunker/Trench Storage | AD2: Misc Scales - USED ONLY TO CALC RCN- NOT incl in GE RCN or DEP compare to Orion | AE2: Misc Railroad Spurs - USED ONLY TO CALC RCN- NOT incl in GE RCN or DEP- compare to Orion | AF2: Section 1 TOTAL RCN: Transfer to Line 8, Section 3
I3: Go to color coded interpolation tab at bottom of workbook to verify, make adjustments & calcs per section ie… purple line A1- go to purple "Concrete Interpolation" tab, green line E1- go to green "Bolted Steel Interpolation" tab | O3: =MATCH(O2,$B:$B,0) -> 6 | P3: 14 | Q3: 21 | R3: 21 | S3: 28 | T3: 33 | U3: 38 | V3: 50 | W3: 59 | X3: 63 | Y3: 67 | Z3: 71 | AA3: 74 | AB3: 77 | AC3: 80 | AD3: 84 | AE3: 87 | AF3: =MATCH(AF2,$A:$A,0) -> 89
A4: SECTION 1 - GRAIN STORAGE
O5: ConcreteSlipFormElevatorCount
A6: (1) | B6: Imp/Struct Name-Dscrp Concrete "Slip Form" Elevator Storage | C6: Year Built | D6: Total Bu. Cpcty | E6: # Idncl Units | F6: Rate | G6: RCN | I6: If inserting data from previous worksheets, ADD ROWS FIRST to each section as needed, then paste section by section. IDNCL Units must be = > 1 to calculate rate | O6: =P3-O3-1 -> 7 | P6: =Q3-P3-1 -> 6 | Q6: =R6 -> 6 | R6: =S3-R3-1 -> 6 | S6: 4 | T6: 4 | U6: 11 | V6: 8 | W6: 3 | X6: 3 | Y6: 3 | Z6: 2 | AA6: =AB3-AA3-1 -> 2 | AB6: =AD3-AB3-1 -> 6 | AC6: 6 | AD6: =AE3-AD3-1 -> 2 | AE6: =AF3-AE3-1 -> 1 | AF6: -90
A7: A1 | F7: =IFERROR(_xlfn.XLOOKUP(A7,'Concrete Interpolation'!A:A,'Concrete Interpolation'!B:B),"") ->  | G7: =IF(D7="","",D7*F7) ->  | O7: LastInterpConcreteSlipElevatorForm | AL7: =IFERROR(IF(D7="", G7/F7,D7),"") -> 
A8: =LEFT(A7,1)&RIGHT(A7,LEN(A7)-1)+1 -> A2 | F8: =IFERROR(_xlfn.XLOOKUP(A8,'Concrete Interpolation'!A:A,'Concrete Interpolation'!B:B),"") ->  | O8: =MATCH(OFFSET($A$1,P3-2,0,1,1),'Concrete Interpolation'!$A:$A, 0) -> 97 | P8: =MATCH(OFFSET($A$1,Q3-2,0,1,1),'Concrete Interpolation'!$A:$A, 0) -> 193 | Q8: =MATCH(OFFSET($A$1,R3-2,0,1,1),'Concrete Interpolation'!$A:$A, 0) -> 193 | R8: =MATCH(OFFSET($A$1,S3-2,0,1,1),'Concrete Interpolation'!$A:$A, 0) -> 289 | S8: =MATCH(OFFSET($A$1,T3-2,0,1,1),'Wood Frame Interpolation'!$A:$A, 0) -> 49 | T8: =MATCH(OFFSET($A$1,U3-2,0,1,1),'Wood Frame Interpolation'!$A:$A, 0) -> 113 | U8: =MATCH(OFFSET($A$1,V3-2,0,1,1),'Corrugated Steel Interpolation '!$A:$A, 0) -> 161 | V8: =MATCH(OFFSET($A$1,W3-2,0,1,1),'Bolted Steel Interpolation '!$A:$A, 0) -> 113 | W8: =MATCH(OFFSET($A$1,X3-2,0,1,1),'Flat Storage Interpolation'!$A:$A, 0) -> 36 | X8: =MATCH(OFFSET($A$1,Y3-2,0,1,1),'Flat Storage Interpolation'!$A:$A, 0) -> 84 | Y8: =MATCH(OFFSET($A$1,Z3-2,0,1,1),'Flat Storage Interpolation'!$A:$A, 0) -> 132 | Z8: =MATCH(OFFSET($A$1,AA3-2,0,1,1),'Misc-Hopper-Bulk Bins-Tanks'!$A:$A, 0) -> 17 | AA8: =MATCH(OFFSET($A$1,AB3-2,0,1,1),'Misc-Hopper-Bulk Bins-Tanks'!$A:$A, 0) -> 49 | AB8: =MATCH(OFFSET($A$1,AC3-2,0,1,1),'Misc-Hopper-Bulk Bins-Tanks'!$A:$A, 0) -> 81 | AC8: =MATCH(OFFSET($A$1,AD3-2,0,1,1),'Misc-Hopper-Bulk Bins-Tanks'!$A:$A, 0) -> 129 | AD8: =MATCH(OFFSET($A$1,AE3-2,0,1,1),'Misc-Hopper-Bulk Bins-Tanks'!$A:$A, 0) -> 161 | AE8: =MATCH(OFFSET($A$1,AF3-2,0,1,1),'Misc-Hopper-Bulk Bins-Tanks'!$A:$A, 0) -> 177 | AF8: =MATCH(OFFSET($A$1,AG3-2,0,1,1),'Misc-Hopper-Bulk Bins-Tanks'!$A:$A, 0) ->  | AL8: =IFERROR(IF(D8="", G8/F8,D8),"") -> 
A9: =LEFT(A8,1)&RIGHT(A8,LEN(A8)-1)+1 -> A3 | F9: =IFERROR(_xlfn.XLOOKUP(A9,'Concrete Interpolation'!A:A,'Concrete Interpolation'!B:B),"") -> 
A10: A4 | F10: =IFERROR(_xlfn.XLOOKUP(A10,'Concrete Interpolation'!A:A,'Concrete Interpolation'!B:B),"") -> 
A11: =LEFT(A10,1) & RIGHT(A10,LEN(A10)-1) +1 -> A5 | F11: =IFERROR(_xlfn.XLOOKUP(A11,'Concrete Interpolation'!A:A,'Concrete Interpolation'!B:B),"") -> 
A12: =LEFT(A11,1) & RIGHT(A11,LEN(A11)-1) +1 -> A6 | F12: =IFERROR(_xlfn.XLOOKUP(A12,'Concrete Interpolation'!A:A,'Concrete Interpolation'!B:B),"") -> 
A13: =LEFT(A12,1) & RIGHT(A12,LEN(A12)-1) +1 -> A7 | F13: =IFERROR(_xlfn.XLOOKUP(A13,'Concrete Interpolation'!A:A,'Concrete Interpolation'!B:B),"") ->  | G13: =IF(D13="","",D13*F13) -> 
A14: (1) | B14: Imp/Struct Name-Dscrp Concrete "Slip Form" Annex Storage | C14: Year Built | D14: Total Bu. Cpcty | E14: # Idncl Units | F14: Rate | G14: RCN | AL14: Total Bu. Cpcty
A15: =LEFT(OFFSET(A15,-2,0,1,1),1) & RIGHT(OFFSET(A15,-2,0,1,1),LEN(OFFSET(A15,-2,0,1,1))-1) +1 -> A8 | F15: =IFERROR(_xlfn.XLOOKUP(A15,'Concrete Interpolation'!A:A,'Concrete Interpolation'!B:B),"") ->  | G15: =IF(D15="","",D15*F15) -> 
A16: =LEFT(A15,1) & RIGHT(A15,LEN(A15)-1) +1 -> A9 | F16: =IFERROR(_xlfn.XLOOKUP(A16,'Concrete Interpolation'!A:A,'Concrete Interpolation'!B:B),"") -> 
A17: =LEFT(A16,1) & RIGHT(A16,LEN(A16)-1) +1 -> A10 | F17: =IFERROR(_xlfn.XLOOKUP(A17,'Concrete Interpolation'!A:A,'Concrete Interpolation'!B:B),"") -> 
A18: A11 | F18: =IFERROR(_xlfn.XLOOKUP(A18,'Concrete Interpolation'!A:A,'Concrete Interpolation'!B:B),"") -> 
A19: =LEFT(A18,1) & RIGHT(A18,LEN(A18)-1) +1 -> A12 | F19: =IFERROR(_xlfn.XLOOKUP(A19,'Concrete Interpolation'!A:A,'Concrete Interpolation'!B:B),"") -> 
A20: =LEFT(A19,1) & RIGHT(A19,LEN(A19)-1) +1 -> A13 | F20: =IFERROR(_xlfn.XLOOKUP(A20,'Concrete Interpolation'!A:A,'Concrete Interpolation'!B:B),"") -> 
A21: (2) | B21: Imp/Struct Name-Dscrp Concrete "Jump Form" Annex Storage | C21: Year Built | D21: Total Bu. Cpcty | E21: # Idncl Units | F21: Rate | G21: RCN | AL21: Total Bu. Cpcty
A22: B1 | F22: =IFERROR(_xlfn.XLOOKUP(A22,'Concrete Interpolation'!A:A,'Concrete Interpolation'!B:B),"") ->  | G22: =IF(D22="","",D22*F22) ->  | J22: Est. Effective Age | K22: ='Depreciation Analysis'!N103 -> 0
A23: =LEFT(A22,1) & RIGHT(A22,LEN(A22)-1) +1 -> B2 | F23: =IFERROR(_xlfn.XLOOKUP(A23,'Concrete Interpolation'!A:A,'Concrete Interpolation'!B:B),"") -> 
A24: =LEFT(A23,1) & RIGHT(A23,LEN(A23)-1) +1 -> B3 | F24: =IFERROR(_xlfn.XLOOKUP(A24,'Concrete Interpolation'!A:A,'Concrete Interpolation'!B:B),"") -> 
A25: B4 | F25: =IFERROR(_xlfn.XLOOKUP(A25,'Concrete Interpolation'!A:A,'Concrete Interpolation'!B:B),"") -> 
A26: =LEFT(A25,1) & RIGHT(A25,LEN(A25)-1) +1 -> B5 | F26: =IFERROR(_xlfn.XLOOKUP(A26,'Concrete Interpolation'!A:A,'Concrete Interpolation'!B:B),"") ->  | H26: Concrete Total
A27: =LEFT(A26,1) & RIGHT(A26,LEN(A26)-1) +1 -> B6 | F27: =IFERROR(_xlfn.XLOOKUP(A27,'Concrete Interpolation'!A:A,'Concrete Interpolation'!B:B),"") ->  | H27: =SUM(G7:G28) -> 0
A28: (3) | B28: Imp/Struct Name-Dscrp Wood Crib/Metal Clad Elevator Storage | C28: Year Built | D28: Total Bu. Cpcty | E28: # Idncl Imp | F28: Rate | G28: RCN | AL28: Total Bu. Cpcty
A29: C1 | F29: =IFERROR(_xlfn.XLOOKUP(A29,'Wood Frame Interpolation'!A:A,'Wood Frame Interpolation'!B:B),"") ->  | G29: =IF(D29="","",D29*F29) -> 
A30: =LEFT(A29,1) & RIGHT(A29,LEN(A29)-1) +1 -> C2 | F30: =IFERROR(_xlfn.XLOOKUP(A30,'Wood Frame Interpolation'!A:A,'Wood Frame Interpolation'!B:B),"") ->  | G30: =IF(D30="","",D30*F30) -> 
A31: =LEFT(A30,1) & RIGHT(A30,LEN(A30)-1) +1 -> C3 | F31: =IFERROR(_xlfn.XLOOKUP(A31,'Wood Frame Interpolation'!A:A,'Wood Frame Interpolation'!B:B),"") ->  | G31: =IF(D31="","",D31*F31) -> 
A32: C4 | F32: =IFERROR(_xlfn.XLOOKUP(A32,'Wood Frame Interpolation'!A:A,'Wood Frame Interpolation'!B:B),"") ->  | G32: =IF(D32="","",D32*F32) -> 
A33: (3) | B33: Imp/Struct Name-Dscrp Wood Crib/Metal Clad Annex Storage | C33: Year Built | D33: Total Bu. Cpcty | E33: # Idncl Units | F33: Rate | G33: RCN | AL33: Total Bu. Cpcty
A34: =LEFT(OFFSET(A34,-2,0,1,1),1) & RIGHT(OFFSET(A34,-2,0,1,1),LEN(OFFSET(A34,-2,0,1,1))-1) +1 -> C5 | F34: =IFERROR(_xlfn.XLOOKUP(A34,'Wood Frame Interpolation'!A:A,'Wood Frame Interpolation'!B:B),"") ->  | G34: =IF(D34="","",D34*F34) -> 
A35: =LEFT(A34,1) & RIGHT(A34,LEN(A34)-1) +1 -> C6 | F35: =IFERROR(_xlfn.XLOOKUP(A35,'Wood Frame Interpolation'!A:A,'Wood Frame Interpolation'!B:B),"") ->  | G35: =IF(D35="","",D35*F35) -> 
A36: =LEFT(A35,1) & RIGHT(A35,LEN(A35)-1) +1 -> C7 | F36: =IFERROR(_xlfn.XLOOKUP(A36,'Wood Frame Interpolation'!A:A,'Wood Frame Interpolation'!B:B),"") ->  | G36: =IF(D36="","",D36*F36) ->  | H36: WF/MC Total
A37: C8 | F37: =IFERROR(_xlfn.XLOOKUP(A37,'Wood Frame Interpolation'!A:A,'Wood Frame Interpolation'!B:B),"") ->  | G37: =IF(D37="","",D37*F37) ->  | H37: =SUM(G29:G38) -> 0
A38: (4) | B38: Imp/Struct Name-Dscrp Corrugated Steel-Upright Steel Storage | C38: Year Built | D38: Total Bu. Cpcty | E38: # Idncl Units | F38: Rate | G38: RCN | AL38: Total Bu. Cpcty
A39: D1 | F39: =IFERROR(_xlfn.XLOOKUP(A39,'Corrugated Steel Interpolation '!A:A,'Corrugated Steel Interpolation '!B:B),"") ->  | G39: =_xlfn.IFS(F39="","",D39="",F39*OFFSET('Corrugated Steel Interpolation '!$A$1,MATCH(A39,'Corrugated Steel Interpolation '!A:A,0)-1+7,5,1,1),D39<>"",D39*F39) -> 
A40: =LEFT(A39,1) & RIGHT(A39,LEN(A39)-1) +1 -> D2 | F40: =IFERROR(_xlfn.XLOOKUP(A40,'Corrugated Steel Interpolation '!A:A,'Corrugated Steel Interpolation '!B:B),"") ->  | G40: =_xlfn.IFS(F40="","",D40="",F40*OFFSET('Corrugated Steel Interpolation '!$A$1,MATCH(A40,'Corrugated Steel Interpolation '!A:A,0)-1+7,5,1,1),D40<>"",D40*F40) -> 
A41: =LEFT(A40,1) & RIGHT(A40,LEN(A40)-1) +1 -> D3 | F41: =IFERROR(_xlfn.XLOOKUP(A41,'Corrugated Steel Interpolation '!A:A,'Corrugated Steel Interpolation '!B:B),"") ->  | G41: =_xlfn.IFS(F41="","",D41="",F41*OFFSET('Corrugated Steel Interpolation '!$A$1,MATCH(A41,'Corrugated Steel Interpolation '!A:A,0)-1+7,5,1,1),D41<>"",D41*F41) -> 
A42: D4 | F42: =IFERROR(_xlfn.XLOOKUP(A42,'Corrugated Steel Interpolation '!A:A,'Corrugated Steel Interpolation '!B:B),"") ->  | G42: =_xlfn.IFS(F42="","",D42="",F42*OFFSET('Corrugated Steel Interpolation '!$A$1,MATCH(A42,'Corrugated Steel Interpolation '!A:A,0)-1+7,5,1,1),D42<>"",D42*F42) -> 
A43: D5 | F43: =IFERROR(_xlfn.XLOOKUP(A43,'Corrugated Steel Interpolation '!A:A,'Corrugated Steel Interpolation '!B:B),"") ->  | G43: =_xlfn.IFS(F43="","",D43="",F43*OFFSET('Corrugated Steel Interpolation '!$A$1,MATCH(A43,'Corrugated Steel Interpolation '!A:A,0)-1+7,5,1,1),D43<>"",D43*F43) -> 
A44: D6 | F44: =IFERROR(_xlfn.XLOOKUP(A44,'Corrugated Steel Interpolation '!A:A,'Corrugated Steel Interpolation '!B:B),"") ->  | G44: =_xlfn.IFS(F44="","",D44="",F44*OFFSET('Corrugated Steel Interpolation '!$A$1,MATCH(A44,'Corrugated Steel Interpolation '!A:A,0)-1+7,5,1,1),D44<>"",D44*F44) -> 
A45: D7 | F45: =IFERROR(_xlfn.XLOOKUP(A45,'Corrugated Steel Interpolation '!A:A,'Corrugated Steel Interpolation '!B:B),"") ->  | G45: =_xlfn.IFS(F45="","",D45="",F45*OFFSET('Corrugated Steel Interpolation '!$A$1,MATCH(A45,'Corrugated Steel Interpolation '!A:A,0)-1+7,5,1,1),D45<>"",D45*F45) -> 
A46: D8 | F46: =IFERROR(_xlfn.XLOOKUP(A46,'Corrugated Steel Interpolation '!A:A,'Corrugated Steel Interpolation '!B:B),"") ->  | G46: =_xlfn.IFS(F46="","",D46="",F46*OFFSET('Corrugated Steel Interpolation '!$A$1,MATCH(A46,'Corrugated Steel Interpolation '!A:A,0)-1+7,5,1,1),D46<>"",D46*F46) -> 
A47: D9 | F47: =IFERROR(_xlfn.XLOOKUP(A47,'Corrugated Steel Interpolation '!A:A,'Corrugated Steel Interpolation '!B:B),"") ->  | G47: =_xlfn.IFS(F47="","",D47="",F47*OFFSET('Corrugated Steel Interpolation '!$A$1,MATCH(A47,'Corrugated Steel Interpolation '!A:A,0)-1+7,5,1,1),D47<>"",D47*F47) -> 
A48: D10 | F48: =IFERROR(_xlfn.XLOOKUP(A48,'Corrugated Steel Interpolation '!A:A,'Corrugated Steel Interpolation '!B:B),"") ->  | G48: =_xlfn.IFS(F48="","",D48="",F48*OFFSET('Corrugated Steel Interpolation '!$A$1,MATCH(A48,'Corrugated Steel Interpolation '!A:A,0)-1+7,5,1,1),D48<>"",D48*F48) -> 
A49: =LEFT(A48,1) & RIGHT(A48,LEN(A48)-1) +1 -> D11 | F49: =IFERROR(_xlfn.XLOOKUP(A49,'Corrugated Steel Interpolation '!A:A,'Corrugated Steel Interpolation '!B:B),"") ->  | G49: =_xlfn.IFS(F49="","",D49="",F49*OFFSET('Corrugated Steel Interpolation '!$A$1,MATCH(A49,'Corrugated Steel Interpolation '!A:A,0)-1+7,5,1,1),D49<>"",D49*F49) -> 
A50: (5) | B50: Imp/Struct Name-Dscrp Bolted Steel-Upright Steel Storage | C50: Year Built | D50: Total Bu. Cpcty | E50: # Idncl Units | F50: Rate | G50: RCN | AL50: Total Bu. Cpcty
A51: E1 | F51: =IFERROR(_xlfn.XLOOKUP(A51,'Bolted Steel Interpolation '!A:A,'Bolted Steel Interpolation '!B:B),"") ->  | G51: =IF(D51="","",D51*F51) -> 
A52: =LEFT(A51,1) & RIGHT(A51,LEN(A51)-1) +1 -> E2 | F52: =IFERROR(_xlfn.XLOOKUP(A52,'Bolted Steel Interpolation '!A:A,'Bolted Steel Interpolation '!B:B),"") -> 
A53: =LEFT(A52,1) & RIGHT(A52,LEN(A52)-1) +1 -> E3 | F53: =IFERROR(_xlfn.XLOOKUP(A53,'Bolted Steel Interpolation '!A:A,'Bolted Steel Interpolation '!B:B),"") -> 
A54: E4 | F54: =IFERROR(_xlfn.XLOOKUP(A54,'Bolted Steel Interpolation '!A:A,'Bolted Steel Interpolation '!B:B),"") -> 
A55: E5 | F55: =IFERROR(_xlfn.XLOOKUP(A55,'Bolted Steel Interpolation '!A:A,'Bolted Steel Interpolation '!B:B),"") -> 
A56: E6 | F56: =IFERROR(_xlfn.XLOOKUP(A56,'Bolted Steel Interpolation '!A:A,'Bolted Steel Interpolation '!B:B),"") ->  | G56: =IF(D56="","",D56*F56) -> 
A57: E7 | F57: =IFERROR(_xlfn.XLOOKUP(A57,'Bolted Steel Interpolation '!A:A,'Bolted Steel Interpolation '!B:B),"") ->  | G57: =IF(D57="","",D57*F57) ->  | H57: Upright Steel Total
A58: E8 | F58: =IFERROR(_xlfn.XLOOKUP(A58,'Bolted Steel Interpolation '!A:A,'Bolted Steel Interpolation '!B:B),"") ->  | G58: =IF(D58="","",D58*F58) ->  | H58: =SUM(G39:G59) -> 0
A59: (6) | B59: Imp/Struct Name-Dscrp Flat Storage "Wood" - NO Load/Unload | C59: Year Built | D59: Total Bu. Cpcty | E59: # Idncl Units | F59: Rate | G59: RCN | AL59: Total Bu. Cpcty
A60: F1 | F60: =IFERROR(_xlfn.XLOOKUP(A60,'Flat Storage Interpolation'!A:A,'Flat Storage Interpolation'!B:B),"") ->  | G60: =IF(D60="","",D60*F60) -> 
A61: =LEFT(A60,1) & RIGHT(A60,LEN(A60)-1) +1 -> F2 | F61: =IFERROR(_xlfn.XLOOKUP(A61,'Flat Storage Interpolation'!A:A,'Flat Storage Interpolation'!B:B),"") ->  | G61: =IF(D61="","",D61*F61) -> 
A62: =LEFT(A61,1) & RIGHT(A61,LEN(A61)-1) +1 -> F3 | F62: =IFERROR(_xlfn.XLOOKUP(A62,'Flat Storage Interpolation'!A:A,'Flat Storage Interpolation'!B:B),"") ->  | G62: =IF(D62="","",D62*F62) -> 
B63: Imp/Struct Name-Dscrp Flat Storage "Steel" - NO Load/Unload | C63: Year Built | D63: Total Bu. Cpcty | E63: # Idncl Units | F63: Rate | G63: RCN | AL63: Total Bu. Cpcty
A64: =LEFT(OFFSET(A64,-2,0,1,1),1) & RIGHT(OFFSET(A64,-2,0,1,1),LEN(OFFSET(A64,-2,0,1,1))-1) +1 -> F4 | F64: =IFERROR(_xlfn.XLOOKUP(A64,'Flat Storage Interpolation'!A:A,'Flat Storage Interpolation'!B:B),"") ->  | G64: =IF(D64="","",D64*F64) -> 
A65: =LEFT(A64,1) & RIGHT(A64,LEN(A64)-1) +1 -> F5 | F65: =IFERROR(_xlfn.XLOOKUP(A65,'Flat Storage Interpolation'!A:A,'Flat Storage Interpolation'!B:B),"") ->  | G65: =IF(D65="","",D65*F65) -> 
A66: =LEFT(A65,1) & RIGHT(A65,LEN(A65)-1) +1 -> F6 | F66: =IFERROR(_xlfn.XLOOKUP(A66,'Flat Storage Interpolation'!A:A,'Flat Storage Interpolation'!B:B),"") ->  | G66: =IF(D66="","",D66*F66) -> 
B67: Imp/Struct Name-Dscrp Flat Storage "Concrete" - NO Load/Unload | C67: Year Built | D67: Total Bu. Cpcty | E67: # Idncl Units | F67: Rate | G67: RCN | AL67: Total Bu. Cpcty
A68: =LEFT(OFFSET(A68,-2,0,1,1),1) & RIGHT(OFFSET(A68,-2,0,1,1),LEN(OFFSET(A68,-2,0,1,1))-1) +1 -> F7 | F68: =IFERROR(_xlfn.XLOOKUP(A68,'Flat Storage Interpolation'!A:A,'Flat Storage Interpolation'!B:B),"") ->  | G68: =IF(D68="","",D68*F68) -> 
A69: =LEFT(A68,1) & RIGHT(A68,LEN(A68)-1) +1 -> F8 | F69: =IFERROR(_xlfn.XLOOKUP(A69,'Flat Storage Interpolation'!A:A,'Flat Storage Interpolation'!B:B),"") ->  | G69: =IF(D69="","",D69*F69) ->  | H69: Flat Storage Total
A70: =LEFT(A69,1) & RIGHT(A69,LEN(A69)-1) +1 -> F9 | F70: =IFERROR(_xlfn.XLOOKUP(A70,'Flat Storage Interpolation'!A:A,'Flat Storage Interpolation'!B:B),"") ->  | G70: =IF(D70="","",D70*F70) ->  | H70: =SUM(G60:G71) -> 0
A71: (7) | B71: Imp/Struct Name-Dscrp Misc Steel Hopper Bins | C71: Year Built | D71: Total Bu. Cpcty | E71: # Idncl Units | F71: Rate | G71: RCN | AL71: Total Bu. Cpcty
A72: G1 | F72: =IFERROR(_xlfn.XLOOKUP(A72,'Misc-Hopper-Bulk Bins-Tanks'!A:A,'Misc-Hopper-Bulk Bins-Tanks'!B:B),"") ->  | G72: =_xlfn.IFS(F72="","",D72="",F72*OFFSET('Misc-Hopper-Bulk Bins-Tanks'!$A$1,MATCH(A72,'Misc-Hopper-Bulk Bins-Tanks'!A:A,0)-1+7,5,1,1),D72<>"",D72*F72) -> 
A73: =LEFT(A72,1) & RIGHT(A72,LEN(A72)-1) +1 -> G2 | F73: =IFERROR(_xlfn.XLOOKUP(A73,'Misc-Hopper-Bulk Bins-Tanks'!A:A,'Misc-Hopper-Bulk Bins-Tanks'!B:B),"") ->  | G73: =_xlfn.IFS(F73="","",D73="",F73*OFFSET('Misc-Hopper-Bulk Bins-Tanks'!$A$1,MATCH(A73,'Misc-Hopper-Bulk Bins-Tanks'!A:A,0)-1+7,5,1,1),D73<>"",D73*F73) -> 
B74: Imp/Struct Name-Dscrp Misc Fiberglass Hopper Bins | C74: Year Built | D74: Total Bu. Cpcty | E74: # Idncl Units | F74: Rate | G74: RCN | AL74: Total Bu. Cpcty
A75: =LEFT(OFFSET(A75,-2,0,1,1),1) & RIGHT(OFFSET(A75,-2,0,1,1),LEN(OFFSET(A75,-2,0,1,1))-1) +1 -> G3 | F75: =IFERROR(_xlfn.XLOOKUP(A75,'Misc-Hopper-Bulk Bins-Tanks'!A:A,'Misc-Hopper-Bulk Bins-Tanks'!B:B),"") ->  | G75: =_xlfn.IFS(F75="","",D75="",F75*OFFSET('Misc-Hopper-Bulk Bins-Tanks'!$A$1,MATCH(A75,'Misc-Hopper-Bulk Bins-Tanks'!A:A,0)-1+7,5,1,1),D75<>"",D75*F75) -> 
A76: =LEFT(A75,1) & RIGHT(A75,LEN(A75)-1) +1 -> G4 | F76: =IFERROR(_xlfn.XLOOKUP(A76,'Misc-Hopper-Bulk Bins-Tanks'!A:A,'Misc-Hopper-Bulk Bins-Tanks'!B:B),"") ->  | G76: =_xlfn.IFS(F76="","",D76="",F76*OFFSET('Misc-Hopper-Bulk Bins-Tanks'!$A$1,MATCH(A76,'Misc-Hopper-Bulk Bins-Tanks'!A:A,0)-1+7,5,1,1),D76<>"",D76*F76) -> 
B77: Imp/Struct Name-Dscrp Misc Steel Tanks | C77: Year Built | D77: Total Bu. Cpcty | E77: # Idncl Units | F77: Rate | G77: RCN | AL77: =IFERROR(IF(D77="", G77/F77,D77),"") -> Total Bu. Cpcty
A78: =LEFT(OFFSET(A78,-2,0,1,1),1) & RIGHT(OFFSET(A78,-2,0,1,1),LEN(OFFSET(A78,-2,0,1,1))-1) +1 -> G5 | F78: =IFERROR(_xlfn.XLOOKUP(A78,'Misc-Hopper-Bulk Bins-Tanks'!A:A,'Misc-Hopper-Bulk Bins-Tanks'!B:B),"") ->  | G78: =_xlfn.IFS(F78="","",D78="",F78*OFFSET('Misc-Hopper-Bulk Bins-Tanks'!$A$1,MATCH(A78,'Misc-Hopper-Bulk Bins-Tanks'!A:A,0)-1+7,5,1,1),D78<>"",D78*F78) -> 
A79: =LEFT(A78,1) & RIGHT(A78,LEN(A78)-1) +1 -> G6 | F79: =IFERROR(_xlfn.XLOOKUP(A79,'Misc-Hopper-Bulk Bins-Tanks'!A:A,'Misc-Hopper-Bulk Bins-Tanks'!B:B),"") ->  | G79: =_xlfn.IFS(F79="","",D79="",F79*OFFSET('Misc-Hopper-Bulk Bins-Tanks'!$A$1,MATCH(A79,'Misc-Hopper-Bulk Bins-Tanks'!A:A,0)-1+7,5,1,1),D79<>"",D79*F79) -> 
B80: Imp/Struct Name-Dscrp Misc Permanent Ground/Bunker/Trench Storage | C80: Year Built | D80: Total Bu. Cpcty | E80: # Idncl Units | F80: Rate | G80: RCN | AL80: Total Bu. Cpcty
A81: =LEFT(OFFSET(A81,-2,0,1,1),1) & RIGHT(OFFSET(A81,-2,0,1,1),LEN(OFFSET(A81,-2,0,1,1))-1) +1 -> G7 | F81: =IFERROR(_xlfn.XLOOKUP(A81,'Misc-Hopper-Bulk Bins-Tanks'!A:A,'Misc-Hopper-Bulk Bins-Tanks'!B:B),"") ->  | G81: =_xlfn.IFS(F81="","",F81<>"",F81*OFFSET('Misc-Hopper-Bulk Bins-Tanks'!$A$1,MATCH(A81,'Misc-Hopper-Bulk Bins-Tanks'!A:A,0)-1+4,5,1,1)) ->  | AL81: =IFERROR(IF(D81="", "",D81),"") -> 
A82: =LEFT(A81,1) & RIGHT(A81,LEN(A81)-1) +1 -> G8 | F82: =IFERROR(_xlfn.XLOOKUP(A82,'Misc-Hopper-Bulk Bins-Tanks'!A:A,'Misc-Hopper-Bulk Bins-Tanks'!B:B),"") ->  | G82: =_xlfn.IFS(F82="","",F82<>"",F82*OFFSET('Misc-Hopper-Bulk Bins-Tanks'!$A$1,MATCH(A82,'Misc-Hopper-Bulk Bins-Tanks'!A:A,0)-1+4,5,1,1)) ->  | H82: Ground Storage Total | AL82: =IFERROR(IF(D82="", "",D82),"") -> 
A83: =LEFT(A82,1) & RIGHT(A82,LEN(A82)-1) +1 -> G9 | F83: =IFERROR(_xlfn.XLOOKUP(A83,'Misc-Hopper-Bulk Bins-Tanks'!A:A,'Misc-Hopper-Bulk Bins-Tanks'!B:B),"") ->  | G83: =_xlfn.IFS(F83="","",F83<>"",F83*OFFSET('Misc-Hopper-Bulk Bins-Tanks'!$A$1,MATCH(A83,'Misc-Hopper-Bulk Bins-Tanks'!A:A,0)-1+4,5,1,1)) ->  | H83: =SUM(G81:G84) -> 0 | AL83: =IFERROR(IF(D83="", "",D83),"") -> 
B84: Misc Scales - USED ONLY TO CALC RCN- NOT incl in GE RCN or DEP compare to Orion | C84: Year Built | D84: XXXXX | E84: # Idncl Units | F84: Rate | G84: RCN
A85: =LEFT(OFFSET(A85,-2,0,1,1),1) & RIGHT(OFFSET(A85,-2,0,1,1),LEN(OFFSET(A85,-2,0,1,1))-1) +1 -> G10 | F85: =IFERROR(_xlfn.XLOOKUP(A85,'Misc-Hopper-Bulk Bins-Tanks'!A:A,'Misc-Hopper-Bulk Bins-Tanks'!B:B),"") ->  | G85: =IF(F85="","",E85*F85*OFFSET('Misc-Hopper-Bulk Bins-Tanks'!$A$1,MATCH(A85,'Misc-Hopper-Bulk Bins-Tanks'!A:A,0)-1+3,5,1,1)) -> 
A86: =LEFT(A85,1) & RIGHT(A85,LEN(A85)-1) +1 -> G11 | F86: =IFERROR(_xlfn.XLOOKUP(A86,'Misc-Hopper-Bulk Bins-Tanks'!A:A,'Misc-Hopper-Bulk Bins-Tanks'!B:B),"") ->  | G86: =IF(F86="","",E86*F86*OFFSET('Misc-Hopper-Bulk Bins-Tanks'!$A$1,MATCH(A86,'Misc-Hopper-Bulk Bins-Tanks'!A:A,0)-1+3,5,1,1)) -> 
B87: Misc Railroad Spurs - USED ONLY TO CALC RCN- NOT incl in GE RCN or DEP- compare to Orion | C87: Year Built | D87: XXXXX | E87: # Idncl Units | F87: Rate | G87: RCN
A88: =LEFT(OFFSET(A88,-2,0,1,1),1) & RIGHT(OFFSET(A88,-2,0,1,1),LEN(OFFSET(A88,-2,0,1,1))-1) +1 -> G12 | F88: =IFERROR(_xlfn.XLOOKUP(A88,'Misc-Hopper-Bulk Bins-Tanks'!A:A,'Misc-Hopper-Bulk Bins-Tanks'!B:B),"") ->  | G88: =IF(F88="","",E88*F88*OFFSET('Misc-Hopper-Bulk Bins-Tanks'!$A$1,MATCH(A88,'Misc-Hopper-Bulk Bins-Tanks'!A:A,0)-1+3,5,1,1)) -> 
A89: Section 1 TOTAL RCN: Transfer to Line 8, Section 3 | C89: RCN DOES NOT INCLUDE NON-GRAIN SCALES-RR SPURS | G89: =SUM(OFFSET($G$7,0,0,$AD$3-$O$3-1,1)) -> 0
A90: Total Bushel Capacity | D90: =$AL$99 -> 0 | E90: Bushels
A91: Storage Type Percentage Breakdown | AL91: =IFERROR(IF(D91="", G91/F91,D91),"") -> 
A93: Concrete | G93: =IFERROR(H27/G89,0) -> 0 | AL93: =IFERROR(IF(D93="", G93/F93,D93),"") -> 
A94: Wood Crib / Metal Clad | G94: =IFERROR(H37/G89,0) -> 0 | AL94: =IFERROR(IF(D94="", G94/F94,D94),"") -> 
A95: Upright Steel | G95: =IFERROR(H58/G89,0) -> 0
A96: Flat Storage | G96: =IFERROR(H70/G89,0) -> 0
A97: Permanent Ground/Bunker/Trench Storage | G97: =IFERROR(H83/G90,0) -> 0
A98: Designated Storage Type For Analysis | G98: =IF(G93>0.75,"Concrete",IF(G95>0.75,"Steel",IF(SUM(G93:G97)>0,"Mixed",""))) -> 
A99: Section 2 - Cost Reconciliation | AL99: =SUM($AL$7:AL90) -> 0
A101: 8 | B101: Total Cost Section 1 | G101: =G89 -> 0
A102: 9 | B102: Current Cost Mulitplier | G102: =_xlfn.XLOOKUP(_xlfn.SWITCH($G$2,"Wood","D","Concrete","C","Steel","S","Mixed",IF(G93>=G95,"C","S")),'Cost Multipliers'!$F$3:$F$5,'Cost Multipliers'!$G$3:$G$5) -> 
A103: 10 | B103: Local Multiplier | G103: =VLOOKUP(_xlfn.SWITCH($G$2,"Wood","D","Concrete","C","Steel","S","Mixed",IF(G93>=G95,"C","S")),_xlfn._xlws.FILTER('Cost Multipliers'!$B$2:$C$4042,'Cost Multipliers'!$A$2:$A$4042=' Data Entry-Cost Worksheet'!$D$2),2) -> 
A104: 11 | B104: Total Replacement Cost New (RCN) | G104: =G101*G102*G103 -> 
A105: 12 | B105: Market Accrued Depreciation - (%) - From Depreciation Analysis Tab | F105: ='Depreciation Analysis'!F99/100 -> 0 | I105: Required Notes for Additional Functional and/or Economic Obsolescence:
A106: 13 | B106: Additional Functional Obsolescence (%) - User Input
A107: 14 | B107: Additional Economic Obsolescence (%) - User Input
A108: 15 | B108: Total Obsolescence & Depreciation cannot be more than 95% | F108: =IF(F105+F106+F107>0.95,0.95,F105+F106+F107) -> 0 | G108: =G104*F108 -> 
A109: 16 | B109: Total Replacement Cost New Less Depreciation (RCNLD) | G109: =G104-G108 -> 
A110: 17 | B110: ESTIMATED MARKET COST VALUE (Rounded) | D110: =(IFERROR(G109/D90,0)) -> 0 | E110: per Bushel | G110: =ROUND(G109,-2) -> 
A111: Additional Notes:

Sheet Depreciation Analysis
A2: LIGHT YELLOW SHADED FIELDS ARE FOR USER INPUT THROUGHOUT THIS TEMPLATE | I2: Comparable Sales Selection | S2: Comparable Sales Search
A3: Comparable sales list is provided in this sheet to the right in columns P-Z
A4: Comparable sales search may be conducted using input box to the far right in columns S-W | I4: Sale Number | J4: Type | K4: Eff Age | L4: Bu Capacity | M4: Net $/Bu | S4: Region | V4: Min | W4: Max
A5: Comparable sales may be selected using input box to the right in columns I-M | J5: =_xlfn.XLOOKUP(I5,$P$13:$P$47,$R$13:$R$47,"") ->  | K5: =_xlfn.XLOOKUP(I5,$P$13:$P$47,$X$13:$X$47,"") ->  | L5: =_xlfn.XLOOKUP(I5,$P$13:$P$47,$S$13:$S$47,"") ->  | M5: =_xlfn.XLOOKUP(I5,$P$13:$P$47,$Z$13:$Z$47,"") ->  | S5: Type | U5: Bu Capacity
J6: =_xlfn.XLOOKUP(I6,$P$13:$P$47,$R$13:$R$47,"") ->  | K6: =_xlfn.XLOOKUP(I6,$P$13:$P$47,$X$13:$X$47,"") ->  | L6: =_xlfn.XLOOKUP(I6,$P$13:$P$47,$S$13:$S$47,"") ->  | M6: =_xlfn.XLOOKUP(I6,$P$13:$P$47,$Z$13:$Z$47,"") ->  | U6: Age
U7: Net $/Bu
I9: Selected sales will populate depreciation tables below and the Sales Comparison Approach tab | S9: Enter search criteria in yellow shaded input fields. Not all fields required for feedback. Qualifying sales will highlight in list
A10: Annual Depreciation Rate Analysis
A12: Category or Sub-Category | B12: # Properties | C12: Low | D12: Mean | E12: Median | F12: High | I12: STATEWIDE | P12: Sale Number | Q12: Region | R12: Type | S12: Bushel Capacity | T12: Concrete % | U12: WC/MC % | V12: Upright Steel % | W12: Flat Storage % | X12: Weighted Age | Y12: Annual Dep: Capped at 95% | Z12: Net $/Bu
A13: Total Database | I13: Type of Storage | J13: # of Prop | K13: Low | L13: Mean | M13: Median | N13: High | P13: 1 | Q13: West | R13: Steel | S13: 714000 | V13: 1 | X13: 11.19560243 | Y13: 0.0221832471 | Z13: 0.8828428079
A14: Type of Storage (Total DB) | B14: =_xlfn.XLOOKUP(' Data Entry-Cost Worksheet'!G98,'Depreciation Analysis'!I14:I16,'Depreciation Analysis'!J14:N16,"") ->  | I14: Concrete | J14: 15 | K14: 1.07 | L14: 1.49 | M14: 1.43 | N14: 2.04 | P14: 2 | Q14: East | R14: Steel | S14: 1652000 | V14: 1 | X14: 13.44127977 | Y14: 0.01822440156 | Z14: 0.7927957474
A15: Size (Total DB) | B15: =IF(' Data Entry-Cost Worksheet'!$D$90=0,"",IF(' Data Entry-Cost Worksheet'!$D$90<=999999,J24,IF(' Data Entry-Cost Worksheet'!$D$90>=999999,J25,""))) ->  | C15: =IF(' Data Entry-Cost Worksheet'!$D$90=0,"",IF(' Data Entry-Cost Worksheet'!$D$90<=999999,K24,IF(' Data Entry-Cost Worksheet'!$D$90>=999999,K25,""))) ->  | D15: =IF(' Data Entry-Cost Worksheet'!$D$90=0,"",IF(' Data Entry-Cost Worksheet'!$D$90<=999999,L24,IF(' Data Entry-Cost Worksheet'!$D$90>=999999,L25,""))) ->  | E15: =IF(' Data Entry-Cost Worksheet'!$D$90=0,"",IF(' Data Entry-Cost Worksheet'!$D$90<=999999,M24,IF(' Data Entry-Cost Worksheet'!$D$90>=999999,M25,""))) ->  | F15: =IF(' Data Entry-Cost Worksheet'!$D$90=0,"",IF(' Data Entry-Cost Worksheet'!$D$90<=999999,N24,IF(' Data Entry-Cost Worksheet'!$D$90>=999999,N25,""))) ->  | I15: Steel | J15: 10 | K15: 1.39 | L15: 1.86 | M15: 1.82 | N15: 2.43 | P15: 3 | Q15: East | R15: Steel | S15: 223000 | V15: 1 | X15: 48.01893287 | Y15: 0.01839647498 | Z15: 0.2125020569
A16: Age (Total DB) | B16: =IF($F$97=0,"",IF($F$97<= 39.99,J28,IF($F$97>=39.99,J29,""))) ->  | C16: =IF($F$97=0,"",IF($F$97<= 39.99,K28,IF($F$97>=39.99,K29,""))) ->  | D16: =IF($F$97=0,"",IF($F$97<= 39.99,L28,IF($F$97>=39.99,L29,""))) ->  | E16: =IF($F$97=0,"",IF($F$97<= 39.99,M28,IF($F$97>=39.99,M29,""))) ->  | F16: =IF($F$97=0,"",IF($F$97<= 39.99,N28,IF($F$97>=39.99,N29,""))) ->  | G16: =IF(COUNT(E14:E16)>0,AVERAGE(E14:E16),0) -> 0 | I16: Mixed | J16: 10 | K16: 1.04 | L16: 1.91 | M16: 1.61 | N16: 4.05 | P16: 4 | Q16: East | R16: Steel | S16: 555000 | V16: 1 | X16: 11.70236994 | Y16: 0.0139063847 | Z16: 1.803840383
A17: Total Regional Database | P17: 5 | Q17: West | R17: Steel | S17: 1804000 | V17: 1 | X17: 13.55723398 | Y17: 0.01569715891 | Z17: 0.9363444589
A18: Type of Storage (Regional DB) | B18: =_xlfn.IFS(' Data Entry-Cost Worksheet'!F2=0,"",' Data Entry-Cost Worksheet'!F2="east",_xlfn.XLOOKUP(' Data Entry-Cost Worksheet'!G98,'Depreciation Analysis'!I34:I36,'Depreciation Analysis'!J34:N36),' Data Entry-Cost Worksheet'!F2="west",_xlfn.XLOOKUP(' Data Entry-Cost Worksheet'!G98,'Depreciation Analysis'!I49:I51,'Depreciation Analysis'!J49:N51)) ->  | I18: Location | J18: # of Prop | K18: Low | L18: Mean | M18: Median | N18: High | P18: 6 | Q18: East | R18: Steel | S18: 222000 | V18: 1 | X18: 27.26303959 | Y18: 0.02431630105 | Z18: 0.5876394951
A19: Size (Regional DB) | B19: =_xlfn.IFS(' Data Entry-Cost Worksheet'!$D$90=0,"",' Data Entry-Cost Worksheet'!$F$2="east",IF(' Data Entry-Cost Worksheet'!$D$90<999999,'Depreciation Analysis'!J39,J40),' Data Entry-Cost Worksheet'!$F$2="west",IF(' Data Entry-Cost Worksheet'!$D$90<999999,'Depreciation Analysis'!J54,J55)) ->  | C19: =_xlfn.IFS(' Data Entry-Cost Worksheet'!$D$90=0,"",' Data Entry-Cost Worksheet'!$F$2="east",IF(' Data Entry-Cost Worksheet'!$D$90<999999,'Depreciation Analysis'!K39,K40),' Data Entry-Cost Worksheet'!$F$2="west",IF(' Data Entry-Cost Worksheet'!$D$90<999999,'Depreciation Analysis'!K54,K55)) ->  | D19: =_xlfn.IFS(' Data Entry-Cost Worksheet'!$D$90=0,"",' Data Entry-Cost Worksheet'!$F$2="east",IF(' Data Entry-Cost Worksheet'!$D$90<999999,'Depreciation Analysis'!L39,L40),' Data Entry-Cost Worksheet'!$F$2="west",IF(' Data Entry-Cost Worksheet'!$D$90<999999,'Depreciation Analysis'!L54,L55)) ->  | E19: =_xlfn.IFS(' Data Entry-Cost Worksheet'!$D$90=0,"",' Data Entry-Cost Worksheet'!$F$2="east",IF(' Data Entry-Cost Worksheet'!$D$90<999999,'Depreciation Analysis'!M39,M40),' Data Entry-Cost Worksheet'!$F$2="west",IF(' Data Entry-Cost Worksheet'!$D$90<999999,'Depreciation Analysis'!M54,M55)) ->  | F19: =_xlfn.IFS(' Data Entry-Cost Worksheet'!$D$90=0,"",' Data Entry-Cost Worksheet'!$F$2="east",IF(' Data Entry-Cost Worksheet'!$D$90<999999,'Depreciation Analysis'!N39,N40),' Data Entry-Cost Worksheet'!$F$2="west",IF(' Data Entry-Cost Worksheet'!$D$90<999999,'Depreciation Analysis'!N54,N55)) ->  | I19: East | J19: 10 | K19: 1.39 | L19: 1.82 | M19: 1.83 | N19: 2.43 | P19: 7 | Q19: East | R19: Steel | S19: 933000 | U19: 0.14 | V19: 0.86 | X19: 40.51032559 | Y19: 0.01751393334 | Z19: 0.4279332234
A20: Age (Regional DB) | B20: =_xlfn.IFS($F$97=0,"",' Data Entry-Cost Worksheet'!$F$2="east",IF($F$97<39.99,'Depreciation Analysis'!J43,J44),' Data Entry-Cost Worksheet'!$F$2="west",IF($F$97<39.99,'Depreciation Analysis'!J58,J59)) ->  | C20: =_xlfn.IFS($F$97=0,"",' Data Entry-Cost Worksheet'!$F$2="east",IF($F$97<39.99,'Depreciation Analysis'!K43,K44),' Data Entry-Cost Worksheet'!$F$2="west",IF($F$97<39.99,'Depreciation Analysis'!K58,K59)) ->  | D20: =_xlfn.IFS($F$97=0,"",' Data Entry-Cost Worksheet'!$F$2="east",IF($F$97<39.99,'Depreciation Analysis'!L43,L44),' Data Entry-Cost Worksheet'!$F$2="west",IF($F$97<39.99,'Depreciation Analysis'!L58,L59)) ->  | E20: =_xlfn.IFS($F$97=0,"",' Data Entry-Cost Worksheet'!$F$2="east",IF($F$97<39.99,'Depreciation Analysis'!M43,M44),' Data Entry-Cost Worksheet'!$F$2="west",IF($F$97<39.99,'Depreciation Analysis'!M58,M59)) ->  | F20: =_xlfn.IFS($F$97=0,"",' Data Entry-Cost Worksheet'!$F$2="east",IF($F$97<39.99,'Depreciation Analysis'!N43,N44),' Data Entry-Cost Worksheet'!$F$2="west",IF($F$97<39.99,'Depreciation Analysis'!N58,N59)) ->  | G20: =IF(COUNT(E18:E20)>0,AVERAGE(E18:E20),0) -> 0 | I20: West | J20: 25 | K20: 1.04 | L20: 1.62 | M20: 1.54 | N20: 4.05 | P20: 8 | Q20: West | R20: Steel | S20: 869231 | V20: 0.81 | W20: 0.19 | X20: 38.3960843 | Y20: 0.01734116803 | Z20: 0.4059998139
A21: Selected Comparables | B21: Type | C21: Eff Age | D21: Bu Capacity | F21: Depreciation | I21: Statewide | J21: 35 | K21: 1.04 | L21: 1.72 | M21: 1.57 | N21: 4.05 | P21: 9 | Q21: East | R21: Steel | S21: 65000 | U21: 0.23 | V21: 0.77 | X21: 44.85202032 | Y21: 0.01983253901 | Z21: 0.4441398879
A22: =I5 -> 0 | B22: =_xlfn.XLOOKUP(A22,$P$13:$P$47,$R$13:$R$47,"") ->  | C22: =_xlfn.XLOOKUP(A22,$P$13:$P$47,$X$13:$X$47,"") ->  | D22: =_xlfn.XLOOKUP(A22,$P$13:$P$47,$S$13:$S$47,"") ->  | F22: =IFERROR(_xlfn.XLOOKUP(A22,$P$13:$P$47,$Y$13:$Y$47,"")*100,"") ->  | P22: 10 | Q22: West | R22: Steel | S22: 1996714 | U22: 0.05 | V22: 0.76 | W22: 0.19 | X22: 28.837798 | Y22: 0.01815797794 | Z22: 1.216091558
A23: =I6 -> 0 | B23: =_xlfn.XLOOKUP(A23,$P$13:$P$47,$R$13:$R$47,"") ->  | C23: =_xlfn.XLOOKUP(A23,$P$13:$P$47,$X$13:$X$47,"") ->  | D23: =_xlfn.XLOOKUP(A23,$P$13:$P$47,$S$13:$S$47,"") ->  | F23: =IFERROR(_xlfn.XLOOKUP(A23,$P$13:$P$47,$Y$13:$Y$47,"")*100,"") ->  | I23: Size | J23: # of Prop | K23: Low | L23: Mean | M23: Median | N23: High | P23: 11 | Q23: West | R23: Mixed | S23: 347111 | T23: 0.3 | V23: 0.7 | X23: 36.25130253 | Y23: 0.02500873658 | Z23: 0.210814123
A24: =I7 -> 0 | F24: =IFERROR(_xlfn.XLOOKUP(A24,$P$13:$P$47,$Y$13:$Y$47,"")*100,"") ->  | G24: =IF(COUNT(F22:F24)>0,AVERAGE(F22:F24),0) -> 0 | I24: 999,999 Bu & Under | J24: 20 | K24: 1.07 | L24: 1.7 | M24: 1.68 | N24: 2.5 | P24: 12 | Q24: West | R24: Mixed | S24: 1097736 | V24: 0.7 | W24: 0.3 | X24: 16.06592204 | Y24: 0.04051438345 | Z24: 0.4014629295
I25: 1,000,000 Bu & Over | J25: 15 | K25: 1.04 | L25: 1.74 | M25: 1.56 | N25: 4.05 | P25: 13 | Q25: West | R25: Mixed | S25: 2173937 | V25: 0.69 | W25: 0.31 | X25: 39.40848671 | Y25: 0.01317759386 | Z25: 0.6765066284
A26: Average Annual Depreciation Rate | B26: =IF(AND(G20=0,G24=0),G16,IF(AND(G20=0,G24>0),AVERAGE(G16,G24),IF(AND(G24=0,G20>0),AVERAGE(G16,G20),IF(AND(G20>0,G24>0),AVERAGE(G16,G20,G24))))) -> 0 | C26: Finalized Annual Depreciation Rate | P26: 14 | Q26: West | R26: Mixed | S26: 167000 | U26: 0.46 | V26: 0.54 | X26: 52.00713012 | Y26: 0.01662999022 | Z26: 0.4225393139
I27: Age | J27: # of Prop | K27: Low | L27: Mean | M27: Median | N27: High | P27: 15 | Q27: West | R27: Mixed | S27: 2633920 | T27: 0.61 | V27: 0.34 | W27: 0.05 | X27: 39.47116983 | Y27: 0.01541580323 | Z27: 1.043505206
A28: Improvement | B28: App Year | C28: Year Built | D28: Age | E28: RCN | F28: Weighted Age | I28: 39 Years & Under | J28: 13 | K28: 1.32 | L28: 2.01 | M28: 1.82 | N28: 4.05 | P28: 16 | Q28: East | R28: Mixed | S28: 415308 | T28: 0.1 | U28: 0.13 | V28: 0.32 | W28: 0.44 | X28: 36.91950879 | Y28: 0.02086883533 | Z28: 0.556219294
A29: A1 | B29: ='GE Cover Sheet'!$D$1 -> 2025 | C29: =OFFSET(' Data Entry-Cost Worksheet'!$A$1,MATCH('Depreciation Analysis'!A29,' Data Entry-Cost Worksheet'!$A:$A,0)-1,2,1,1) -> 0 | D29: =IF(C29<>"",$B$29-C29,"") -> 2025 | E29: =IF(C29<>"",OFFSET(' Data Entry-Cost Worksheet'!$A$1,MATCH('Depreciation Analysis'!A29,' Data Entry-Cost Worksheet'!$A:$A,0)-1,6,1,1),"") ->  | F29: =IF(E29<>"",(E29/$E$94)*D29,"") ->  | I29: 40 Years & Over | J29: 22 | K29: 1.04 | L29: 1.54 | M29: 1.49 | N29: 2.04 | P29: 17 | Q29: West | R29: Mixed | S29: 3034720 | T29: 0.59 | V29: 0.3 | W29: 0.12 | X29: 45.82437712 | Y29: 0.01937636278 | Z29: 0.3031526356
A30: =LEFT(OFFSET(A30,-1,0),1)& RIGHT(OFFSET(A30,-1,0),LEN(OFFSET(A30,-1,0))-1) +1 -> A2 | B30: ='GE Cover Sheet'!$D$1 -> 2025 | C30: =OFFSET(' Data Entry-Cost Worksheet'!$A$1,MATCH('Depreciation Analysis'!A30,' Data Entry-Cost Worksheet'!$A:$A,0)-1,2,1,1) -> 0 | D30: 2025 | E30: =IF(C30<>"",OFFSET(' Data Entry-Cost Worksheet'!$A$1,MATCH('Depreciation Analysis'!A30,' Data Entry-Cost Worksheet'!$A:$A,0)-1,6,1,1),"") ->  | P30: 18 | Q30: West | R30: Mixed | S30: 786000 | T30: 0.74 | V30: 0.26 | X30: 53.54523631 | Y30: 0.01455108795 | Z30: 0.8615276164
A31: =LEFT(OFFSET(A31,-1,0),1)& RIGHT(OFFSET(A31,-1,0),LEN(OFFSET(A31,-1,0))-1) +1 -> A3 | B31: ='GE Cover Sheet'!$D$1 -> 2025 | C31: =OFFSET(' Data Entry-Cost Worksheet'!$A$1,MATCH('Depreciation Analysis'!A31,' Data Entry-Cost Worksheet'!$A:$A,0)-1,2,1,1) -> 0 | D31: 2025 | E31: =IF(C31<>"",OFFSET(' Data Entry-Cost Worksheet'!$A$1,MATCH('Depreciation Analysis'!A31,' Data Entry-Cost Worksheet'!$A:$A,0)-1,6,1,1),"") ->  | P31: 19 | Q31: West | R31: Mixed | S31: 5735722 | T31: 0.55 | V31: 0.08 | W31: 0.37 | X31: 52.76952166 | Y31: 0.01035634019 | Z31: 1.302367795
A32: A4 | B32: ='GE Cover Sheet'!$D$1 -> 2025 | C32: =OFFSET(' Data Entry-Cost Worksheet'!$A$1,MATCH('Depreciation Analysis'!A32,' Data Entry-Cost Worksheet'!$A:$A,0)-1,2,1,1) -> 0 | D32: 2025 | E32: =IF(C32<>"",OFFSET(' Data Entry-Cost Worksheet'!$A$1,MATCH('Depreciation Analysis'!A32,' Data Entry-Cost Worksheet'!$A:$A,0)-1,6,1,1),"") ->  | I32: EAST REGION | P32: 20 | Q32: West | R32: Mixed | S32: 1025000 | T32: 0.73 | W32: 0.27 | X32: 58.936137 | Y32: 0.01550405743 | Z32: 0.3430630912
A33: A5 | B33: ='GE Cover Sheet'!$D$1 -> 2025 | C33: =OFFSET(' Data Entry-Cost Worksheet'!$A$1,MATCH('Depreciation Analysis'!A33,' Data Entry-Cost Worksheet'!$A:$A,0)-1,2,1,1) -> 0 | D33: =IF(C33<>"",$B$29-C33,"") -> 2025 | E33: =IF(C33<>"",OFFSET(' Data Entry-Cost Worksheet'!$A$1,MATCH('Depreciation Analysis'!A33,' Data Entry-Cost Worksheet'!$A:$A,0)-1,6,1,1),"") ->  | I33: Type of Storage | J33: # of Prop | K33: Low | L33: Mean | M33: Median | N33: High | P33: 21 | Q33: East | R33: Concrete | S33: 1146253 | T33: 0.76 | V33: 0.24 | X33: 66.57025119 | Y33: 0.01427063866 | Z33: 0.1064690563
A34: A6 | B34: ='GE Cover Sheet'!$D$1 -> 2025 | C34: =OFFSET(' Data Entry-Cost Worksheet'!$A$1,MATCH('Depreciation Analysis'!A34,' Data Entry-Cost Worksheet'!$A:$A,0)-1,2,1,1) -> 0 | D34: =IF(C34<>"",$B$29-C34,"") -> 2025 | E34: =IF(C34<>"",OFFSET(' Data Entry-Cost Worksheet'!$A$1,MATCH('Depreciation Analysis'!A34,' Data Entry-Cost Worksheet'!$A:$A,0)-1,6,1,1),"") ->  | I34: Concrete | J34: 3 | K34: 1.43 | L34: 1.64 | M34: 1.51 | N34: 2 | P34: 22 | Q34: West | R34: Concrete | S34: 1608587 | T34: 0.78 | V34: 0.22 | X34: 68.95135985 | Y34: 0.01276443129 | Z34: 0.752062664
A35: A7 | B35: ='GE Cover Sheet'!$D$1 -> 2025 | C35: =OFFSET(' Data Entry-Cost Worksheet'!$A$1,MATCH('Depreciation Analysis'!A35,' Data Entry-Cost Worksheet'!$A:$A,0)-1,2,1,1) -> 0 | D35: =IF(C35<>"",$B$29-C35,"") -> 2025 | E35: =IF(C35<>"",OFFSET(' Data Entry-Cost Worksheet'!$A$1,MATCH('Depreciation Analysis'!A35,' Data Entry-Cost Worksheet'!$A:$A,0)-1,6,1,1),"") ->  | I35: Steel | J35: 6 | K35: 1.39 | L35: 1.87 | M35: 1.83 | N35: 2.43 | P35: 23 | Q35: West | R35: Concrete | S35: 597583 | T35: 0.82 | V35: 0.18 | X35: 63.52586126 | Y35: 0.0106943415 | Z35: 1.452325134
A36: =LEFT(OFFSET(A36,-1,0),1)& RIGHT(OFFSET(A36,-1,0),LEN(OFFSET(A36,-1,0))-1) +1 -> A8 | B36: ='GE Cover Sheet'!$D$1 -> 2025 | C36: =OFFSET(' Data Entry-Cost Worksheet'!$A$1,MATCH('Depreciation Analysis'!A36,' Data Entry-Cost Worksheet'!$A:$A,0)-1,2,1,1) -> 0 | D36: =IF(C36<>"",$B$29-C36,"") -> 2025 | E36: =IF(C36<>"",OFFSET(' Data Entry-Cost Worksheet'!$A$1,MATCH('Depreciation Analysis'!A36,' Data Entry-Cost Worksheet'!$A:$A,0)-1,6,1,1),"") ->  | I36: Mixed | J36: 1 | K36: 2.09 | L36: 2.09 | M36: 2.09 | N36: 2.09 | P36: 24 | Q36: West | R36: Concrete | S36: 951294 | T36: 0.9 | V36: 0.1 | X36: 26.44933756 | Y36: 0.01706910015 | Z36: 2.242603808
A37: A9 | B37: ='GE Cover Sheet'!$D$1 -> 2025 | C37: =OFFSET(' Data Entry-Cost Worksheet'!$A$1,MATCH('Depreciation Analysis'!A37,' Data Entry-Cost Worksheet'!$A:$A,0)-1,2,1,1) -> 0 | D37: 2025 | E37: =IF(C37<>"",OFFSET(' Data Entry-Cost Worksheet'!$A$1,MATCH('Depreciation Analysis'!A37,' Data Entry-Cost Worksheet'!$A:$A,0)-1,6,1,1),"") ->  | P37: 25 | Q37: West | R37: Concrete | S37: 394005 | T37: 0.76 | V37: 0.06 | W37: 0.17 | X37: 64.4817217 | Y37: 0.01430815806 | Z37: 0.6142937119
A38: A10 | B38: ='GE Cover Sheet'!$D$1 -> 2025 | C38: =OFFSET(' Data Entry-Cost Worksheet'!$A$1,MATCH('Depreciation Analysis'!A38,' Data Entry-Cost Worksheet'!$A:$A,0)-1,2,1,1) -> 0 | D38: 2025 | E38: =IF(C38<>"",OFFSET(' Data Entry-Cost Worksheet'!$A$1,MATCH('Depreciation Analysis'!A38,' Data Entry-Cost Worksheet'!$A:$A,0)-1,6,1,1),"") ->  | I38: Size | J38: # of Prop | K38: Low | L38: Mean | M38: Median | N38: High | P38: 26 | Q38: East | R38: Concrete | S38: 872999 | T38: 0.95 | V38: 0.05 | X38: 42.54691683 | Y38: 0.02000060191 | Z38: 0.5847292172
A39: A11 | B39: ='GE Cover Sheet'!$D$1 -> 2025 | C39: =OFFSET(' Data Entry-Cost Worksheet'!$A$1,MATCH('Depreciation Analysis'!A39,' Data Entry-Cost Worksheet'!$A:$A,0)-1,2,1,1) -> 0 | D39: 2025 | E39: =IF(C39<>"",OFFSET(' Data Entry-Cost Worksheet'!$A$1,MATCH('Depreciation Analysis'!A39,' Data Entry-Cost Worksheet'!$A:$A,0)-1,6,1,1),"") ->  | I39: 999,999 Bu & Under | J39: 8 | K39: 1.39 | L39: 1.87 | M39: 1.91 | N39: 2.43 | P39: 27 | Q39: West | R39: Concrete | S39: 2109078 | T39: 0.97 | V39: 0.03 | X39: 42.27214901 | Y39: 0.02036486462 | Z39: 0.5943669479
A40: A12 | B40: ='GE Cover Sheet'!$D$1 -> 2025 | C40: =OFFSET(' Data Entry-Cost Worksheet'!$A$1,MATCH('Depreciation Analysis'!A40,' Data Entry-Cost Worksheet'!$A:$A,0)-1,2,1,1) -> 0 | D40: =IF(C40<>"",$B$29-C40,"") -> 2025 | E40: =IF(C40<>"",OFFSET(' Data Entry-Cost Worksheet'!$A$1,MATCH('Depreciation Analysis'!A40,' Data Entry-Cost Worksheet'!$A:$A,0)-1,6,1,1),"") ->  | I40: 1,000,000 Bu & Over | J40: 2 | K40: 1.43 | L40: 1.62 | M40: 1.62 | N40: 1.82 | P40: 28 | Q40: East | R40: Concrete | S40: 412000 | T40: 0.98 | V40: 0.02 | X40: 51 | Y40: 0.01506936414 | Z40: 1.720027902
A41: A13 | B41: ='GE Cover Sheet'!$D$1 -> 2025 | C41: =OFFSET(' Data Entry-Cost Worksheet'!$A$1,MATCH('Depreciation Analysis'!A41,' Data Entry-Cost Worksheet'!$A:$A,0)-1,2,1,1) -> 0 | D41: 2025 | E41: =IF(C41<>"",OFFSET(' Data Entry-Cost Worksheet'!$A$1,MATCH('Depreciation Analysis'!A41,' Data Entry-Cost Worksheet'!$A:$A,0)-1,6,1,1),"") ->  | P41: 29 | Q41: West | R41: Concrete | S41: 1847232 | T41: 0.82 | U41: 0.05 | W41: 0.13 | X41: 62.37127488 | Y41: 0.01502839396 | Z41: 0.2710976145
A42: B1 | B42: ='GE Cover Sheet'!$D$1 -> 2025 | C42: =OFFSET(' Data Entry-Cost Worksheet'!$A$1,MATCH('Depreciation Analysis'!A42,' Data Entry-Cost Worksheet'!$A:$A,0)-1,2,1,1) -> 0 | D42: =IF(C42<>"",$B$29-C42,"") -> 2025 | E42: =IF(C42<>"",OFFSET(' Data Entry-Cost Worksheet'!$A$1,MATCH('Depreciation Analysis'!A42,' Data Entry-Cost Worksheet'!$A:$A,0)-1,6,1,1),"") ->  | I42: Age | J42: # of Prop | K42: Low | L42: Mean | M42: Median | N42: High | P42: 30 | Q42: West | R42: Concrete | S42: 851760 | T42: 0.87 | W42: 0.13 | X42: 50.09415613 | Y42: 0.01389649596 | Z42: 1.567364124
A43: =LEFT(OFFSET(A43,-1,0),1)& RIGHT(OFFSET(A43,-1,0),LEN(OFFSET(A43,-1,0))-1) +1 -> B2 | B43: ='GE Cover Sheet'!$D$1 -> 2025 | C43: =OFFSET(' Data Entry-Cost Worksheet'!$A$1,MATCH('Depreciation Analysis'!A43,' Data Entry-Cost Worksheet'!$A:$A,0)-1,2,1,1) -> 0 | D43: 2025 | E43: =IF(C43<>"",OFFSET(' Data Entry-Cost Worksheet'!$A$1,MATCH('Depreciation Analysis'!A43,' Data Entry-Cost Worksheet'!$A:$A,0)-1,6,1,1),"") ->  | I43: 39 Years & Under | J43: 4 | K43: 1.39 | L43: 1.93 | M43: 1.95 | N43: 2.43 | P43: 31 | Q43: West | R43: Concrete | S43: 837758 | T43: 1 | X43: 56.11899024 | Y43: 0.01468115441 | Z43: 1.217379423
A44: =LEFT(OFFSET(A44,-1,0),1)& RIGHT(OFFSET(A44,-1,0),LEN(OFFSET(A44,-1,0))-1) +1 -> B3 | B44: ='GE Cover Sheet'!$D$1 -> 2025 | C44: =OFFSET(' Data Entry-Cost Worksheet'!$A$1,MATCH('Depreciation Analysis'!A44,' Data Entry-Cost Worksheet'!$A:$A,0)-1,2,1,1) -> 0 | D44: 2025 | E44: =IF(C44<>"",OFFSET(' Data Entry-Cost Worksheet'!$A$1,MATCH('Depreciation Analysis'!A44,' Data Entry-Cost Worksheet'!$A:$A,0)-1,6,1,1),"") ->  | I44: 40 Years & Over | J44: 6 | K44: 1.43 | L44: 1.75 | M44: 1.8 | N44: 2 | P44: 32 | Q44: West | R44: Concrete | S44: 250445 | T44: 1 | X44: 81.13013888 | Y44: 0.01170958183 | Z44: 0.2651106182
A45: B4 | B45: ='GE Cover Sheet'!$D$1 -> 2025 | C45: =OFFSET(' Data Entry-Cost Worksheet'!$A$1,MATCH('Depreciation Analysis'!A45,' Data Entry-Cost Worksheet'!$A:$A,0)-1,2,1,1) -> 0 | D45: 2025 | E45: =IF(C45<>"",OFFSET(' Data Entry-Cost Worksheet'!$A$1,MATCH('Depreciation Analysis'!A45,' Data Entry-Cost Worksheet'!$A:$A,0)-1,6,1,1),"") ->  | P45: 33 | Q45: West | R45: Concrete | S45: 1052000 | T45: 1 | X45: 54.39429201 | Y45: 0.01577599499 | Z45: 0.7675645302
A46: B5 | B46: ='GE Cover Sheet'!$D$1 -> 2025 | C46: =OFFSET(' Data Entry-Cost Worksheet'!$A$1,MATCH('Depreciation Analysis'!A46,' Data Entry-Cost Worksheet'!$A:$A,0)-1,2,1,1) -> 0 | D46: 2025 | E46: =IF(C46<>"",OFFSET(' Data Entry-Cost Worksheet'!$A$1,MATCH('Depreciation Analysis'!A46,' Data Entry-Cost Worksheet'!$A:$A,0)-1,6,1,1),"") ->  | P46: 34 | Q46: West | R46: Concrete | S46: 276415 | T46: 1 | X46: 65.42231168 | Y46: 0.01428804752 | Z46: 0.4044980369
A47: B6 | B47: ='GE Cover Sheet'!$D$1 -> 2025 | C47: =OFFSET(' Data Entry-Cost Worksheet'!$A$1,MATCH('Depreciation Analysis'!A47,' Data Entry-Cost Worksheet'!$A:$A,0)-1,2,1,1) -> 0 | D47: 2025 | E47: =IF(C47<>"",OFFSET(' Data Entry-Cost Worksheet'!$A$1,MATCH('Depreciation Analysis'!A47,' Data Entry-Cost Worksheet'!$A:$A,0)-1,6,1,1),"") ->  | I47: WEST REGION | P47: 35 | Q47: West | R47: Concrete | S47: 2030758 | T47: 1 | X47: 64.27259958 | Y47: 0.01408231531 | Z47: 0.3710044433
A48: C1 | B48: ='GE Cover Sheet'!$D$1 -> 2025 | C48: =OFFSET(' Data Entry-Cost Worksheet'!$A$1,MATCH('Depreciation Analysis'!A48,' Data Entry-Cost Worksheet'!$A:$A,0)-1,2,1,1) -> 0 | D48: =IF(C48<>"",$B$29-C48,"") -> 2025 | E48: =IF(C48<>"",OFFSET(' Data Entry-Cost Worksheet'!$A$1,MATCH('Depreciation Analysis'!A48,' Data Entry-Cost Worksheet'!$A:$A,0)-1,6,1,1),"") ->  | I48: Type of Storage | J48: # of Prop | K48: Low | L48: Mean | M48: Median | N48: High
A49: =LEFT(OFFSET(A49,-1,0),1)& RIGHT(OFFSET(A49,-1,0),LEN(OFFSET(A49,-1,0))-1) +1 -> C2 | B49: ='GE Cover Sheet'!$D$1 -> 2025 | C49: =OFFSET(' Data Entry-Cost Worksheet'!$A$1,MATCH('Depreciation Analysis'!A49,' Data Entry-Cost Worksheet'!$A:$A,0)-1,2,1,1) -> 0 | D49: 2025 | E49: =IF(C49<>"",OFFSET(' Data Entry-Cost Worksheet'!$A$1,MATCH('Depreciation Analysis'!A49,' Data Entry-Cost Worksheet'!$A:$A,0)-1,6,1,1),"") ->  | I49: Concrete | J49: 12 | K49: 1.07 | L49: 1.46 | M49: 1.43 | N49: 2.04
A50: =LEFT(OFFSET(A50,-1,0),1)& RIGHT(OFFSET(A50,-1,0),LEN(OFFSET(A50,-1,0))-1) +1 -> C3 | B50: ='GE Cover Sheet'!$D$1 -> 2025 | C50: =OFFSET(' Data Entry-Cost Worksheet'!$A$1,MATCH('Depreciation Analysis'!A50,' Data Entry-Cost Worksheet'!$A:$A,0)-1,2,1,1) -> 0 | D50: 2025 | E50: =IF(C50<>"",OFFSET(' Data Entry-Cost Worksheet'!$A$1,MATCH('Depreciation Analysis'!A50,' Data Entry-Cost Worksheet'!$A:$A,0)-1,6,1,1),"") ->  | I50: Steel | J50: 4 | K50: 1.57 | L50: 1.83 | M50: 1.77 | N50: 2.22
A51: C4 | B51: ='GE Cover Sheet'!$D$1 -> 2025 | C51: =OFFSET(' Data Entry-Cost Worksheet'!$A$1,MATCH('Depreciation Analysis'!A51,' Data Entry-Cost Worksheet'!$A:$A,0)-1,2,1,1) -> 0 | D51: 2025 | E51: =IF(C51<>"",OFFSET(' Data Entry-Cost Worksheet'!$A$1,MATCH('Depreciation Analysis'!A51,' Data Entry-Cost Worksheet'!$A:$A,0)-1,6,1,1),"") ->  | I51: Mixed | J51: 9 | K51: 1.04 | L51: 1.89 | M51: 1.55 | N51: 4.05
A52: C5 | B52: ='GE Cover Sheet'!$D$1 -> 2025 | C52: =OFFSET(' Data Entry-Cost Worksheet'!$A$1,MATCH('Depreciation Analysis'!A52,' Data Entry-Cost Worksheet'!$A:$A,0)-1,2,1,1) -> 0 | D52: 2025 | E52: =IF(C52<>"",OFFSET(' Data Entry-Cost Worksheet'!$A$1,MATCH('Depreciation Analysis'!A52,' Data Entry-Cost Worksheet'!$A:$A,0)-1,6,1,1),"") -> 
A53: C6 | B53: ='GE Cover Sheet'!$D$1 -> 2025 | C53: =OFFSET(' Data Entry-Cost Worksheet'!$A$1,MATCH('Depreciation Analysis'!A53,' Data Entry-Cost Worksheet'!$A:$A,0)-1,2,1,1) -> 0 | D53: 2025 | E53: =IF(C53<>"",OFFSET(' Data Entry-Cost Worksheet'!$A$1,MATCH('Depreciation Analysis'!A53,' Data Entry-Cost Worksheet'!$A:$A,0)-1,6,1,1),"") ->  | I53: Size | J53: # of Prop | K53: Low | L53: Mean | M53: Median | N53: High
A54: C7 | B54: ='GE Cover Sheet'!$D$1 -> 2025 | C54: =OFFSET(' Data Entry-Cost Worksheet'!$A$1,MATCH('Depreciation Analysis'!A54,' Data Entry-Cost Worksheet'!$A:$A,0)-1,2,1,1) -> 0 | D54: 2025 | E54: =IF(C54<>"",OFFSET(' Data Entry-Cost Worksheet'!$A$1,MATCH('Depreciation Analysis'!A54,' Data Entry-Cost Worksheet'!$A:$A,0)-1,6,1,1),"") ->  | I54: 999,999 Bu & Under | J54: 12 | K54: 1.07 | L54: 1.6 | M54: 1.47 | N54: 2.5
A55: C8 | B55: ='GE Cover Sheet'!$D$1 -> 2025 | C55: =OFFSET(' Data Entry-Cost Worksheet'!$A$1,MATCH('Depreciation Analysis'!A55,' Data Entry-Cost Worksheet'!$A:$A,0)-1,2,1,1) -> 0 | D55: 2025 | E55: =IF(C55<>"",OFFSET(' Data Entry-Cost Worksheet'!$A$1,MATCH('Depreciation Analysis'!A55,' Data Entry-Cost Worksheet'!$A:$A,0)-1,6,1,1),"") ->  | I55: 1,000,000 Bu & Over | J55: 13 | K55: 1.04 | L55: 1.76 | M55: 1.56 | N55: 4.05
A56: D1 | B56: ='GE Cover Sheet'!$D$1 -> 2025 | C56: =OFFSET(' Data Entry-Cost Worksheet'!$A$1,MATCH('Depreciation Analysis'!A56,' Data Entry-Cost Worksheet'!$A:$A,0)-1,2,1,1) -> 0 | D56: 2025 | E56: =IF(C56<>"",OFFSET(' Data Entry-Cost Worksheet'!$A$1,MATCH('Depreciation Analysis'!A56,' Data Entry-Cost Worksheet'!$A:$A,0)-1,6,1,1),"") -> 
A57: =LEFT(OFFSET(A57,-1,0),1)& RIGHT(OFFSET(A57,-1,0),LEN(OFFSET(A57,-1,0))-1) +1 -> D2 | B57: ='GE Cover Sheet'!$D$1 -> 2025 | C57: =OFFSET(' Data Entry-Cost Worksheet'!$A$1,MATCH('Depreciation Analysis'!A57,' Data Entry-Cost Worksheet'!$A:$A,0)-1,2,1,1) -> 0 | D57: 2025 | E57: =IF(C57<>"",OFFSET(' Data Entry-Cost Worksheet'!$A$1,MATCH('Depreciation Analysis'!A57,' Data Entry-Cost Worksheet'!$A:$A,0)-1,6,1,1),"") ->  | I57: Age | J57: # of Prop | K57: Low | L57: Mean | M57: Median | N57: High
A58: =LEFT(OFFSET(A58,-1,0),1)& RIGHT(OFFSET(A58,-1,0),LEN(OFFSET(A58,-1,0))-1) +1 -> D3 | B58: ='GE Cover Sheet'!$D$1 -> 2025 | C58: =OFFSET(' Data Entry-Cost Worksheet'!$A$1,MATCH('Depreciation Analysis'!A58,' Data Entry-Cost Worksheet'!$A:$A,0)-1,2,1,1) -> 0 | D58: 2025 | E58: =IF(C58<>"",OFFSET(' Data Entry-Cost Worksheet'!$A$1,MATCH('Depreciation Analysis'!A58,' Data Entry-Cost Worksheet'!$A:$A,0)-1,6,1,1),"") ->  | I58: 39 Years & Under | J58: 9 | K58: 1.32 | L58: 2.05 | M58: 1.73 | N58: 4.05
A59: D4 | B59: ='GE Cover Sheet'!$D$1 -> 2025 | C59: =OFFSET(' Data Entry-Cost Worksheet'!$A$1,MATCH('Depreciation Analysis'!A59,' Data Entry-Cost Worksheet'!$A:$A,0)-1,2,1,1) -> 0 | D59: 2025 | E59: =IF(C59<>"",OFFSET(' Data Entry-Cost Worksheet'!$A$1,MATCH('Depreciation Analysis'!A59,' Data Entry-Cost Worksheet'!$A:$A,0)-1,6,1,1),"") ->  | I59: 40 Years & Over | J59: 16 | K59: 1.04 | L59: 1.46 | M59: 1.44 | N59: 2.04
A60: D5 | B60: ='GE Cover Sheet'!$D$1 -> 2025 | C60: =OFFSET(' Data Entry-Cost Worksheet'!$A$1,MATCH('Depreciation Analysis'!A60,' Data Entry-Cost Worksheet'!$A:$A,0)-1,2,1,1) -> 0 | D60: 2025 | E60: =IF(C60<>"",OFFSET(' Data Entry-Cost Worksheet'!$A$1,MATCH('Depreciation Analysis'!A60,' Data Entry-Cost Worksheet'!$A:$A,0)-1,6,1,1),"") -> 
A61: D6 | B61: ='GE Cover Sheet'!$D$1 -> 2025 | C61: =OFFSET(' Data Entry-Cost Worksheet'!$A$1,MATCH('Depreciation Analysis'!A61,' Data Entry-Cost Worksheet'!$A:$A,0)-1,2,1,1) -> 0 | D61: 2025 | E61: =IF(C61<>"",OFFSET(' Data Entry-Cost Worksheet'!$A$1,MATCH('Depreciation Analysis'!A61,' Data Entry-Cost Worksheet'!$A:$A,0)-1,6,1,1),"") ->  | F61: =IF(E61<>"",(E61/$E$94)*D61,"") -> 
A62: D7 | B62: ='GE Cover Sheet'!$D$1 -> 2025 | C62: =OFFSET(' Data Entry-Cost Worksheet'!$A$1,MATCH('Depreciation Analysis'!A62,' Data Entry-Cost Worksheet'!$A:$A,0)-1,2,1,1) -> 0 | D62: 2025 | E62: =IF(C62<>"",OFFSET(' Data Entry-Cost Worksheet'!$A$1,MATCH('Depreciation Analysis'!A62,' Data Entry-Cost Worksheet'!$A:$A,0)-1,6,1,1),"") -> 
A63: D8 | B63: ='GE Cover Sheet'!$D$1 -> 2025 | C63: =OFFSET(' Data Entry-Cost Worksheet'!$A$1,MATCH('Depreciation Analysis'!A63,' Data Entry-Cost Worksheet'!$A:$A,0)-1,2,1,1) -> 0 | D63: 2025 | E63: =IF(C63<>"",OFFSET(' Data Entry-Cost Worksheet'!$A$1,MATCH('Depreciation Analysis'!A63,' Data Entry-Cost Worksheet'!$A:$A,0)-1,6,1,1),"") -> 
A64: D9 | B64: ='GE Cover Sheet'!$D$1 -> 2025 | C64: =OFFSET(' Data Entry-Cost Worksheet'!$A$1,MATCH('Depreciation Analysis'!A64,' Data Entry-Cost Worksheet'!$A:$A,0)-1,2,1,1) -> 0 | D64: 2025 | E64: =IF(C64<>"",OFFSET(' Data Entry-Cost Worksheet'!$A$1,MATCH('Depreciation Analysis'!A64,' Data Entry-Cost Worksheet'!$A:$A,0)-1,6,1,1),"") -> 
A65: D10 | B65: ='GE Cover Sheet'!$D$1 -> 2025 | C65: =OFFSET(' Data Entry-Cost Worksheet'!$A$1,MATCH('Depreciation Analysis'!A65,' Data Entry-Cost Worksheet'!$A:$A,0)-1,2,1,1) -> 0 | D65: 2025 | E65: =IF(C65<>"",OFFSET(' Data Entry-Cost Worksheet'!$A$1,MATCH('Depreciation Analysis'!A65,' Data Entry-Cost Worksheet'!$A:$A,0)-1,6,1,1),"") -> 
A66: D11 | B66: ='GE Cover Sheet'!$D$1 -> 2025 | C66: =OFFSET(' Data Entry-Cost Worksheet'!$A$1,MATCH('Depreciation Analysis'!A66,' Data Entry-Cost Worksheet'!$A:$A,0)-1,2,1,1) -> 0 | D66: =IF(C66<>"",$B$29-C66,"") -> 2025 | E66: =IF(C66<>"",OFFSET(' Data Entry-Cost Worksheet'!$A$1,MATCH('Depreciation Analysis'!A66,' Data Entry-Cost Worksheet'!$A:$A,0)-1,6,1,1),"") -> 
A67: E1 | B67: ='GE Cover Sheet'!$D$1 -> 2025 | C67: =OFFSET(' Data Entry-Cost Worksheet'!$A$1,MATCH('Depreciation Analysis'!A67,' Data Entry-Cost Worksheet'!$A:$A,0)-1,2,1,1) -> 0 | D67: =IF(C67<>"",$B$29-C67,"") -> 2025 | E67: =IF(C67<>"",OFFSET(' Data Entry-Cost Worksheet'!$A$1,MATCH('Depreciation Analysis'!A67,' Data Entry-Cost Worksheet'!$A:$A,0)-1,6,1,1),"") -> 
A68: =LEFT(OFFSET(A68,-1,0),1)& RIGHT(OFFSET(A68,-1,0),LEN(OFFSET(A68,-1,0))-1) +1 -> E2 | B68: ='GE Cover Sheet'!$D$1 -> 2025 | C68: =OFFSET(' Data Entry-Cost Worksheet'!$A$1,MATCH('Depreciation Analysis'!A68,' Data Entry-Cost Worksheet'!$A:$A,0)-1,2,1,1) -> 0 | D68: 2025 | E68: =IF(C68<>"",OFFSET(' Data Entry-Cost Worksheet'!$A$1,MATCH('Depreciation Analysis'!A68,' Data Entry-Cost Worksheet'!$A:$A,0)-1,6,1,1),"") -> 
A69: =LEFT(OFFSET(A69,-1,0),1)& RIGHT(OFFSET(A69,-1,0),LEN(OFFSET(A69,-1,0))-1) +1 -> E3 | B69: ='GE Cover Sheet'!$D$1 -> 2025 | C69: =OFFSET(' Data Entry-Cost Worksheet'!$A$1,MATCH('Depreciation Analysis'!A69,' Data Entry-Cost Worksheet'!$A:$A,0)-1,2,1,1) -> 0 | D69: 2025 | E69: =IF(C69<>"",OFFSET(' Data Entry-Cost Worksheet'!$A$1,MATCH('Depreciation Analysis'!A69,' Data Entry-Cost Worksheet'!$A:$A,0)-1,6,1,1),"") -> 
A70: E4 | B70: ='GE Cover Sheet'!$D$1 -> 2025 | C70: =OFFSET(' Data Entry-Cost Worksheet'!$A$1,MATCH('Depreciation Analysis'!A70,' Data Entry-Cost Worksheet'!$A:$A,0)-1,2,1,1) -> 0 | D70: 2025 | E70: =IF(C70<>"",OFFSET(' Data Entry-Cost Worksheet'!$A$1,MATCH('Depreciation Analysis'!A70,' Data Entry-Cost Worksheet'!$A:$A,0)-1,6,1,1),"") -> 
A71: E5 | B71: ='GE Cover Sheet'!$D$1 -> 2025 | C71: =OFFSET(' Data Entry-Cost Worksheet'!$A$1,MATCH('Depreciation Analysis'!A71,' Data Entry-Cost Worksheet'!$A:$A,0)-1,2,1,1) -> 0 | D71: 2025 | E71: =IF(C71<>"",OFFSET(' Data Entry-Cost Worksheet'!$A$1,MATCH('Depreciation Analysis'!A71,' Data Entry-Cost Worksheet'!$A:$A,0)-1,6,1,1),"") ->  | I71: Note: This is set to print only the worksheet analysis and not the data.
A72: E6 | B72: ='GE Cover Sheet'!$D$1 -> 2025 | C72: =OFFSET(' Data Entry-Cost Worksheet'!$A$1,MATCH('Depreciation Analysis'!A72,' Data Entry-Cost Worksheet'!$A:$A,0)-1,2,1,1) -> 0 | D72: 2025 | E72: =IF(C72<>"",OFFSET(' Data Entry-Cost Worksheet'!$A$1,MATCH('Depreciation Analysis'!A72,' Data Entry-Cost Worksheet'!$A:$A,0)-1,6,1,1),"") -> 
A73: E7 | B73: ='GE Cover Sheet'!$D$1 -> 2025 | C73: =OFFSET(' Data Entry-Cost Worksheet'!$A$1,MATCH('Depreciation Analysis'!A73,' Data Entry-Cost Worksheet'!$A:$A,0)-1,2,1,1) -> 0 | D73: 2025 | E73: =IF(C73<>"",OFFSET(' Data Entry-Cost Worksheet'!$A$1,MATCH('Depreciation Analysis'!A73,' Data Entry-Cost Worksheet'!$A:$A,0)-1,6,1,1),"") -> 
A74: E8 | B74: ='GE Cover Sheet'!$D$1 -> 2025 | C74: =OFFSET(' Data Entry-Cost Worksheet'!$A$1,MATCH('Depreciation Analysis'!A74,' Data Entry-Cost Worksheet'!$A:$A,0)-1,2,1,1) -> 0 | D74: 2025 | E74: =IF(C74<>"",OFFSET(' Data Entry-Cost Worksheet'!$A$1,MATCH('Depreciation Analysis'!A74,' Data Entry-Cost Worksheet'!$A:$A,0)-1,6,1,1),"") -> 
A75: F1 | B75: ='GE Cover Sheet'!$D$1 -> 2025 | C75: =OFFSET(' Data Entry-Cost Worksheet'!$A$1,MATCH('Depreciation Analysis'!A75,' Data Entry-Cost Worksheet'!$A:$A,0)-1,2,1,1) -> 0 | D75: 2025 | E75: =IF(C75<>"",OFFSET(' Data Entry-Cost Worksheet'!$A$1,MATCH('Depreciation Analysis'!A75,' Data Entry-Cost Worksheet'!$A:$A,0)-1,6,1,1),"") -> 
A76: =LEFT(OFFSET(A76,-1,0),1)& RIGHT(OFFSET(A76,-1,0),LEN(OFFSET(A76,-1,0))-1) +1 -> F2 | B76: ='GE Cover Sheet'!$D$1 -> 2025 | C76: =OFFSET(' Data Entry-Cost Worksheet'!$A$1,MATCH('Depreciation Analysis'!A76,' Data Entry-Cost Worksheet'!$A:$A,0)-1,2,1,1) -> 0 | D76: 2025 | E76: =IF(C76<>"",OFFSET(' Data Entry-Cost Worksheet'!$A$1,MATCH('Depreciation Analysis'!A76,' Data Entry-Cost Worksheet'!$A:$A,0)-1,6,1,1),"") -> 
A77: =LEFT(OFFSET(A77,-1,0),1)& RIGHT(OFFSET(A77,-1,0),LEN(OFFSET(A77,-1,0))-1) +1 -> F3 | B77: ='GE Cover Sheet'!$D$1 -> 2025 | C77: =OFFSET(' Data Entry-Cost Worksheet'!$A$1,MATCH('Depreciation Analysis'!A77,' Data Entry-Cost Worksheet'!$A:$A,0)-1,2,1,1) -> 0 | D77: 2025 | E77: =IF(C77<>"",OFFSET(' Data Entry-Cost Worksheet'!$A$1,MATCH('Depreciation Analysis'!A77,' Data Entry-Cost Worksheet'!$A:$A,0)-1,6,1,1),"") -> 
A78: F4 | B78: ='GE Cover Sheet'!$D$1 -> 2025 | C78: =OFFSET(' Data Entry-Cost Worksheet'!$A$1,MATCH('Depreciation Analysis'!A78,' Data Entry-Cost Worksheet'!$A:$A,0)-1,2,1,1) -> 0 | D78: 2025 | E78: =IF(C78<>"",OFFSET(' Data Entry-Cost Worksheet'!$A$1,MATCH('Depreciation Analysis'!A78,' Data Entry-Cost Worksheet'!$A:$A,0)-1,6,1,1),"") -> 
A79: F5 | B79: ='GE Cover Sheet'!$D$1 -> 2025 | C79: =OFFSET(' Data Entry-Cost Worksheet'!$A$1,MATCH('Depreciation Analysis'!A79,' Data Entry-Cost Worksheet'!$A:$A,0)-1,2,1,1) -> 0 | D79: 2025 | E79: =IF(C79<>"",OFFSET(' Data Entry-Cost Worksheet'!$A$1,MATCH('Depreciation Analysis'!A79,' Data Entry-Cost Worksheet'!$A:$A,0)-1,6,1,1),"") -> 
A80: F6 | B80: ='GE Cover Sheet'!$D$1 -> 2025 | C80: =OFFSET(' Data Entry-Cost Worksheet'!$A$1,MATCH('Depreciation Analysis'!A80,' Data Entry-Cost Worksheet'!$A:$A,0)-1,2,1,1) -> 0 | D80: 2025 | E80: =IF(C80<>"",OFFSET(' Data Entry-Cost Worksheet'!$A$1,MATCH('Depreciation Analysis'!A80,' Data Entry-Cost Worksheet'!$A:$A,0)-1,6,1,1),"") -> 
A81: F7 | B81: ='GE Cover Sheet'!$D$1 -> 2025 | C81: =OFFSET(' Data Entry-Cost Worksheet'!$A$1,MATCH('Depreciation Analysis'!A81,' Data Entry-Cost Worksheet'!$A:$A,0)-1,2,1,1) -> 0 | D81: 2025 | E81: =IF(C81<>"",OFFSET(' Data Entry-Cost Worksheet'!$A$1,MATCH('Depreciation Analysis'!A81,' Data Entry-Cost Worksheet'!$A:$A,0)-1,6,1,1),"") -> 
A82: F8 | B82: ='GE Cover Sheet'!$D$1 -> 2025 | C82: =OFFSET(' Data Entry-Cost Worksheet'!$A$1,MATCH('Depreciation Analysis'!A82,' Data Entry-Cost Worksheet'!$A:$A,0)-1,2,1,1) -> 0 | D82: 2025 | E82: =IF(C82<>"",OFFSET(' Data Entry-Cost Worksheet'!$A$1,MATCH('Depreciation Analysis'!A82,' Data Entry-Cost Worksheet'!$A:$A,0)-1,6,1,1),"") -> 
A83: F9 | B83: ='GE Cover Sheet'!$D$1 -> 2025 | C83: =OFFSET(' Data Entry-Cost Worksheet'!$A$1,MATCH('Depreciation Analysis'!A83,' Data Entry-Cost Worksheet'!$A:$A,0)-1,2,1,1) -> 0 | D83: 2025 | E83: =IF(C83<>"",OFFSET(' Data Entry-Cost Worksheet'!$A$1,MATCH('Depreciation Analysis'!A83,' Data Entry-Cost Worksheet'!$A:$A,0)-1,6,1,1),"") -> 
A84: G1 | B84: ='GE Cover Sheet'!$D$1 -> 2025 | C84: =OFFSET(' Data Entry-Cost Worksheet'!$A$1,MATCH('Depreciation Analysis'!A84,' Data Entry-Cost Worksheet'!$A:$A,0)-1,2,1,1) -> 0 | D84: 2025 | E84: =IF(C84<>"",OFFSET(' Data Entry-Cost Worksheet'!$A$1,MATCH('Depreciation Analysis'!A84,' Data Entry-Cost Worksheet'!$A:$A,0)-1,6,1,1),"") -> 
A85: =LEFT(OFFSET(A85,-1,0),1)& RIGHT(OFFSET(A85,-1,0),LEN(OFFSET(A85,-1,0))-1) +1 -> G2 | B85: ='GE Cover Sheet'!$D$1 -> 2025 | C85: =OFFSET(' Data Entry-Cost Worksheet'!$A$1,MATCH('Depreciation Analysis'!A85,' Data Entry-Cost Worksheet'!$A:$A,0)-1,2,1,1) -> 0 | D85: 2025 | E85: =IF(C85<>"",OFFSET(' Data Entry-Cost Worksheet'!$A$1,MATCH('Depreciation Analysis'!A85,' Data Entry-Cost Worksheet'!$A:$A,0)-1,6,1,1),"") -> 
A86: =LEFT(OFFSET(A86,-1,0),1)& RIGHT(OFFSET(A86,-1,0),LEN(OFFSET(A86,-1,0))-1) +1 -> G3 | B86: ='GE Cover Sheet'!$D$1 -> 2025 | C86: =OFFSET(' Data Entry-Cost Worksheet'!$A$1,MATCH('Depreciation Analysis'!A86,' Data Entry-Cost Worksheet'!$A:$A,0)-1,2,1,1) -> 0 | D86: 2025 | E86: =IF(C86<>"",OFFSET(' Data Entry-Cost Worksheet'!$A$1,MATCH('Depreciation Analysis'!A86,' Data Entry-Cost Worksheet'!$A:$A,0)-1,6,1,1),"") -> 
A87: G4 | B87: ='GE Cover Sheet'!$D$1 -> 2025 | C87: =OFFSET(' Data Entry-Cost Worksheet'!$A$1,MATCH('Depreciation Analysis'!A87,' Data Entry-Cost Worksheet'!$A:$A,0)-1,2,1,1) -> 0 | D87: 2025 | E87: =IF(C87<>"",OFFSET(' Data Entry-Cost Worksheet'!$A$1,MATCH('Depreciation Analysis'!A87,' Data Entry-Cost Worksheet'!$A:$A,0)-1,6,1,1),"") -> 
A88: G5 | B88: ='GE Cover Sheet'!$D$1 -> 2025 | C88: =OFFSET(' Data Entry-Cost Worksheet'!$A$1,MATCH('Depreciation Analysis'!A88,' Data Entry-Cost Worksheet'!$A:$A,0)-1,2,1,1) -> 0 | D88: 2025 | E88: =IF(C88<>"",OFFSET(' Data Entry-Cost Worksheet'!$A$1,MATCH('Depreciation Analysis'!A88,' Data Entry-Cost Worksheet'!$A:$A,0)-1,6,1,1),"") -> 
A89: G6 | B89: ='GE Cover Sheet'!$D$1 -> 2025 | C89: =OFFSET(' Data Entry-Cost Worksheet'!$A$1,MATCH('Depreciation Analysis'!A89,' Data Entry-Cost Worksheet'!$A:$A,0)-1,2,1,1) -> 0 | D89: 2025 | E89: =IF(C89<>"",OFFSET(' Data Entry-Cost Worksheet'!$A$1,MATCH('Depreciation Analysis'!A89,' Data Entry-Cost Worksheet'!$A:$A,0)-1,6,1,1),"") -> 
A90: G7 | B90: ='GE Cover Sheet'!$D$1 -> 2025 | C90: =OFFSET(' Data Entry-Cost Worksheet'!$A$1,MATCH('Depreciation Analysis'!A90,' Data Entry-Cost Worksheet'!$A:$A,0)-1,2,1,1) -> 0 | D90: =IF(C90<>"",$B$29-C90,"") -> 2025 | E90: =IF(C90<>"",OFFSET(' Data Entry-Cost Worksheet'!$A$1,MATCH('Depreciation Analysis'!A90,' Data Entry-Cost Worksheet'!$A:$A,0)-1,6,1,1),"") -> 
A91: G8 | B91: ='GE Cover Sheet'!$D$1 -> 2025 | C91: =OFFSET(' Data Entry-Cost Worksheet'!$A$1,MATCH('Depreciation Analysis'!A91,' Data Entry-Cost Worksheet'!$A:$A,0)-1,2,1,1) -> 0 | D91: 2025 | E91: =IF(C91<>"",OFFSET(' Data Entry-Cost Worksheet'!$A$1,MATCH('Depreciation Analysis'!A91,' Data Entry-Cost Worksheet'!$A:$A,0)-1,6,1,1),"") -> 
A92: G9 | B92: ='GE Cover Sheet'!$D$1 -> 2025 | C92: =OFFSET(' Data Entry-Cost Worksheet'!$A$1,MATCH('Depreciation Analysis'!A92,' Data Entry-Cost Worksheet'!$A:$A,0)-1,2,1,1) -> 0 | D92: =IF(C92<>"",$B$29-C92,"") -> 2025 | E92: =IF(C92<>"",OFFSET(' Data Entry-Cost Worksheet'!$A$1,MATCH('Depreciation Analysis'!A92,' Data Entry-Cost Worksheet'!$A:$A,0)-1,6,1,1),"") -> 
E94: =SUM(E29:E93) -> 0
D97: Weighted Average Age | F97: =SUM(F29:F93) -> 0
D98: Annual Dep Rate | F98: =IF(TRIM(F26)="",B26,F26) -> 0
D99: Market Accrued Depreciation | F99: =F97*F98 -> 0
A102: Notes: Required entry if override average annual depreciation rate:
I107: Type of Storage | J107: # of Prop | K107: Low | L107: Mean | M107: Median | N107: High
B108: =' Data Entry-Cost Worksheet'!F2 -> 0 | C108: =' Data Entry-Cost Worksheet'!G98 ->  | D108: =' Data Entry-Cost Worksheet'!D90 -> 0 | E108: =F97 -> 0 | I108: Concrete | J108: =IF($B$108="west",J49,IF($B$108="east",J34,"")) -> 
I109: Steel | J109: =IF($B$108="west",J50,IF($B$108="east",J35,"")) -> 
I110: Mixed | J110: =IF($B$108="west",J51,IF($B$108="east",J36,"")) -> 
I113: Size | J113: # of Prop | K113: Low | L113: Mean | M113: Median | N113: High
I114: 499,999 Bu & Under | J114: =IF($B$108="west",J54,IF($B$108="east",J39,"")) -> 
I115: 500,000 Bu & Over | J115: =IF($B$108="west",J55,IF($B$108="east",J40,"")) -> 
I117: Age | J117: # of Prop | K117: Low | L117: Mean | M117: Median | N117: High
I118: 39 Years & Under | J118: =IF($B$108="west",J58,IF($B$108="east",J43,"")) -> 
I119: 40 Years & Over | J119: =IF($B$108="west",J59,IF($B$108="east",J44,"")) -> 

Sheet Sales Comparison
I1: Comparable Sales Selection
A2: LIGHT YELLOW SHADED FIELDS ARE FOR USER INPUT THROUGHOUT THIS TEMPLATE
A3: Comparable sales list is provided in this sheet to the right in columns Q-Z | I3: Sale Number | J3: Type | K3: Eff Age | L3: Bu Capacity | M3: Net $/Bu
A4: Comparable sales search may be conducted using input box on Depreciation Analysis tab | I4: Subject Property | J4: =B22 ->  | M4: =F22 -> 0
A5: Comparable sales may be selected using input box on Depreciation Analysis tab | I5: =A23 -> 0 | M5: =F23 -> 
I6: =A24 -> 0 | M6: =F24 -> 
I7: =A25 -> 0 | M7: =F25 -> 
I8: Selected sales are populated from Depreciation Analysis tab
A10: Sales Comparison Analysis | I10: STATEWIDE
A11: Price Per Bushel Storage | I11: Type of Storage | J11: # of Prop | K11: Low | L11: Mean | M11: Median | N11: High | Q11: Sale Number | R11: Region | S11: Type | T11: Bushel Capacity | U11: Concrete % | V11: WC/MC % | W11: Upright Steel % | X11: Flat Storage % | Y11: Weighted Age | Z11: Net $/Bu
A12: Category or Sub-Category | B12: # Properties | C12: Low | D12: Mean | E12: Median | F12: High | I12: Concrete | J12: 15 | K12: 0.11 | L12: 0.86 | M12: 0.61 | N12: 2.24 | Q12: 1 | R12: West | S12: Steel | T12: 714000 | W12: 1 | Y12: 11.19560243 | Z12: 0.8828428079
A13: Total Database | I13: Steel | J13: 10 | K13: 0.21 | L13: 0.77 | M13: 0.69 | N13: 1.8 | Q13: 2 | R13: East | S13: Steel | T13: 1652000 | W13: 1 | Y13: 13.44127977 | Z13: 0.7927957474
A14: Storage (Total DB) | B14: =IF($B$22="Concrete",J12,IF($B$22="Steel",J13,IF($B$22="Mixed",J14,""))) ->  | C14: =IF(B22="Concrete",K12,IF(B22="Steel",K13,IF(B22="Mixed",K14,""))) ->  | D14: =IF(B22="Concrete",L12,IF(B22="Steel",L13,IF(B22="Mixed",L14,""))) ->  | E14: =IF(B22="Concrete",M12,IF(B22="Steel",M13,IF(B22="Mixed",M14,""))) ->  | F14: =IF(B22="Concrete",N12,IF(B22="Steel",N13,IF(B22="Mixed",N14,""))) ->  | I14: Mixed | J14: 10 | K14: 0.21 | L14: 0.61 | M14: 0.49 | N14: 1.3 | Q14: 3 | R14: East | S14: Steel | T14: 223000 | W14: 1 | Y14: 48.01893287 | Z14: 0.2125020569
A15: Size (Total DB) | B15: =IF($D$22="","",IF($D$22<= 999999,J23,IF($D$22>=999999,J24,""))) ->  | C15: =IF(D22="","",IF(D22<= 999999,K23,IF(D22>=999999,K24,""))) ->  | D15: =IF(D22="","",IF(D22<= 999999,L23,IF(D22>=999999,L24,""))) ->  | E15: =IF(D22="","",IF(D22<= 999999,M23,IF(D22>=999999,M24,""))) ->  | F15: =IF(D22="","",IF(D22<= 999999,N23,IF(D22>=999999,N24,""))) ->  | Q15: 4 | R15: East | S15: Steel | T15: 555000 | W15: 1 | Y15: 11.70236994 | Z15: 1.803840383
A16: Age (Total DB) | B16: =IF($C$22="","",IF($C$22<= 39.99,J27,IF($C$22>=39.99,J28,""))) ->  | C16: =IF($C$22="","",IF($C$22<= 39.99,K27,IF($C$22>=39.99,K28,""))) ->  | Q16: 5 | R16: West | S16: Steel | T16: 1804000 | W16: 1 | Y16: 13.55723398 | Z16: 0.9363444589
A17: Total Regional Database | G17: =IF(COUNT(E14:E16)>0,AVERAGE(E14:E16),0) -> 0 | I17: Location | J17: # of Prop | K17: Low | L17: Mean | M17: Median | N17: High | Q17: 6 | R17: East | S17: Steel | T17: 222000 | W17: 1 | Y17: 27.26303959 | Z17: 0.5876394951
A18: Type of Storage (Regional DB) | B18: =_xlfn.IFS(' Data Entry-Cost Worksheet'!F2=0,"",' Data Entry-Cost Worksheet'!F2="east",_xlfn.XLOOKUP(' Data Entry-Cost Worksheet'!G98,I34:I36,J34:N36),' Data Entry-Cost Worksheet'!F2="west",_xlfn.XLOOKUP(' Data Entry-Cost Worksheet'!G98,I49:I51,J49:N51)) ->  | I18: East | J18: 10 | K18: 0.11 | L18: 0.72 | M18: 0.57 | N18: 1.8 | Q18: 7 | R18: East | S18: Steel | T18: 933000 | V18: 0.14 | W18: 0.86 | Y18: 40.51032559 | Z18: 0.4279332234
A19: Size (Regional DB) | B19: =_xlfn.IFS(' Data Entry-Cost Worksheet'!$D$90=0,"",' Data Entry-Cost Worksheet'!$F$2="east",IF(' Data Entry-Cost Worksheet'!$D$90<999999,J39,J40),' Data Entry-Cost Worksheet'!$F$2="west",IF(' Data Entry-Cost Worksheet'!$D$90<999999,J54,J55)) ->  | C19: =_xlfn.IFS(' Data Entry-Cost Worksheet'!$D$90=0,"",' Data Entry-Cost Worksheet'!$F$2="east",IF(' Data Entry-Cost Worksheet'!$D$90<999999,K39,K40),' Data Entry-Cost Worksheet'!$F$2="west",IF(' Data Entry-Cost Worksheet'!$D$90<999999,K54,K55)) ->  | D19: =_xlfn.IFS(' Data Entry-Cost Worksheet'!$D$90=0,"",' Data Entry-Cost Worksheet'!$F$2="east",IF(' Data Entry-Cost Worksheet'!$D$90<999999,L39,L40),' Data Entry-Cost Worksheet'!$F$2="west",IF(' Data Entry-Cost Worksheet'!$D$90<999999,L54,L55)) ->  | E19: =_xlfn.IFS(' Data Entry-Cost Worksheet'!$D$90=0,"",' Data Entry-Cost Worksheet'!$F$2="east",IF(' Data Entry-Cost Worksheet'!$D$90<999999,M39,M40),' Data Entry-Cost Worksheet'!$F$2="west",IF(' Data Entry-Cost Worksheet'!$D$90<999999,M54,M55)) ->  | F19: =_xlfn.IFS(' Data Entry-Cost Worksheet'!$D$90=0,"",' Data Entry-Cost Worksheet'!$F$2="east",IF(' Data Entry-Cost Worksheet'!$D$90<999999,N39,N40),' Data Entry-Cost Worksheet'!$F$2="west",IF(' Data Entry-Cost Worksheet'!$D$90<999999,N54,N55)) ->  | I19: West | J19: 25 | K19: 0.21 | L19: 0.78 | M19: 0.68 | N19: 2.24 | Q19: 8 | R19: West | S19: Steel | T19: 869231 | W19: 0.81 | X19: 0.19 | Y19: 38.3960843 | Z19: 0.4059998139
A20: Age (Regional DB) | B20: =_xlfn.IFS($C$22=0,"",$C$22="","",' Data Entry-Cost Worksheet'!$F$2="east",IF($C$22<39.99,J43,J44),' Data Entry-Cost Worksheet'!$F$2="west",IF($C$22<39.99,J58,J59)) ->  | C20: =_xlfn.IFS($C$22=0,"",$C$22="","",' Data Entry-Cost Worksheet'!$F$2="east",IF($C$22<39.99,K43,K44),' Data Entry-Cost Worksheet'!$F$2="west",IF($C$22<39.99,K58,K59)) ->  | D20: =_xlfn.IFS($C$22=0,"",$C$22="","",' Data Entry-Cost Worksheet'!$F$2="east",IF($C$22<39.99,L43,L44),' Data Entry-Cost Worksheet'!$F$2="west",IF($C$22<39.99,L58,L59)) ->  | E20: =_xlfn.IFS($C$22=0,"",$C$22="","",' Data Entry-Cost Worksheet'!$F$2="east",IF($C$22<39.99,M43,M44),' Data Entry-Cost Worksheet'!$F$2="west",IF($C$22<39.99,M58,M59)) ->  | F20: =_xlfn.IFS($C$22=0,"",$C$22="","",' Data Entry-Cost Worksheet'!$F$2="east",IF($C$22<39.99,N43,N44),' Data Entry-Cost Worksheet'!$F$2="west",IF($C$22<39.99,N58,N59)) ->  | I20: Statewide | J20: 35 | K20: 0.11 | L20: 0.76 | M20: 0.59 | N20: 2.24 | Q20: 9 | R20: East | S20: Steel | T20: 65000 | V20: 0.23 | W20: 0.77 | Y20: 44.85202032 | Z20: 0.4441398879
A21: Sale Number | B21: Type | C21: Eff Age | D21: Bu Capacity | F21: Net $/Bu | G21: =IF(COUNT(E18:E20)>0,AVERAGE(E18:E20),0) -> 0 | Q21: 10 | R21: West | S21: Steel | T21: 1996714 | V21: 0.05 | W21: 0.76 | X21: 0.19 | Y21: 28.837798 | Z21: 1.216091558
A22: Subject Property | B22: =' Data Entry-Cost Worksheet'!G98 ->  | C22: =IF('Depreciation Analysis'!$F$97=0,"",'Depreciation Analysis'!$F$97) ->  | D22: =IF(' Data Entry-Cost Worksheet'!$D$90=0,"",' Data Entry-Cost Worksheet'!$D$90) ->  | F22: =IF(TRIM('Sales Comparison'!F28)="",'Sales Comparison'!B28, 'Sales Comparison'!F28) -> 0 | I22: Size | J22: # of Prop | K22: Low | L22: Mean | M22: Median | N22: High | Q22: 11 | R22: West | S22: Mixed | T22: 347111 | U22: 0.3 | W22: 0.7 | Y22: 36.25130253 | Z22: 0.210814123
A23: ='Depreciation Analysis'!A22 -> 0 | B23: ='Depreciation Analysis'!B22 ->  | C23: ='Depreciation Analysis'!C22 ->  | D23: ='Depreciation Analysis'!D22 ->  | F23: =_xlfn.XLOOKUP(A23,$Q$12:$Q$46,$Z$12:$Z$46,"") ->  | I23: 999,999 Bu & Under | J23: 20 | K23: 0.21 | L23: 0.84 | M23: 0.59 | N23: 2.24 | Q23: 12 | R23: West | S23: Mixed | T23: 1097736 | W23: 0.7 | X23: 0.3 | Y23: 16.06592204 | Z23: 0.4014629295
A24: ='Depreciation Analysis'!A23 -> 0 | B24: ='Depreciation Analysis'!B23 ->  | C24: ='Depreciation Analysis'!C23 ->  | D24: ='Depreciation Analysis'!D23 ->  | F24: =_xlfn.XLOOKUP(A24,$Q$12:$Q$46,$Z$12:$Z$46,"") ->  | I24: 1,000,000 Bu & Over | J24: 15 | K24: 0.11 | L24: 0.66 | M24: 0.68 | N24: 1.3 | Q24: 13 | R24: West | S24: Mixed | T24: 2173937 | W24: 0.69 | X24: 0.31 | Y24: 39.40848671 | Z24: 0.6765066284
A25: ='Depreciation Analysis'!A24 -> 0 | B25: ='Depreciation Analysis'!B24 ->  | C25: ='Depreciation Analysis'!C24 ->  | D25: ='Depreciation Analysis'!D24 ->  | G25: =IF(COUNT(F23:F25)>0,AVERAGE(F23:F25),0) -> 0 | Q25: 14 | R25: West | S25: Mixed | T25: 167000 | V25: 0.46 | W25: 0.54 | Y25: 52.00713012 | Z25: 0.4225393139
I26: Age | J26: # of Prop | K26: Low | L26: Mean | M26: Median | N26: High | Q26: 15 | R26: West | S26: Mixed | T26: 2633920 | U26: 0.61 | W26: 0.34 | X26: 0.05 | Y26: 39.47116983 | Z26: 1.043505206
I27: 39 Years & Under | J27: 13 | K27: 0.21 | L27: 0.9 | M27: 0.79 | N27: 2.24 | Q27: 16 | R27: East | S27: Mixed | T27: 415308 | U27: 0.1 | V27: 0.13 | W27: 0.32 | X27: 0.44 | Y27: 36.91950879 | Z27: 0.556219294
A28: Average Net$/Bu | B28: =IF(AND(G21=0,G25=0),G17,IF(AND(G21=0,G25>0),AVERAGE(G17,G25),IF(AND(G25=0,G21>0),AVERAGE(G17,G21),IF(AND(G21>0,G25>0),AVERAGE(G17,G21,G25))))) -> 0 | D28: Finalized Net $/Bu | I28: 40 Years & Over | J28: 22 | K28: 0.11 | L28: 0.68 | M28: 0.51 | N28: 1.72 | Q28: 17 | R28: West | S28: Mixed | T28: 3034720 | U28: 0.59 | W28: 0.3 | X28: 0.12 | Y28: 45.82437712 | Z28: 0.3031526356
Q29: 18 | R29: West | S29: Mixed | T29: 786000 | U29: 0.74 | W29: 0.26 | Y29: 53.54523631 | Z29: 0.8615276164
A30: Notes: Required entry if override average Net $/Bu: | I30: Note: This is set to print only the worksheet analysis and not the data. | Q30: 19 | R30: West | S30: Mixed | T30: 5735722 | U30: 0.55 | W30: 0.08 | X30: 0.37 | Y30: 52.76952166 | Z30: 1.302367795
Q31: 20 | R31: West | S31: Mixed | T31: 1025000 | U31: 0.73 | X31: 0.27 | Y31: 58.936137 | Z31: 0.3430630912
I32: EAST REGION | Q32: 21 | R32: East | S32: Concrete | T32: 1146253 | U32: 0.76 | W32: 0.24 | Y32: 66.57025119 | Z32: 0.1064690563
I33: Type of Storage | J33: # of Prop | K33: Low | L33: Mean | M33: Median | N33: High | Q33: 22 | R33: West | S33: Concrete | T33: 1608587 | U33: 0.78 | W33: 0.22 | Y33: 68.95135985 | Z33: 0.752062664
I34: Concrete | J34: 3 | K34: 0.11 | L34: 0.8 | M34: 0.58 | N34: 1.72 | Q34: 23 | R34: West | S34: Concrete | T34: 597583 | U34: 0.82 | W34: 0.18 | Y34: 63.52586126 | Z34: 1.452325134
I35: Steel | J35: 6 | K35: 0.21 | L35: 0.71 | M35: 0.52 | N35: 1.8 | Q35: 24 | R35: West | S35: Concrete | T35: 951294 | U35: 0.9 | W35: 0.1 | Y35: 26.44933756 | Z35: 2.242603808
I36: Mixed | J36: 1 | K36: 0.41 | L36: 0.41 | M36: 0.41 | N36: 0.41 | Q36: 25 | R36: West | S36: Concrete | T36: 394005 | U36: 0.76 | W36: 0.06 | X36: 0.17 | Y36: 64.4817217 | Z36: 0.6142937119
Q37: 26 | R37: East | S37: Concrete | T37: 872999 | U37: 0.95 | W37: 0.05 | Y37: 42.54691683 | Z37: 0.5847292172
I38: Size | J38: # of Prop | K38: Low | L38: Mean | M38: Median | N38: High | Q38: 27 | R38: West | S38: Concrete | T38: 2109078 | U38: 0.97 | W38: 0.03 | Y38: 42.27214901 | Z38: 0.5943669479
I39: 999,999 Bu & Under | J39: 8 | K39: 0.21 | L39: 0.79 | M39: 0.57 | N39: 1.8 | Q39: 28 | R39: East | S39: Concrete | T39: 412000 | U39: 0.98 | W39: 0.02 | Y39: 51 | Z39: 1.720027902
I40: 1,000,000 Bu & Over | J40: 2 | K40: 0.11 | L40: 0.45 | M40: 0.45 | N40: 0.79 | Q40: 29 | R40: West | S40: Concrete | T40: 1847232 | U40: 0.82 | V40: 0.05 | X40: 0.13 | Y40: 62.37127488 | Z40: 0.2710976145
Q41: 30 | R41: West | S41: Concrete | T41: 851760 | U41: 0.87 | X41: 0.13 | Y41: 50.09415613 | Z41: 1.567364124
I42: Age | J42: # of Prop | K42: Low | L42: Mean | M42: Median | N42: High | Q42: 31 | R42: West | S42: Concrete | T42: 837758 | U42: 1 | Y42: 56.11899024 | Z42: 1.217379423
I43: 39 Years & Under | J43: 4 | K43: 0.56 | L43: 0.94 | M43: 0.69 | N43: 1.8 | Q43: 32 | R43: West | S43: Concrete | T43: 250445 | U43: 1 | Y43: 81.13013888 | Z43: 0.2651106182
I44: 40 Years & Over | J44: 6 | K44: 0.11 | L44: 0.58 | M44: 0.44 | N44: 1.72 | Q44: 33 | R44: West | S44: Concrete | T44: 1052000 | U44: 1 | Y44: 54.39429201 | Z44: 0.7675645302
Q45: 34 | R45: West | S45: Concrete | T45: 276415 | U45: 1 | Y45: 65.42231168 | Z45: 0.4044980369
Q46: 35 | R46: West | S46: Concrete | T46: 2030758 | U46: 1 | Y46: 64.27259958 | Z46: 0.3710044433
I47: WEST REGION
I48: Type of Storage | J48: # of Prop | K48: Low | L48: Mean | M48: Median | N48: High
I49: Concrete | J49: 12 | K49: 0.27 | L49: 0.88 | M49: 0.68 | N49: 2.24
I50: Steel | J50: 4 | K50: 0.41 | L50: 0.86 | M50: 0.91 | N50: 1.22
I51: Mixed | J51: 9 | K51: 0.21 | L51: 0.62 | M51: 0.42 | N51: 1.3
I53: Size | J53: # of Prop | K53: Low | L53: Mean | M53: Median | N53: High
I54: 999,999 Bu & Under | J54: 12 | K54: 0.21 | L54: 0.88 | M54: 0.74 | N54: 2.24
I55: 1,000,000 Bu & Over | J55: 13 | K55: 0.27 | L55: 0.69 | M55: 0.68 | N55: 1.3
I57: Age | J57: # of Prop | K57: Low | L57: Mean | M57: Median | N57: High
I58: 39 Years & Under | J58: 9 | K58: 0.21 | L58: 0.89 | M58: 0.88 | N58: 2.24
I59: 40 Years & Over | J59: 16 | K59: 0.27 | L59: 0.72 | M59: 0.6 | N59: 1.57
B61: Location | C61: Type | D61: Size | E61: Age
B62: =' Data Entry-Cost Worksheet'!F2 -> 0 | C62: =B22 ->  | D62: ='Depreciation Analysis'!D108 -> 0 | E62: ='Depreciation Analysis'!E108 -> 0
I63: Type of Storage | J63: # of Prop | K63: Low | L63: Mean | M63: Median | N63: High
I64: Concrete | J64: =IF($B$62="west",J49,IF($B$62="east",J34,"")) -> 
I65: Steel | J65: =IF($B$62="west",J50,IF($B$62="east",J35,"")) -> 
I66: Mix | J66: =IF($B$62="west",J51,IF($B$62="east",J36,"")) -> 
I68: Size | J68: # of Prop | K68: Low | L68: Mean | M68: Median | N68: High
I69: 999,999 Bu & Under | J69: =IF($B$62="west",J54,IF($B$62="east",J39,"")) -> 
I70: 1,000,000 Bu & Over | J70: =IF($B$62="west",J55,IF($B$62="east",J40,"")) -> 
I72: Age | J72: # of Prop | K72: Low | L72: Mean | M72: Median | N72: High
I73: 39 Years & Under | J73: =IF($B$62="west",J58,IF($B$62="east",J43,"")) -> 
I74: 40 Years & Over | J74: =IF($B$62="west",J59,IF($B$62="east",J44,"")) -> 

Sheet Concrete Interpolation
A1: A1 | B1: =D9+F4 ->  | L1: NOTE: Concrete prices are for slip form storage. See adjustments to deduct $/bu amount for concrete jump form storage. Any changes to base values must be documented using adjustment box and notes box in each correponding interpolation box.
A2: Interpolation Model for Concrete Storage | E2: ENTER/VERIFY TO CALCULATE RATE | H2: Enter Adjust Type # (1-6) from table for adjustment amounts
A3: DO NOT REMOVE FORMULAS | E3: Type-Elevator/Annex | F3: Elevator | L3: Elevator costs include- complete headhouse, tunnel, conveyor gallery & storage tanks/bins based on type & size of faciltiy
B4: Bushel | D4: Cost/Bu | E4: $/Bu Adjustment | F4: =I13 -> 0 | L4: Annex costs include- vertical storage. Use for exposed leg system & no headhouse or added attached storage. If headhouse, use Elevator with capacity of both elevator & annex
A5: Bottom of Range | B5: =IF(F3="Elevator",_xlfn.XLOOKUP(D5,$M$13:$M$32,$L$13:$L$32,"",0,1),_xlfn.XLOOKUP(D5,$N$13:$N$32,$L$13:$L$32,"",0,1)) ->  | D5: =IF(F3="Elevator",VLOOKUP(F9,$L$13:$N$32,2,TRUE),VLOOKUP(F9,$L$13:$N$32,3,TRUE)) ->  | E5: Improve/Structure Name | F5: =OFFSET(' Data Entry-Cost Worksheet'!$A$1,MATCH(A1,' Data Entry-Cost Worksheet'!A:A,0)-1,1,1,1) -> 0 | H5: Per Bu Adjustment
E6: Year Built | F6: =OFFSET(' Data Entry-Cost Worksheet'!$A$1,MATCH(A1,' Data Entry-Cost Worksheet'!$A:$A,0)-1,2,1,1) -> 0 | H6: Type # | I6: Adjust $
A7: Top or Range | B7: =VLOOKUP(B5,$P$13:$Q$32,2,FALSE) ->  | D7: =IF(F3="Elevator",VLOOKUP(B7,$L$13:$N$32,2,TRUE),VLOOKUP(B7,$L$13:$N$32,3,TRUE)) ->  | E7: Total Bushel Capacity | F7: =OFFSET(' Data Entry-Cost Worksheet'!$A$1,MATCH(A1,' Data Entry-Cost Worksheet'!$A:$A,0)-1,3,1,1) -> 0 | I7: =_xlfn.SWITCH(H7,$K$39,$O$39,$K$40,$O$40,$K$41,D9*$O$41,$K$42,D9*$O$42,$K$43,D9*$O$43,$K$44,D9*$O$44,"") ->  | L7: Grain Elevator/Annex
A8: RATE for Cost Worksheet per Structure | E8: # Imp/Struct Identical Units | F8: =OFFSET(' Data Entry-Cost Worksheet'!$A$1,MATCH(A1,' Data Entry-Cost Worksheet'!$A:$A,0)-1,4,1,1) -> 0 | I8: =_xlfn.SWITCH(H8,$K$39,$O$39,$K$40,$O$40,$K$41,D9*$O$41,$K$42,D9*$O$42,$K$43,D9*$O$43,$K$44,D9*$O$44,"") ->  | L8: M&S Commercial Section 17 pg 50 | N8: 2023-05-01
A9: RATE CALCS | B9: Concrete $/Bu | D9: =IF(F3="Elevator", _xlfn.IFS(F9<$L$16,$M$16,F9>$L$31,$M$32,F9=$L$31,$M$31,F9<$L$31,A14), _xlfn.IFS(F9<$L$14,$N$14,F9>$L$31,$N$32,F9=$L$31,$N$31,F9<$L$31,A14)) ->  | E9: Bu Capacity per Unit | F9: =F7/F8 ->  | I9: =_xlfn.SWITCH(H9,$K$39,$O$39,$K$40,$O$40,$K$41,D9*$O$41,$K$42,D9*$O$42,$K$43,D9*$O$43,$K$44,D9*$O$44,"") ->  | L9: Total Bushel Capacity | M9: Cost Per Bushel
A10: =B7-B5 ->  | B10: Adjusted $/Bu | D10: =IF(F4=0,"",D9+F4) ->  | I10: =_xlfn.SWITCH(H10,$K$39,$O$39,$K$40,$O$40,$K$41,D9*$O$41,$K$42,D9*$O$42,$K$43,D9*$O$43,$K$44,D9*$O$44,"") ->  | M10: Concrete
A11: =D5-D7 ->  | B11: Notes: | I11: =_xlfn.SWITCH(H11,$K$39,$O$39,$K$40,$O$40,$K$41,D9*$O$41,$K$42,D9*$O$42,$K$43,D9*$O$43,$K$44,D9*$O$44,"") ->  | M11: Slip Form Construction
A12: =A11/A10 ->  | I12: =_xlfn.SWITCH(H12,$K$39,$O$39,$K$40,$O$40,$K$41,D9*$O$41,$K$42,D9*$O$42,$K$43,D9*$O$43,$K$44,D9*$O$44,"") ->  | M12: Elevator | N12: Annex | P12: DO NOT REMOVE FORMULAS
A13: =(F9-B5)*A12 ->  | H13: Total | I13: =SUM(I7:I12) -> 0 | L13: 8000 | P13: 8000 | Q13: 10000
A14: =D5-A13 ->  | L14: 10000 | N14: 16.15 | P14: 10000 | Q14: 15000
L15: 15000 | N15: 14.6 | P15: 15000 | Q15: 20000
L16: 20000 | M16: 20.95 | N16: 13.6 | P16: 20000 | Q16: 25000
A17: =LEFT(OFFSET(A17,-16,0),1)& RIGHT(OFFSET(A17,-16,0),LEN(OFFSET(A17,-16,0))-1) +1 -> A2 | B17: =D25+F20 ->  | L17: 25000 | M17: 19.85 | N17: 12.85 | P17: 25000 | Q17: 30000
A18: Interpolation Model for Concrete Storage | E18: ENTER/VERIFY TO CALCULATE RATE | H18: Enter Adjust Type # (1-6) from table for adjustment amounts | L18: 30000 | M18: 19 | N18: 12.3 | P18: 30000 | Q18: 40000
A19: DO NOT REMOVE FORMULAS | E19: Type-Elevator/Annex | F19: Elevator | L19: 40000 | M19: 17.7 | N19: 11.45 | P19: 40000 | Q19: 50000
B20: Bushel | D20: Cost/Bu | E20: $/Bu Adjustment | F20: =I29 -> 0 | L20: 50000 | M20: 16.7 | N20: 10.8 | P20: 50000 | Q20: 75000
A21: Bottom of Range | B21: =IF(F19="Elevator",_xlfn.XLOOKUP(D21,$M$13:$M$32,$L$13:$L$32,"",0,1),_xlfn.XLOOKUP(D21,$N$13:$N$32,$L$13:$L$32,"",0,1)) ->  | D21: =IF(F19="Elevator",VLOOKUP(F25,$L$13:$N$32,2,TRUE),VLOOKUP(F25,$L$13:$N$32,3,TRUE)) ->  | E21: Improve/Structure Name | F21: =OFFSET(' Data Entry-Cost Worksheet'!$A$1,MATCH(A17,' Data Entry-Cost Worksheet'!A:A,0)-1,1,1,1) -> 0 | H21: Per Bu Adjustment | L21: 75000 | M21: 15.1 | N21: 9.77 | P21: 75000 | Q21: 100000
E22: Year Built | F22: =OFFSET(' Data Entry-Cost Worksheet'!$A$1,MATCH(A17,' Data Entry-Cost Worksheet'!$A:$A,0)-1,2,1,1) -> 0 | H22: Type # | I22: Adjust $ | L22: 100000 | M22: 14.05 | N22: 9.08 | P22: 100000 | Q22: 150000
A23: Top or Range | B23: =VLOOKUP(B21,$P$13:$Q$32,2,FALSE) ->  | D23: =IF(F19="Elevator",VLOOKUP(B23,$L$13:$N$32,2,TRUE),VLOOKUP(B23,$L$13:$N$32,3,TRUE)) ->  | E23: Total Bushel Capacity | F23: =OFFSET(' Data Entry-Cost Worksheet'!$A$1,MATCH(A17,' Data Entry-Cost Worksheet'!$A:$A,0)-1,3,1,1) -> 0 | I23: =_xlfn.SWITCH(H23,$K$39,$O$39,$K$40,$O$40,$K$41,D25*$O$41,$K$42,D25*$O$42,$K$43,D25*$O$43,$K$44,D25*$O$44,"") ->  | L23: 150000 | M23: 12.7 | N23: 8.23 | P23: 150000 | Q23: 200000
A24: RATE for Cost Worksheet per Structure | E24: # Imp/Struct Identical Units | F24: =OFFSET(' Data Entry-Cost Worksheet'!$A$1,MATCH(A17,' Data Entry-Cost Worksheet'!$A:$A,0)-1,4,1,1) -> 0 | I24: =_xlfn.SWITCH(H24,$K$39,$O$39,$K$40,$O$40,$K$41,D25*$O$41,$K$42,D25*$O$42,$K$43,D25*$O$43,$K$44,D25*$O$44,"") ->  | L24: 200000 | M24: 11.85 | N24: 7.65 | P24: 200000 | Q24: 250000
A25: RATE CALCS | B25: Concrete $/Bu | D25: =IF(F19="Elevator", _xlfn.IFS(F25<$L$16,$M$16,F25>$L$31,$M$32,F25=$L$31,$M$31,F25<$L$31,A30), _xlfn.IFS(F25<$L$14,$N$14,F25>$L$31,$N$32,F25=$L$31,$N$31,F25<$L$31,A30)) ->  | E25: Bu Capacity per Unit | F25: =F23/F24 ->  | I25: =_xlfn.SWITCH(H25,$K$39,$O$39,$K$40,$O$40,$K$41,D25*$O$41,$K$42,D25*$O$42,$K$43,D25*$O$43,$K$44,D25*$O$44,"") ->  | L25: 250000 | M25: 11.2 | N25: 7.23 | P25: 250000 | Q25: 300000
A26: =B23-B21 ->  | B26: Adjusted $/Bu | D26: =IF(F20=0,"",D25+F20) ->  | I26: =_xlfn.SWITCH(H26,$K$39,$O$39,$K$40,$O$40,$K$41,D25*$O$41,$K$42,D25*$O$42,$K$43,D25*$O$43,$K$44,D25*$O$44,"") ->  | L26: 300000 | M26: 10.7 | N26: 6.92 | P26: 300000 | Q26: 400000
A27: =D21-D23 ->  | B27: Notes: | I27: =_xlfn.SWITCH(H27,$K$39,$O$39,$K$40,$O$40,$K$41,D25*$O$41,$K$42,D25*$O$42,$K$43,D25*$O$43,$K$44,D25*$O$44,"") ->  | L27: 400000 | M27: 9.98 | N27: 6.44 | P27: 400000 | Q27: 500000
A28: =A27/A26 ->  | I28: =_xlfn.SWITCH(H28,$K$39,$O$39,$K$40,$O$40,$K$41,D25*$O$41,$K$42,D25*$O$42,$K$43,D25*$O$43,$K$44,D25*$O$44,"") ->  | L28: 500000 | M28: 9.41 | N28: 6.09 | P28: 500000 | Q28: 750000
A29: =(F25-B21)*A28 ->  | H29: Total | I29: =SUM(I23:I28) -> 0 | L29: 750000 | M29: 8.49 | N29: 5.52 | P29: 750000 | Q29: 1000000
A30: =D21-A29 ->  | L30: 1000000 | M30: 7.94 | N30: 5.11 | P30: 1000000 | Q30: 2000000
L31: 2000000 | M31: 6.67 | N31: 4.3 | P31: 2000000 | Q31: Over 2,000,000
L32: Over 2,000,000 | M32: 6.02 | N32: 3.9 | P32: Over 2,000,000
A33: =LEFT(OFFSET(A33,-16,0),1)& RIGHT(OFFSET(A33,-16,0),LEN(OFFSET(A33,-16,0))-1) +1 -> A3 | B33: =D41+F36 -> 
A34: Interpolation Model for Concrete Storage | E34: ENTER/VERIFY TO CALCULATE RATE | H34: Enter Adjust Type # (1-6) from table for adjustment amounts
A35: DO NOT REMOVE FORMULAS | E35: Type-Elevator/Annex | F35: Elevator | K35: Notes & Adjustments
B36: Bushel | D36: Cost/Bu | E36: $/Bu Adjustment | F36: =I45 -> 0 | K36: M&S Commercial Section 17 pg 50 | O36: 2023-05-01
A37: Bottom of Range | B37: =IF(F35="Elevator",_xlfn.XLOOKUP(D37,$M$13:$M$32,$L$13:$L$32,"",0,1),_xlfn.XLOOKUP(D37,$N$13:$N$32,$L$13:$L$32,"",0,1)) ->  | D37: =IF(F35="Elevator",VLOOKUP(F41,$L$13:$N$32,2,TRUE),VLOOKUP(F41,$L$13:$N$32,3,TRUE)) ->  | E37: Improve/Structure Name | F37: =OFFSET(' Data Entry-Cost Worksheet'!$A$1,MATCH(A33,' Data Entry-Cost Worksheet'!A:A,0)-1,1,1,1) -> 0 | H37: Per Bu Adjustment
E38: Year Built | F38: =OFFSET(' Data Entry-Cost Worksheet'!$A$1,MATCH(A33,' Data Entry-Cost Worksheet'!$A:$A,0)-1,2,1,1) -> 0 | H38: Type # | I38: Adjust $ | K38: Type # | L38: Adjust Desc | O38: Adjustment | P38: M&S Deduct Range | R38: PVD Recommend
A39: Top or Range | B39: =VLOOKUP(B37,$P$13:$Q$32,2,FALSE) ->  | D39: =IF(F35="Elevator",VLOOKUP(B39,$L$13:$N$32,2,TRUE),VLOOKUP(B39,$L$13:$N$32,3,TRUE)) ->  | E39: Total Bushel Capacity | F39: =OFFSET(' Data Entry-Cost Worksheet'!$A$1,MATCH(A33,' Data Entry-Cost Worksheet'!$A:$A,0)-1,3,1,1) -> 0 | I39: =_xlfn.SWITCH(H39,$K$39,$O$39,$K$40,$O$40,$K$41,D41*$O$41,$K$42,D41*$O$42,$K$43,D41*$O$43,$K$44,D41*$O$44,"") ->  | K39: 1 | L39: Lack Intersticing- deduct from $/Bu | O39: =-R39 -> -0.86 | P39: 0.75 | Q39: 0.97 | R39: =AVERAGE(P39:Q39) -> 0.86
A40: RATE for Cost Worksheet per Structure | E40: # Imp/Struct Identical Units | F40: =OFFSET(' Data Entry-Cost Worksheet'!$A$1,MATCH(A33,' Data Entry-Cost Worksheet'!$A:$A,0)-1,4,1,1) -> 0 | I40: =_xlfn.SWITCH(H40,$K$39,$O$39,$K$40,$O$40,$K$41,D41*$O$41,$K$42,D41*$O$42,$K$43,D41*$O$43,$K$44,D41*$O$44,"") ->  | K40: 2 | L40: Concrete Jump Form- deduct from $/Bu | O40: =-R40 -> -0.73 | P40: 0.59 | Q40: 0.87 | R40: =AVERAGE(P40:Q40) -> 0.73
A41: RATE CALCS | B41: Concrete $/Bu | D41: =IF(F35="Elevator", _xlfn.IFS(F41<$L$16,$M$16,F41>$L$31,$M$32,F41=$L$31,$M$31,F41<$L$31,A46), _xlfn.IFS(F41<$L$14,$N$14,F41>$L$31,$N$32,F41=$L$31,$N$31,F41<$L$31,A46)) ->  | E41: Bu Capacity per Unit | F41: =F39/F40 ->  | I41: =_xlfn.SWITCH(H41,$K$39,$O$39,$K$40,$O$40,$K$41,D41*$O$41,$K$42,D41*$O$42,$K$43,D41*$O$43,$K$44,D41*$O$44,"") ->  | K41: 3 | L41: Single Concrete Silos- Annex costs, add % of $/Bu | O41: 0.05
A42: =B39-B37 ->  | B42: Adjusted $/Bu | D42: =IF(F36=0,"",D41+F36) ->  | I42: =_xlfn.SWITCH(H42,$K$39,$O$39,$K$40,$O$40,$K$41,D41*$O$41,$K$42,D41*$O$42,$K$43,D41*$O$43,$K$44,D41*$O$44,"") ->  | K42: 4 | L42: Concrete Staves- deduct % of $/Bu | O42: -0.3
A43: =D37-D39 ->  | B43: Notes: | I43: =_xlfn.SWITCH(H43,$K$39,$O$39,$K$40,$O$40,$K$41,D41*$O$41,$K$42,D41*$O$42,$K$43,D41*$O$43,$K$44,D41*$O$44,"") ->  | K43: 5 | L43: Commercial- terminal,dry,clean,blend,store-add % of $/Bu | O43: 0.1
A44: =A43/A42 ->  | I44: =_xlfn.SWITCH(H44,$K$39,$O$39,$K$40,$O$40,$K$41,D41*$O$41,$K$42,D41*$O$42,$K$43,D41*$O$43,$K$44,D41*$O$44,"") ->  | K44: 6 | L44: Industrial Bulk applications- cement, coal, fiber glass…add % of $/Bu | O44: 0.05
A45: =(F41-B37)*A44 ->  | H45: Total | I45: =SUM(I39:I44) -> 0
A46: =D37-A45 -> 
A49: =LEFT(OFFSET(A49,-16,0),1)& RIGHT(OFFSET(A49,-16,0),LEN(OFFSET(A49,-16,0))-1) +1 -> A4 | B49: =D57+F52 -> 
A50: Interpolation Model for Concrete Storage | E50: ENTER/VERIFY TO CALCULATE RATE | H50: Enter Adjust Type # (1-6) from table for adjustment amounts
A51: DO NOT REMOVE FORMULAS | E51: Type-Elevator/Annex | F51: Elevator
B52: Bushel | D52: Cost/Bu | E52: $/Bu Adjustment | F52: =I61 -> 0
A53: Bottom of Range | B53: =IF(F51="Elevator",_xlfn.XLOOKUP(D53,$M$13:$M$32,$L$13:$L$32,"",0,1),_xlfn.XLOOKUP(D53,$N$13:$N$32,$L$13:$L$32,"",0,1)) ->  | D53: =IF(F51="Elevator",VLOOKUP(F57,$L$13:$N$32,2,TRUE),VLOOKUP(F57,$L$13:$N$32,3,TRUE)) ->  | E53: Improve/Structure Name | F53: =OFFSET(' Data Entry-Cost Worksheet'!$A$1,MATCH(A49,' Data Entry-Cost Worksheet'!A:A,0)-1,1,1,1) -> 0 | H53: Per Bu Adjustment
E54: Year Built | F54: =OFFSET(' Data Entry-Cost Worksheet'!$A$1,MATCH(A49,' Data Entry-Cost Worksheet'!$A:$A,0)-1,2,1,1) -> 0 | H54: Type # | I54: Adjust $
A55: Top or Range | B55: =VLOOKUP(B53,$P$13:$Q$32,2,FALSE) ->  | D55: =IF(F51="Elevator",VLOOKUP(B55,$L$13:$N$32,2,TRUE),VLOOKUP(B55,$L$13:$N$32,3,TRUE)) ->  | E55: Total Bushel Capacity | F55: =OFFSET(' Data Entry-Cost Worksheet'!$A$1,MATCH(A49,' Data Entry-Cost Worksheet'!$A:$A,0)-1,3,1,1) -> 0 | I55: =_xlfn.SWITCH(H55,$K$39,$O$39,$K$40,$O$40,$K$41,D57*$O$41,$K$42,D57*$O$42,$K$43,D57*$O$43,$K$44,D57*$O$44,"") -> 
A56: RATE for Cost Worksheet per Structure | E56: # Imp/Struct Identical Units | F56: =OFFSET(' Data Entry-Cost Worksheet'!$A$1,MATCH(A49,' Data Entry-Cost Worksheet'!$A:$A,0)-1,4,1,1) -> 0 | I56: =_xlfn.SWITCH(H56,$K$39,$O$39,$K$40,$O$40,$K$41,D57*$O$41,$K$42,D57*$O$42,$K$43,D57*$O$43,$K$44,D57*$O$44,"") -> 
A57: RATE CALCS | B57: Concrete $/Bu | D57: =IF(F51="Elevator", _xlfn.IFS(F57<$L$16,$M$16,F57>$L$31,$M$32,F57=$L$31,$M$31,F57<$L$31,A62), _xlfn.IFS(F57<$L$14,$N$14,F57>$L$31,$N$32,F57=$L$31,$N$31,F57<$L$31,A62)) ->  | E57: Bu Capacity per Unit | F57: =F55/F56 ->  | I57: =_xlfn.SWITCH(H57,$K$39,$O$39,$K$40,$O$40,$K$41,D57*$O$41,$K$42,D57*$O$42,$K$43,D57*$O$43,$K$44,D57*$O$44,"") -> 
A58: =B55-B53 ->  | B58: Adjusted $/Bu | D58: =IF(F52=0,"",D57+F52) ->  | I58: =_xlfn.SWITCH(H58,$K$39,$O$39,$K$40,$O$40,$K$41,D57*$O$41,$K$42,D57*$O$42,$K$43,D57*$O$43,$K$44,D57*$O$44,"") -> 
A59: =D53-D55 ->  | B59: Notes: | I59: =_xlfn.SWITCH(H59,$K$39,$O$39,$K$40,$O$40,$K$41,D57*$O$41,$K$42,D57*$O$42,$K$43,D57*$O$43,$K$44,D57*$O$44,"") -> 
A60: =A59/A58 ->  | I60: =_xlfn.SWITCH(H60,$K$39,$O$39,$K$40,$O$40,$K$41,D57*$O$41,$K$42,D57*$O$42,$K$43,D57*$O$43,$K$44,D57*$O$44,"") -> 
A61: =(F57-B53)*A60 ->  | H61: Total | I61: =SUM(I55:I60) -> 0
A62: =D53-A61 -> 
A65: =LEFT(OFFSET(A65,-16,0),1)& RIGHT(OFFSET(A65,-16,0),LEN(OFFSET(A65,-16,0))-1) +1 -> A5 | B65: =D73+F68 -> 
A66: Interpolation Model for Concrete Storage | E66: ENTER/VERIFY TO CALCULATE RATE | H66: Enter Adjust Type # (1-6) from table for adjustment amounts
A67: DO NOT REMOVE FORMULAS | E67: Type-Elevator/Annex | F67: Elevator
B68: Bushel | D68: Cost/Bu | E68: $/Bu Adjustment | F68: =I77 -> 0
A69: Bottom of Range | B69: =IF(F67="Elevator",_xlfn.XLOOKUP(D69,$M$13:$M$32,$L$13:$L$32,"",0,1),_xlfn.XLOOKUP(D69,$N$13:$N$32,$L$13:$L$32,"",0,1)) ->  | D69: =IF(F67="Elevator",VLOOKUP(F73,$L$13:$N$32,2,TRUE),VLOOKUP(F73,$L$13:$N$32,3,TRUE)) ->  | E69: Improve/Structure Name | F69: =OFFSET(' Data Entry-Cost Worksheet'!$A$1,MATCH(A65,' Data Entry-Cost Worksheet'!A:A,0)-1,1,1,1) -> 0 | H69: Per Bu Adjustment
E70: Year Built | F70: =OFFSET(' Data Entry-Cost Worksheet'!$A$1,MATCH(A65,' Data Entry-Cost Worksheet'!$A:$A,0)-1,2,1,1) -> 0 | H70: Type # | I70: Adjust $
A71: Top or Range | B71: =VLOOKUP(B69,$P$13:$Q$32,2,FALSE) ->  | D71: =IF(F67="Elevator",VLOOKUP(B71,$L$13:$N$32,2,TRUE),VLOOKUP(B71,$L$13:$N$32,3,TRUE)) ->  | E71: Total Bushel Capacity | F71: =OFFSET(' Data Entry-Cost Worksheet'!$A$1,MATCH(A65,' Data Entry-Cost Worksheet'!$A:$A,0)-1,3,1,1) -> 0 | I71: =_xlfn.SWITCH(H71,$K$39,$O$39,$K$40,$O$40,$K$41,D73*$O$41,$K$42,D73*$O$42,$K$43,D73*$O$43,$K$44,D73*$O$44,"") -> 
A72: RATE for Cost Worksheet per Structure | E72: # Imp/Struct Identical Units | F72: =OFFSET(' Data Entry-Cost Worksheet'!$A$1,MATCH(A65,' Data Entry-Cost Worksheet'!$A:$A,0)-1,4,1,1) -> 0 | I72: =_xlfn.SWITCH(H72,$K$39,$O$39,$K$40,$O$40,$K$41,D73*$O$41,$K$42,D73*$O$42,$K$43,D73*$O$43,$K$44,D73*$O$44,"") -> 
A73: RATE CALCS | B73: Concrete $/Bu | D73: =IF(F67="Elevator", _xlfn.IFS(F73<$L$16,$M$16,F73>$L$31,$M$32,F73=$L$31,$M$31,F73<$L$31,A78), _xlfn.IFS(F73<$L$14,$N$14,F73>$L$31,$N$32,F73=$L$31,$N$31,F73<$L$31,A78)) ->  | E73: Bu Capacity per Unit | F73: =F71/F72 ->  | I73: =_xlfn.SWITCH(H73,$K$39,$O$39,$K$40,$O$40,$K$41,D73*$O$41,$K$42,D73*$O$42,$K$43,D73*$O$43,$K$44,D73*$O$44,"") -> 
A74: =B71-B69 ->  | B74: Adjusted $/Bu | D74: =IF(F68=0,"",D73+F68) ->  | I74: =_xlfn.SWITCH(H74,$K$39,$O$39,$K$40,$O$40,$K$41,D73*$O$41,$K$42,D73*$O$42,$K$43,D73*$O$43,$K$44,D73*$O$44,"") -> 
A75: =D69-D71 ->  | B75: Notes: | I75: =_xlfn.SWITCH(H75,$K$39,$O$39,$K$40,$O$40,$K$41,D73*$O$41,$K$42,D73*$O$42,$K$43,D73*$O$43,$K$44,D73*$O$44,"") -> 
A76: =A75/A74 ->  | I76: =_xlfn.SWITCH(H76,$K$39,$O$39,$K$40,$O$40,$K$41,D73*$O$41,$K$42,D73*$O$42,$K$43,D73*$O$43,$K$44,D73*$O$44,"") -> 
A77: =(F73-B69)*A76 ->  | H77: Total | I77: =SUM(I71:I76) -> 0
A78: =D69-A77 -> 
A81: =LEFT(OFFSET(A81,-16,0),1)& RIGHT(OFFSET(A81,-16,0),LEN(OFFSET(A81,-16,0))-1) +1 -> A6 | B81: =D89+F84 -> 
A82: Interpolation Model for Concrete Storage | E82: ENTER/VERIFY TO CALCULATE RATE | H82: Enter Adjust Type # (1-6) from table for adjustment amounts
A83: DO NOT REMOVE FORMULAS | E83: Type-Elevator/Annex | F83: Elevator
B84: Bushel | D84: Cost/Bu | E84: $/Bu Adjustment | F84: =I93 -> 0
A85: Bottom of Range | B85: =IF(F83="Elevator",_xlfn.XLOOKUP(D85,$M$13:$M$32,$L$13:$L$32,"",0,1),_xlfn.XLOOKUP(D85,$N$13:$N$32,$L$13:$L$32,"",0,1)) ->  | D85: =IF(F83="Elevator",VLOOKUP(F89,$L$13:$N$32,2,TRUE),VLOOKUP(F89,$L$13:$N$32,3,TRUE)) ->  | E85: Improve/Structure Name | F85: =OFFSET(' Data Entry-Cost Worksheet'!$A$1,MATCH(A81,' Data Entry-Cost Worksheet'!A:A,0)-1,1,1,1) -> 0 | H85: Per Bu Adjustment
E86: Year Built | F86: =OFFSET(' Data Entry-Cost Worksheet'!$A$1,MATCH(A81,' Data Entry-Cost Worksheet'!$A:$A,0)-1,2,1,1) -> 0 | H86: Type # | I86: Adjust $
A87: Top or Range | B87: =VLOOKUP(B85,$P$13:$Q$32,2,FALSE) ->  | D87: =IF(F83="Elevator",VLOOKUP(B87,$L$13:$N$32,2,TRUE),VLOOKUP(B87,$L$13:$N$32,3,TRUE)) ->  | E87: Total Bushel Capacity | F87: =OFFSET(' Data Entry-Cost Worksheet'!$A$1,MATCH(A81,' Data Entry-Cost Worksheet'!$A:$A,0)-1,3,1,1) -> 0 | I87: =_xlfn.SWITCH(H87,$K$39,$O$39,$K$40,$O$40,$K$41,D89*$O$41,$K$42,D89*$O$42,$K$43,D89*$O$43,$K$44,D89*$O$44,"") -> 
A88: RATE for Cost Worksheet per Structure | E88: # Imp/Struct Identical Units | F88: =OFFSET(' Data Entry-Cost Worksheet'!$A$1,MATCH(A81,' Data Entry-Cost Worksheet'!$A:$A,0)-1,4,1,1) -> 0 | I88: =_xlfn.SWITCH(H88,$K$39,$O$39,$K$40,$O$40,$K$41,D89*$O$41,$K$42,D89*$O$42,$K$43,D89*$O$43,$K$44,D89*$O$44,"") -> 
A89: RATE CALCS | B89: Concrete $/Bu | D89: =IF(F83="Elevator", _xlfn.IFS(F89<$L$16,$M$16,F89>$L$31,$M$32,F89=$L$31,$M$31,F89<$L$31,A94), _xlfn.IFS(F89<$L$14,$N$14,F89>$L$31,$N$32,F89=$L$31,$N$31,F89<$L$31,A94)) ->  | E89: Bu Capacity per Unit | F89: =F87/F88 ->  | I89: =_xlfn.SWITCH(H89,$K$39,$O$39,$K$40,$O$40,$K$41,D89*$O$41,$K$42,D89*$O$42,$K$43,D89*$O$43,$K$44,D89*$O$44,"") -> 
A90: =B87-B85 ->  | B90: Adjusted $/Bu | D90: =IF(F84=0,"",D89+F84) ->  | I90: =_xlfn.SWITCH(H90,$K$39,$O$39,$K$40,$O$40,$K$41,D89*$O$41,$K$42,D89*$O$42,$K$43,D89*$O$43,$K$44,D89*$O$44,"") -> 
A91: =D85-D87 ->  | B91: Notes: | I91: =_xlfn.SWITCH(H91,$K$39,$O$39,$K$40,$O$40,$K$41,D89*$O$41,$K$42,D89*$O$42,$K$43,D89*$O$43,$K$44,D89*$O$44,"") -> 
A92: =A91/A90 ->  | I92: =_xlfn.SWITCH(H92,$K$39,$O$39,$K$40,$O$40,$K$41,D89*$O$41,$K$42,D89*$O$42,$K$43,D89*$O$43,$K$44,D89*$O$44,"") -> 
A93: =(F89-B85)*A92 ->  | H93: Total | I93: =SUM(I87:I92) -> 0
A94: =D85-A93 -> 
A97: =LEFT(OFFSET(A97,-16,0),1)& RIGHT(OFFSET(A97,-16,0),LEN(OFFSET(A97,-16,0))-1) +1 -> A7 | B97: =D105+F100 -> 
A98: Interpolation Model for Concrete Storage | E98: ENTER/VERIFY TO CALCULATE RATE | H98: Enter Adjust Type # (1-6) from table for adjustment amounts
A99: DO NOT REMOVE FORMULAS | E99: Type-Elevator/Annex | F99: Elevator
B100: Bushel | D100: Cost/Bu | E100: $/Bu Adjustment | F100: =I109 -> 0
A101: Bottom of Range | B101: =IF(F99="Elevator",_xlfn.XLOOKUP(D101,$M$13:$M$32,$L$13:$L$32,"",0,1),_xlfn.XLOOKUP(D101,$N$13:$N$32,$L$13:$L$32,"",0,1)) ->  | D101: =IF(F99="Elevator",VLOOKUP(F105,$L$13:$N$32,2,TRUE),VLOOKUP(F105,$L$13:$N$32,3,TRUE)) ->  | E101: Improve/Structure Name | F101: =OFFSET(' Data Entry-Cost Worksheet'!$A$1,MATCH(A97,' Data Entry-Cost Worksheet'!A:A,0)-1,1,1,1) -> 0 | H101: Per Bu Adjustment
E102: Year Built | F102: =OFFSET(' Data Entry-Cost Worksheet'!$A$1,MATCH(A97,' Data Entry-Cost Worksheet'!$A:$A,0)-1,2,1,1) -> 0 | H102: Type # | I102: Adjust $
A103: Top or Range | B103: =VLOOKUP(B101,$P$13:$Q$32,2,FALSE) ->  | D103: =IF(F99="Elevator",VLOOKUP(B103,$L$13:$N$32,2,TRUE),VLOOKUP(B103,$L$13:$N$32,3,TRUE)) ->  | E103: Total Bushel Capacity | F103: =OFFSET(' Data Entry-Cost Worksheet'!$A$1,MATCH(A97,' Data Entry-Cost Worksheet'!$A:$A,0)-1,3,1,1) -> 0 | I103: =_xlfn.SWITCH(H103,$K$39,$O$39,$K$40,$O$40,$K$41,D105*$O$41,$K$42,D105*$O$42,$K$43,D105*$O$43,$K$44,D105*$O$44,"") -> 
A104: RATE for Cost Worksheet per Structure | E104: # Imp/Struct Identical Units | F104: =OFFSET(' Data Entry-Cost Worksheet'!$A$1,MATCH(A97,' Data Entry-Cost Worksheet'!$A:$A,0)-1,4,1,1) -> 0 | I104: =_xlfn.SWITCH(H104,$K$39,$O$39,$K$40,$O$40,$K$41,D105*$O$41,$K$42,D105*$O$42,$K$43,D105*$O$43,$K$44,D105*$O$44,"") -> 
A105: RATE CALCS | B105: Concrete $/Bu | D105: =IF(F99="Elevator", _xlfn.IFS(F105<$L$16,$M$16,F105>$L$31,$M$32,F105=$L$31,$M$31,F105<$L$31,A110), _xlfn.IFS(F105<$L$14,$N$14,F105>$L$31,$N$32,F105=$L$31,$N$31,F105<$L$31,A110)) ->  | E105: Bu Capacity per Unit | F105: =F103/F104 ->  | I105: =_xlfn.SWITCH(H105,$K$39,$O$39,$K$40,$O$40,$K$41,D105*$O$41,$K$42,D105*$O$42,$K$43,D105*$O$43,$K$44,D105*$O$44,"") -> 
A106: =B103-B101 ->  | B106: Adjusted $/Bu | D106: =IF(F100=0,"",D105+F100) ->  | I106: =_xlfn.SWITCH(H106,$K$39,$O$39,$K$40,$O$40,$K$41,D105*$O$41,$K$42,D105*$O$42,$K$43,D105*$O$43,$K$44,D105*$O$44,"") -> 
A107: =D101-D103 ->  | B107: Notes: | I107: =_xlfn.SWITCH(H107,$K$39,$O$39,$K$40,$O$40,$K$41,D105*$O$41,$K$42,D105*$O$42,$K$43,D105*$O$43,$K$44,D105*$O$44,"") -> 
A108: =A107/A106 ->  | I108: =_xlfn.SWITCH(H108,$K$39,$O$39,$K$40,$O$40,$K$41,D105*$O$41,$K$42,D105*$O$42,$K$43,D105*$O$43,$K$44,D105*$O$44,"") -> 
A109: =(F105-B101)*A108 ->  | H109: Total | I109: =SUM(I103:I108) -> 0
A110: =D101-A109 -> 
A113: =LEFT(OFFSET(A113,-16,0),1)& RIGHT(OFFSET(A113,-16,0),LEN(OFFSET(A113,-16,0))-1) +1 -> A8 | B113: =D121+F116 -> 
A114: Interpolation Model for Concrete Storage | E114: ENTER/VERIFY TO CALCULATE RATE | H114: Enter Adjust Type # (1-6) from table for adjustment amounts
A115: DO NOT REMOVE FORMULAS | E115: Type-Elevator/Annex | F115: Annex
B116: Bushel | D116: Cost/Bu | E116: $/Bu Adjustment | F116: =I125 -> 0
A117: Bottom of Range | B117: =IF(F115="Elevator",_xlfn.XLOOKUP(D117,$M$13:$M$32,$L$13:$L$32,"",0,1),_xlfn.XLOOKUP(D117,$N$13:$N$32,$L$13:$L$32,"",0,1)) ->  | D117: =IF(F115="Elevator",VLOOKUP(F121,$L$13:$N$32,2,TRUE),VLOOKUP(F121,$L$13:$N$32,3,TRUE)) ->  | E117: Improve/Structure Name | F117: =OFFSET(' Data Entry-Cost Worksheet'!$A$1,MATCH(A113,' Data Entry-Cost Worksheet'!A:A,0)-1,1,1,1) -> 0 | H117: Per Bu Adjustment
E118: Year Built | F118: =OFFSET(' Data Entry-Cost Worksheet'!$A$1,MATCH(A113,' Data Entry-Cost Worksheet'!$A:$A,0)-1,2,1,1) -> 0 | H118: Type # | I118: Adjust $
A119: Top or Range | B119: =VLOOKUP(B117,$P$13:$Q$32,2,FALSE) ->  | D119: =IF(F115="Elevator",VLOOKUP(B119,$L$13:$N$32,2,TRUE),VLOOKUP(B119,$L$13:$N$32,3,TRUE)) ->  | E119: Total Bushel Capacity | F119: =OFFSET(' Data Entry-Cost Worksheet'!$A$1,MATCH(A113,' Data Entry-Cost Worksheet'!$A:$A,0)-1,3,1,1) -> 0 | I119: =_xlfn.SWITCH(H119,$K$39,$O$39,$K$40,$O$40,$K$41,D121*$O$41,$K$42,D121*$O$42,$K$43,D121*$O$43,$K$44,D121*$O$44,"") -> 
A120: RATE for Cost Worksheet per Structure | E120: # Imp/Struct Identical Units | F120: =OFFSET(' Data Entry-Cost Worksheet'!$A$1,MATCH(A113,' Data Entry-Cost Worksheet'!$A:$A,0)-1,4,1,1) -> 0 | I120: =_xlfn.SWITCH(H120,$K$39,$O$39,$K$40,$O$40,$K$41,D121*$O$41,$K$42,D121*$O$42,$K$43,D121*$O$43,$K$44,D121*$O$44,"") -> 
A121: RATE CALCS | B121: Concrete $/Bu | D121: =IF(F115="Elevator", _xlfn.IFS(F121<$L$16,$M$16,F121>$L$31,$M$32,F121=$L$31,$M$31,F121<$L$31,A126), _xlfn.IFS(F121<$L$14,$N$14,F121>$L$31,$N$32,F121=$L$31,$N$31,F121<$L$31,A126)) ->  | E121: Bu Capacity per Unit | F121: =F119/F120 ->  | I121: =_xlfn.SWITCH(H121,$K$39,$O$39,$K$40,$O$40,$K$41,D121*$O$41,$K$42,D121*$O$42,$K$43,D121*$O$43,$K$44,D121*$O$44,"") -> 
A122: =B119-B117 ->  | B122: Adjusted $/Bu | D122: =IF(F116=0,"",D121+F116) ->  | I122: =_xlfn.SWITCH(H122,$K$39,$O$39,$K$40,$O$40,$K$41,D121*$O$41,$K$42,D121*$O$42,$K$43,D121*$O$43,$K$44,D121*$O$44,"") -> 
A123: =D117-D119 ->  | B123: Notes: | I123: =_xlfn.SWITCH(H123,$K$39,$O$39,$K$40,$O$40,$K$41,D121*$O$41,$K$42,D121*$O$42,$K$43,D121*$O$43,$K$44,D121*$O$44,"") -> 
A124: =A123/A122 ->  | I124: =_xlfn.SWITCH(H124,$K$39,$O$39,$K$40,$O$40,$K$41,D121*$O$41,$K$42,D121*$O$42,$K$43,D121*$O$43,$K$44,D121*$O$44,"") -> 
A125: =(F121-B117)*A124 ->  | H125: Total | I125: =SUM(I119:I124) -> 0
A126: =D117-A125 -> 
A129: =LEFT(OFFSET(A129,-16,0),1)& RIGHT(OFFSET(A129,-16,0),LEN(OFFSET(A129,-16,0))-1) +1 -> A9 | B129: =D137+F132 -> 
A130: Interpolation Model for Concrete Storage | E130: ENTER/VERIFY TO CALCULATE RATE | H130: Enter Adjust Type # (1-6) from table for adjustment amounts
A131: DO NOT REMOVE FORMULAS | E131: Type-Elevator/Annex | F131: Annex
B132: Bushel | D132: Cost/Bu | E132: $/Bu Adjustment | F132: =I141 -> 0
A133: Bottom of Range | B133: =IF(F131="Elevator",_xlfn.XLOOKUP(D133,$M$13:$M$32,$L$13:$L$32,"",0,1),_xlfn.XLOOKUP(D133,$N$13:$N$32,$L$13:$L$32,"",0,1)) ->  | D133: =IF(F131="Elevator",VLOOKUP(F137,$L$13:$N$32,2,TRUE),VLOOKUP(F137,$L$13:$N$32,3,TRUE)) ->  | E133: Improve/Structure Name | F133: =OFFSET(' Data Entry-Cost Worksheet'!$A$1,MATCH(A129,' Data Entry-Cost Worksheet'!A:A,0)-1,1,1,1) -> 0 | H133: Per Bu Adjustment
E134: Year Built | F134: =OFFSET(' Data Entry-Cost Worksheet'!$A$1,MATCH(A129,' Data Entry-Cost Worksheet'!$A:$A,0)-1,2,1,1) -> 0 | H134: Type # | I134: Adjust $
A135: Top or Range | B135: =VLOOKUP(B133,$P$13:$Q$32,2,FALSE) ->  | D135: =IF(F131="Elevator",VLOOKUP(B135,$L$13:$N$32,2,TRUE),VLOOKUP(B135,$L$13:$N$32,3,TRUE)) ->  | E135: Total Bushel Capacity | F135: =OFFSET(' Data Entry-Cost Worksheet'!$A$1,MATCH(A129,' Data Entry-Cost Worksheet'!$A:$A,0)-1,3,1,1) -> 0 | I135: =_xlfn.SWITCH(H135,$K$39,$O$39,$K$40,$O$40,$K$41,D137*$O$41,$K$42,D137*$O$42,$K$43,D137*$O$43,$K$44,D137*$O$44,"") -> 
A136: RATE for Cost Worksheet per Structure | E136: # Imp/Struct Identical Units | F136: =OFFSET(' Data Entry-Cost Worksheet'!$A$1,MATCH(A129,' Data Entry-Cost Worksheet'!$A:$A,0)-1,4,1,1) -> 0 | I136: =_xlfn.SWITCH(H136,$K$39,$O$39,$K$40,$O$40,$K$41,D137*$O$41,$K$42,D137*$O$42,$K$43,D137*$O$43,$K$44,D137*$O$44,"") -> 
A137: RATE CALCS | B137: Concrete $/Bu | D137: =IF(F131="Elevator", _xlfn.IFS(F137<$L$16,$M$16,F137>$L$31,$M$32,F137=$L$31,$M$31,F137<$L$31,A142), _xlfn.IFS(F137<$L$14,$N$14,F137>$L$31,$N$32,F137=$L$31,$N$31,F137<$L$31,A142)) ->  | E137: Bu Capacity per Unit | F137: =F135/F136 ->  | I137: =_xlfn.SWITCH(H137,$K$39,$O$39,$K$40,$O$40,$K$41,D137*$O$41,$K$42,D137*$O$42,$K$43,D137*$O$43,$K$44,D137*$O$44,"") -> 
A138: =B135-B133 ->  | B138: Adjusted $/Bu | D138: =IF(F132=0,"",D137+F132) ->  | I138: =_xlfn.SWITCH(H138,$K$39,$O$39,$K$40,$O$40,$K$41,D137*$O$41,$K$42,D137*$O$42,$K$43,D137*$O$43,$K$44,D137*$O$44,"") -> 
A139: =D133-D135 ->  | B139: Notes: | I139: =_xlfn.SWITCH(H139,$K$39,$O$39,$K$40,$O$40,$K$41,D137*$O$41,$K$42,D137*$O$42,$K$43,D137*$O$43,$K$44,D137*$O$44,"") -> 
A140: =A139/A138 ->  | I140: =_xlfn.SWITCH(H140,$K$39,$O$39,$K$40,$O$40,$K$41,D137*$O$41,$K$42,D137*$O$42,$K$43,D137*$O$43,$K$44,D137*$O$44,"") -> 
A141: =(F137-B133)*A140 ->  | H141: Total | I141: =SUM(I135:I140) -> 0
A142: =D133-A141 -> 
A145: =LEFT(OFFSET(A145,-16,0),1)& RIGHT(OFFSET(A145,-16,0),LEN(OFFSET(A145,-16,0))-1) +1 -> A10 | B145: =D153+F148 -> 
A146: Interpolation Model for Concrete Storage | E146: ENTER/VERIFY TO CALCULATE RATE | H146: Enter Adjust Type # (1-6) from table for adjustment amounts
A147: DO NOT REMOVE FORMULAS | E147: Type-Elevator/Annex | F147: Annex
B148: Bushel | D148: Cost/Bu | E148: $/Bu Adjustment | F148: =I157 -> 0
A149: Bottom of Range | B149: =IF(F147="Elevator",_xlfn.XLOOKUP(D149,$M$13:$M$32,$L$13:$L$32,"",0,1),_xlfn.XLOOKUP(D149,$N$13:$N$32,$L$13:$L$32,"",0,1)) ->  | D149: =IF(F147="Elevator",VLOOKUP(F153,$L$13:$N$32,2,TRUE),VLOOKUP(F153,$L$13:$N$32,3,TRUE)) ->  | E149: Improve/Structure Name | F149: =OFFSET(' Data Entry-Cost Worksheet'!$A$1,MATCH(A145,' Data Entry-Cost Worksheet'!A:A,0)-1,1,1,1) -> 0 | H149: Per Bu Adjustment
E150: Year Built | F150: =OFFSET(' Data Entry-Cost Worksheet'!$A$1,MATCH(A145,' Data Entry-Cost Worksheet'!$A:$A,0)-1,2,1,1) -> 0 | H150: Type # | I150: Adjust $
A151: Top or Range | B151: =VLOOKUP(B149,$P$13:$Q$32,2,FALSE) ->  | D151: =IF(F147="Elevator",VLOOKUP(B151,$L$13:$N$32,2,TRUE),VLOOKUP(B151,$L$13:$N$32,3,TRUE)) ->  | E151: Total Bushel Capacity | F151: =OFFSET(' Data Entry-Cost Worksheet'!$A$1,MATCH(A145,' Data Entry-Cost Worksheet'!$A:$A,0)-1,3,1,1) -> 0 | I151: =_xlfn.SWITCH(H151,$K$39,$O$39,$K$40,$O$40,$K$41,D153*$O$41,$K$42,D153*$O$42,$K$43,D153*$O$43,$K$44,D153*$O$44,"") -> 
A152: RATE for Cost Worksheet per Structure | E152: # Imp/Struct Identical Units | F152: =OFFSET(' Data Entry-Cost Worksheet'!$A$1,MATCH(A145,' Data Entry-Cost Worksheet'!$A:$A,0)-1,4,1,1) -> 0 | I152: =_xlfn.SWITCH(H152,$K$39,$O$39,$K$40,$O$40,$K$41,D153*$O$41,$K$42,D153*$O$42,$K$43,D153*$O$43,$K$44,D153*$O$44,"") -> 
A153: RATE CALCS | B153: Concrete $/Bu | D153: =IF(F147="Elevator", _xlfn.IFS(F153<$L$16,$M$16,F153>$L$31,$M$32,F153=$L$31,$M$31,F153<$L$31,A158), _xlfn.IFS(F153<$L$14,$N$14,F153>$L$31,$N$32,F153=$L$31,$N$31,F153<$L$31,A158)) ->  | E153: Bu Capacity per Unit | F153: =F151/F152 ->  | I153: =_xlfn.SWITCH(H153,$K$39,$O$39,$K$40,$O$40,$K$41,D153*$O$41,$K$42,D153*$O$42,$K$43,D153*$O$43,$K$44,D153*$O$44,"") -> 
A154: =B151-B149 ->  | B154: Adjusted $/Bu | D154: =IF(F148=0,"",D153+F148) ->  | I154: =_xlfn.SWITCH(H154,$K$39,$O$39,$K$40,$O$40,$K$41,D153*$O$41,$K$42,D153*$O$42,$K$43,D153*$O$43,$K$44,D153*$O$44,"") -> 
A155: =D149-D151 ->  | B155: Notes: | I155: =_xlfn.SWITCH(H155,$K$39,$O$39,$K$40,$O$40,$K$41,D153*$O$41,$K$42,D153*$O$42,$K$43,D153*$O$43,$K$44,D153*$O$44,"") -> 
A156: =A155/A154 ->  | I156: =_xlfn.SWITCH(H156,$K$39,$O$39,$K$40,$O$40,$K$41,D153*$O$41,$K$42,D153*$O$42,$K$43,D153*$O$43,$K$44,D153*$O$44,"") -> 
A157: =(F153-B149)*A156 ->  | H157: Total | I157: =SUM(I151:I156) -> 0
A158: =D149-A157 -> 
A161: =LEFT(OFFSET(A161,-16,0),1)& RIGHT(OFFSET(A161,-16,0),LEN(OFFSET(A161,-16,0))-1) +1 -> A11 | B161: =D169+F164 -> 
A162: Interpolation Model for Concrete Storage | E162: ENTER/VERIFY TO CALCULATE RATE | H162: Enter Adjust Type # (1-6) from table for adjustment amounts
A163: DO NOT REMOVE FORMULAS | E163: Type-Elevator/Annex | F163: Annex
B164: Bushel | D164: Cost/Bu | E164: $/Bu Adjustment | F164: =I173 -> 0
A165: Bottom of Range | B165: =IF(F163="Elevator",_xlfn.XLOOKUP(D165,$M$13:$M$32,$L$13:$L$32,"",0,1),_xlfn.XLOOKUP(D165,$N$13:$N$32,$L$13:$L$32,"",0,1)) ->  | D165: =IF(F163="Elevator",VLOOKUP(F169,$L$13:$N$32,2,TRUE),VLOOKUP(F169,$L$13:$N$32,3,TRUE)) ->  | E165: Improve/Structure Name | F165: =OFFSET(' Data Entry-Cost Worksheet'!$A$1,MATCH(A161,' Data Entry-Cost Worksheet'!A:A,0)-1,1,1,1) -> 0 | H165: Per Bu Adjustment
E166: Year Built | F166: =OFFSET(' Data Entry-Cost Worksheet'!$A$1,MATCH(A161,' Data Entry-Cost Worksheet'!$A:$A,0)-1,2,1,1) -> 0 | H166: Type # | I166: Adjust $
A167: Top or Range | B167: =VLOOKUP(B165,$P$13:$Q$32,2,FALSE) ->  | D167: =IF(F163="Elevator",VLOOKUP(B167,$L$13:$N$32,2,TRUE),VLOOKUP(B167,$L$13:$N$32,3,TRUE)) ->  | E167: Total Bushel Capacity | F167: =OFFSET(' Data Entry-Cost Worksheet'!$A$1,MATCH(A161,' Data Entry-Cost Worksheet'!$A:$A,0)-1,3,1,1) -> 0 | I167: =_xlfn.SWITCH(H167,$K$39,$O$39,$K$40,$O$40,$K$41,D169*$O$41,$K$42,D169*$O$42,$K$43,D169*$O$43,$K$44,D169*$O$44,"") -> 
A168: RATE for Cost Worksheet per Structure | E168: # Imp/Struct Identical Units | F168: =OFFSET(' Data Entry-Cost Worksheet'!$A$1,MATCH(A161,' Data Entry-Cost Worksheet'!$A:$A,0)-1,4,1,1) -> 0 | I168: =_xlfn.SWITCH(H168,$K$39,$O$39,$K$40,$O$40,$K$41,D169*$O$41,$K$42,D169*$O$42,$K$43,D169*$O$43,$K$44,D169*$O$44,"") -> 
A169: RATE CALCS | B169: Concrete $/Bu | D169: =IF(F163="Elevator", _xlfn.IFS(F169<$L$16,$M$16,F169>$L$31,$M$32,F169=$L$31,$M$31,F169<$L$31,A174), _xlfn.IFS(F169<$L$14,$N$14,F169>$L$31,$N$32,F169=$L$31,$N$31,F169<$L$31,A174)) ->  | E169: Bu Capacity per Unit | F169: =F167/F168 ->  | I169: =_xlfn.SWITCH(H169,$K$39,$O$39,$K$40,$O$40,$K$41,D169*$O$41,$K$42,D169*$O$42,$K$43,D169*$O$43,$K$44,D169*$O$44,"") -> 
A170: =B167-B165 ->  | B170: Adjusted $/Bu | D170: =IF(F164=0,"",D169+F164) ->  | I170: =_xlfn.SWITCH(H170,$K$39,$O$39,$K$40,$O$40,$K$41,D169*$O$41,$K$42,D169*$O$42,$K$43,D169*$O$43,$K$44,D169*$O$44,"") -> 
A171: =D165-D167 ->  | B171: Notes: | I171: =_xlfn.SWITCH(H171,$K$39,$O$39,$K$40,$O$40,$K$41,D169*$O$41,$K$42,D169*$O$42,$K$43,D169*$O$43,$K$44,D169*$O$44,"") -> 
A172: =A171/A170 ->  | I172: =_xlfn.SWITCH(H172,$K$39,$O$39,$K$40,$O$40,$K$41,D169*$O$41,$K$42,D169*$O$42,$K$43,D169*$O$43,$K$44,D169*$O$44,"") -> 
A173: =(F169-B165)*A172 ->  | H173: Total | I173: =SUM(I167:I172) -> 0
A174: =D165-A173 -> 
A177: =LEFT(OFFSET(A177,-16,0),1)& RIGHT(OFFSET(A177,-16,0),LEN(OFFSET(A177,-16,0))-1) +1 -> A12 | B177: =D185+F180 -> 
A178: Interpolation Model for Concrete Storage | E178: ENTER/VERIFY TO CALCULATE RATE | H178: Enter Adjust Type # (1-6) from table for adjustment amounts
A179: DO NOT REMOVE FORMULAS | E179: Type-Elevator/Annex | F179: Annex
B180: Bushel | D180: Cost/Bu | E180: $/Bu Adjustment | F180: =I189 -> 0
A181: Bottom of Range | B181: =IF(F179="Elevator",_xlfn.XLOOKUP(D181,$M$13:$M$32,$L$13:$L$32,"",0,1),_xlfn.XLOOKUP(D181,$N$13:$N$32,$L$13:$L$32,"",0,1)) ->  | D181: =IF(F179="Elevator",VLOOKUP(F185,$L$13:$N$32,2,TRUE),VLOOKUP(F185,$L$13:$N$32,3,TRUE)) ->  | E181: Improve/Structure Name | F181: =OFFSET(' Data Entry-Cost Worksheet'!$A$1,MATCH(A177,' Data Entry-Cost Worksheet'!A:A,0)-1,1,1,1) -> 0 | H181: Per Bu Adjustment
E182: Year Built | F182: =OFFSET(' Data Entry-Cost Worksheet'!$A$1,MATCH(A177,' Data Entry-Cost Worksheet'!$A:$A,0)-1,2,1,1) -> 0 | H182: Type # | I182: Adjust $
A183: Top or Range | B183: =VLOOKUP(B181,$P$13:$Q$32,2,FALSE) ->  | D183: =IF(F179="Elevator",VLOOKUP(B183,$L$13:$N$32,2,TRUE),VLOOKUP(B183,$L$13:$N$32,3,TRUE)) ->  | E183: Total Bushel Capacity | F183: =OFFSET(' Data Entry-Cost Worksheet'!$A$1,MATCH(A177,' Data Entry-Cost Worksheet'!$A:$A,0)-1,3,1,1) -> 0 | I183: =_xlfn.SWITCH(H183,$K$39,$O$39,$K$40,$O$40,$K$41,D185*$O$41,$K$42,D185*$O$42,$K$43,D185*$O$43,$K$44,D185*$O$44,"") -> 
A184: RATE for Cost Worksheet per Structure | E184: # Imp/Struct Identical Units | F184: =OFFSET(' Data Entry-Cost Worksheet'!$A$1,MATCH(A177,' Data Entry-Cost Worksheet'!$A:$A,0)-1,4,1,1) -> 0 | I184: =_xlfn.SWITCH(H184,$K$39,$O$39,$K$40,$O$40,$K$41,D185*$O$41,$K$42,D185*$O$42,$K$43,D185*$O$43,$K$44,D185*$O$44,"") -> 
A185: RATE CALCS | B185: Concrete $/Bu | D185: =IF(F179="Elevator", _xlfn.IFS(F185<$L$16,$M$16,F185>$L$31,$M$32,F185=$L$31,$M$31,F185<$L$31,A190), _xlfn.IFS(F185<$L$14,$N$14,F185>$L$31,$N$32,F185=$L$31,$N$31,F185<$L$31,A190)) ->  | E185: Bu Capacity per Unit | F185: =F183/F184 ->  | I185: =_xlfn.SWITCH(H185,$K$39,$O$39,$K$40,$O$40,$K$41,D185*$O$41,$K$42,D185*$O$42,$K$43,D185*$O$43,$K$44,D185*$O$44,"") -> 
A186: =B183-B181 ->  | B186: Adjusted $/Bu | D186: =IF(F180=0,"",D185+F180) ->  | I186: =_xlfn.SWITCH(H186,$K$39,$O$39,$K$40,$O$40,$K$41,D185*$O$41,$K$42,D185*$O$42,$K$43,D185*$O$43,$K$44,D185*$O$44,"") -> 
A187: =D181-D183 ->  | B187: Notes: | I187: =_xlfn.SWITCH(H187,$K$39,$O$39,$K$40,$O$40,$K$41,D185*$O$41,$K$42,D185*$O$42,$K$43,D185*$O$43,$K$44,D185*$O$44,"") -> 
A188: =A187/A186 ->  | I188: =_xlfn.SWITCH(H188,$K$39,$O$39,$K$40,$O$40,$K$41,D185*$O$41,$K$42,D185*$O$42,$K$43,D185*$O$43,$K$44,D185*$O$44,"") -> 
A189: =(F185-B181)*A188 ->  | H189: Total | I189: =SUM(I183:I188) -> 0
A190: =D181-A189 -> 
A193: =LEFT(OFFSET(A193,-16,0),1)& RIGHT(OFFSET(A193,-16,0),LEN(OFFSET(A193,-16,0))-1) +1 -> A13 | B193: =D201+F196 -> 
A194: Interpolation Model for Concrete Storage | E194: ENTER/VERIFY TO CALCULATE RATE | H194: Enter Adjust Type # (1-6) from table for adjustment amounts
A195: DO NOT REMOVE FORMULAS | E195: Type-Elevator/Annex | F195: Annex
B196: Bushel | D196: Cost/Bu | E196: $/Bu Adjustment | F196: =I205 -> 0
A197: Bottom of Range | B197: =IF(F195="Elevator",_xlfn.XLOOKUP(D197,$M$13:$M$32,$L$13:$L$32,"",0,1),_xlfn.XLOOKUP(D197,$N$13:$N$32,$L$13:$L$32,"",0,1)) ->  | D197: =IF(F195="Elevator",VLOOKUP(F201,$L$13:$N$32,2,TRUE),VLOOKUP(F201,$L$13:$N$32,3,TRUE)) ->  | E197: Improve/Structure Name | F197: =OFFSET(' Data Entry-Cost Worksheet'!$A$1,MATCH(A193,' Data Entry-Cost Worksheet'!A:A,0)-1,1,1,1) -> 0 | H197: Per Bu Adjustment
E198: Year Built | F198: =OFFSET(' Data Entry-Cost Worksheet'!$A$1,MATCH(A193,' Data Entry-Cost Worksheet'!$A:$A,0)-1,2,1,1) -> 0 | H198: Type # | I198: Adjust $
A199: Top or Range | B199: =VLOOKUP(B197,$P$13:$Q$32,2,FALSE) ->  | D199: =IF(F195="Elevator",VLOOKUP(B199,$L$13:$N$32,2,TRUE),VLOOKUP(B199,$L$13:$N$32,3,TRUE)) ->  | E199: Total Bushel Capacity | F199: =OFFSET(' Data Entry-Cost Worksheet'!$A$1,MATCH(A193,' Data Entry-Cost Worksheet'!$A:$A,0)-1,3,1,1) -> 0 | I199: =_xlfn.SWITCH(H199,$K$39,$O$39,$K$40,$O$40,$K$41,D201*$O$41,$K$42,D201*$O$42,$K$43,D201*$O$43,$K$44,D201*$O$44,"") -> 
A200: RATE for Cost Worksheet per Structure | E200: # Imp/Struct Identical Units | F200: =OFFSET(' Data Entry-Cost Worksheet'!$A$1,MATCH(A193,' Data Entry-Cost Worksheet'!$A:$A,0)-1,4,1,1) -> 0 | I200: =_xlfn.SWITCH(H200,$K$39,$O$39,$K$40,$O$40,$K$41,D201*$O$41,$K$42,D201*$O$42,$K$43,D201*$O$43,$K$44,D201*$O$44,"") -> 
A201: RATE CALCS | B201: Concrete $/Bu | D201: =IF(F195="Elevator", _xlfn.IFS(F201<$L$16,$M$16,F201>$L$31,$M$32,F201=$L$31,$M$31,F201<$L$31,A206), _xlfn.IFS(F201<$L$14,$N$14,F201>$L$31,$N$32,F201=$L$31,$N$31,F201<$L$31,A206)) ->  | E201: Bu Capacity per Unit | F201: =F199/F200 ->  | I201: =_xlfn.SWITCH(H201,$K$39,$O$39,$K$40,$O$40,$K$41,D201*$O$41,$K$42,D201*$O$42,$K$43,D201*$O$43,$K$44,D201*$O$44,"") -> 
A202: =B199-B197 ->  | B202: Adjusted $/Bu | D202: =IF(F196=0,"",D201+F196) ->  | I202: =_xlfn.SWITCH(H202,$K$39,$O$39,$K$40,$O$40,$K$41,D201*$O$41,$K$42,D201*$O$42,$K$43,D201*$O$43,$K$44,D201*$O$44,"") -> 
A203: =D197-D199 ->  | B203: Notes: | I203: =_xlfn.SWITCH(H203,$K$39,$O$39,$K$40,$O$40,$K$41,D201*$O$41,$K$42,D201*$O$42,$K$43,D201*$O$43,$K$44,D201*$O$44,"") -> 
A204: =A203/A202 ->  | I204: =_xlfn.SWITCH(H204,$K$39,$O$39,$K$40,$O$40,$K$41,D201*$O$41,$K$42,D201*$O$42,$K$43,D201*$O$43,$K$44,D201*$O$44,"") -> 
A205: =(F201-B197)*A204 ->  | H205: Total | I205: =SUM(I199:I204) -> 0
A206: =D197-A205 -> 
A209: B1 | B209: =D217+F212 -> 
A210: Interpolation Model for Concrete Storage | E210: ENTER/VERIFY TO CALCULATE RATE | H210: Enter Adjust Type # (1-6) from table for adjustment amounts
A211: DO NOT REMOVE FORMULAS | E211: Type-Elevator/Annex | F211: Annex
B212: Bushel | D212: Cost/Bu | E212: $/Bu Adjustment | F212: =I221 -> -0.73
A213: Bottom of Range | B213: =IF(F211="Elevator",_xlfn.XLOOKUP(D213,$M$13:$M$32,$L$13:$L$32,"",0,1),_xlfn.XLOOKUP(D213,$N$13:$N$32,$L$13:$L$32,"",0,1)) ->  | D213: =IF(F211="Elevator",VLOOKUP(F217,$L$13:$N$32,2,TRUE),VLOOKUP(F217,$L$13:$N$32,3,TRUE)) ->  | E213: Improve/Structure Name | F213: =OFFSET(' Data Entry-Cost Worksheet'!$A$1,MATCH(A209,' Data Entry-Cost Worksheet'!A:A,0)-1,1,1,1) -> 0 | H213: Per Bu Adjustment
E214: Year Built | F214: =OFFSET(' Data Entry-Cost Worksheet'!$A$1,MATCH(A209,' Data Entry-Cost Worksheet'!$A:$A,0)-1,2,1,1) -> 0 | H214: Type # | I214: Adjust $
A215: Top or Range | B215: =VLOOKUP(B213,$P$13:$Q$32,2,FALSE) ->  | D215: =IF(F211="Elevator",VLOOKUP(B215,$L$13:$N$32,2,TRUE),VLOOKUP(B215,$L$13:$N$32,3,TRUE)) ->  | E215: Total Bushel Capacity | F215: =OFFSET(' Data Entry-Cost Worksheet'!$A$1,MATCH(A209,' Data Entry-Cost Worksheet'!$A:$A,0)-1,3,1,1) -> 0 | H215: 2 | I215: =_xlfn.SWITCH(H215,$K$39,$O$39,$K$40,$O$40,$K$41,D217*$O$41,$K$42,D217*$O$42,$K$43,D217*$O$43,$K$44,D217*$O$44,"") -> -0.73
A216: RATE for Cost Worksheet per Structure | E216: # Imp/Struct Identical Units | F216: =OFFSET(' Data Entry-Cost Worksheet'!$A$1,MATCH(A209,' Data Entry-Cost Worksheet'!$A:$A,0)-1,4,1,1) -> 0 | I216: =_xlfn.SWITCH(H216,$K$39,$O$39,$K$40,$O$40,$K$41,D217*$O$41,$K$42,D217*$O$42,$K$43,D217*$O$43,$K$44,D217*$O$44,"") -> 
A217: RATE CALCS | B217: Concrete $/Bu | D217: =IF(F211="Elevator", _xlfn.IFS(F217<$L$16,$M$16,F217>$L$31,$M$32,F217=$L$31,$M$31,F217<$L$31,A222), _xlfn.IFS(F217<$L$14,$N$14,F217>$L$31,$N$32,F217=$L$31,$N$31,F217<$L$31,A222)) ->  | E217: Bu Capacity per Unit | F217: =F215/F216 ->  | I217: =_xlfn.SWITCH(H217,$K$39,$O$39,$K$40,$O$40,$K$41,D217*$O$41,$K$42,D217*$O$42,$K$43,D217*$O$43,$K$44,D217*$O$44,"") -> 
A218: =B215-B213 ->  | B218: Adjusted $/Bu | D218: =IF(F212=0,"",D217+F212) ->  | I218: =_xlfn.SWITCH(H218,$K$39,$O$39,$K$40,$O$40,$K$41,D217*$O$41,$K$42,D217*$O$42,$K$43,D217*$O$43,$K$44,D217*$O$44,"") -> 
A219: =D213-D215 ->  | B219: Notes: | I219: =_xlfn.SWITCH(H219,$K$39,$O$39,$K$40,$O$40,$K$41,D217*$O$41,$K$42,D217*$O$42,$K$43,D217*$O$43,$K$44,D217*$O$44,"") -> 
A220: =A219/A218 ->  | I220: =_xlfn.SWITCH(H220,$K$39,$O$39,$K$40,$O$40,$K$41,D217*$O$41,$K$42,D217*$O$42,$K$43,D217*$O$43,$K$44,D217*$O$44,"") -> 
A221: =(F217-B213)*A220 ->  | H221: Total | I221: =SUM(I215:I220) -> -0.73
A222: =D213-A221 -> 
... 70 more rows

Sheet Wood Frame Interpolation
A1: C1 | B1: =D9+F4 ->  | L1: NOTE: Concrete prices are for slip form storage. See adjustments to deduct $/Bu amount for concrete jump form storage. Any changes to base values must be documented using adjustment box and notes box in each correponding interpolation box.
A2: Interpolation Model for Wood Storage | E2: ENTER/VERIFY TO CALCULATE RATE | H2: Enter Adjust Type # (1-6) from table for adjustment amounts
A3: DO NOT REMOVE FORMULAS | E3: Type-Elevator/Annex | F3: Elevator | L3: Elevator costs include- complete headhouse, tunnel, conveyor gallery & storage tanks/bins based on type & size of faciltiy
B4: Bushel | D4: Cost/Bu | E4: $/Bu Adjustment | F4: =I13 -> 0 | L4: Annex costs include- vertical storage. Use for exposed leg system & no headhouse or added attached storage. If headhouse, use Elevator with capacity of both elevator & annex
A5: Bottom of Range | B5: =IF(F3="Elevator",_xlfn.XLOOKUP(D5,$M$11:$M$32,$L$11:$L$32,"",0,1),_xlfn.XLOOKUP(D5,$N$11:$N$32,$L$11:$L$32,"",0,1)) ->  | D5: =IF(F3="Elevator",VLOOKUP(F9,$L$11:$N$32,2,TRUE),VLOOKUP(F9,$L$11:$N$32,3,TRUE)) ->  | E5: Improve/Structure Name | F5: =OFFSET(' Data Entry-Cost Worksheet'!$A$1,MATCH(A1,' Data Entry-Cost Worksheet'!A:A,0)-1,1,1,1) -> 0 | H5: Per Bu Adjustment
E6: Year Built | F6: =OFFSET(' Data Entry-Cost Worksheet'!$A$1,MATCH(A1,' Data Entry-Cost Worksheet'!$A:$A,0)-1,2,1,1) -> 0 | H6: Type # | I6: Adjust $ | L6: Grain Elevator/Annex
A7: Top or Range | B7: =VLOOKUP(B5,$P$11:$Q$30,2,FALSE) ->  | D7: =IF(F3="Elevator",VLOOKUP(B7,$L$11:$N$32,2,TRUE),VLOOKUP(B7,$L$11:$N$32,3,TRUE)) ->  | E7: Total Bushel Capacity | F7: =OFFSET(' Data Entry-Cost Worksheet'!$A$1,MATCH(A1,' Data Entry-Cost Worksheet'!$A:$A,0)-1,3,1,1) -> 0 | I7: =_xlfn.SWITCH(H7,$K$37,$O$37,$K$38,$O$38,$K$39,D9*$O$39,$K$40,D9*$O$40,$K$41,D9*$O$41,$K$42,D9*$O$42,"") ->  | L7: M&S Commercial Section 17 pg 50 | N7: 2023-05-01
A8: RATE for Cost Worksheet per Structure | E8: # Imp/Struct Identical Units | F8: =OFFSET(' Data Entry-Cost Worksheet'!$A$1,MATCH(A1,' Data Entry-Cost Worksheet'!$A:$A,0)-1,4,1,1) -> 0 | I8: =_xlfn.SWITCH(H8,$K$37,$O$37,$K$38,$O$38,$K$39,D9*$O$39,$K$40,D9*$O$40,$K$41,D9*$O$41,$K$42,D9*$O$42,"") ->  | L8: Total Bushel Capacity | M8: Cost Per Bushel
A9: RATE CALCS | B9: Wood $/Bu | D9: =IF(F3="Elevator", _xlfn.IFS(F9<=$L$11,$M$11,F9>=$L$26,$M$26,F9<$L$26,A14), _xlfn.IFS(F9<=$L$14,$N$14,F9>=$L$26,$N$26,F9<$L$26,A14)) ->  | E9: Bu Capacity per Unit | F9: =F7/F8 ->  | I9: =_xlfn.SWITCH(H9,$K$37,$O$37,$K$38,$O$38,$K$39,D9*$O$39,$K$40,D9*$O$40,$K$41,D9*$O$41,$K$42,D9*$O$42,"") ->  | M9: Wood Frame
A10: =B7-B5 ->  | B10: Adjusted $/Bu | D10: =IF(F4=0,"",D9+F4) ->  | I10: =_xlfn.SWITCH(H10,$K$37,$O$37,$K$38,$O$38,$K$39,D9*$O$39,$K$40,D9*$O$40,$K$41,D9*$O$41,$K$42,D9*$O$42,"") ->  | M10: Elevator | N10: Annex | P10: DO NOT REMOVE FORMULAS
A11: =D5-D7 ->  | B11: Notes: | I11: =_xlfn.SWITCH(H11,$K$37,$O$37,$K$38,$O$38,$K$39,D9*$O$39,$K$40,D9*$O$40,$K$41,D9*$O$41,$K$42,D9*$O$42,"") ->  | L11: 8000 | M11: 26.5 | P11: 8000 | Q11: 10000
A12: =A11/A10 ->  | I12: =_xlfn.SWITCH(H12,$K$37,$O$37,$K$38,$O$38,$K$39,D9*$O$39,$K$40,D9*$O$40,$K$41,D9*$O$41,$K$42,D9*$O$42,"") ->  | L12: 10000 | M12: 24.35 | P12: 10000 | Q12: 15000
A13: =(F9-B5)*A12 ->  | H13: Total | I13: =SUM(I7:I12) -> 0 | L13: 15000 | M13: 20.7 | P13: 15000 | Q13: 20000
A14: =D5-A13 ->  | L14: 20000 | M14: 18.55 | N14: 11.25 | P14: 20000 | Q14: 25000
L15: 25000 | M15: 16.9 | N15: 10.2 | P15: 25000 | Q15: 30000
L16: 30000 | M16: 15.75 | N16: 9.46 | P16: 30000 | Q16: 40000
A17: =LEFT(OFFSET(A17,-16,0),1)& RIGHT(OFFSET(A17,-16,0),LEN(OFFSET(A17,-16,0))-1) +1 -> C2 | B17: =D25+F20 ->  | L17: 40000 | M17: 14.1 | N17: 8.4 | P17: 40000 | Q17: 50000
A18: Interpolation Model for Wood Storage | E18: ENTER/VERIFY TO CALCULATE RATE | H18: Enter Adjust Type # (1-6) from table for adjustment amounts | L18: 50000 | M18: 12.9 | N18: 7.62 | P18: 50000 | Q18: 75000
A19: DO NOT REMOVE FORMULAS | E19: Type-Elevator/Annex | F19: Elevator | L19: 75000 | M19: 11 | N19: 6.38 | P19: 75000 | Q19: 100000
B20: Bushel | D20: Cost/Bu | E20: $/Bu Adjustment | F20: =I29 -> 0 | L20: 100000 | M20: 9.85 | N20: 5.63 | P20: 100000 | Q20: 150000
A21: Bottom of Range | B21: =IF(F19="Elevator",_xlfn.XLOOKUP(D21,$M$11:$M$32,$L$11:$L$32,"",0,1),_xlfn.XLOOKUP(D21,$N$11:$N$32,$L$11:$L$32,"",0,1)) ->  | D21: =IF(F19="Elevator",VLOOKUP(F25,$L$11:$N$32,2,TRUE),VLOOKUP(F25,$L$11:$N$32,3,TRUE)) ->  | E21: Improve/Structure Name | F21: =OFFSET(' Data Entry-Cost Worksheet'!$A$1,MATCH(A17,' Data Entry-Cost Worksheet'!A:A,0)-1,1,1,1) -> 0 | H21: Per Bu Adjustment | L21: 150000 | M21: 8.43 | N21: 4.74 | P21: 150000 | Q21: 200000
E22: Year Built | F22: =OFFSET(' Data Entry-Cost Worksheet'!$A$1,MATCH(A17,' Data Entry-Cost Worksheet'!$A:$A,0)-1,2,1,1) -> 0 | H22: Type # | I22: Adjust $ | L22: 200000 | M22: 7.49 | N22: 4.17 | P22: 200000 | Q22: 250000
A23: Top or Range | B23: =VLOOKUP(B21,$P$11:$Q$30,2,FALSE) ->  | D23: =IF(F19="Elevator",VLOOKUP(B23,$L$11:$N$32,2,TRUE),VLOOKUP(B23,$L$11:$N$32,3,TRUE)) ->  | E23: Total Bushel Capacity | F23: =OFFSET(' Data Entry-Cost Worksheet'!$A$1,MATCH(A17,' Data Entry-Cost Worksheet'!$A:$A,0)-1,3,1,1) -> 0 | I23: =_xlfn.SWITCH(H23,$K$37,$O$37,$K$38,$O$38,$K$39,D25*$O$39,$K$40,D25*$O$40,$K$41,D25*$O$41,$K$42,D25*$O$42,"") ->  | L23: 250000 | M23: 6.89 | N23: 3.8 | P23: 250000 | Q23: 300000
A24: RATE for Cost Worksheet per Structure | E24: # Imp/Struct Identical Units | F24: =OFFSET(' Data Entry-Cost Worksheet'!$A$1,MATCH(A17,' Data Entry-Cost Worksheet'!$A:$A,0)-1,4,1,1) -> 0 | I24: =_xlfn.SWITCH(H24,$K$37,$O$37,$K$38,$O$38,$K$39,D25*$O$39,$K$40,D25*$O$40,$K$41,D25*$O$41,$K$42,D25*$O$42,"") ->  | L24: 300000 | M24: 6.4 | N24: 3.49 | P24: 300000 | Q24: 400000
A25: RATE CALCS | B25: Wood $/Bu | D25: =IF(F19="Elevator", _xlfn.IFS(F25<=$L$11,$M$11,F25>=$L$26,$M$26,F25<$L$26,A30), _xlfn.IFS(F25<=$L$14,$N$14,F25>=$L$26,$N$26,F25<$L$26,A30)) ->  | E25: Bu Capacity per Unit | F25: =F23/F24 ->  | I25: =_xlfn.SWITCH(H25,$K$37,$O$37,$K$38,$O$38,$K$39,D25*$O$39,$K$40,D25*$O$40,$K$41,D25*$O$41,$K$42,D25*$O$42,"") ->  | L25: 400000 | M25: 5.72 | N25: 3.1 | P25: 400000 | Q25: 500000
A26: =B23-B21 ->  | B26: Adjusted $/Bu | D26: =IF(F20=0,"",D25+F20) ->  | I26: =_xlfn.SWITCH(H26,$K$37,$O$37,$K$38,$O$38,$K$39,D25*$O$39,$K$40,D25*$O$40,$K$41,D25*$O$41,$K$42,D25*$O$42,"") ->  | L26: 500000 | M26: 5.18 | N26: 2.83 | P26: 500000 | Q26: 750000
A27: =D21-D23 ->  | B27: Notes: | I27: =_xlfn.SWITCH(H27,$K$37,$O$37,$K$38,$O$38,$K$39,D25*$O$39,$K$40,D25*$O$40,$K$41,D25*$O$41,$K$42,D25*$O$42,"") ->  | L27: 750000 | P27: 750000 | Q27: 1000000
A28: =A27/A26 ->  | I28: =_xlfn.SWITCH(H28,$K$37,$O$37,$K$38,$O$38,$K$39,D25*$O$39,$K$40,D25*$O$40,$K$41,D25*$O$41,$K$42,D25*$O$42,"") ->  | L28: 1000000 | P28: 1000000 | Q28: 2000000
A29: =(F25-B21)*A28 ->  | H29: Total | I29: =SUM(I23:I28) -> 0 | L29: 2000000 | P29: 2000000 | Q29: Over 2,000,000
A30: =D21-A29 ->  | L30: Over 2,000,000 | P30: Over 2,000,000
A33: =LEFT(OFFSET(A33,-16,0),1)& RIGHT(OFFSET(A33,-16,0),LEN(OFFSET(A33,-16,0))-1) +1 -> C3 | B33: =D41+F36 ->  | K33: Notes & Adjustments
A34: Interpolation Model for Wood Storage | E34: ENTER/VERIFY TO CALCULATE RATE | H34: Enter Adjust Type # (1-6) from table for adjustment amounts | K34: M&S Commercial Section 17 pg 50 | O34: 2023-05-01
A35: DO NOT REMOVE FORMULAS | E35: Type-Elevator/Annex | F35: Elevator
B36: Bushel | D36: Cost/Bu | E36: $/Bu Adjustment | F36: =I45 -> 0 | K36: Type # | L36: Adjust Desc | O36: Adjustment | P36: M&S Deduct Range | R36: PVD Recommend
A37: Bottom of Range | B37: =IF(F35="Elevator",_xlfn.XLOOKUP(D37,$M$11:$M$32,$L$11:$L$32,"",0,1),_xlfn.XLOOKUP(D37,$N$11:$N$32,$L$11:$L$32,"",0,1)) ->  | D37: =IF(F35="Elevator",VLOOKUP(F41,$L$11:$N$32,2,TRUE),VLOOKUP(F41,$L$11:$N$32,3,TRUE)) ->  | E37: Improve/Structure Name | F37: =OFFSET(' Data Entry-Cost Worksheet'!$A$1,MATCH(A33,' Data Entry-Cost Worksheet'!A:A,0)-1,1,1,1) -> 0 | H37: Per Bu Adjustment | K37: 1 | L37: Lack Intersticing- deduct from $/bu | O37: =-R37 -> -0.86 | P37: 0.75 | Q37: 0.97 | R37: =AVERAGE(P37:Q37) -> 0.86
E38: Year Built | F38: =OFFSET(' Data Entry-Cost Worksheet'!$A$1,MATCH(A33,' Data Entry-Cost Worksheet'!$A:$A,0)-1,2,1,1) -> 0 | H38: Type # | I38: Adjust $ | K38: 2 | L38: Concrete Jump Form- deduct from $/bu | O38: =-R38 -> -0.73 | P38: 0.59 | Q38: 0.87 | R38: =AVERAGE(P38:Q38) -> 0.73
A39: Top or Range | B39: =VLOOKUP(B37,$P$11:$Q$30,2,FALSE) ->  | D39: =IF(F35="Elevator",VLOOKUP(B39,$L$11:$N$32,2,TRUE),VLOOKUP(B39,$L$11:$N$32,3,TRUE)) ->  | E39: Total Bushel Capacity | F39: =OFFSET(' Data Entry-Cost Worksheet'!$A$1,MATCH(A33,' Data Entry-Cost Worksheet'!$A:$A,0)-1,3,1,1) -> 0 | I39: =_xlfn.SWITCH(H39,$K$37,$O$37,$K$38,$O$38,$K$39,D41*$O$39,$K$40,D41*$O$40,$K$41,D41*$O$41,$K$42,D41*$O$42,"") ->  | K39: 3 | L39: Single Concrete Silos- Annex costs, add % of $/bu | O39: 0.05
A40: RATE for Cost Worksheet per Structure | E40: # Imp/Struct Identical Units | F40: =OFFSET(' Data Entry-Cost Worksheet'!$A$1,MATCH(A33,' Data Entry-Cost Worksheet'!$A:$A,0)-1,4,1,1) -> 0 | I40: =_xlfn.SWITCH(H40,$K$37,$O$37,$K$38,$O$38,$K$39,D41*$O$39,$K$40,D41*$O$40,$K$41,D41*$O$41,$K$42,D41*$O$42,"") ->  | K40: 4 | L40: Concrete Staves- deduct % of $/bu | O40: -0.3
A41: RATE CALCS | B41: Wood $/Bu | D41: =IF(F35="Elevator", _xlfn.IFS(F41<=$L$11,$M$11,F41>=$L$26,$M$26,F41<$L$26,A46), _xlfn.IFS(F41<=$L$14,$N$14,F41>=$L$26,$N$26,F41<$L$26,A46)) ->  | E41: Bu Capacity per Unit | F41: =F39/F40 ->  | I41: =_xlfn.SWITCH(H41,$K$37,$O$37,$K$38,$O$38,$K$39,D41*$O$39,$K$40,D41*$O$40,$K$41,D41*$O$41,$K$42,D41*$O$42,"") ->  | K41: 5 | L41: Commercial- terminal,dry,clean,blend,store-add % of $/bu | O41: 0.1
A42: =B39-B37 ->  | B42: Adjusted $/Bu | D42: =IF(F36=0,"",D41+F36) ->  | I42: =_xlfn.SWITCH(H42,$K$37,$O$37,$K$38,$O$38,$K$39,D41*$O$39,$K$40,D41*$O$40,$K$41,D41*$O$41,$K$42,D41*$O$42,"") ->  | K42: 6 | L42: Industrial bulk applications- cement, coal, fiber glass…add % of $/bu | O42: 0.05
A43: =D37-D39 ->  | B43: Notes: | I43: =_xlfn.SWITCH(H43,$K$37,$O$37,$K$38,$O$38,$K$39,D41*$O$39,$K$40,D41*$O$40,$K$41,D41*$O$41,$K$42,D41*$O$42,"") -> 
A44: =A43/A42 ->  | I44: =_xlfn.SWITCH(H44,$K$37,$O$37,$K$38,$O$38,$K$39,D41*$O$39,$K$40,D41*$O$40,$K$41,D41*$O$41,$K$42,D41*$O$42,"") -> 
A45: =(F41-B37)*A44 ->  | H45: Total | I45: =SUM(I39:I44) -> 0
A46: =D37-A45 -> 
A49: =LEFT(OFFSET(A49,-16,0),1)& RIGHT(OFFSET(A49,-16,0),LEN(OFFSET(A49,-16,0))-1) +1 -> C4 | B49: =D57+F52 -> 
A50: Interpolation Model for Wood Storage | E50: ENTER/VERIFY TO CALCULATE RATE | H50: Enter Adjust Type # (1-6) from table for adjustment amounts
A51: DO NOT REMOVE FORMULAS | E51: Type-Elevator/Annex | F51: Elevator
B52: Bushel | D52: Cost/Bu | E52: $/Bu Adjustment | F52: =I61 -> 0
A53: Bottom of Range | B53: =IF(F51="Elevator",_xlfn.XLOOKUP(D53,$M$11:$M$32,$L$11:$L$32,"",0,1),_xlfn.XLOOKUP(D53,$N$11:$N$32,$L$11:$L$32,"",0,1)) ->  | D53: =IF(F51="Elevator",VLOOKUP(F57,$L$11:$N$32,2,TRUE),VLOOKUP(F57,$L$11:$N$32,3,TRUE)) ->  | E53: Improve/Structure Name | F53: =OFFSET(' Data Entry-Cost Worksheet'!$A$1,MATCH(A49,' Data Entry-Cost Worksheet'!A:A,0)-1,1,1,1) -> 0 | H53: Per Bu Adjustment
E54: Year Built | F54: =OFFSET(' Data Entry-Cost Worksheet'!$A$1,MATCH(A49,' Data Entry-Cost Worksheet'!$A:$A,0)-1,2,1,1) -> 0 | H54: Type # | I54: Adjust $
A55: Top or Range | B55: =VLOOKUP(B53,$P$11:$Q$30,2,FALSE) ->  | D55: =IF(F51="Elevator",VLOOKUP(B55,$L$11:$N$32,2,TRUE),VLOOKUP(B55,$L$11:$N$32,3,TRUE)) ->  | E55: Total Bushel Capacity | F55: =OFFSET(' Data Entry-Cost Worksheet'!$A$1,MATCH(A49,' Data Entry-Cost Worksheet'!$A:$A,0)-1,3,1,1) -> 0 | I55: =_xlfn.SWITCH(H55,$K$37,$O$37,$K$38,$O$38,$K$39,D57*$O$39,$K$40,D57*$O$40,$K$41,D57*$O$41,$K$42,D57*$O$42,"") -> 
A56: RATE for Cost Worksheet per Structure | E56: # Imp/Struct Identical Units | F56: =OFFSET(' Data Entry-Cost Worksheet'!$A$1,MATCH(A49,' Data Entry-Cost Worksheet'!$A:$A,0)-1,4,1,1) -> 0 | I56: =_xlfn.SWITCH(H56,$K$37,$O$37,$K$38,$O$38,$K$39,D57*$O$39,$K$40,D57*$O$40,$K$41,D57*$O$41,$K$42,D57*$O$42,"") -> 
A57: RATE CALCS | B57: Wood $/Bu | D57: =IF(F51="Elevator", _xlfn.IFS(F57<=$L$11,$M$11,F57>=$L$26,$M$26,F57<$L$26,A62), _xlfn.IFS(F57<=$L$14,$N$14,F57>=$L$26,$N$26,F57<$L$26,A62)) ->  | E57: Bu Capacity per Unit | F57: =F55/F56 ->  | I57: =_xlfn.SWITCH(H57,$K$37,$O$37,$K$38,$O$38,$K$39,D57*$O$39,$K$40,D57*$O$40,$K$41,D57*$O$41,$K$42,D57*$O$42,"") -> 
A58: =B55-B53 ->  | B58: Adjusted $/Bu | D58: =IF(F52=0,"",D57+F52) ->  | I58: =_xlfn.SWITCH(H58,$K$37,$O$37,$K$38,$O$38,$K$39,D57*$O$39,$K$40,D57*$O$40,$K$41,D57*$O$41,$K$42,D57*$O$42,"") -> 
A59: =D53-D55 ->  | B59: Notes: | I59: =_xlfn.SWITCH(H59,$K$37,$O$37,$K$38,$O$38,$K$39,D57*$O$39,$K$40,D57*$O$40,$K$41,D57*$O$41,$K$42,D57*$O$42,"") -> 
A60: =A59/A58 ->  | I60: =_xlfn.SWITCH(H60,$K$37,$O$37,$K$38,$O$38,$K$39,D57*$O$39,$K$40,D57*$O$40,$K$41,D57*$O$41,$K$42,D57*$O$42,"") -> 
A61: =(F57-B53)*A60 ->  | H61: Total | I61: =SUM(I55:I60) -> 0
A62: =D53-A61 -> 
A65: =LEFT(OFFSET(A65,-16,0),1)& RIGHT(OFFSET(A65,-16,0),LEN(OFFSET(A65,-16,0))-1) +1 -> C5 | B65: =D73+F68 -> 
A66: Interpolation Model for Wood Storage | E66: ENTER/VERIFY TO CALCULATE RATE | H66: Enter Adjust Type # (1-6) from table for adjustment amounts
A67: DO NOT REMOVE FORMULAS | E67: Type-Elevator/Annex | F67: Annex
B68: Bushel | D68: Cost/Bu | E68: $/Bu Adjustment | F68: =I77 -> 0
A69: Bottom of Range | B69: =IF(F67="Elevator",_xlfn.XLOOKUP(D69,$M$11:$M$32,$L$11:$L$32,"",0,1),_xlfn.XLOOKUP(D69,$N$11:$N$32,$L$11:$L$32,"",0,1)) ->  | D69: =IF(F67="Elevator",VLOOKUP(F73,$L$11:$N$32,2,TRUE),VLOOKUP(F73,$L$11:$N$32,3,TRUE)) ->  | E69: Improve/Structure Name | F69: =OFFSET(' Data Entry-Cost Worksheet'!$A$1,MATCH(A65,' Data Entry-Cost Worksheet'!A:A,0)-1,1,1,1) -> 0 | H69: Per Bu Adjustment
E70: Year Built | F70: =OFFSET(' Data Entry-Cost Worksheet'!$A$1,MATCH(A65,' Data Entry-Cost Worksheet'!$A:$A,0)-1,2,1,1) -> 0 | H70: Type # | I70: Adjust $
A71: Top or Range | B71: =VLOOKUP(B69,$P$11:$Q$30,2,FALSE) ->  | D71: =IF(F67="Elevator",VLOOKUP(B71,$L$11:$N$32,2,TRUE),VLOOKUP(B71,$L$11:$N$32,3,TRUE)) ->  | E71: Total Bushel Capacity | F71: =OFFSET(' Data Entry-Cost Worksheet'!$A$1,MATCH(A65,' Data Entry-Cost Worksheet'!$A:$A,0)-1,3,1,1) -> 0 | I71: =_xlfn.SWITCH(H71,$K$37,$O$37,$K$38,$O$38,$K$39,D73*$O$39,$K$40,D73*$O$40,$K$41,D73*$O$41,$K$42,D73*$O$42,"") -> 
A72: RATE for Cost Worksheet per Structure | E72: # Imp/Struct Identical Units | F72: =OFFSET(' Data Entry-Cost Worksheet'!$A$1,MATCH(A65,' Data Entry-Cost Worksheet'!$A:$A,0)-1,4,1,1) -> 0 | I72: =_xlfn.SWITCH(H72,$K$37,$O$37,$K$38,$O$38,$K$39,D73*$O$39,$K$40,D73*$O$40,$K$41,D73*$O$41,$K$42,D73*$O$42,"") -> 
A73: RATE CALCS | B73: Wood $/Bu | D73: =IF(F67="Elevator", _xlfn.IFS(F73<=$L$11,$M$11,F73>=$L$26,$M$26,F73<$L$26,A78), _xlfn.IFS(F73<=$L$14,$N$14,F73>=$L$26,$N$26,F73<$L$26,A78)) ->  | E73: Bu Capacity per Unit | F73: =F71/F72 ->  | I73: =_xlfn.SWITCH(H73,$K$37,$O$37,$K$38,$O$38,$K$39,D73*$O$39,$K$40,D73*$O$40,$K$41,D73*$O$41,$K$42,D73*$O$42,"") -> 
A74: =B71-B69 ->  | B74: Adjusted $/Bu | D74: =IF(F68=0,"",D73+F68) ->  | I74: =_xlfn.SWITCH(H74,$K$37,$O$37,$K$38,$O$38,$K$39,D73*$O$39,$K$40,D73*$O$40,$K$41,D73*$O$41,$K$42,D73*$O$42,"") -> 
A75: =D69-D71 ->  | B75: Notes: | I75: =_xlfn.SWITCH(H75,$K$37,$O$37,$K$38,$O$38,$K$39,D73*$O$39,$K$40,D73*$O$40,$K$41,D73*$O$41,$K$42,D73*$O$42,"") -> 
A76: =A75/A74 ->  | I76: =_xlfn.SWITCH(H76,$K$37,$O$37,$K$38,$O$38,$K$39,D73*$O$39,$K$40,D73*$O$40,$K$41,D73*$O$41,$K$42,D73*$O$42,"") -> 
A77: =(F73-B69)*A76 ->  | H77: Total | I77: =SUM(I71:I76) -> 0
A78: =D69-A77 -> 
A81: =LEFT(OFFSET(A81,-16,0),1)& RIGHT(OFFSET(A81,-16,0),LEN(OFFSET(A81,-16,0))-1) +1 -> C6 | B81: =D89+F84 -> 
A82: Interpolation Model for Wood Storage | E82: ENTER/VERIFY TO CALCULATE RATE | H82: Enter Adjust Type # (1-6) from table for adjustment amounts
A83: DO NOT REMOVE FORMULAS | E83: Type-Elevator/Annex | F83: Annex
B84: Bushel | D84: Cost/Bu | E84: $/Bu Adjustment | F84: =I93 -> 0
A85: Bottom of Range | B85: =IF(F83="Elevator",_xlfn.XLOOKUP(D85,$M$11:$M$32,$L$11:$L$32,"",0,1),_xlfn.XLOOKUP(D85,$N$11:$N$32,$L$11:$L$32,"",0,1)) ->  | D85: =IF(F83="Elevator",VLOOKUP(F89,$L$11:$N$32,2,TRUE),VLOOKUP(F89,$L$11:$N$32,3,TRUE)) ->  | E85: Improve/Structure Name | F85: =OFFSET(' Data Entry-Cost Worksheet'!$A$1,MATCH(A81,' Data Entry-Cost Worksheet'!A:A,0)-1,1,1,1) -> 0 | H85: Per Bu Adjustment
E86: Year Built | F86: =OFFSET(' Data Entry-Cost Worksheet'!$A$1,MATCH(A81,' Data Entry-Cost Worksheet'!$A:$A,0)-1,2,1,1) -> 0 | H86: Type # | I86: Adjust $
A87: Top or Range | B87: =VLOOKUP(B85,$P$11:$Q$30,2,FALSE) ->  | D87: =IF(F83="Elevator",VLOOKUP(B87,$L$11:$N$32,2,TRUE),VLOOKUP(B87,$L$11:$N$32,3,TRUE)) ->  | E87: Total Bushel Capacity | F87: =OFFSET(' Data Entry-Cost Worksheet'!$A$1,MATCH(A81,' Data Entry-Cost Worksheet'!$A:$A,0)-1,3,1,1) -> 0 | I87: =_xlfn.SWITCH(H87,$K$37,$O$37,$K$38,$O$38,$K$39,D89*$O$39,$K$40,D89*$O$40,$K$41,D89*$O$41,$K$42,D89*$O$42,"") -> 
A88: RATE for Cost Worksheet per Structure | E88: # Imp/Struct Identical Units | F88: =OFFSET(' Data Entry-Cost Worksheet'!$A$1,MATCH(A81,' Data Entry-Cost Worksheet'!$A:$A,0)-1,4,1,1) -> 0 | I88: =_xlfn.SWITCH(H88,$K$37,$O$37,$K$38,$O$38,$K$39,D89*$O$39,$K$40,D89*$O$40,$K$41,D89*$O$41,$K$42,D89*$O$42,"") -> 
A89: RATE CALCS | B89: Wood $/Bu | D89: =IF(F83="Elevator", _xlfn.IFS(F89<=$L$11,$M$11,F89>=$L$26,$M$26,F89<$L$26,A94), _xlfn.IFS(F89<=$L$14,$N$14,F89>=$L$26,$N$26,F89<$L$26,A94)) ->  | E89: Bu Capacity per Unit | F89: =F87/F88 ->  | I89: =_xlfn.SWITCH(H89,$K$37,$O$37,$K$38,$O$38,$K$39,D89*$O$39,$K$40,D89*$O$40,$K$41,D89*$O$41,$K$42,D89*$O$42,"") -> 
A90: =B87-B85 ->  | B90: Adjusted $/Bu | D90: =IF(F84=0,"",D89+F84) ->  | I90: =_xlfn.SWITCH(H90,$K$37,$O$37,$K$38,$O$38,$K$39,D89*$O$39,$K$40,D89*$O$40,$K$41,D89*$O$41,$K$42,D89*$O$42,"") -> 
A91: =D85-D87 ->  | B91: Notes: | I91: =_xlfn.SWITCH(H91,$K$37,$O$37,$K$38,$O$38,$K$39,D89*$O$39,$K$40,D89*$O$40,$K$41,D89*$O$41,$K$42,D89*$O$42,"") -> 
A92: =A91/A90 ->  | I92: =_xlfn.SWITCH(H92,$K$37,$O$37,$K$38,$O$38,$K$39,D89*$O$39,$K$40,D89*$O$40,$K$41,D89*$O$41,$K$42,D89*$O$42,"") -> 
A93: =(F89-B85)*A92 ->  | H93: Total | I93: =SUM(I87:I92) -> 0
A94: =D85-A93 -> 
A97: =LEFT(OFFSET(A97,-16,0),1)& RIGHT(OFFSET(A97,-16,0),LEN(OFFSET(A97,-16,0))-1) +1 -> C7 | B97: =D105+F100 -> 
A98: Interpolation Model for Wood Storage | E98: ENTER/VERIFY TO CALCULATE RATE | H98: Enter Adjust Type # (1-6) from table for adjustment amounts
A99: DO NOT REMOVE FORMULAS | E99: Type-Elevator/Annex | F99: Annex
B100: Bushel | D100: Cost/Bu | E100: $/Bu Adjustment | F100: =I109 -> 0
A101: Bottom of Range | B101: =IF(F99="Elevator",_xlfn.XLOOKUP(D101,$M$11:$M$32,$L$11:$L$32,"",0,1),_xlfn.XLOOKUP(D101,$N$11:$N$32,$L$11:$L$32,"",0,1)) ->  | D101: =IF(F99="Elevator",VLOOKUP(F105,$L$11:$N$32,2,TRUE),VLOOKUP(F105,$L$11:$N$32,3,TRUE)) ->  | E101: Improve/Structure Name | F101: =OFFSET(' Data Entry-Cost Worksheet'!$A$1,MATCH(A97,' Data Entry-Cost Worksheet'!A:A,0)-1,1,1,1) -> 0 | H101: Per Bu Adjustment
E102: Year Built | F102: =OFFSET(' Data Entry-Cost Worksheet'!$A$1,MATCH(A97,' Data Entry-Cost Worksheet'!$A:$A,0)-1,2,1,1) -> 0 | H102: Type # | I102: Adjust $
A103: Top or Range | B103: =VLOOKUP(B101,$P$11:$Q$30,2,FALSE) ->  | D103: =IF(F99="Elevator",VLOOKUP(B103,$L$11:$N$32,2,TRUE),VLOOKUP(B103,$L$11:$N$32,3,TRUE)) ->  | E103: Total Bushel Capacity | F103: =OFFSET(' Data Entry-Cost Worksheet'!$A$1,MATCH(A97,' Data Entry-Cost Worksheet'!$A:$A,0)-1,3,1,1) -> 0 | I103: =_xlfn.SWITCH(H103,$K$37,$O$37,$K$38,$O$38,$K$39,D105*$O$39,$K$40,D105*$O$40,$K$41,D105*$O$41,$K$42,D105*$O$42,"") -> 
A104: RATE for Cost Worksheet per Structure | E104: # Imp/Struct Identical Units | F104: =OFFSET(' Data Entry-Cost Worksheet'!$A$1,MATCH(A97,' Data Entry-Cost Worksheet'!$A:$A,0)-1,4,1,1) -> 0 | I104: =_xlfn.SWITCH(H104,$K$37,$O$37,$K$38,$O$38,$K$39,D105*$O$39,$K$40,D105*$O$40,$K$41,D105*$O$41,$K$42,D105*$O$42,"") -> 
A105: RATE CALCS | B105: Wood $/Bu | D105: =IF(F99="Elevator", _xlfn.IFS(F105<=$L$11,$M$11,F105>=$L$26,$M$26,F105<$L$26,A110), _xlfn.IFS(F105<=$L$14,$N$14,F105>=$L$26,$N$26,F105<$L$26,A110)) ->  | E105: Bu Capacity per Unit | F105: =F103/F104 ->  | I105: =_xlfn.SWITCH(H105,$K$37,$O$37,$K$38,$O$38,$K$39,D105*$O$39,$K$40,D105*$O$40,$K$41,D105*$O$41,$K$42,D105*$O$42,"") -> 
A106: =B103-B101 ->  | B106: Adjusted $/Bu | D106: =IF(F100=0,"",D105+F100) ->  | I106: =_xlfn.SWITCH(H106,$K$37,$O$37,$K$38,$O$38,$K$39,D105*$O$39,$K$40,D105*$O$40,$K$41,D105*$O$41,$K$42,D105*$O$42,"") -> 
A107: =D101-D103 ->  | B107: Notes: | I107: =_xlfn.SWITCH(H107,$K$37,$O$37,$K$38,$O$38,$K$39,D105*$O$39,$K$40,D105*$O$40,$K$41,D105*$O$41,$K$42,D105*$O$42,"") -> 
A108: =A107/A106 ->  | I108: =_xlfn.SWITCH(H108,$K$37,$O$37,$K$38,$O$38,$K$39,D105*$O$39,$K$40,D105*$O$40,$K$41,D105*$O$41,$K$42,D105*$O$42,"") -> 
A109: =(F105-B101)*A108 ->  | H109: Total | I109: =SUM(I103:I108) -> 0
A110: =D101-A109 -> 
A113: =LEFT(OFFSET(A113,-16,0),1)& RIGHT(OFFSET(A113,-16,0),LEN(OFFSET(A113,-16,0))-1) +1 -> C8 | B113: =D121+F116 -> 
A114: Interpolation Model for Wood Storage | E114: ENTER/VERIFY TO CALCULATE RATE | H114: Enter Adjust Type # (1-6) from table for adjustment amounts
A115: DO NOT REMOVE FORMULAS | E115: Type-Elevator/Annex | F115: Annex
B116: Bushel | D116: Cost/Bu | E116: $/Bu Adjustment | F116: =I125 -> 0
A117: Bottom of Range | B117: =IF(F115="Elevator",_xlfn.XLOOKUP(D117,$M$11:$M$32,$L$11:$L$32,"",0,1),_xlfn.XLOOKUP(D117,$N$11:$N$32,$L$11:$L$32,"",0,1)) ->  | D117: =IF(F115="Elevator",VLOOKUP(F121,$L$11:$N$32,2,TRUE),VLOOKUP(F121,$L$11:$N$32,3,TRUE)) ->  | E117: Improve/Structure Name | F117: =OFFSET(' Data Entry-Cost Worksheet'!$A$1,MATCH(A113,' Data Entry-Cost Worksheet'!A:A,0)-1,1,1,1) -> 0 | H117: Per Bu Adjustment
E118: Year Built | F118: =OFFSET(' Data Entry-Cost Worksheet'!$A$1,MATCH(A113,' Data Entry-Cost Worksheet'!$A:$A,0)-1,2,1,1) -> 0 | H118: Type # | I118: Adjust $
A119: Top or Range | B119: =VLOOKUP(B117,$P$11:$Q$30,2,FALSE) ->  | D119: =IF(F115="Elevator",VLOOKUP(B119,$L$11:$N$32,2,TRUE),VLOOKUP(B119,$L$11:$N$32,3,TRUE)) ->  | E119: Total Bushel Capacity | F119: =OFFSET(' Data Entry-Cost Worksheet'!$A$1,MATCH(A113,' Data Entry-Cost Worksheet'!$A:$A,0)-1,3,1,1) -> 0 | I119: =_xlfn.SWITCH(H119,$K$37,$O$37,$K$38,$O$38,$K$39,D121*$O$39,$K$40,D121*$O$40,$K$41,D121*$O$41,$K$42,D121*$O$42,"") -> 
A120: RATE for Cost Worksheet per Structure | E120: # Imp/Struct Identical Units | F120: =OFFSET(' Data Entry-Cost Worksheet'!$A$1,MATCH(A113,' Data Entry-Cost Worksheet'!$A:$A,0)-1,4,1,1) -> 0 | I120: =_xlfn.SWITCH(H120,$K$37,$O$37,$K$38,$O$38,$K$39,D121*$O$39,$K$40,D121*$O$40,$K$41,D121*$O$41,$K$42,D121*$O$42,"") -> 
A121: RATE CALCS | B121: Wood $/Bu | D121: =IF(F115="Elevator", _xlfn.IFS(F121<=$L$11,$M$11,F121>=$L$26,$M$26,F121<$L$26,A126), _xlfn.IFS(F121<=$L$14,$N$14,F121>=$L$26,$N$26,F121<$L$26,A126)) ->  | E121: Bu Capacity per Unit | F121: =F119/F120 ->  | I121: =_xlfn.SWITCH(H121,$K$37,$O$37,$K$38,$O$38,$K$39,D121*$O$39,$K$40,D121*$O$40,$K$41,D121*$O$41,$K$42,D121*$O$42,"") -> 
A122: =B119-B117 ->  | B122: Adjusted $/Bu | D122: =IF(F116=0,"",D121+F116) ->  | I122: =_xlfn.SWITCH(H122,$K$37,$O$37,$K$38,$O$38,$K$39,D121*$O$39,$K$40,D121*$O$40,$K$41,D121*$O$41,$K$42,D121*$O$42,"") -> 
A123: =D117-D119 ->  | B123: Notes: | I123: =_xlfn.SWITCH(H123,$K$37,$O$37,$K$38,$O$38,$K$39,D121*$O$39,$K$40,D121*$O$40,$K$41,D121*$O$41,$K$42,D121*$O$42,"") -> 
A124: =A123/A122 ->  | I124: =_xlfn.SWITCH(H124,$K$37,$O$37,$K$38,$O$38,$K$39,D121*$O$39,$K$40,D121*$O$40,$K$41,D121*$O$41,$K$42,D121*$O$42,"") -> 
A125: =(F121-B117)*A124 ->  | H125: Total | I125: =SUM(I119:I124) -> 0
A126: =D117-A125 -> 

Sheet Corrugated Steel Interpolation
A1: D1 | B1: =D9+F5 ->  | H1: DIAMETER REQUIRED | L1: Bin diameter, height (to eave), & bushel capacity are required to determine $/Bu rate. Rate established using actual bushel capacity from cost worksheet
A2: Interpolation Model for Corrugated Steel Bins | E2: ENTER/VERIFY TO CALCULATE RATE | H2: Enter Diameter and Height to calculate $/Bu rate per Imp/Struct using actual bushels. If actual capacity unknown, calc bushel will override for rate | L2: Bushels calculated in adjustment box ONLY used If actual bushel capacity is unknown & not entered on cost worksheet. Template will calculate $/Bu rate based on diameter/height estimated bushels
A3: DO NOT REMOVE FORMULAS | E3: Diameter (see blue box) | F3: =I6 -> 0 | L3: Standard bin includes door & manhole. Costs are without drying & include slab floor. Max bushel capacity includes volume of cone
B4: Bushel | D4: Cost/Bu | E4: Height (see blue box) | F4: =I7 -> 0
A5: Bottom of Range | B5: =VLOOKUP(F10,_xlfn._xlws.FILTER($AA$12:$AD$110,$Y$12:$Y$110=F3),1,TRUE) ->  | D5: =VLOOKUP(F10,_xlfn._xlws.FILTER($AA$12:$AD$110,$Y$12:$Y$110=F3),4,TRUE) ->  | E5: $/Bu Adjustment | L5: Grain Elevator/Annex | R5: Grain Elevator/Annex
E6: Improve/Structure Name | F6: =OFFSET(' Data Entry-Cost Worksheet'!$A$1,MATCH(A1,' Data Entry-Cost Worksheet'!$A:$A,0)-1,1,1,1) -> 0 | H6: Diameter | L6: M&S Commercial Section 17 pg 54 | P6: 2023-05-01 | R6: M&S Commercial Section 17 pg 54 | V6: 2023-05-01
A7: Top or Range | B7: =IF(B5=1,"",_xlfn.XLOOKUP(B5,$AA$12:$AA$110,$AB$12:$AB$110,,0)) ->  | D7: =IF(B5=1,"",_xlfn.XLOOKUP(B7,$AA$12:$AA$110,$AD$12:$AD$110)) ->  | E7: Year Built | F7: =OFFSET(' Data Entry-Cost Worksheet'!$A$1,MATCH(A1,' Data Entry-Cost Worksheet'!$A:$A,0)-1,2,1,1) -> 0 | H7: Height | L7: Corrugated Steel | R7: Corrugated Steel
A8: RATE for Cost Worksheet per Structure | E8: Total Bushel Capacity | F8: =IF(OFFSET(' Data Entry-Cost Worksheet'!$A$1,MATCH(A1,' Data Entry-Cost Worksheet'!$A:$A,0)-1,3,1,1) = "",I8*F9,OFFSET(' Data Entry-Cost Worksheet'!$A$1,MATCH(A1,' Data Entry-Cost Worksheet'!$A:$A,0)-1,3,1,1)) ->  | H8: Calc Bushels | I8: =IF(I7="","",(I6/2)^2*3.1416*0.8036*I7) ->  | L8: Bin Diameter | M8: Eave Height | N8: Max Bu Capacity | O8: Price | P8: Price / Bush | R8: Bin Diameter | S8: Eave Height | T8: Max Bu Capacity | U8: Price | V8: Price / Bush
A9: Rate Calcs | B9: Corregated Steel $/Bu | D9: =_xlfn.SWITCH(B5,B7,D7,1,D5,A14) ->  | E9: # Imp/Struct Identical Units | F9: =OFFSET(' Data Entry-Cost Worksheet'!$A$1,MATCH(A1,' Data Entry-Cost Worksheet'!$A:$A,0)-1,4,1,1) -> 0 | L9: 15' | M9: 7 | N9: 1257 | O9: 7890 | P9: =O9/N9 -> 6.276849642 | R9: 36' | S9: 15 | T9: 15297 | U9: 39100 | V9: =U9/T9 -> 2.556056743
A10: =B7-B5 ->  | B10: Adjusted $/Bu | D10: =IF(F5=0,"",D9+F5) ->  | E10: Bu Capacity per Unit | F10: =IF(F9=0,"",F8/F9) ->  | M10: 11 | N10: 1792 | O10: 10130 | P10: 5.652901786 | S10: 18 | T10: 18473 | U10: 44000 | V10: 2.381854599
A11: =D5-D7 ->  | B11: Notes: | M11: 15 | N11: 2329 | O11: 12080 | P11: 5.18677544 | S11: 22 | T11: 21648 | U11: 50600 | V11: 2.337398374 | Y11: Bin Diameter | Z11: Eave Height | AA11: Bushel Capacity | AB11: Next Bushel | AC11: Price | AD11: Price / Bush
A12: =A11/A10 ->  | M12: 18 | N12: 2864 | O12: 13760 | P12: =O12/N12 -> 4.804469274 | S12: 26 | T12: 24823 | U12: 56400 | V12: =U12/T12 -> 2.272086372 | Y12: 15 | Z12: 1 | AA12: 1 | AB12: 1257 | AC12: 6.28 | AD12: =AC12/AA12 -> 6.28
A13: =(F10-B5)*A12 ->  | L13: 18' | M13: 11 | N13: 2647 | O13: 11360 | P13: 4.291650926 | S13: 33 | T13: 31174 | U13: 63150 | V13: 2.025726567 | Y13: 15 | Z13: 7 | AA13: 1257 | AB13: 1792 | AC13: 7890 | AD13: 6.276849642
A14: =D5-A13 ->  | M14: 15 | N14: 3422 | O14: 13910 | P14: 4.064874342 | S14: 40 | T14: 37524 | U14: 70050 | V14: 1.866805245 | Y14: 15 | Z14: 11 | AA14: 1792 | AB14: 2329 | AC14: 10130 | AD14: 5.652901786
M15: 18 | N15: 4189 | O15: 15660 | P15: 3.738362378 | S15: 48 | T15: 43875 | U15: 79250 | V15: 1.806267806 | Y15: 15 | Z15: 15 | AA15: 2329 | AB15: 2864 | AC15: 12080 | AD15: 5.18677544
M16: 22 | N16: 4973 | O16: 18140 | P16: 3.647697567 | S16: 59 | T16: 53400 | U16: 93200 | V16: 1.745318352 | Y16: 15 | Z16: 18 | AA16: 2864 | AB16: 2864 | AC16: 13760 | AD16: =AC16/AA16 -> 4.804469274
A17: =LEFT(OFFSET(A17,-16,0),1)& RIGHT(OFFSET(A17,-16,0),LEN(OFFSET(A17,-16,0))-1) +1 -> D2 | B17: =D25+F21 ->  | H17: DIAMETER REQUIRED | M17: 26 | N17: 5748 | O17: 20330 | P17: 3.536882394 | R17: 42' | S17: 15 | T17: 21416 | U17: 50400 | V17: 2.35338065 | Y17: 18 | Z17: 1 | AA17: 1 | AB17: 2647 | AD17: 4.291650926
A18: Interpolation Model for Corrugated Steel Bins | E18: ENTER/VERIFY TO CALCULATE RATE | H18: Enter Diameter and Height to calculate $/Bu rate per Imp/Struct using actual bushels. If actual capacity unknown, calc bushel will override for rate | M18: 33 | N18: 7299 | O18: 25100 | P18: 3.438827237 | S18: 18 | T18: 25738 | U18: 58300 | V18: 2.265133266 | Y18: 18 | Z18: 11 | AA18: 2647 | AB18: 3422 | AC18: 11360 | AD18: =AC18/AA18 -> 4.291650926
A19: DO NOT REMOVE FORMULAS | E19: Diameter (see blue box) | F19: =I22 -> 0 | M19: 40 | N19: 8849 | O19: 29620 | P19: 3.347270878 | S19: 22 | T19: 30060 | U19: 65050 | V19: 2.164005323 | Y19: 18 | Z19: 15 | AA19: 3422 | AB19: 4189 | AC19: 13910 | AD19: 4.064874342
B20: Bushel | D20: Cost/Bu | E20: Height (see blue box) | F20: =I23 -> 0 | M20: 48 | N20: 10400 | O20: 33730 | P20: 3.243269231 | S20: 26 | T20: 34382 | U20: 70300 | V20: 2.044674539 | Y20: 18 | Z20: 18 | AA20: 4189 | AB20: 4973 | AC20: 15660 | AD20: 3.738362378
A21: Bottom of Range | B21: =VLOOKUP(F26,_xlfn._xlws.FILTER($AA$12:$AD$110,$Y$12:$Y$110=F19),1,TRUE) ->  | D21: =VLOOKUP(F26,_xlfn._xlws.FILTER($AA$12:$AD$110,$Y$12:$Y$110=F19),4,TRUE) ->  | E21: $/Bu Adjustment | L21: 21' | M21: 11 | N21: 3693 | O21: 12930 | P21: 3.501218522 | S21: 33 | T21: 43026 | U21: 82150 | V21: 1.909310649 | Y21: 18 | Z21: 22 | AA21: 4973 | AB21: 5748 | AC21: 18140 | AD21: 3.647697567
E22: Improve/Structure Name | F22: =OFFSET(' Data Entry-Cost Worksheet'!$A$1,MATCH(A17,' Data Entry-Cost Worksheet'!$A:$A,0)-1,1,1,1) -> 0 | H22: Diameter | M22: 15 | N22: 4753 | O22: 16090 | P22: 3.385230381 | S22: 40 | T22: 51670 | U22: 95500 | V22: 1.848267854 | Y22: 18 | Z22: 26 | AA22: 5748 | AB22: 7299 | AC22: 20330 | AD22: 3.536882394
A23: Top or Range | B23: =IF(B21=1,"",_xlfn.XLOOKUP(B21,$AA$12:$AA$110,$AB$12:$AB$110,,0)) ->  | D23: =IF(B21=1,"",_xlfn.XLOOKUP(B23,$AA$12:$AA$110,$AD$12:$AD$110)) ->  | E23: Year Built | F23: =OFFSET(' Data Entry-Cost Worksheet'!$A$1,MATCH(A17,' Data Entry-Cost Worksheet'!$A:$A,0)-1,2,1,1) -> 0 | H23: Height | M23: 18 | N23: 5813 | O23: 19160 | P23: 3.296060554 | S23: 48 | T23: 60314 | U23: 110300 | V23: 1.828762808 | Y23: 18 | Z23: 33 | AA23: 7299 | AB23: 8849 | AC23: 25100 | AD23: 3.438827237
A24: RATE for Cost Worksheet per Structure | E24: Total Bushel Capacity | F24: =IF(OFFSET(' Data Entry-Cost Worksheet'!$A$1,MATCH(A17,' Data Entry-Cost Worksheet'!$A:$A,0)-1,3,1,1) = "",I24*F25,OFFSET(' Data Entry-Cost Worksheet'!$A$1,MATCH(A17,' Data Entry-Cost Worksheet'!$A:$A,0)-1,3,1,1)) ->  | H24: Calc Bushels | I24: =IF(I23="","",(I22/2)^2*3.1416*0.8036*I23) ->  | M24: 22 | N24: 6874 | O24: 22290 | P24: 3.242653477 | S24: 59 | T24: 73279 | U24: 130000 | V24: 1.774041676 | Y24: 18 | Z24: 40 | AA24: 8849 | AB24: 10400 | AC24: 29620 | AD24: 3.347270878
A25: Rate Calcs | B25: Corregated Steel $/Bu | D25: =_xlfn.SWITCH(B21,B23,D23,1,D21,A30) ->  | E25: # Imp/Struct Identical Units | F25: =OFFSET(' Data Entry-Cost Worksheet'!$A$1,MATCH(A17,' Data Entry-Cost Worksheet'!$A:$A,0)-1,4,1,1) -> 0 | M25: 26 | N25: 7934 | O25: 24790 | P25: 3.124527351 | R25: 48' | S25: 15 | T25: 26749 | U25: 57650 | V25: 2.155220756 | Y25: 18 | Z25: 48 | AA25: 10400 | AB25: 10400 | AC25: 33730 | AD25: 3.243269231
A26: =B23-B21 ->  | B26: Adjusted $/Bu | D26: =IF(F21=0,"",D25+F21) ->  | E26: Bu Capacity per Unit | F26: =IF(F25=0,"",F24/F25) ->  | M26: 33 | N26: 10055 | O26: 30570 | P26: 3.040278468 | S26: 18 | T26: 34394 | U26: 71150 | V26: 2.068674769 | Y26: 21 | Z26: 1 | AA26: 1 | AB26: 3693 | AC26: 3.501218522 | AD26: 3.501218522
A27: =D21-D23 ->  | B27: Notes: | M27: 40 | N27: 12175 | O27: 34300 | P27: 2.81724846 | S27: 22 | T27: 40039 | U27: 80950 | V27: 2.021778766 | Y27: 21 | Z27: 11 | AA27: 3693 | AB27: 4753 | AC27: 12930 | AD27: =AC27/AA27 -> 3.501218522
A28: =A27/A26 ->  | M28: 48 | N28: 14296 | O28: 37775 | P28: 2.64234751 | S28: 26 | T28: 45684 | U28: 90700 | V28: 1.985377813 | Y28: 21 | Z28: 15 | AA28: 4753 | AB28: 5813 | AC28: 16090 | AD28: 3.385230381
A29: =(F26-B21)*A28 ->  | L29: 24' | M29: 11 | N29: 4949 | O29: 15890 | P29: 3.210749646 | S29: 33 | T29: 56974 | U29: 109450 | V29: 1.921051708 | Y29: 21 | Z29: 18 | AA29: 5813 | AB29: 6874 | AC29: 19160 | AD29: 3.296060554
A30: =D21-A29 ->  | M30: 15 | N30: 6344 | O30: 19000 | P30: 2.994955864 | S30: 40 | T30: 68264 | U30: 128300 | V30: 1.879467948 | Y30: 21 | Z30: 22 | AA30: 6874 | AB30: 7934 | AC30: 22290 | AD30: 3.242653477
M31: 18 | N31: 7739 | O31: 23300 | P31: 3.0107249 | S31: 48 | T31: 79554 | U31: 148300 | V31: 1.864142595 | Y31: 21 | Z31: 26 | AA31: 7934 | AB31: 10055 | AC31: 24790 | AD31: 3.124527351
M32: 22 | N32: 9134 | O32: 26650 | P32: 2.917670243 | S32: 59 | T32: 96488 | U32: 174100 | V32: 1.804369455 | Y32: 21 | Z32: 33 | AA32: 10055 | AB32: 12175 | AC32: 30570 | AD32: 3.040278468
A33: =LEFT(OFFSET(A33,-16,0),1)& RIGHT(OFFSET(A33,-16,0),LEN(OFFSET(A33,-16,0))-1) +1 -> D3 | B33: =D41+F37 ->  | H33: DIAMETER REQUIRED | M33: 26 | N33: 10528 | O33: 30075 | P33: 2.856667933 | R33: 60' | S33: 15 | T33: 56170 | U33: 111000 | V33: 1.976143849 | Y33: 21 | Z33: 40 | AA33: 12175 | AB33: 14296 | AC33: 34300 | AD33: 2.81724846
A34: Interpolation Model for Corrugated Steel Bins | E34: ENTER/VERIFY TO CALCULATE RATE | H34: Enter Diameter and Height to calculate $/Bu rate per Imp/Struct using actual bushels. If actual capacity unknown, calc bushel will override for rate | M34: 33 | N34: 13318 | O34: 35425 | P34: 2.659933924 | S34: 26 | T34: 73810 | U34: 140200 | V34: 1.899471616 | Y34: 21 | Z34: 48 | AA34: 14296 | AB34: 14296 | AC34: 37775 | AD34: 2.64234751
A35: DO NOT REMOVE FORMULAS | E35: Diameter (see blue box) | F35: =I38 -> 0 | M35: 40 | N35: 16107 | O35: 39525 | P35: 2.45390203 | S35: 40 | T35: 109092 | U35: 197900 | V35: 1.814065193 | Y35: 24 | Z35: 1 | AA35: 1 | AB35: 4949 | AC35: 3.210749646 | AD35: 3.210749646
B36: Bushel | D36: Cost/Bu | E36: Height (see blue box) | F36: =I39 -> 0 | M36: 48 | N36: 18897 | O36: 42525 | P36: 2.2503572 | S36: 48 | T36: 126732 | U36: 228200 | V36: 1.800650191 | Y36: 24 | Z36: 11 | AA36: 4949 | AB36: 6344 | AC36: 15890 | AD36: =AC36/AA36 -> 3.210749646
A37: Bottom of Range | B37: =VLOOKUP(F42,_xlfn._xlws.FILTER($AA$12:$AD$110,$Y$12:$Y$110=F35),1,TRUE) ->  | D37: =VLOOKUP(F42,_xlfn._xlws.FILTER($AA$12:$AD$110,$Y$12:$Y$110=F35),4,TRUE) ->  | E37: $/Bu Adjustment | L37: 27' | M37: 11 | N37: 6409 | O37: 19025 | P37: 2.968481822 | S37: 59 | T37: 152870 | U37: 270600 | V37: 1.770131484 | Y37: 24 | Z37: 15 | AA37: 6344 | AB37: 7739 | AC37: 19000 | AD37: 2.994955864
E38: Improve/Structure Name | F38: =OFFSET(' Data Entry-Cost Worksheet'!$A$1,MATCH(A33,' Data Entry-Cost Worksheet'!$A:$A,0)-1,1,1,1) -> 0 | H38: Diameter | M38: 15 | N38: 8182 | O38: 23050 | P38: 2.817159619 | S38: 64 | T38: 165563 | U38: 290200 | V38: 1.752807089 | Y38: 24 | Z38: 18 | AA38: 7739 | AB38: 9134 | AC38: 23300 | AD38: 3.0107249
A39: Top or Range | B39: =IF(B37=1,"",_xlfn.XLOOKUP(B37,$AA$12:$AA$110,$AB$12:$AB$110,,0)) ->  | D39: =IF(B37=1,"",_xlfn.XLOOKUP(B39,$AA$12:$AA$110,$AD$12:$AD$110)) ->  | E39: Year Built | F39: =OFFSET(' Data Entry-Cost Worksheet'!$A$1,MATCH(A33,' Data Entry-Cost Worksheet'!$A:$A,0)-1,2,1,1) -> 0 | H39: Height | M39: 18 | N39: 9955 | O39: 27050 | P39: 2.717227524 | R39: 75' | S39: 32 | T39: 147000 | U39: 270900 | V39: 1.842857143 | Y39: 24 | Z39: 22 | AA39: 9134 | AB39: 10528 | AC39: 26650 | AD39: 2.917670243
A40: RATE for Cost Worksheet per Structure | E40: Total Bushel Capacity | F40: =IF(OFFSET(' Data Entry-Cost Worksheet'!$A$1,MATCH(A33,' Data Entry-Cost Worksheet'!$A:$A,0)-1,3,1,1) = "",I40*F41,OFFSET(' Data Entry-Cost Worksheet'!$A$1,MATCH(A33,' Data Entry-Cost Worksheet'!$A:$A,0)-1,3,1,1)) ->  | H40: Calc Bushels | I40: =IF(I39="","",(I38/2)^2*3.1416*0.8036*I39) ->  | M40: 22 | N40: 11728 | O40: 30675 | P40: 2.615535471 | S40: 40 | T40: 176000 | U40: 318200 | V40: 1.807954545 | Y40: 24 | Z40: 26 | AA40: 10528 | AB40: 13318 | AC40: 30075 | AD40: 2.856667933
A41: Rate Calcs | B41: Corregated Steel $/Bu | D41: =_xlfn.SWITCH(B37,B39,D39,1,D37,A46) ->  | E41: # Imp/Struct Identical Units | F41: =OFFSET(' Data Entry-Cost Worksheet'!$A$1,MATCH(A33,' Data Entry-Cost Worksheet'!$A:$A,0)-1,4,1,1) -> 0 | M41: 26 | N41: 13500 | O41: 34475 | P41: 2.553703704 | S41: 48 | T41: 206000 | U41: 367700 | V41: 1.784951456 | Y41: 24 | Z41: 33 | AA41: 13318 | AB41: 16107 | AC41: 35425 | AD41: 2.659933924
A42: =B39-B37 ->  | B42: Adjusted $/Bu | D42: =IF(F37=0,"",D41+F37) ->  | E42: Bu Capacity per Unit | F42: =IF(F41=0,"",F40/F41) ->  | M42: 33 | N42: 17046 | O42: 42300 | P42: 2.481520591 | S42: 59 | T42: 246000 | U42: 430900 | V42: 1.751626016 | Y42: 24 | Z42: 40 | AA42: 16107 | AB42: 18897 | AC42: 39525 | AD42: 2.45390203
A43: =D37-D39 ->  | B43: Notes: | M43: 40 | N43: 20591 | O43: 45850 | P43: 2.226700986 | S43: 64 | T43: 266000 | U43: 457500 | V43: 1.719924812 | Y43: 24 | Z43: 48 | AA43: 18897 | AB43: 18897 | AC43: 42525 | AD43: 2.2503572
A44: =A43/A42 ->  | M44: 48 | N44: 24137 | O44: 49025 | P44: 2.031114057 | R44: 90' | S44: 32 | T44: 221000 | U44: 395300 | V44: 1.788687783 | Y44: 27 | Z44: 1 | AA44: 1 | AB44: 6409 | AC44: 2.968481822 | AD44: 2.968481822
A45: =(F42-B37)*A44 ->  | L45: 30' | M45: 15 | N45: 10278 | O45: 27650 | P45: 2.690212104 | S45: 40 | T45: 263000 | U45: 462400 | V45: 1.758174905 | Y45: 27 | Z45: 11 | AA45: 6409 | AB45: 8182 | AC45: 19025 | AD45: =AC45/AA45 -> 2.968481822
A46: =D37-A45 ->  | M46: 18 | N46: 12473 | O46: 32225 | P46: 2.583580534 | S46: 48 | T46: 305000 | U46: 531400 | V46: 1.742295082 | Y46: 27 | Z46: 15 | AA46: 8182 | AB46: 9955 | AC46: 23050 | AD46: 2.817159619
M47: 22 | N47: 14668 | O47: 36700 | P47: 2.502045269 | S47: 59 | T47: 358223 | U47: 620600 | V47: 1.732440407 | Y47: 27 | Z47: 18 | AA47: 9955 | AB47: 11728 | AC47: 27050 | AD47: 2.717227524
M48: 26 | N48: 16863 | O48: 40725 | P48: 2.415050703 | R48: 105' | S48: 32 | T48: 306180 | U48: 548300 | V48: 1.790776667 | Y48: 27 | Z48: 22 | AA48: 11728 | AB48: 13500 | AC48: 30675 | AD48: 2.615535471
A49: =LEFT(OFFSET(A49,-16,0),1)& RIGHT(OFFSET(A49,-16,0),LEN(OFFSET(A49,-16,0))-1) +1 -> D4 | B49: =D57+F53 ->  | H49: DIAMETER REQUIRED | M49: 33 | N49: 21252 | O49: 48250 | P49: 2.270374553 | S49: 40 | T49: 363558 | U49: 641600 | V49: 1.76478031 | Y49: 27 | Z49: 26 | AA49: 13500 | AB49: 17046 | AC49: 34475 | AD49: 2.553703704
A50: Interpolation Model for Corrugated Steel Bins | E50: ENTER/VERIFY TO CALCULATE RATE | H50: Enter Diameter and Height to calculate $/Bu rate per Imp/Struct using actual bushels. If actual capacity unknown, calc bushel will override for rate | M50: 40 | N50: 25624 | O50: 53225 | P50: 2.07715423 | S50: 48 | T50: 420936 | U50: 737750 | V50: 1.752641732 | Y50: 27 | Z50: 33 | AA50: 17046 | AB50: 20591 | AC50: 42300 | AD50: 2.481520591
A51: DO NOT REMOVE FORMULAS | E51: Diameter (see blue box) | F51: =I54 -> 0 | M51: 48 | N51: 30031 | O51: 57200 | P51: 1.904698478 | S51: 59 | T51: 500000 | U51: 870000 | V51: 1.74 | Y51: 27 | Z51: 40 | AA51: 20591 | AB51: 24137 | AC51: 45850 | AD51: 2.226700986
B52: Bushel | D52: Cost/Bu | E52: Height (see blue box) | F52: =I55 -> 0 | Y52: 27 | Z52: 48 | AA52: 24137 | AB52: 24137 | AC52: 49025 | AD52: 2.031114057
A53: Bottom of Range | B53: =VLOOKUP(F58,_xlfn._xlws.FILTER($AA$12:$AD$110,$Y$12:$Y$110=F51),1,TRUE) ->  | D53: =VLOOKUP(F58,_xlfn._xlws.FILTER($AA$12:$AD$110,$Y$12:$Y$110=F51),4,TRUE) ->  | E53: $/Bu Adjustment | Y53: 30 | Z53: 1 | AA53: 1 | AB53: 10278 | AC53: 27650 | AD53: 2.690212104
E54: Improve/Structure Name | F54: =OFFSET(' Data Entry-Cost Worksheet'!$A$1,MATCH(A49,' Data Entry-Cost Worksheet'!$A:$A,0)-1,1,1,1) -> 0 | H54: Diameter | Y54: 30 | Z54: 15 | AA54: 10278 | AB54: 12473 | AC54: 27650 | AD54: =AC54/AA54 -> 2.690212104
A55: Top or Range | B55: =IF(B53=1,"",_xlfn.XLOOKUP(B53,$AA$12:$AA$110,$AB$12:$AB$110,,0)) ->  | D55: =IF(B53=1,"",_xlfn.XLOOKUP(B55,$AA$12:$AA$110,$AD$12:$AD$110)) ->  | E55: Year Built | F55: =OFFSET(' Data Entry-Cost Worksheet'!$A$1,MATCH(A49,' Data Entry-Cost Worksheet'!$A:$A,0)-1,2,1,1) -> 0 | H55: Height | Y55: 30 | Z55: 18 | AA55: 12473 | AB55: 14668 | AC55: 32225 | AD55: 2.583580534
A56: RATE for Cost Worksheet per Structure | E56: Total Bushel Capacity | F56: =IF(OFFSET(' Data Entry-Cost Worksheet'!$A$1,MATCH(A49,' Data Entry-Cost Worksheet'!$A:$A,0)-1,3,1,1) = "",I56*F57,OFFSET(' Data Entry-Cost Worksheet'!$A$1,MATCH(A49,' Data Entry-Cost Worksheet'!$A:$A,0)-1,3,1,1)) ->  | H56: Calc Bushels | I56: =IF(I55="","",(I54/2)^2*3.1416*0.8036*I55) ->  | Y56: 30 | Z56: 22 | AA56: 14668 | AB56: 16863 | AC56: 36700 | AD56: 2.502045269
A57: Rate Calcs | B57: Corregated Steel $/Bu | D57: =_xlfn.SWITCH(B53,B55,D55,1,D53,A62) ->  | E57: # Imp/Struct Identical Units | F57: =OFFSET(' Data Entry-Cost Worksheet'!$A$1,MATCH(A49,' Data Entry-Cost Worksheet'!$A:$A,0)-1,4,1,1) -> 0 | Y57: 30 | Z57: 26 | AA57: 16863 | AB57: 21252 | AC57: 40725 | AD57: 2.415050703
A58: =B55-B53 ->  | B58: Adjusted $/Bu | D58: =IF(F53=0,"",D57+F53) ->  | E58: Bu Capacity per Unit | F58: =IF(F57=0,"",F56/F57) ->  | Y58: 30 | Z58: 33 | AA58: 21252 | AB58: 25624 | AC58: 48250 | AD58: 2.270374553
A59: =D53-D55 ->  | B59: Notes: | Y59: 30 | Z59: 40 | AA59: 25624 | AB59: 30031 | AC59: 53225 | AD59: 2.07715423
A60: =A59/A58 ->  | Y60: 30 | Z60: 48 | AA60: 30031 | AB60: 30031 | AC60: 57200 | AD60: 1.904698478
A61: =(F58-B53)*A60 ->  | Y61: 36 | Z61: 1 | AA61: 1 | AB61: 15297 | AC61: 39100 | AD61: 2.556056743
A62: =D53-A61 ->  | Y62: 36 | Z62: 15 | AA62: 15297 | AB62: 18473 | AC62: 39100 | AD62: =AC62/AA62 -> 2.556056743
Y63: 36 | Z63: 18 | AA63: 18473 | AB63: 21648 | AC63: 44000 | AD63: 2.381854599
Y64: 36 | Z64: 22 | AA64: 21648 | AB64: 24823 | AC64: 50600 | AD64: 2.337398374
A65: =LEFT(OFFSET(A65,-16,0),1)& RIGHT(OFFSET(A65,-16,0),LEN(OFFSET(A65,-16,0))-1) +1 -> D5 | B65: =D73+F69 ->  | H65: DIAMETER REQUIRED | Y65: 36 | Z65: 26 | AA65: 24823 | AB65: 31174 | AC65: 56400 | AD65: 2.272086372
A66: Interpolation Model for Corrugated Steel Bins | E66: ENTER/VERIFY TO CALCULATE RATE | H66: Enter Diameter and Height to calculate $/Bu rate per Imp/Struct using actual bushels. If actual capacity unknown, calc bushel will override for rate | Y66: 36 | Z66: 33 | AA66: 31174 | AB66: 37524 | AC66: 63150 | AD66: 2.025726567
A67: DO NOT REMOVE FORMULAS | E67: Diameter (see blue box) | F67: =I70 -> 0 | Y67: 36 | Z67: 40 | AA67: 37524 | AB67: 43875 | AC67: 70050 | AD67: 1.866805245
B68: Bushel | D68: Cost/Bu | E68: Height (see blue box) | F68: =I71 -> 0 | Y68: 36 | Z68: 48 | AA68: 43875 | AB68: 53400 | AC68: 79250 | AD68: 1.806267806
A69: Bottom of Range | B69: =VLOOKUP(F74,_xlfn._xlws.FILTER($AA$12:$AD$110,$Y$12:$Y$110=F67),1,TRUE) ->  | D69: =VLOOKUP(F74,_xlfn._xlws.FILTER($AA$12:$AD$110,$Y$12:$Y$110=F67),4,TRUE) ->  | E69: $/Bu Adjustment | Y69: 36 | Z69: 59 | AA69: 53400 | AB69: 53400 | AC69: 93200 | AD69: 1.745318352
E70: Improve/Structure Name | F70: =OFFSET(' Data Entry-Cost Worksheet'!$A$1,MATCH(A65,' Data Entry-Cost Worksheet'!$A:$A,0)-1,1,1,1) -> 0 | H70: Diameter | Y70: 42 | Z70: 1 | AA70: 1 | AB70: 21416 | AC70: 2.35 | AD70: 2.35
A71: Top or Range | B71: =IF(B69=1,"",_xlfn.XLOOKUP(B69,$AA$12:$AA$110,$AB$12:$AB$110,,0)) ->  | D71: =IF(B69=1,"",_xlfn.XLOOKUP(B71,$AA$12:$AA$110,$AD$12:$AD$110)) ->  | E71: Year Built | F71: =OFFSET(' Data Entry-Cost Worksheet'!$A$1,MATCH(A65,' Data Entry-Cost Worksheet'!$A:$A,0)-1,2,1,1) -> 0 | H71: Height | Y71: 42 | Z71: 15 | AA71: 21416 | AB71: 25738 | AC71: 50400 | AD71: =AC71/AA71 -> 2.35338065
A72: RATE for Cost Worksheet per Structure | E72: Total Bushel Capacity | F72: =IF(OFFSET(' Data Entry-Cost Worksheet'!$A$1,MATCH(A65,' Data Entry-Cost Worksheet'!$A:$A,0)-1,3,1,1) = "",I72*F73,OFFSET(' Data Entry-Cost Worksheet'!$A$1,MATCH(A65,' Data Entry-Cost Worksheet'!$A:$A,0)-1,3,1,1)) ->  | H72: Calc Bushels | I72: =IF(I71="","",(I70/2)^2*3.1416*0.8036*I71) ->  | Y72: 42 | Z72: 18 | AA72: 25738 | AB72: 30060 | AC72: 58300 | AD72: 2.265133266
A73: Rate Calcs | B73: Corregated Steel $/Bu | D73: =_xlfn.SWITCH(B69,B71,D71,1,D69,A78) ->  | E73: # Imp/Struct Identical Units | F73: =OFFSET(' Data Entry-Cost Worksheet'!$A$1,MATCH(A65,' Data Entry-Cost Worksheet'!$A:$A,0)-1,4,1,1) -> 0 | Y73: 42 | Z73: 22 | AA73: 30060 | AB73: 34382 | AC73: 65050 | AD73: 2.164005323
A74: =B71-B69 ->  | B74: Adjusted $/Bu | D74: =IF(F69=0,"",D73+F69) ->  | E74: Bu Capacity per Unit | F74: =IF(F73=0,"",F72/F73) ->  | Y74: 42 | Z74: 26 | AA74: 34382 | AB74: 43026 | AC74: 70300 | AD74: 2.044674539
A75: =D69-D71 ->  | B75: Notes: | Y75: 42 | Z75: 33 | AA75: 43026 | AB75: 51670 | AC75: 82150 | AD75: 1.909310649
A76: =A75/A74 ->  | Y76: 42 | Z76: 40 | AA76: 51670 | AB76: 60314 | AC76: 95500 | AD76: 1.848267854
A77: =(F74-B69)*A76 ->  | Y77: 42 | Z77: 48 | AA77: 60314 | AB77: 73279 | AC77: 110300 | AD77: 1.828762808
A78: =D69-A77 ->  | Y78: 42 | Z78: 59 | AA78: 73279 | AB78: 73279 | AC78: 130000 | AD78: 1.774041676
Y79: 48 | Z79: 1 | AA79: 1 | AB79: 26749 | AC79: 2.155220756 | AD79: 2.155220756
Y80: 48 | Z80: 15 | AA80: 26749 | AB80: 34394 | AC80: 57650 | AD80: =AC80/AA80 -> 2.155220756
A81: =LEFT(OFFSET(A81,-16,0),1)& RIGHT(OFFSET(A81,-16,0),LEN(OFFSET(A81,-16,0))-1) +1 -> D6 | B81: =D89+F85 ->  | H81: DIAMETER REQUIRED | Y81: 48 | Z81: 18 | AA81: 34394 | AB81: 40039 | AC81: 71150 | AD81: =AC81/AA81 -> 2.068674769
A82: Interpolation Model for Corrugated Steel Bins | E82: ENTER/VERIFY TO CALCULATE RATE | H82: Enter Diameter and Height to calculate $/Bu rate per Imp/Struct using actual bushels. If actual capacity unknown, calc bushel will override for rate | Y82: 48 | Z82: 22 | AA82: 40039 | AB82: 45684 | AC82: 80950 | AD82: =AC82/AA82 -> 2.021778766
A83: DO NOT REMOVE FORMULAS | E83: Diameter (see blue box) | F83: =I86 -> 0 | Y83: 48 | Z83: 26 | AA83: 45684 | AB83: 56974 | AC83: 90700 | AD83: =AC83/AA83 -> 1.985377813
B84: Bushel | D84: Cost/Bu | E84: Height (see blue box) | F84: =I87 -> 0 | Y84: 48 | Z84: 33 | AA84: 56974 | AB84: 68264 | AC84: 109450 | AD84: =AC84/AA84 -> 1.921051708
A85: Bottom of Range | B85: =VLOOKUP(F90,_xlfn._xlws.FILTER($AA$12:$AD$110,$Y$12:$Y$110=F83),1,TRUE) ->  | D85: =VLOOKUP(F90,_xlfn._xlws.FILTER($AA$12:$AD$110,$Y$12:$Y$110=F83),4,TRUE) ->  | E85: $/Bu Adjustment | Y85: 48 | Z85: 40 | AA85: 68264 | AB85: 79554 | AC85: 128300 | AD85: =AC85/AA85 -> 1.879467948
E86: Improve/Structure Name | F86: =OFFSET(' Data Entry-Cost Worksheet'!$A$1,MATCH(A81,' Data Entry-Cost Worksheet'!$A:$A,0)-1,1,1,1) -> 0 | H86: Diameter | Y86: 48 | Z86: 48 | AA86: 79554 | AB86: 96488 | AC86: 148300 | AD86: 1.864142595
A87: Top or Range | B87: =IF(B85=1,"",_xlfn.XLOOKUP(B85,$AA$12:$AA$110,$AB$12:$AB$110,,0)) ->  | D87: =IF(B85=1,"",_xlfn.XLOOKUP(B87,$AA$12:$AA$110,$AD$12:$AD$110)) ->  | E87: Year Built | F87: =OFFSET(' Data Entry-Cost Worksheet'!$A$1,MATCH(A81,' Data Entry-Cost Worksheet'!$A:$A,0)-1,2,1,1) -> 0 | H87: Height | Y87: 48 | Z87: 59 | AA87: 96488 | AB87: 96488 | AC87: 174100 | AD87: 1.804369455
A88: RATE for Cost Worksheet per Structure | E88: Total Bushel Capacity | F88: =IF(OFFSET(' Data Entry-Cost Worksheet'!$A$1,MATCH(A81,' Data Entry-Cost Worksheet'!$A:$A,0)-1,3,1,1) = "",I88*F89,OFFSET(' Data Entry-Cost Worksheet'!$A$1,MATCH(A81,' Data Entry-Cost Worksheet'!$A:$A,0)-1,3,1,1)) ->  | H88: Calc Bushels | I88: =IF(I87="","",(I86/2)^2*3.1416*0.8036*I87) ->  | Y88: 60 | Z88: 1 | AA88: 1 | AB88: 56170 | AC88: 1.976143849 | AD88: 1.976143849
A89: Rate Calcs | B89: Corregated Steel $/Bu | D89: =_xlfn.SWITCH(B85,B87,D87,1,D85,A94) ->  | E89: # Imp/Struct Identical Units | F89: =OFFSET(' Data Entry-Cost Worksheet'!$A$1,MATCH(A81,' Data Entry-Cost Worksheet'!$A:$A,0)-1,4,1,1) -> 0 | Y89: 60 | Z89: 15 | AA89: 56170 | AB89: 73810 | AC89: 111000 | AD89: =AC89/AA89 -> 1.976143849
A90: =B87-B85 ->  | B90: Adjusted $/Bu | D90: =IF(F85=0,"",D89+F85) ->  | E90: Bu Capacity per Unit | F90: =IF(F89=0,"",F88/F89) ->  | Y90: 60 | Z90: 26 | AA90: 73810 | AB90: 109092 | AC90: 140200 | AD90: 1.899471616
A91: =D85-D87 ->  | B91: Notes: | Y91: 60 | Z91: 40 | AA91: 109092 | AB91: 126732 | AC91: 197900 | AD91: 1.814065193
A92: =A91/A90 ->  | Y92: 60 | Z92: 48 | AA92: 126732 | AB92: 152870 | AC92: 228200 | AD92: 1.800650191
A93: =(F90-B85)*A92 ->  | Y93: 60 | Z93: 59 | AA93: 152870 | AB93: 165563 | AC93: 270600 | AD93: 1.770131484
A94: =D85-A93 ->  | Y94: 60 | Z94: 64 | AA94: 165563 | AB94: 165563 | AC94: 290200 | AD94: 1.752807089
Y95: 75 | Z95: 1 | AA95: 1 | AB95: 147000 | AC95: 1.842857143 | AD95: 1.842857143
Y96: 75 | Z96: 32 | AA96: 147000 | AB96: 176000 | AC96: 270900 | AD96: =AC96/AA96 -> 1.842857143
A97: =LEFT(OFFSET(A97,-16,0),1)& RIGHT(OFFSET(A97,-16,0),LEN(OFFSET(A97,-16,0))-1) +1 -> D7 | B97: =D105+F101 ->  | H97: DIAMETER REQUIRED | Y97: 75 | Z97: 40 | AA97: 176000 | AB97: 206000 | AC97: 318200 | AD97: =AC97/AA97 -> 1.807954545
A98: Interpolation Model for Corrugated Steel Bins | E98: ENTER/VERIFY TO CALCULATE RATE | H98: Enter Diameter and Height to calculate $/Bu rate per Imp/Struct using actual bushels. If actual capacity unknown, calc bushel will override for rate | Y98: 75 | Z98: 48 | AA98: 206000 | AB98: 246000 | AC98: 367700 | AD98: =AC98/AA98 -> 1.784951456
A99: DO NOT REMOVE FORMULAS | E99: Diameter (see blue box) | F99: =I102 -> 0 | Y99: 75 | Z99: 59 | AA99: 246000 | AB99: 266000 | AC99: 430900 | AD99: =AC99/AA99 -> 1.751626016
B100: Bushel | D100: Cost/Bu | E100: Height (see blue box) | F100: =I103 -> 0 | Y100: 75 | Z100: 64 | AA100: 266000 | AB100: 266000 | AC100: 457500 | AD100: =AC100/AA100 -> 1.719924812
A101: Bottom of Range | B101: =VLOOKUP(F106,_xlfn._xlws.FILTER($AA$12:$AD$110,$Y$12:$Y$110=F99),1,TRUE) ->  | D101: =VLOOKUP(F106,_xlfn._xlws.FILTER($AA$12:$AD$110,$Y$12:$Y$110=F99),4,TRUE) ->  | E101: $/Bu Adjustment | Y101: 90 | Z101: 1 | AA101: 1 | AB101: 221000 | AC101: 1.788687783 | AD101: 1.788687783
E102: Improve/Structure Name | F102: =OFFSET(' Data Entry-Cost Worksheet'!$A$1,MATCH(A97,' Data Entry-Cost Worksheet'!$A:$A,0)-1,1,1,1) -> 0 | H102: Diameter | Y102: 90 | Z102: 32 | AA102: 221000 | AB102: 263000 | AC102: 395300 | AD102: =AC102/AA102 -> 1.788687783
A103: Top or Range | B103: =IF(B101=1,"",_xlfn.XLOOKUP(B101,$AA$12:$AA$110,$AB$12:$AB$110,,0)) ->  | D103: =IF(B101=1,"",_xlfn.XLOOKUP(B103,$AA$12:$AA$110,$AD$12:$AD$110)) ->  | E103: Year Built | F103: =OFFSET(' Data Entry-Cost Worksheet'!$A$1,MATCH(A97,' Data Entry-Cost Worksheet'!$A:$A,0)-1,2,1,1) -> 0 | H103: Height | Y103: 90 | Z103: 40 | AA103: 263000 | AB103: 305000 | AC103: 462400 | AD103: =AC103/AA103 -> 1.758174905
A104: RATE for Cost Worksheet per Structure | E104: Total Bushel Capacity | F104: =IF(OFFSET(' Data Entry-Cost Worksheet'!$A$1,MATCH(A97,' Data Entry-Cost Worksheet'!$A:$A,0)-1,3,1,1) = "",I104*F105,OFFSET(' Data Entry-Cost Worksheet'!$A$1,MATCH(A97,' Data Entry-Cost Worksheet'!$A:$A,0)-1,3,1,1)) ->  | H104: Calc Bushels | I104: =IF(I103="","",(I102/2)^2*3.1416*0.8036*I103) ->  | Y104: 90 | Z104: 48 | AA104: 305000 | AB104: 358223 | AC104: 531400 | AD104: =AC104/AA104 -> 1.742295082
A105: Rate Calcs | B105: Corregated Steel $/Bu | D105: =_xlfn.SWITCH(B101,B103,D103,1,D101,A110) ->  | E105: # Imp/Struct Identical Units | F105: =OFFSET(' Data Entry-Cost Worksheet'!$A$1,MATCH(A97,' Data Entry-Cost Worksheet'!$A:$A,0)-1,4,1,1) -> 0 | Y105: 90 | Z105: 59 | AA105: 358223 | AB105: 358223 | AC105: 620600 | AD105: =AC105/AA105 -> 1.732440407
A106: =B103-B101 ->  | B106: Adjusted $/Bu | D106: =IF(F101=0,"",D105+F101) ->  | E106: Bu Capacity per Unit | F106: =IF(F105=0,"",F104/F105) ->  | Y106: 105 | Z106: 1 | AA106: 1 | AB106: 306180 | AC106: 1.790776667 | AD106: 1.790776667
A107: =D101-D103 ->  | B107: Notes: | Y107: 105 | Z107: 32 | AA107: 306180 | AB107: 363558 | AC107: 548300 | AD107: =AC107/AA107 -> 1.790776667
A108: =A107/A106 ->  | Y108: 105 | Z108: 40 | AA108: 363558 | AB108: 420936 | AC108: 641600 | AD108: =AC108/AA108 -> 1.76478031
A109: =(F106-B101)*A108 ->  | Y109: 105 | Z109: 48 | AA109: 420936 | AB109: 500000 | AC109: 737750 | AD109: =AC109/AA109 -> 1.752641732
A110: =D101-A109 ->  | Y110: 105 | Z110: 59 | AA110: 500000 | AB110: 500000 | AC110: 870000 | AD110: =AC110/AA110 -> 1.74
A113: =LEFT(OFFSET(A113,-16,0),1)& RIGHT(OFFSET(A113,-16,0),LEN(OFFSET(A113,-16,0))-1) +1 -> D8 | B113: =D121+F117 ->  | H113: DIAMETER REQUIRED
A114: Interpolation Model for Corrugated Steel Bins | E114: ENTER/VERIFY TO CALCULATE RATE | H114: Enter Diameter and Height to calculate $/Bu rate per Imp/Struct using actual bushels. If actual capacity unknown, calc bushel will override for rate
A115: DO NOT REMOVE FORMULAS | E115: Diameter (see blue box) | F115: =I118 -> 0
B116: Bushel | D116: Cost/Bu | E116: Height (see blue box) | F116: =I119 -> 0
A117: Bottom of Range | B117: =VLOOKUP(F122,_xlfn._xlws.FILTER($AA$12:$AD$110,$Y$12:$Y$110=F115),1,TRUE) ->  | D117: =VLOOKUP(F122,_xlfn._xlws.FILTER($AA$12:$AD$110,$Y$12:$Y$110=F115),4,TRUE) ->  | E117: $/Bu Adjustment
E118: Improve/Structure Name | F118: =OFFSET(' Data Entry-Cost Worksheet'!$A$1,MATCH(A113,' Data Entry-Cost Worksheet'!$A:$A,0)-1,1,1,1) -> 0 | H118: Diameter
A119: Top or Range | B119: =IF(B117=1,"",_xlfn.XLOOKUP(B117,$AA$12:$AA$110,$AB$12:$AB$110,,0)) ->  | D119: =IF(B117=1,"",_xlfn.XLOOKUP(B119,$AA$12:$AA$110,$AD$12:$AD$110)) ->  | E119: Year Built | F119: =OFFSET(' Data Entry-Cost Worksheet'!$A$1,MATCH(A113,' Data Entry-Cost Worksheet'!$A:$A,0)-1,2,1,1) -> 0 | H119: Height
A120: RATE for Cost Worksheet per Structure | E120: Total Bushel Capacity | F120: =IF(OFFSET(' Data Entry-Cost Worksheet'!$A$1,MATCH(A113,' Data Entry-Cost Worksheet'!$A:$A,0)-1,3,1,1) = "",I120*F121,OFFSET(' Data Entry-Cost Worksheet'!$A$1,MATCH(A113,' Data Entry-Cost Worksheet'!$A:$A,0)-1,3,1,1)) ->  | H120: Calc Bushels | I120: =IF(I119="","",(I118/2)^2*3.1416*0.8036*I119) -> 
A121: Rate Calcs | B121: Corregated Steel $/Bu | D121: =_xlfn.SWITCH(B117,B119,D119,1,D117,A126) ->  | E121: # Imp/Struct Identical Units | F121: =OFFSET(' Data Entry-Cost Worksheet'!$A$1,MATCH(A113,' Data Entry-Cost Worksheet'!$A:$A,0)-1,4,1,1) -> 0
A122: =B119-B117 ->  | B122: Adjusted $/Bu | D122: =IF(F117=0,"",D121+F117) ->  | E122: Bu Capacity per Unit | F122: =IF(F121=0,"",F120/F121) -> 
A123: =D117-D119 ->  | B123: Notes:
A124: =A123/A122 -> 
A125: =(F122-B117)*A124 -> 
A126: =D117-A125 -> 
A129: =LEFT(OFFSET(A129,-16,0),1)& RIGHT(OFFSET(A129,-16,0),LEN(OFFSET(A129,-16,0))-1) +1 -> D9 | B129: =D137+F133 ->  | H129: DIAMETER REQUIRED
A130: Interpolation Model for Corrugated Steel Bins | E130: ENTER/VERIFY TO CALCULATE RATE | H130: Enter Diameter and Height to calculate $/Bu rate per Imp/Struct using actual bushels. If actual capacity unknown, calc bushel will override for rate
A131: DO NOT REMOVE FORMULAS | E131: Diameter (see blue box) | F131: =I134 -> 0
B132: Bushel | D132: Cost/Bu | E132: Height (see blue box) | F132: =I135 -> 0
A133: Bottom of Range | B133: =VLOOKUP(F138,_xlfn._xlws.FILTER($AA$12:$AD$110,$Y$12:$Y$110=F131),1,TRUE) ->  | D133: =VLOOKUP(F138,_xlfn._xlws.FILTER($AA$12:$AD$110,$Y$12:$Y$110=F131),4,TRUE) ->  | E133: $/Bu Adjustment
E134: Improve/Structure Name | F134: =OFFSET(' Data Entry-Cost Worksheet'!$A$1,MATCH(A129,' Data Entry-Cost Worksheet'!$A:$A,0)-1,1,1,1) -> 0 | H134: Diameter
A135: Top or Range | B135: =IF(B133=1,"",_xlfn.XLOOKUP(B133,$AA$12:$AA$110,$AB$12:$AB$110,,0)) ->  | D135: =IF(B133=1,"",_xlfn.XLOOKUP(B135,$AA$12:$AA$110,$AD$12:$AD$110)) ->  | E135: Year Built | F135: =OFFSET(' Data Entry-Cost Worksheet'!$A$1,MATCH(A129,' Data Entry-Cost Worksheet'!$A:$A,0)-1,2,1,1) -> 0 | H135: Height
A136: RATE for Cost Worksheet per Structure | E136: Total Bushel Capacity | F136: =IF(OFFSET(' Data Entry-Cost Worksheet'!$A$1,MATCH(A129,' Data Entry-Cost Worksheet'!$A:$A,0)-1,3,1,1) = "",I136*F137,OFFSET(' Data Entry-Cost Worksheet'!$A$1,MATCH(A129,' Data Entry-Cost Worksheet'!$A:$A,0)-1,3,1,1)) ->  | H136: Calc Bushels | I136: =IF(I135="","",(I134/2)^2*3.1416*0.8036*I135) -> 
A137: Rate Calcs | B137: Corregated Steel $/Bu | D137: =_xlfn.SWITCH(B133,B135,D135,1,D133,A142) ->  | E137: # Imp/Struct Identical Units | F137: =OFFSET(' Data Entry-Cost Worksheet'!$A$1,MATCH(A129,' Data Entry-Cost Worksheet'!$A:$A,0)-1,4,1,1) -> 0
A138: =B135-B133 ->  | B138: Adjusted $/Bu | D138: =IF(F133=0,"",D137+F133) ->  | E138: Bu Capacity per Unit | F138: =IF(F137=0,"",F136/F137) -> 
A139: =D133-D135 ->  | B139: Notes:
A140: =A139/A138 -> 
A141: =(F138-B133)*A140 -> 
A142: =D133-A141 -> 
A145: =LEFT(OFFSET(A145,-16,0),1)& RIGHT(OFFSET(A145,-16,0),LEN(OFFSET(A145,-16,0))-1) +1 -> D10 | B145: =D153+F149 ->  | H145: DIAMETER REQUIRED
A146: Interpolation Model for Corrugated Steel Bins | E146: ENTER/VERIFY TO CALCULATE RATE | H146: Enter Diameter and Height to calculate $/Bu rate per Imp/Struct using actual bushels. If actual capacity unknown, calc bushel will override for rate
A147: DO NOT REMOVE FORMULAS | E147: Diameter (see blue box) | F147: =I150 -> 0
B148: Bushel | D148: Cost/Bu | E148: Height (see blue box) | F148: =I151 -> 0
A149: Bottom of Range | B149: =VLOOKUP(F154,_xlfn._xlws.FILTER($AA$12:$AD$110,$Y$12:$Y$110=F147),1,TRUE) ->  | D149: =VLOOKUP(F154,_xlfn._xlws.FILTER($AA$12:$AD$110,$Y$12:$Y$110=F147),4,TRUE) ->  | E149: $/Bu Adjustment
E150: Improve/Structure Name | F150: =OFFSET(' Data Entry-Cost Worksheet'!$A$1,MATCH(A145,' Data Entry-Cost Worksheet'!$A:$A,0)-1,1,1,1) -> 0 | H150: Diameter
A151: Top or Range | B151: =IF(B149=1,"",_xlfn.XLOOKUP(B149,$AA$12:$AA$110,$AB$12:$AB$110,,0)) ->  | D151: =IF(B149=1,"",_xlfn.XLOOKUP(B151,$AA$12:$AA$110,$AD$12:$AD$110)) ->  | E151: Year Built | F151: =OFFSET(' Data Entry-Cost Worksheet'!$A$1,MATCH(A145,' Data Entry-Cost Worksheet'!$A:$A,0)-1,2,1,1) -> 0 | H151: Height
A152: RATE for Cost Worksheet per Structure | E152: Total Bushel Capacity | F152: =IF(OFFSET(' Data Entry-Cost Worksheet'!$A$1,MATCH(A145,' Data Entry-Cost Worksheet'!$A:$A,0)-1,3,1,1) = "",I152*F153,OFFSET(' Data Entry-Cost Worksheet'!$A$1,MATCH(A145,' Data Entry-Cost Worksheet'!$A:$A,0)-1,3,1,1)) ->  | H152: Calc Bushels | I152: =IF(I151="","",(I150/2)^2*3.1416*0.8036*I151) -> 
A153: Rate Calcs | B153: Corregated Steel $/Bu | D153: =_xlfn.SWITCH(B149,B151,D151,1,D149,A158) ->  | E153: # Imp/Struct Identical Units | F153: =OFFSET(' Data Entry-Cost Worksheet'!$A$1,MATCH(A145,' Data Entry-Cost Worksheet'!$A:$A,0)-1,4,1,1) -> 0
A154: =B151-B149 ->  | B154: Adjusted $/Bu | D154: =IF(F149=0,"",D153+F149) ->  | E154: Bu Capacity per Unit | F154: =IF(F153=0,"",F152/F153) -> 
A155: =D149-D151 ->  | B155: Notes:
A156: =A155/A154 -> 
A157: =(F154-B149)*A156 -> 
A158: =D149-A157 -> 
A161: =LEFT(OFFSET(A161,-16,0),1)& RIGHT(OFFSET(A161,-16,0),LEN(OFFSET(A161,-16,0))-1) +1 -> D11 | B161: =D169+F165 ->  | H161: DIAMETER REQUIRED
A162: Interpolation Model for Corrugated Steel Bins | E162: ENTER/VERIFY TO CALCULATE RATE | H162: Enter Diameter and Height to calculate $/Bu rate per Imp/Struct using actual bushels. If actual capacity unknown, calc bushel will override for rate
A163: DO NOT REMOVE FORMULAS | E163: Diameter (see blue box) | F163: =I166 -> 0
B164: Bushel | D164: Cost/Bu | E164: Height (see blue box) | F164: =I167 -> 0
A165: Bottom of Range | B165: =VLOOKUP(F170,_xlfn._xlws.FILTER($AA$12:$AD$110,$Y$12:$Y$110=F163),1,TRUE) ->  | D165: =VLOOKUP(F170,_xlfn._xlws.FILTER($AA$12:$AD$110,$Y$12:$Y$110=F163),4,TRUE) ->  | E165: $/Bu Adjustment
E166: Improve/Structure Name | F166: =OFFSET(' Data Entry-Cost Worksheet'!$A$1,MATCH(A161,' Data Entry-Cost Worksheet'!$A:$A,0)-1,1,1,1) -> 0 | H166: Diameter
A167: Top or Range | B167: =IF(B165=1,"",_xlfn.XLOOKUP(B165,$AA$12:$AA$110,$AB$12:$AB$110,,0)) ->  | D167: =IF(B165=1,"",_xlfn.XLOOKUP(B167,$AA$12:$AA$110,$AD$12:$AD$110)) ->  | E167: Year Built | F167: =OFFSET(' Data Entry-Cost Worksheet'!$A$1,MATCH(A161,' Data Entry-Cost Worksheet'!$A:$A,0)-1,2,1,1) -> 0 | H167: Height
A168: RATE for Cost Worksheet per Structure | E168: Total Bushel Capacity | F168: =IF(OFFSET(' Data Entry-Cost Worksheet'!$A$1,MATCH(A161,' Data Entry-Cost Worksheet'!$A:$A,0)-1,3,1,1) = "",I168*F169,OFFSET(' Data Entry-Cost Worksheet'!$A$1,MATCH(A161,' Data Entry-Cost Worksheet'!$A:$A,0)-1,3,1,1)) ->  | H168: Calc Bushels | I168: =IF(I167="","",(I166/2)^2*3.1416*0.8036*I167) -> 
A169: Rate Calcs | B169: Corregated Steel $/Bu | D169: =_xlfn.SWITCH(B165,B167,D167,1,D165,A174) ->  | E169: # Imp/Struct Identical Units | F169: =OFFSET(' Data Entry-Cost Worksheet'!$A$1,MATCH(A161,' Data Entry-Cost Worksheet'!$A:$A,0)-1,4,1,1) -> 0
A170: =B167-B165 ->  | B170: Adjusted $/Bu | D170: =IF(F165=0,"",D169+F165) ->  | E170: Bu Capacity per Unit | F170: =IF(F169=0,"",F168/F169) -> 
A171: =D165-D167 ->  | B171: Notes:
A172: =A171/A170 -> 
A173: =(F170-B165)*A172 -> 
A174: =D165-A173 -> 

Sheet Bolted Steel Interpolation
A1: E1 | B1: =D9+F3 -> 
A2: Interpolation Model for Bolted Steel Storage | E2: ENTER/VERIFY TO CALCULATE RATE
A3: DO NOT REMOVE FORMULAS | E3: $/Bu Adjustment
B4: Bushel | D4: Cost/Bu | E4: Improve/Structure Name | F4: =OFFSET(' Data Entry-Cost Worksheet'!$A$1,MATCH(A1,' Data Entry-Cost Worksheet'!A:A,0)-1,1,1,1) -> 0 | L4: Grain Elevator/Annex
A5: Bottom of Range | B5: =_xlfn.XLOOKUP(D5,$M$7:$M$22,$L$7:$L$22,"",0,1) ->  | D5: =VLOOKUP(F8,$L$7:$M$22,2,TRUE) ->  | E5: Year Built | F5: =OFFSET(' Data Entry-Cost Worksheet'!$A$1,MATCH(A1,' Data Entry-Cost Worksheet'!$A:$A,0)-1,2,1,1) -> 0 | L5: M&S Commercial Section 17 pg 51 | M5: 2023-05-23
E6: Total Bushel Capacity | F6: =OFFSET(' Data Entry-Cost Worksheet'!$A$1,MATCH(A1,' Data Entry-Cost Worksheet'!$A:$A,0)-1,3,1,1) -> 0 | L6: Steel Tanks
A7: Top or Range | B7: =VLOOKUP(B5,$O$9:$P$23,2,FALSE) ->  | D7: =VLOOKUP(B7,$L$9:$M$22,2,TRUE) ->  | E7: # Imp/Struct Identical Units | F7: =OFFSET(' Data Entry-Cost Worksheet'!$A$1,MATCH(A1,' Data Entry-Cost Worksheet'!$A:$A,0)-1,4,1,1) -> 0 | L7: Bushel Capacity | M7: Heavy Bolted Steel
A8: RATE for Cost Worksheet per Structure | E8: Bu Capacity per Unit | F8: =F6/F7 ->  | L8: (Per tank) | M8: (Cost per bushel) | O8: DO NOT REMOVE FORMULAS
A9: RATE CALCS | B9: Bolted Steel $/Bu | D9: =_xlfn.IFS(F8<$L$9,$M$9,F8>=$L$22,$M$22,F8<$L$22,A14) ->  | L9: 15000 | M9: 4.2 | P9: 15000
A10: =B7-B5 ->  | B10: Adjusted $/Bu | D10: =IF(F3=0,"",D9+F3) ->  | L10: 20000 | M10: 4.02 | O10: 15000 | P10: 20000
A11: =D5-D7 ->  | B11: Notes: | L11: 25000 | M11: 3.87 | O11: 20000 | P11: 25000
A12: =A11/A10 ->  | L12: 30000 | M12: 3.74 | O12: 25000 | P12: 30000
A13: =(F8-B5)*A12 ->  | L13: 35000 | M13: 3.67 | O13: 30000 | P13: 35000
A14: =D5-A13 ->  | L14: 40000 | M14: 3.59 | O14: 35000 | P14: 40000
L15: 50000 | M15: 3.46 | O15: 40000 | P15: 50000
L16: 60000 | M16: 3.35 | O16: 50000 | P16: 60000
A17: =LEFT(OFFSET(A17,-16,0),1)& RIGHT(OFFSET(A17,-16,0),LEN(OFFSET(A17,-16,0))-1) +1 -> E2 | B17: =D25+F19 ->  | L17: 80000 | M17: 3.19 | O17: 60000 | P17: 80000
A18: Interpolation Model for Bolted Steel Storage | E18: ENTER/VERIFY TO CALCULATE RATE | L18: 100000 | M18: 3.08 | O18: 80000 | P18: 100000
A19: DO NOT REMOVE FORMULAS | E19: $/Bu Adjustment | L19: 125000 | M19: 2.97 | O19: 100000 | P19: 125000
B20: Bushel | D20: Cost/Bu | E20: Improve/Structure Name | F20: =OFFSET(' Data Entry-Cost Worksheet'!$A$1,MATCH(A17,' Data Entry-Cost Worksheet'!A:A,0)-1,1,1,1) -> 0 | L20: 150000 | M20: 2.88 | O20: 125000 | P20: 150000
A21: Bottom of Range | B21: =_xlfn.XLOOKUP(D21,$M$7:$M$22,$L$7:$L$22,"",0,1) ->  | D21: =VLOOKUP(F24,$L$7:$M$22,2,TRUE) ->  | E21: Year Built | F21: =OFFSET(' Data Entry-Cost Worksheet'!$A$1,MATCH(A17,' Data Entry-Cost Worksheet'!$A:$A,0)-1,2,1,1) -> 0 | L21: 175000 | M21: 2.83 | O21: 150000 | P21: 175000
E22: Total Bushel Capacity | F22: =OFFSET(' Data Entry-Cost Worksheet'!$A$1,MATCH(A17,' Data Entry-Cost Worksheet'!$A:$A,0)-1,3,1,1) -> 0 | L22: 200000 | M22: 2.74 | O22: 175000 | P22: 200000
A23: Top or Range | B23: =VLOOKUP(B21,$O$9:$P$23,2,FALSE) ->  | D23: =VLOOKUP(B23,$L$9:$M$22,2,TRUE) ->  | E23: # Imp/Struct Identical Units | F23: =OFFSET(' Data Entry-Cost Worksheet'!$A$1,MATCH(A17,' Data Entry-Cost Worksheet'!$A:$A,0)-1,4,1,1) -> 0 | O23: 200000 | P23: 200000
A24: RATE for Cost Worksheet per Structure | E24: Bu Capacity per Unit | F24: =F22/F23 -> 
A25: RATE CALCS | B25: Bolted Steel $/Bu | D25: =_xlfn.IFS(F24<$L$9,$M$9,F24>=$L$22,$M$22,F24<$L$22,A30) -> 
A26: =B23-B21 ->  | B26: Adjusted $/Bu | D26: =IF(F19=0,"",D25+F19) -> 
A27: =D21-D23 ->  | B27: Notes:
A28: =A27/A26 -> 
A29: =(F24-B21)*A28 -> 
A30: =D21-A29 -> 
A33: =LEFT(OFFSET(A33,-16,0),1)& RIGHT(OFFSET(A33,-16,0),LEN(OFFSET(A33,-16,0))-1) +1 -> E3 | B33: =D41+F35 -> 
A34: Interpolation Model for Bolted Steel Storage | E34: ENTER/VERIFY TO CALCULATE RATE
A35: DO NOT REMOVE FORMULAS | E35: $/Bu Adjustment
B36: Bushel | D36: Cost/Bu | E36: Improve/Structure Name | F36: =OFFSET(' Data Entry-Cost Worksheet'!$A$1,MATCH(A33,' Data Entry-Cost Worksheet'!A:A,0)-1,1,1,1) -> 0
A37: Bottom of Range | B37: =_xlfn.XLOOKUP(D37,$M$7:$M$22,$L$7:$L$22,"",0,1) ->  | D37: =VLOOKUP(F40,$L$7:$M$22,2,TRUE) ->  | E37: Year Built | F37: =OFFSET(' Data Entry-Cost Worksheet'!$A$1,MATCH(A33,' Data Entry-Cost Worksheet'!$A:$A,0)-1,2,1,1) -> 0
E38: Total Bushel Capacity | F38: =OFFSET(' Data Entry-Cost Worksheet'!$A$1,MATCH(A33,' Data Entry-Cost Worksheet'!$A:$A,0)-1,3,1,1) -> 0
A39: Top or Range | B39: =VLOOKUP(B37,$O$9:$P$23,2,FALSE) ->  | D39: =VLOOKUP(B39,$L$9:$M$22,2,TRUE) ->  | E39: # Imp/Struct Identical Units | F39: =OFFSET(' Data Entry-Cost Worksheet'!$A$1,MATCH(A33,' Data Entry-Cost Worksheet'!$A:$A,0)-1,4,1,1) -> 0
A40: RATE for Cost Worksheet per Structure | E40: Bu Capacity per Unit | F40: =F38/F39 -> 
A41: RATE CALCS | B41: Bolted Steel $/Bu | D41: =_xlfn.IFS(F40<$L$9,$M$9,F40>=$L$22,$M$22,F40<$L$22,A46) -> 
A42: =B39-B37 ->  | B42: Adjusted $/Bu | D42: =IF(F35=0,"",D41+F35) -> 
A43: =D37-D39 ->  | B43: Notes:
A44: =A43/A42 -> 
A45: =(F40-B37)*A44 -> 
A46: =D37-A45 -> 
A49: =LEFT(OFFSET(A49,-16,0),1)& RIGHT(OFFSET(A49,-16,0),LEN(OFFSET(A49,-16,0))-1) +1 -> E4 | B49: =D57+F51 -> 
A50: Interpolation Model for Bolted Steel Storage | E50: ENTER/VERIFY TO CALCULATE RATE
A51: DO NOT REMOVE FORMULAS | E51: $/Bu Adjustment
B52: Bushel | D52: Cost/Bu | E52: Improve/Structure Name | F52: =OFFSET(' Data Entry-Cost Worksheet'!$A$1,MATCH(A49,' Data Entry-Cost Worksheet'!A:A,0)-1,1,1,1) -> 0
A53: Bottom of Range | B53: =_xlfn.XLOOKUP(D53,$M$7:$M$22,$L$7:$L$22,"",0,1) ->  | D53: =VLOOKUP(F56,$L$7:$M$22,2,TRUE) ->  | E53: Year Built | F53: =OFFSET(' Data Entry-Cost Worksheet'!$A$1,MATCH(A49,' Data Entry-Cost Worksheet'!$A:$A,0)-1,2,1,1) -> 0
E54: Total Bushel Capacity | F54: =OFFSET(' Data Entry-Cost Worksheet'!$A$1,MATCH(A49,' Data Entry-Cost Worksheet'!$A:$A,0)-1,3,1,1) -> 0
A55: Top or Range | B55: =VLOOKUP(B53,$O$9:$P$23,2,FALSE) ->  | D55: =VLOOKUP(B55,$L$9:$M$22,2,TRUE) ->  | E55: # Imp/Struct Identical Units | F55: =OFFSET(' Data Entry-Cost Worksheet'!$A$1,MATCH(A49,' Data Entry-Cost Worksheet'!$A:$A,0)-1,4,1,1) -> 0
A56: RATE for Cost Worksheet per Structure | E56: Bu Capacity per Unit | F56: =F54/F55 -> 
A57: RATE CALCS | B57: Bolted Steel $/Bu | D57: =_xlfn.IFS(F56<$L$9,$M$9,F56>=$L$22,$M$22,F56<$L$22,A62) -> 
A58: =B55-B53 ->  | B58: Adjusted $/Bu | D58: =IF(F51=0,"",D57+F51) -> 
A59: =D53-D55 ->  | B59: Notes:
A60: =A59/A58 -> 
A61: =(F56-B53)*A60 -> 
A62: =D53-A61 -> 
A65: =LEFT(OFFSET(A65,-16,0),1)& RIGHT(OFFSET(A65,-16,0),LEN(OFFSET(A65,-16,0))-1) +1 -> E5 | B65: =D73+F67 -> 
A66: Interpolation Model for Bolted Steel Storage | E66: ENTER/VERIFY TO CALCULATE RATE
A67: DO NOT REMOVE FORMULAS | E67: $/Bu Adjustment
B68: Bushel | D68: Cost/Bu | E68: Improve/Structure Name | F68: =OFFSET(' Data Entry-Cost Worksheet'!$A$1,MATCH(A65,' Data Entry-Cost Worksheet'!A:A,0)-1,1,1,1) -> 0
A69: Bottom of Range | B69: =_xlfn.XLOOKUP(D69,$M$7:$M$22,$L$7:$L$22,"",0,1) ->  | D69: =VLOOKUP(F72,$L$7:$M$22,2,TRUE) ->  | E69: Year Built | F69: =OFFSET(' Data Entry-Cost Worksheet'!$A$1,MATCH(A65,' Data Entry-Cost Worksheet'!$A:$A,0)-1,2,1,1) -> 0
E70: Total Bushel Capacity | F70: =OFFSET(' Data Entry-Cost Worksheet'!$A$1,MATCH(A65,' Data Entry-Cost Worksheet'!$A:$A,0)-1,3,1,1) -> 0
A71: Top or Range | B71: =VLOOKUP(B69,$O$9:$P$23,2,FALSE) ->  | D71: =VLOOKUP(B71,$L$9:$M$22,2,TRUE) ->  | E71: # Imp/Struct Identical Units | F71: =OFFSET(' Data Entry-Cost Worksheet'!$A$1,MATCH(A65,' Data Entry-Cost Worksheet'!$A:$A,0)-1,4,1,1) -> 0
A72: RATE for Cost Worksheet per Structure | E72: Bu Capacity per Unit | F72: =F70/F71 -> 
A73: RATE CALCS | B73: Bolted Steel $/Bu | D73: =_xlfn.IFS(F72<$L$9,$M$9,F72>=$L$22,$M$22,F72<$L$22,A78) -> 
A74: =B71-B69 ->  | B74: Adjusted $/Bu | D74: =IF(F67=0,"",D73+F67) -> 
A75: =D69-D71 ->  | B75: Notes:
A76: =A75/A74 -> 
A77: =(F72-B69)*A76 -> 
A78: =D69-A77 -> 
A81: =LEFT(OFFSET(A81,-16,0),1)& RIGHT(OFFSET(A81,-16,0),LEN(OFFSET(A81,-16,0))-1) +1 -> E6 | B81: =D89+F83 -> 
A82: Interpolation Model for Bolted Steel Storage | E82: ENTER/VERIFY TO CALCULATE RATE
A83: DO NOT REMOVE FORMULAS | E83: $/Bu Adjustment
B84: Bushel | D84: Cost/Bu | E84: Improve/Structure Name | F84: =OFFSET(' Data Entry-Cost Worksheet'!$A$1,MATCH(A81,' Data Entry-Cost Worksheet'!A:A,0)-1,1,1,1) -> 0
A85: Bottom of Range | B85: =_xlfn.XLOOKUP(D85,$M$7:$M$22,$L$7:$L$22,"",0,1) ->  | D85: =VLOOKUP(F88,$L$7:$M$22,2,TRUE) ->  | E85: Year Built | F85: =OFFSET(' Data Entry-Cost Worksheet'!$A$1,MATCH(A81,' Data Entry-Cost Worksheet'!$A:$A,0)-1,2,1,1) -> 0
E86: Total Bushel Capacity | F86: =OFFSET(' Data Entry-Cost Worksheet'!$A$1,MATCH(A81,' Data Entry-Cost Worksheet'!$A:$A,0)-1,3,1,1) -> 0
A87: Top or Range | B87: =VLOOKUP(B85,$O$9:$P$23,2,FALSE) ->  | D87: =VLOOKUP(B87,$L$9:$M$22,2,TRUE) ->  | E87: # Imp/Struct Identical Units | F87: =OFFSET(' Data Entry-Cost Worksheet'!$A$1,MATCH(A81,' Data Entry-Cost Worksheet'!$A:$A,0)-1,4,1,1) -> 0
A88: RATE for Cost Worksheet per Structure | E88: Bu Capacity per Unit | F88: =F86/F87 -> 
A89: RATE CALCS | B89: Bolted Steel $/Bu | D89: =_xlfn.IFS(F88<$L$9,$M$9,F88>=$L$22,$M$22,F88<$L$22,A94) -> 
A90: =B87-B85 ->  | B90: Adjusted $/Bu | D90: =IF(F83=0,"",D89+F83) -> 
A91: =D85-D87 ->  | B91: Notes:
A92: =A91/A90 -> 
A93: =(F88-B85)*A92 -> 
A94: =D85-A93 -> 
A97: =LEFT(OFFSET(A97,-16,0),1)& RIGHT(OFFSET(A97,-16,0),LEN(OFFSET(A97,-16,0))-1) +1 -> E7 | B97: =D105+F99 -> 
A98: Interpolation Model for Bolted Steel Storage | E98: ENTER/VERIFY TO CALCULATE RATE
A99: DO NOT REMOVE FORMULAS | E99: $/Bu Adjustment
B100: Bushel | D100: Cost/Bu | E100: Improve/Structure Name | F100: =OFFSET(' Data Entry-Cost Worksheet'!$A$1,MATCH(A97,' Data Entry-Cost Worksheet'!A:A,0)-1,1,1,1) -> 0
A101: Bottom of Range | B101: =_xlfn.XLOOKUP(D101,$M$7:$M$22,$L$7:$L$22,"",0,1) ->  | D101: =VLOOKUP(F104,$L$7:$M$22,2,TRUE) ->  | E101: Year Built | F101: =OFFSET(' Data Entry-Cost Worksheet'!$A$1,MATCH(A97,' Data Entry-Cost Worksheet'!$A:$A,0)-1,2,1,1) -> 0
E102: Total Bushel Capacity | F102: =OFFSET(' Data Entry-Cost Worksheet'!$A$1,MATCH(A97,' Data Entry-Cost Worksheet'!$A:$A,0)-1,3,1,1) -> 0
A103: Top or Range | B103: =VLOOKUP(B101,$O$9:$P$23,2,FALSE) ->  | D103: =VLOOKUP(B103,$L$9:$M$22,2,TRUE) ->  | E103: # Imp/Struct Identical Units | F103: =OFFSET(' Data Entry-Cost Worksheet'!$A$1,MATCH(A97,' Data Entry-Cost Worksheet'!$A:$A,0)-1,4,1,1) -> 0
A104: RATE for Cost Worksheet per Structure | E104: Bu Capacity per Unit | F104: =F102/F103 -> 
A105: RATE CALCS | B105: Bolted Steel $/Bu | D105: =_xlfn.IFS(F104<$L$9,$M$9,F104>=$L$22,$M$22,F104<$L$22,A110) -> 
A106: =B103-B101 ->  | B106: Adjusted $/Bu | D106: =IF(F99=0,"",D105+F99) -> 
A107: =D101-D103 ->  | B107: Notes:
A108: =A107/A106 -> 
A109: =(F104-B101)*A108 -> 
A110: =D101-A109 -> 
A113: =LEFT(OFFSET(A113,-16,0),1)& RIGHT(OFFSET(A113,-16,0),LEN(OFFSET(A113,-16,0))-1) +1 -> E8 | B113: =D121+F115 -> 
A114: Interpolation Model for Bolted Steel Storage | E114: ENTER/VERIFY TO CALCULATE RATE
A115: DO NOT REMOVE FORMULAS | E115: $/Bu Adjustment
B116: Bushel | D116: Cost/Bu | E116: Improve/Structure Name | F116: =OFFSET(' Data Entry-Cost Worksheet'!$A$1,MATCH(A113,' Data Entry-Cost Worksheet'!A:A,0)-1,1,1,1) -> 0
A117: Bottom of Range | B117: =_xlfn.XLOOKUP(D117,$M$7:$M$22,$L$7:$L$22,"",0,1) ->  | D117: =VLOOKUP(F120,$L$7:$M$22,2,TRUE) ->  | E117: Year Built | F117: =OFFSET(' Data Entry-Cost Worksheet'!$A$1,MATCH(A113,' Data Entry-Cost Worksheet'!$A:$A,0)-1,2,1,1) -> 0
E118: Total Bushel Capacity | F118: =OFFSET(' Data Entry-Cost Worksheet'!$A$1,MATCH(A113,' Data Entry-Cost Worksheet'!$A:$A,0)-1,3,1,1) -> 0
A119: Top or Range | B119: =VLOOKUP(B117,$O$9:$P$23,2,FALSE) ->  | D119: =VLOOKUP(B119,$L$9:$M$22,2,TRUE) ->  | E119: # Imp/Struct Identical Units | F119: =OFFSET(' Data Entry-Cost Worksheet'!$A$1,MATCH(A113,' Data Entry-Cost Worksheet'!$A:$A,0)-1,4,1,1) -> 0
A120: RATE for Cost Worksheet per Structure | E120: Bu Capacity per Unit | F120: =F118/F119 -> 
A121: RATE CALCS | B121: Bolted Steel $/Bu | D121: =_xlfn.IFS(F120<$L$9,$M$9,F120>=$L$22,$M$22,F120<$L$22,A126) -> 
A122: =B119-B117 ->  | B122: Adjusted $/Bu | D122: =IF(F115=0,"",D121+F115) -> 
A123: =D117-D119 ->  | B123: Notes:
A124: =A123/A122 -> 
A125: =(F120-B117)*A124 -> 
A126: =D117-A125 -> 

Sheet Flat Storage Interpolation
M1: Costs are for horizontal or flat storage WITHOUT attached loading and/or unloading System
M3: Grain Elevator/Annex
A4: F1 | B4: =D12+F7 ->  | M4: MS Commercial Section 17 Pg 51 | P4: 2023-05-23
A5: Interpolation Model for Flat Storage | E5: ENTER/VERIFY TO CALCULATE RATE | M5: Total Bushel Capacity | N5: Cost Per Bushel
A6: DO NOT REMOVE FORMULAS | E6: Type of Structure | F6: Wood | R6: DO NOT REMOVE FORMULAS
B7: Bushel | D7: Cost/Bu | E7: $/Bu Adjustment | N7: Wood | O7: Steel | P7: Concrete | S7: 50000
A8: Bottom of Range | B8: =IF(F6="Wood",_xlfn.XLOOKUP(D8,$N$8:$N$19,$M$8:$M$19,"",0,1),IF(F6="Steel",_xlfn.XLOOKUP(D8,$O$8:$O$19,$M$8:$M$19,"",0,1),_xlfn.XLOOKUP(D8,$P$8:$P$19,$M$8:$M$19,"",0,1))) ->  | D8: =IF(F6="Wood",VLOOKUP(F12,$M$8:$P$19,2,TRUE),IF(F6="Steel",VLOOKUP(F12,$M$8:$P$19,3,TRUE),VLOOKUP(F12,$M$8:$P$19,4,TRUE))) ->  | E8: Improve/Structure Name | F8: =OFFSET(' Data Entry-Cost Worksheet'!$A$1,MATCH(A4,' Data Entry-Cost Worksheet'!A:A,0)-1,1,1,1) -> 0 | M8: 50000 | N8: 2.66 | O8: 2.92 | P8: 3.57 | R8: 50000 | S8: 75000
E9: Year Built | F9: =OFFSET(' Data Entry-Cost Worksheet'!$A$1,MATCH(A4,' Data Entry-Cost Worksheet'!$A:$A,0)-1,2,1,1) -> 0 | M9: 75000 | N9: 2.5 | O9: 2.79 | P9: 3.36 | R9: 75000 | S9: 100000
A10: Top or Range | B10: =VLOOKUP(B8,$R$7:$S$19,2,FALSE) ->  | D10: =IF(F6="Wood",VLOOKUP(B10,$M$8:$P$19,2,TRUE),IF(F6="Steel",VLOOKUP(B10,$M$8:$P$19,3,TRUE),VLOOKUP(B10,$M$8:$P$19,4,TRUE))) ->  | E10: Total Bushel Capacity | F10: =OFFSET(' Data Entry-Cost Worksheet'!$A$1,MATCH(A4,' Data Entry-Cost Worksheet'!$A:$A,0)-1,3,1,1) -> 0 | M10: 100000 | N10: 2.35 | O10: 2.66 | P10: 3.23 | R10: 100000 | S10: 150000
A11: RATE for Cost Worksheet per Structure | E11: # Imp/Struct Identical Units | F11: =OFFSET(' Data Entry-Cost Worksheet'!$A$1,MATCH(A4,' Data Entry-Cost Worksheet'!$A:$A,0)-1,4,1,1) -> 0 | M11: 150000 | N11: 2.24 | O11: 2.53 | P11: 3.05 | R11: 150000 | S11: 200000
A12: RATE CALCS | B12: Flat Storage $/Bu | D12: =_xlfn.SWITCH(F6,$N$7,_xlfn.IFS(F12<$M$8,$N$8,F12>=$M$19,$N$19,F12<$M$19,A17), $O$7,_xlfn.IFS(F12<$M$8,$O$8,F12>=$M$19,$O$19,F12<$M$19,A17), $P$7,_xlfn.IFS(F12<$M$8,$P$8,F12>=$M$19,$P$19,F12<$M$19,A17),"") ->  | E12: Bu Capacity per Unit | F12: =F10/F11 ->  | M12: 200000 | N12: 2.11 | O12: 2.4 | P12: 2.92 | R12: 200000 | S12: 250000
A13: =B10-B8 ->  | B13: Adjusted $/Bu | D13: =IF(F7=0,"",D12+F7) ->  | M13: 250000 | N13: 2.06 | O13: 2.35 | P13: 2.84 | R13: 250000 | S13: 300000
A14: =D8-D10 ->  | B14: Notes: | M14: 300000 | N14: 1.98 | O14: 2.27 | P14: 2.79 | R14: 300000 | S14: 400000
A15: =A14/A13 ->  | M15: 400000 | N15: 1.89 | O15: 2.22 | P15: 2.66 | R15: 400000 | S15: 500000
A16: =(F12-B8)*A15 ->  | M16: 500000 | N16: 1.83 | O16: 2.12 | P16: 2.61 | R16: 500000 | S16: 750000
A17: =D8-A16 ->  | M17: 750000 | N17: 1.72 | O17: 2.01 | P17: 2.47 | R17: 750000 | S17: 1000000
M18: 1000000 | N18: 1.63 | O18: 1.95 | P18: 2.34 | R18: 1000000 | S18: 2000000
M19: 2000000 | N19: 1.49 | O19: 1.76 | P19: 2.12 | R19: 2000000
A20: =LEFT(OFFSET(A20,-16,0),1)& RIGHT(OFFSET(A20,-16,0),LEN(OFFSET(A20,-16,0))-1) +1 -> F2 | B20: =D28+F23 -> 
A21: Interpolation Model for Flat Storage | E21: ENTER/VERIFY TO CALCULATE RATE
A22: DO NOT REMOVE FORMULAS | E22: Type of Structure | F22: Wood
B23: Bushel | D23: Cost/Bu | E23: $/Bu Adjustment
A24: Bottom of Range | B24: =IF(F22="Wood",_xlfn.XLOOKUP(D24,$N$8:$N$19,$M$8:$M$19,"",0,1),IF(F22="Steel",_xlfn.XLOOKUP(D24,$O$8:$O$19,$M$8:$M$19,"",0,1),_xlfn.XLOOKUP(D24,$P$8:$P$19,$M$8:$M$19,"",0,1))) ->  | D24: =IF(F22="Wood",VLOOKUP(F28,$M$8:$P$19,2,TRUE),IF(F22="Steel",VLOOKUP(F28,$M$8:$P$19,3,TRUE),VLOOKUP(F28,$M$8:$P$19,4,TRUE))) ->  | E24: Improve/Structure Name | F24: =OFFSET(' Data Entry-Cost Worksheet'!$A$1,MATCH(A20,' Data Entry-Cost Worksheet'!A:A,0)-1,1,1,1) -> 0
E25: Year Built | F25: =OFFSET(' Data Entry-Cost Worksheet'!$A$1,MATCH(A20,' Data Entry-Cost Worksheet'!$A:$A,0)-1,2,1,1) -> 0
A26: Top or Range | B26: =VLOOKUP(B24,$R$7:$S$19,2,FALSE) ->  | D26: =IF(F22="Wood",VLOOKUP(B26,$M$8:$P$19,2,TRUE),IF(F22="Steel",VLOOKUP(B26,$M$8:$P$19,3,TRUE),VLOOKUP(B26,$M$8:$P$19,4,TRUE))) ->  | E26: Total Bushel Capacity | F26: =OFFSET(' Data Entry-Cost Worksheet'!$A$1,MATCH(A20,' Data Entry-Cost Worksheet'!$A:$A,0)-1,3,1,1) -> 0
A27: RATE for Cost Worksheet per Structure | E27: # Imp/Struct Identical Units | F27: =OFFSET(' Data Entry-Cost Worksheet'!$A$1,MATCH(A20,' Data Entry-Cost Worksheet'!$A:$A,0)-1,4,1,1) -> 0
A28: RATE CALCS | B28: Flat Storage $/Bu | D28: =_xlfn.SWITCH(F22,$N$7,_xlfn.IFS(F28<$M$8,$N$8,F28>=$M$19,$N$19,F28<$M$19,A33), $O$7,_xlfn.IFS(F28<$M$8,$O$8,F28>=$M$19,$O$19,F28<$M$19,A33), $P$7,_xlfn.IFS(F28<$M$8,$P$8,F28>=$M$19,$P$19,F28<$M$19,A33),"") ->  | E28: Bu Capacity per Unit | F28: =F26/F27 -> 
A29: =B26-B24 ->  | B29: Adjusted $/Bu | D29: =IF(F23=0,"",D28+F23) -> 
A30: =D24-D26 ->  | B30: Notes:
A31: =A30/A29 -> 
A32: =(F28-B24)*A31 -> 
A33: =D24-A32 -> 
A36: =LEFT(OFFSET(A36,-16,0),1)& RIGHT(OFFSET(A36,-16,0),LEN(OFFSET(A36,-16,0))-1) +1 -> F3 | B36: =D44+F39 -> 
A37: Interpolation Model for Flat Storage | E37: ENTER/VERIFY TO CALCULATE RATE
A38: DO NOT REMOVE FORMULAS | E38: Type of Structure | F38: Wood
B39: Bushel | D39: Cost/Bu | E39: $/Bu Adjustment
A40: Bottom of Range | B40: =IF(F38="Wood",_xlfn.XLOOKUP(D40,$N$8:$N$19,$M$8:$M$19,"",0,1),IF(F38="Steel",_xlfn.XLOOKUP(D40,$O$8:$O$19,$M$8:$M$19,"",0,1),_xlfn.XLOOKUP(D40,$P$8:$P$19,$M$8:$M$19,"",0,1))) ->  | D40: =IF(F38="Wood",VLOOKUP(F44,$M$8:$P$19,2,TRUE),IF(F38="Steel",VLOOKUP(F44,$M$8:$P$19,3,TRUE),VLOOKUP(F44,$M$8:$P$19,4,TRUE))) ->  | E40: Improve/Structure Name | F40: =OFFSET(' Data Entry-Cost Worksheet'!$A$1,MATCH(A36,' Data Entry-Cost Worksheet'!A:A,0)-1,1,1,1) -> 0
E41: Year Built | F41: =OFFSET(' Data Entry-Cost Worksheet'!$A$1,MATCH(A36,' Data Entry-Cost Worksheet'!$A:$A,0)-1,2,1,1) -> 0
A42: Top or Range | B42: =VLOOKUP(B40,$R$7:$S$19,2,FALSE) ->  | D42: =IF(F38="Wood",VLOOKUP(B42,$M$8:$P$19,2,TRUE),IF(F38="Steel",VLOOKUP(B42,$M$8:$P$19,3,TRUE),VLOOKUP(B42,$M$8:$P$19,4,TRUE))) ->  | E42: Total Bushel Capacity | F42: =OFFSET(' Data Entry-Cost Worksheet'!$A$1,MATCH(A36,' Data Entry-Cost Worksheet'!$A:$A,0)-1,3,1,1) -> 0
A43: RATE for Cost Worksheet per Structure | E43: # Imp/Struct Identical Units | F43: =OFFSET(' Data Entry-Cost Worksheet'!$A$1,MATCH(A36,' Data Entry-Cost Worksheet'!$A:$A,0)-1,4,1,1) -> 0
A44: RATE CALCS | B44: Flat Storage $/Bu | D44: =_xlfn.SWITCH(F38,$N$7,_xlfn.IFS(F44<$M$8,$N$8,F44>=$M$19,$N$19,F44<$M$19,A49), $O$7,_xlfn.IFS(F44<$M$8,$O$8,F44>=$M$19,$O$19,F44<$M$19,A49), $P$7,_xlfn.IFS(F44<$M$8,$P$8,F44>=$M$19,$P$19,F44<$M$19,A49),"") ->  | E44: Bu Capacity per Unit | F44: =F42/F43 -> 
A45: =B42-B40 ->  | B45: Adjusted $/Bu | D45: =IF(F39=0,"",D44+F39) -> 
A46: =D40-D42 ->  | B46: Notes:
A47: =A46/A45 -> 
A48: =(F44-B40)*A47 -> 
A49: =D40-A48 -> 
A52: =LEFT(OFFSET(A52,-16,0),1)& RIGHT(OFFSET(A52,-16,0),LEN(OFFSET(A52,-16,0))-1) +1 -> F4 | B52: =D60+F55 -> 
A53: Interpolation Model for Flat Storage | E53: ENTER/VERIFY TO CALCULATE RATE
A54: DO NOT REMOVE FORMULAS | E54: Type of Structure | F54: Steel
B55: Bushel | D55: Cost/Bu | E55: $/Bu Adjustment
A56: Bottom of Range | B56: =IF(F54="Wood",_xlfn.XLOOKUP(D56,$N$8:$N$19,$M$8:$M$19,"",0,1),IF(F54="Steel",_xlfn.XLOOKUP(D56,$O$8:$O$19,$M$8:$M$19,"",0,1),_xlfn.XLOOKUP(D56,$P$8:$P$19,$M$8:$M$19,"",0,1))) ->  | D56: =IF(F54="Wood",VLOOKUP(F60,$M$8:$P$19,2,TRUE),IF(F54="Steel",VLOOKUP(F60,$M$8:$P$19,3,TRUE),VLOOKUP(F60,$M$8:$P$19,4,TRUE))) ->  | E56: Improve/Structure Name | F56: =OFFSET(' Data Entry-Cost Worksheet'!$A$1,MATCH(A52,' Data Entry-Cost Worksheet'!A:A,0)-1,1,1,1) -> 0
E57: Year Built | F57: =OFFSET(' Data Entry-Cost Worksheet'!$A$1,MATCH(A52,' Data Entry-Cost Worksheet'!$A:$A,0)-1,2,1,1) -> 0
A58: Top or Range | B58: =VLOOKUP(B56,$R$7:$S$19,2,FALSE) ->  | D58: =IF(F54="Wood",VLOOKUP(B58,$M$8:$P$19,2,TRUE),IF(F54="Steel",VLOOKUP(B58,$M$8:$P$19,3,TRUE),VLOOKUP(B58,$M$8:$P$19,4,TRUE))) ->  | E58: Total Bushel Capacity | F58: =OFFSET(' Data Entry-Cost Worksheet'!$A$1,MATCH(A52,' Data Entry-Cost Worksheet'!$A:$A,0)-1,3,1,1) -> 0
A59: RATE for Cost Worksheet per Structure | E59: # Imp/Struct Identical Units | F59: =OFFSET(' Data Entry-Cost Worksheet'!$A$1,MATCH(A52,' Data Entry-Cost Worksheet'!$A:$A,0)-1,4,1,1) -> 0
A60: RATE CALCS | B60: Flat Storage $/Bu | D60: =_xlfn.SWITCH(F54,$N$7,_xlfn.IFS(F60<$M$8,$N$8,F60>=$M$19,$N$19,F60<$M$19,A65), $O$7,_xlfn.IFS(F60<$M$8,$O$8,F60>=$M$19,$O$19,F60<$M$19,A65), $P$7,_xlfn.IFS(F60<$M$8,$P$8,F60>=$M$19,$P$19,F60<$M$19,A65),"") ->  | E60: Bu Capacity per Unit | F60: =F58/F59 -> 
A61: =B58-B56 ->  | B61: Adjusted $/Bu | D61: =IF(F55=0,"",D60+F55) -> 
A62: =D56-D58 ->  | B62: Notes:
A63: =A62/A61 -> 
A64: =(F60-B56)*A63 -> 
A65: =D56-A64 -> 
A68: =LEFT(OFFSET(A68,-16,0),1)& RIGHT(OFFSET(A68,-16,0),LEN(OFFSET(A68,-16,0))-1) +1 -> F5 | B68: =D76+F71 -> 
A69: Interpolation Model for Flat Storage | E69: ENTER/VERIFY TO CALCULATE RATE
A70: DO NOT REMOVE FORMULAS | E70: Type of Structure | F70: Steel
B71: Bushel | D71: Cost/Bu | E71: $/Bu Adjustment
A72: Bottom of Range | B72: =IF(F70="Wood",_xlfn.XLOOKUP(D72,$N$8:$N$19,$M$8:$M$19,"",0,1),IF(F70="Steel",_xlfn.XLOOKUP(D72,$O$8:$O$19,$M$8:$M$19,"",0,1),_xlfn.XLOOKUP(D72,$P$8:$P$19,$M$8:$M$19,"",0,1))) ->  | D72: =IF(F70="Wood",VLOOKUP(F76,$M$8:$P$19,2,TRUE),IF(F70="Steel",VLOOKUP(F76,$M$8:$P$19,3,TRUE),VLOOKUP(F76,$M$8:$P$19,4,TRUE))) ->  | E72: Improve/Structure Name | F72: =OFFSET(' Data Entry-Cost Worksheet'!$A$1,MATCH(A68,' Data Entry-Cost Worksheet'!A:A,0)-1,1,1,1) -> 0
E73: Year Built | F73: =OFFSET(' Data Entry-Cost Worksheet'!$A$1,MATCH(A68,' Data Entry-Cost Worksheet'!$A:$A,0)-1,2,1,1) -> 0
A74: Top or Range | B74: =VLOOKUP(B72,$R$7:$S$19,2,FALSE) ->  | D74: =IF(F70="Wood",VLOOKUP(B74,$M$8:$P$19,2,TRUE),IF(F70="Steel",VLOOKUP(B74,$M$8:$P$19,3,TRUE),VLOOKUP(B74,$M$8:$P$19,4,TRUE))) ->  | E74: Total Bushel Capacity | F74: =OFFSET(' Data Entry-Cost Worksheet'!$A$1,MATCH(A68,' Data Entry-Cost Worksheet'!$A:$A,0)-1,3,1,1) -> 0
A75: RATE for Cost Worksheet per Structure | E75: # Imp/Struct Identical Units | F75: =OFFSET(' Data Entry-Cost Worksheet'!$A$1,MATCH(A68,' Data Entry-Cost Worksheet'!$A:$A,0)-1,4,1,1) -> 0
A76: RATE CALCS | B76: Flat Storage $/Bu | D76: =_xlfn.SWITCH(F70,$N$7,_xlfn.IFS(F76<$M$8,$N$8,F76>=$M$19,$N$19,F76<$M$19,A81), $O$7,_xlfn.IFS(F76<$M$8,$O$8,F76>=$M$19,$O$19,F76<$M$19,A81), $P$7,_xlfn.IFS(F76<$M$8,$P$8,F76>=$M$19,$P$19,F76<$M$19,A81),"") ->  | E76: Bu Capacity per Unit | F76: =F74/F75 -> 
A77: =B74-B72 ->  | B77: Adjusted $/Bu | D77: =IF(F71=0,"",D76+F71) -> 
A78: =D72-D74 ->  | B78: Notes:
A79: =A78/A77 -> 
A80: =(F76-B72)*A79 -> 
A81: =D72-A80 -> 
A84: =LEFT(OFFSET(A84,-16,0),1)& RIGHT(OFFSET(A84,-16,0),LEN(OFFSET(A84,-16,0))-1) +1 -> F6 | B84: =D92+F87 -> 
A85: Interpolation Model for Flat Storage | E85: ENTER/VERIFY TO CALCULATE RATE
A86: DO NOT REMOVE FORMULAS | E86: Type of Structure | F86: Steel
B87: Bushel | D87: Cost/Bu | E87: $/Bu Adjustment
A88: Bottom of Range | B88: =IF(F86="Wood",_xlfn.XLOOKUP(D88,$N$8:$N$19,$M$8:$M$19,"",0,1),IF(F86="Steel",_xlfn.XLOOKUP(D88,$O$8:$O$19,$M$8:$M$19,"",0,1),_xlfn.XLOOKUP(D88,$P$8:$P$19,$M$8:$M$19,"",0,1))) ->  | D88: =IF(F86="Wood",VLOOKUP(F92,$M$8:$P$19,2,TRUE),IF(F86="Steel",VLOOKUP(F92,$M$8:$P$19,3,TRUE),VLOOKUP(F92,$M$8:$P$19,4,TRUE))) ->  | E88: Improve/Structure Name | F88: =OFFSET(' Data Entry-Cost Worksheet'!$A$1,MATCH(A84,' Data Entry-Cost Worksheet'!A:A,0)-1,1,1,1) -> 0
E89: Year Built | F89: =OFFSET(' Data Entry-Cost Worksheet'!$A$1,MATCH(A84,' Data Entry-Cost Worksheet'!$A:$A,0)-1,2,1,1) -> 0
A90: Top or Range | B90: =VLOOKUP(B88,$R$7:$S$19,2,FALSE) ->  | D90: =IF(F86="Wood",VLOOKUP(B90,$M$8:$P$19,2,TRUE),IF(F86="Steel",VLOOKUP(B90,$M$8:$P$19,3,TRUE),VLOOKUP(B90,$M$8:$P$19,4,TRUE))) ->  | E90: Total Bushel Capacity | F90: =OFFSET(' Data Entry-Cost Worksheet'!$A$1,MATCH(A84,' Data Entry-Cost Worksheet'!$A:$A,0)-1,3,1,1) -> 0
A91: RATE for Cost Worksheet per Structure | E91: # Imp/Struct Identical Units | F91: =OFFSET(' Data Entry-Cost Worksheet'!$A$1,MATCH(A84,' Data Entry-Cost Worksheet'!$A:$A,0)-1,4,1,1) -> 0
A92: RATE CALCS | B92: Flat Storage $/Bu | D92: =_xlfn.SWITCH(F86,$N$7,_xlfn.IFS(F92<$M$8,$N$8,F92>=$M$19,$N$19,F92<$M$19,A97), $O$7,_xlfn.IFS(F92<$M$8,$O$8,F92>=$M$19,$O$19,F92<$M$19,A97), $P$7,_xlfn.IFS(F92<$M$8,$P$8,F92>=$M$19,$P$19,F92<$M$19,A97),"") ->  | E92: Bu Capacity per Unit | F92: =F90/F91 -> 
A93: =B90-B88 ->  | B93: Adjusted $/Bu | D93: =IF(F87=0,"",D92+F87) -> 
A94: =D88-D90 ->  | B94: Notes:
A95: =A94/A93 -> 
A96: =(F92-B88)*A95 -> 
A97: =D88-A96 -> 
A100: =LEFT(OFFSET(A100,-16,0),1)& RIGHT(OFFSET(A100,-16,0),LEN(OFFSET(A100,-16,0))-1) +1 -> F7 | B100: =D108+F103 -> 
A101: Interpolation Model for Flat Storage | E101: ENTER/VERIFY TO CALCULATE RATE
A102: DO NOT REMOVE FORMULAS | E102: Type of Structure | F102: Concrete
B103: Bushel | D103: Cost/Bu | E103: $/Bu Adjustment
A104: Bottom of Range | B104: =IF(F102="Wood",_xlfn.XLOOKUP(D104,$N$8:$N$19,$M$8:$M$19,"",0,1),IF(F102="Steel",_xlfn.XLOOKUP(D104,$O$8:$O$19,$M$8:$M$19,"",0,1),_xlfn.XLOOKUP(D104,$P$8:$P$19,$M$8:$M$19,"",0,1))) ->  | D104: =IF(F102="Wood",VLOOKUP(F108,$M$8:$P$19,2,TRUE),IF(F102="Steel",VLOOKUP(F108,$M$8:$P$19,3,TRUE),VLOOKUP(F108,$M$8:$P$19,4,TRUE))) ->  | E104: Improve/Structure Name | F104: =OFFSET(' Data Entry-Cost Worksheet'!$A$1,MATCH(A100,' Data Entry-Cost Worksheet'!A:A,0)-1,1,1,1) -> 0
E105: Year Built | F105: =OFFSET(' Data Entry-Cost Worksheet'!$A$1,MATCH(A100,' Data Entry-Cost Worksheet'!$A:$A,0)-1,2,1,1) -> 0
A106: Top or Range | B106: =VLOOKUP(B104,$R$7:$S$19,2,FALSE) ->  | D106: =IF(F102="Wood",VLOOKUP(B106,$M$8:$P$19,2,TRUE),IF(F102="Steel",VLOOKUP(B106,$M$8:$P$19,3,TRUE),VLOOKUP(B106,$M$8:$P$19,4,TRUE))) ->  | E106: Total Bushel Capacity | F106: =OFFSET(' Data Entry-Cost Worksheet'!$A$1,MATCH(A100,' Data Entry-Cost Worksheet'!$A:$A,0)-1,3,1,1) -> 0
A107: RATE for Cost Worksheet per Structure | E107: # Imp/Struct Identical Units | F107: =OFFSET(' Data Entry-Cost Worksheet'!$A$1,MATCH(A100,' Data Entry-Cost Worksheet'!$A:$A,0)-1,4,1,1) -> 0
A108: RATE CALCS | B108: Flat Storage $/Bu | D108: =_xlfn.SWITCH(F102,$N$7,_xlfn.IFS(F108<$M$8,$N$8,F108>=$M$19,$N$19,F108<$M$19,A113), $O$7,_xlfn.IFS(F108<$M$8,$O$8,F108>=$M$19,$O$19,F108<$M$19,A113), $P$7,_xlfn.IFS(F108<$M$8,$P$8,F108>=$M$19,$P$19,F108<$M$19,A113),"") ->  | E108: Bu Capacity per Unit | F108: =F106/F107 -> 
A109: =B106-B104 ->  | B109: Adjusted $/Bu | D109: =IF(F103=0,"",D108+F103) -> 
A110: =D104-D106 ->  | B110: Notes:
A111: =A110/A109 -> 
A112: =(F108-B104)*A111 -> 
A113: =D104-A112 -> 
A116: =LEFT(OFFSET(A116,-16,0),1)& RIGHT(OFFSET(A116,-16,0),LEN(OFFSET(A116,-16,0))-1) +1 -> F8 | B116: =D124+F119 -> 
A117: Interpolation Model for Flat Storage | E117: ENTER/VERIFY TO CALCULATE RATE
A118: DO NOT REMOVE FORMULAS | E118: Type of Structure | F118: Concrete
B119: Bushel | D119: Cost/Bu | E119: $/Bu Adjustment
A120: Bottom of Range | B120: =IF(F118="Wood",_xlfn.XLOOKUP(D120,$N$8:$N$19,$M$8:$M$19,"",0,1),IF(F118="Steel",_xlfn.XLOOKUP(D120,$O$8:$O$19,$M$8:$M$19,"",0,1),_xlfn.XLOOKUP(D120,$P$8:$P$19,$M$8:$M$19,"",0,1))) ->  | D120: =IF(F118="Wood",VLOOKUP(F124,$M$8:$P$19,2,TRUE),IF(F118="Steel",VLOOKUP(F124,$M$8:$P$19,3,TRUE),VLOOKUP(F124,$M$8:$P$19,4,TRUE))) ->  | E120: Improve/Structure Name | F120: =OFFSET(' Data Entry-Cost Worksheet'!$A$1,MATCH(A116,' Data Entry-Cost Worksheet'!A:A,0)-1,1,1,1) -> 0
E121: Year Built | F121: =OFFSET(' Data Entry-Cost Worksheet'!$A$1,MATCH(A116,' Data Entry-Cost Worksheet'!$A:$A,0)-1,2,1,1) -> 0
A122: Top or Range | B122: =VLOOKUP(B120,$R$7:$S$19,2,FALSE) ->  | D122: =IF(F118="Wood",VLOOKUP(B122,$M$8:$P$19,2,TRUE),IF(F118="Steel",VLOOKUP(B122,$M$8:$P$19,3,TRUE),VLOOKUP(B122,$M$8:$P$19,4,TRUE))) ->  | E122: Total Bushel Capacity | F122: =OFFSET(' Data Entry-Cost Worksheet'!$A$1,MATCH(A116,' Data Entry-Cost Worksheet'!$A:$A,0)-1,3,1,1) -> 0
A123: RATE for Cost Worksheet per Structure | E123: # Imp/Struct Identical Units | F123: =OFFSET(' Data Entry-Cost Worksheet'!$A$1,MATCH(A116,' Data Entry-Cost Worksheet'!$A:$A,0)-1,4,1,1) -> 0
A124: RATE CALCS | B124: Flat Storage $/Bu | D124: =_xlfn.SWITCH(F118,$N$7,_xlfn.IFS(F124<$M$8,$N$8,F124>=$M$19,$N$19,F124<$M$19,A129), $O$7,_xlfn.IFS(F124<$M$8,$O$8,F124>=$M$19,$O$19,F124<$M$19,A129), $P$7,_xlfn.IFS(F124<$M$8,$P$8,F124>=$M$19,$P$19,F124<$M$19,A129),"") ->  | E124: Bu Capacity per Unit | F124: =F122/F123 -> 
A125: =B122-B120 ->  | B125: Adjusted $/Bu | D125: =IF(F119=0,"",D124+F119) -> 
A126: =D120-D122 ->  | B126: Notes:
A127: =A126/A125 -> 
A128: =(F124-B120)*A127 -> 
A129: =D120-A128 -> 
A132: =LEFT(OFFSET(A132,-16,0),1)& RIGHT(OFFSET(A132,-16,0),LEN(OFFSET(A132,-16,0))-1) +1 -> F9 | B132: =D140+F135 -> 
A133: Interpolation Model for Flat Storage | E133: ENTER/VERIFY TO CALCULATE RATE
A134: DO NOT REMOVE FORMULAS | E134: Type of Structure | F134: Concrete
B135: Bushel | D135: Cost/Bu | E135: $/Bu Adjustment
A136: Bottom of Range | B136: =IF(F134="Wood",_xlfn.XLOOKUP(D136,$N$8:$N$19,$M$8:$M$19,"",0,1),IF(F134="Steel",_xlfn.XLOOKUP(D136,$O$8:$O$19,$M$8:$M$19,"",0,1),_xlfn.XLOOKUP(D136,$P$8:$P$19,$M$8:$M$19,"",0,1))) ->  | D136: =IF(F134="Wood",VLOOKUP(F140,$M$8:$P$19,2,TRUE),IF(F134="Steel",VLOOKUP(F140,$M$8:$P$19,3,TRUE),VLOOKUP(F140,$M$8:$P$19,4,TRUE))) ->  | E136: Improve/Structure Name | F136: =OFFSET(' Data Entry-Cost Worksheet'!$A$1,MATCH(A132,' Data Entry-Cost Worksheet'!A:A,0)-1,1,1,1) -> 0
E137: Year Built | F137: =OFFSET(' Data Entry-Cost Worksheet'!$A$1,MATCH(A132,' Data Entry-Cost Worksheet'!$A:$A,0)-1,2,1,1) -> 0
A138: Top or Range | B138: =VLOOKUP(B136,$R$7:$S$19,2,FALSE) ->  | D138: =IF(F134="Wood",VLOOKUP(B138,$M$8:$P$19,2,TRUE),IF(F134="Steel",VLOOKUP(B138,$M$8:$P$19,3,TRUE),VLOOKUP(B138,$M$8:$P$19,4,TRUE))) ->  | E138: Total Bushel Capacity | F138: =OFFSET(' Data Entry-Cost Worksheet'!$A$1,MATCH(A132,' Data Entry-Cost Worksheet'!$A:$A,0)-1,3,1,1) -> 0
A139: RATE for Cost Worksheet per Structure | E139: # Imp/Struct Identical Units | F139: =OFFSET(' Data Entry-Cost Worksheet'!$A$1,MATCH(A132,' Data Entry-Cost Worksheet'!$A:$A,0)-1,4,1,1) -> 0
A140: RATE CALCS | B140: Flat Storage $/Bu | D140: =_xlfn.SWITCH(F134,$N$7,_xlfn.IFS(F140<$M$8,$N$8,F140>=$M$19,$N$19,F140<$M$19,A145), $O$7,_xlfn.IFS(F140<$M$8,$O$8,F140>=$M$19,$O$19,F140<$M$19,A145), $P$7,_xlfn.IFS(F140<$M$8,$P$8,F140>=$M$19,$P$19,F140<$M$19,A145),"") ->  | E140: Bu Capacity per Unit | F140: =F138/F139 -> 
A141: =B138-B136 ->  | B141: Adjusted $/Bu | D141: =IF(F135=0,"",D140+F135) -> 
A142: =D136-D138 ->  | B142: Notes:
A143: =A142/A141 -> 
A144: =(F140-B136)*A143 -> 
A145: =D136-A144 -> 

Sheet Misc-Hopper-Bulk Bins-Tanks
A1: G1 | B1: =D9+F5 ->  | H1: DIAMETER REQUIRED | Q1: Grain Elevator/Annex | Y1: Steel Hopper | AF1: Fiberglass Hopper | AN1: Scales | AP1: , Truck, R.R., Hopper | AU1: Type | AV1: Width | AW1: Next W | AX1: Cost/LF | BA1: Ground Adjustments 6
A2: Interpolation Model for Steel Hopper Bottom Bins | E2: ENTER/VERIFY TO CALCULATE RATE | H2: Enter Diameter and Height to calculate $/Bu rate per Imp/Struct using actual bushels. If actual capacity unknown, calc bushel will override for rate | L2: Hopper Bin costs include roof, manhole & ladder, steel structural supports & concrete footings | Q2: MS Commercial Section 17 Pg 55 | T2: 2023-05-23 | Y2: Bin Diameter | Z2: Eave Height | AA2: Bushel Capacity | AB2: Next Bu Ca | AC2: Price | AD2: $/Bu | AF2: Bin Diameter | AG2: Eave Height | AH2: Bushel Capacity | AI2: Next Bu Ca | AJ2: Price | AK2: $/Bu | AN2: Type | AO2: Capacity | AP2: Next Cap | AQ2: Cost | AR2: Cost/Cap | AT2: A | AU2: =$AT$2 -> A | AV2: 1 | AW2: 20 | AX2: 498 | BA2: 8 | BB2: =S96 -> 110
A3: DO NOT REMOVE FORMULAS | E3: Diameter (see blue box) | F3: =I6 -> 0 | L3: Steel tank costs DO NOT include any loading system or other features | Q3: Fiberglass Hopper Bottom Feed Bins | Y3: 6 | Z3: 1 | AA3: 1 | AB3: 120 | AC3: 2600 | AD3: 21.66666667 | AF3: 6 | AG3: 1 | AH3: 1 | AI3: 104 | AJ3: 2600 | AK3: 25 | AN3: Platform | AO3: 1 | AP3: 1000 | AR3: 2.35 | AT3: B | AU3: =$AT$2 -> A | AV3: 20 | AW3: 30 | AX3: 498 | BA3: 12 | BB3: =S97 -> 160
B4: Bushel | D4: Cost/Bu | E4: Height (see blue box) | F4: =I7 -> 0 | L4: Truck & track scale costs include reinforced concrete pit & platform with steel scale mechanism | Q4: Bin Diameter | R4: Eave Height | S4: Bushel Capacity | T4: Price | Y4: 6 | Z4: 10 | AA4: 120 | AB4: 240 | AC4: 2600 | AD4: =AC4/AA4 -> 21.66666667 | AF4: 6 | AG4: 11 | AH4: 104 | AI4: 104 | AJ4: 2600 | AK4: =AJ4/AH4 -> 25 | AN4: Platform | AO4: 1000 | AP4: 2000 | AQ4: 2350 | AR4: =AQ4/AO4 -> 2.35 | AT4: C | AU4: A | AV4: 30 | AW4: 40 | AX4: 560 | BA4: 16 | BB4: 214
A5: Bottom of Range | B5: =VLOOKUP(F10,_xlfn._xlws.FILTER($AA$3:$AC$27,$Y$3:$Y$27=F3),1,TRUE) ->  | D5: =VLOOKUP(B5,_xlfn._xlws.FILTER($AA$3:$AD$27,$Y$3:$Y$27=F3),4,TRUE) ->  | E5: $/Bu Adjustment | L5: Railroad spurs costs include rails, ties, ballast, spikes and alignment | Q5: 6' | R5: 11 | S5: 104 | T5: 2600 | Y5: 6 | Z5: 16 | AA5: 240 | AB5: 360 | AC5: 3675 | AD5: =AC5/AA5 -> 15.3125 | AF5: 7 | AG5: 1 | AH5: 1 | AI5: 183 | AJ5: 3550 | AK5: 19.3989071 | AN5: Platform | AO5: 2000 | AP5: 4000 | AQ5: 3825 | AR5: =AQ5/AO5 -> 1.9125 | AT5: D | AU5: A | AV5: 40 | AW5: 50 | AX5: 620
E6: Improve/Structure Name | F6: =OFFSET(' Data Entry-Cost Worksheet'!$A$1,MATCH(A1,' Data Entry-Cost Worksheet'!$A:$A,0)-1,1,1,1) -> 0 | H6: Diameter | Q6: 7' | R6: 13 | S6: 183 | T6: 3550 | Y6: 6 | Z6: 21 | AA6: 360 | AB6: 480 | AC6: 4175 | AD6: 11.59722222 | AF6: 7 | AG6: 13 | AH6: 183 | AI6: 183 | AJ6: 3550 | AK6: 19.3989071 | AN6: Platform | AO6: 4000 | AP6: 6000 | AQ6: 13900 | AR6: 3.475 | AT6: E | AU6: A | AV6: 50 | AW6: 60 | AX6: 660 | BA6: y1 + (x - x1) ⨯ (y2 - y1) / (x2 - x1)
A7: Top or Range | B7: =VLOOKUP(F10,_xlfn._xlws.FILTER($AA$3:$AC$27,$Y$3:$Y$27=F3),2,TRUE) ->  | D7: =VLOOKUP(B7,_xlfn._xlws.FILTER($AA$3:$AD$27,$Y$3:$Y$27=F3),4,TRUE) ->  | E7: Year Built | F7: =OFFSET(' Data Entry-Cost Worksheet'!$A$1,MATCH(A1,' Data Entry-Cost Worksheet'!$A:$A,0)-1,2,1,1) -> 0 | H7: Height | L7: Grain Elevator/Annex | Q7: 8' | R7: 16 | S7: 321 | T7: 5350 | Y7: 6 | Z7: 25 | AA7: 480 | AB7: 600 | AC7: 4700 | AD7: 9.791666667 | AF7: 8 | AG7: 1 | AH7: 1 | AI7: 321 | AJ7: 5350 | AK7: 16.66666667 | AN7: Platform | AO7: 6000 | AP7: 10000 | AQ7: 18500 | AR7: 3.083333333 | AU7: A | AV7: 60 | AW7: 80 | AX7: 685
A8: RATE for Cost Worksheet per Structure | E8: Total Bushel Capacity | F8: =IF(OFFSET(' Data Entry-Cost Worksheet'!$A$1,MATCH(A1,' Data Entry-Cost Worksheet'!$A:$A,0)-1,3,1,1) = "",I8*F9,OFFSET(' Data Entry-Cost Worksheet'!$A$1,MATCH(A1,' Data Entry-Cost Worksheet'!$A:$A,0)-1,3,1,1)) ->  | H8: Calc Bushels | I8: =IF(I7="","",(I6/2)^2*3.1416*0.8036*I7) ->  | L8: MS Commercial Section 17 Pg 55 | O8: 2023-05-23 | R8: 21 | S8: 422 | T8: 6400 | Y8: 6 | Z8: 28 | AA8: 600 | AB8: 600 | AC8: 5200 | AD8: 8.666666667 | AF8: 8 | AG8: 16 | AH8: 321 | AI8: 422 | AJ8: 5350 | AK8: 16.66666667 | AN8: Platform | AO8: 10000 | AP8: 20000 | AQ8: 26700 | AR8: 2.67 | AU8: A | AV8: 80 | AW8: 100 | AX8: 760
A9: Rate Calcs | B9: Steel Hopper $/Bu | D9: =_xlfn.SWITCH(B5,B7,D7,1,D5,A14) ->  | E9: # Imp/Struct Identical Units | F9: =OFFSET(' Data Entry-Cost Worksheet'!$A$1,MATCH(A1,' Data Entry-Cost Worksheet'!$A:$A,0)-1,4,1,1) -> 0 | L9: Steel Hopper Bottom Feed Bins | Q9: 10' | R9: 19 | S9: 442 | T9: 15600 | Y9: 7 | Z9: 1 | AA9: 1 | AB9: 157 | AC9: 3550 | AD9: 22.61146497 | AF9: 8 | AG9: 21 | AH9: 422 | AI9: 422 | AJ9: 6400 | AK9: 15.16587678 | AN9: Platform | AO9: 20000 | AP9: 20000 | AQ9: 43200 | AR9: 2.16 | AU9: A | AV9: 100 | AW9: 100 | AX9: 795
A10: =B7-B5 ->  | B10: Adjusted $/Bu | D10: =IF(F5=0,"",D9+F5) ->  | E10: Bu Capacity per Unit | F10: =IF(F9=0,"",F8/F9) ->  | L10: Bin Diameter | M10: Eave Height | N10: Bushel Capacity | O10: Price | R10: 21 | S10: 563 | T10: 17600 | Y10: 7 | Z10: 11 | AA10: 157 | AB10: 239 | AC10: 3550 | AD10: 22.61146497 | AF10: 10 | AG10: 1 | AH10: 1 | AI10: 442 | AJ10: 15600 | AK10: 35.29411765 | AN10: Truck | AO10: 1 | AP10: 20 | AR10: 2490 | AU10: =$AT$3 -> B | AV10: 1 | AW10: 20 | AX10: 360
A11: =D5-D7 ->  | B11: Notes: | L11: 6' | M11: 10 | N11: 120 | O11: 2600 | R11: 23 | S11: 683 | T11: 19600 | Y11: 7 | Z11: 14 | AA11: 239 | AB11: 321 | AC11: 3825 | AD11: 16.0041841 | AF11: 10 | AG11: 19 | AH11: 442 | AI11: 563 | AJ11: 15600 | AK11: 35.29411765 | AN11: Truck | AO11: 20 | AP11: 30 | AQ11: 49800 | AR11: =AQ11/AO11 -> 2490 | AU11: =$AT$3 -> B | AV11: 20 | AW11: 30 | AX11: 360
A12: =A11/A10 ->  | M12: 16 | N12: 240 | O12: 3675 | R12: 25 | S12: 804 | T12: 21400 | Y12: 7 | Z12: 16 | AA12: 321 | AB12: 403 | AC12: 4125 | AD12: 12.85046729 | AF12: 10 | AG12: 21 | AH12: 563 | AI12: 683 | AJ12: 17600 | AK12: 31.26110124 | AN12: Truck | AO12: 30 | AP12: 40 | AQ12: 58000 | AR12: 1933.333333 | AU12: B | AV12: 30 | AW12: 40 | AX12: 406
A13: =(F10-B5)*A12 ->  | M13: 21 | N13: 360 | O13: 4175 | R13: 27 | S13: 924 | T13: 23700 | Y13: 7 | Z13: 19 | AA13: 403 | AB13: 403 | AC13: 4425 | AD13: 10.98014888 | AF13: 10 | AG13: 23 | AH13: 683 | AI13: 804 | AJ13: 19600 | AK13: 28.69692533 | AN13: Truck | AO13: 40 | AP13: 50 | AQ13: 66500 | AR13: 1662.5 | AU13: B | AV13: 40 | AW13: 50 | AX13: 443
A14: =D5-A13 ->  | M14: 25 | N14: 480 | O14: 4700 | R14: 29 | S14: 1045 | T14: 26300 | Y14: 9 | Z14: 1 | AA14: 1 | AB14: 300 | AC14: 5350 | AD14: 17.83333333 | AF14: 10 | AG14: 25 | AH14: 804 | AI14: 924 | AJ14: 21400 | AK14: 26.61691542 | AN14: Truck | AO14: 50 | AP14: 60 | AQ14: 75250 | AR14: 1505 | AU14: B | AV14: 50 | AW14: 60 | AX14: 482
M15: 28 | N15: 600 | O15: 5200 | R15: 31 | S15: 1165 | T15: 29200 | Y15: 9 | Z15: 14 | AA15: 300 | AB15: 458 | AC15: 5350 | AD15: 17.83333333 | AF15: 10 | AG15: 27 | AH15: 924 | AI15: 1045 | AJ15: 23700 | AK15: 25.64935065 | AN15: Truck | AO15: 60 | AP15: 70 | AQ15: 85000 | AR15: 1416.666667 | AU15: B | AV15: 60 | AW15: 80 | AX15: 515
L16: 7' | M16: 11 | N16: 157 | O16: 3550 | R16: 33 | S16: 1286 | T16: 32300 | Y16: 9 | Z16: 17 | AA16: 458 | AB16: 594 | AC16: 6400 | AD16: 13.97379913 | AF16: 10 | AG16: 29 | AH16: 1045 | AI16: 1165 | AJ16: 26300 | AK16: 25.16746411 | AN16: Truck | AO16: 70 | AP16: 80 | AQ16: 98000 | AR16: 1400 | AU16: B | AV16: 80 | AW16: 100 | AX16: 560
A17: =LEFT(OFFSET(A17,-16,0),1)& RIGHT(OFFSET(A17,-16,0),LEN(OFFSET(A17,-16,0))-1) +1 -> G2 | B17: =D25+F21 ->  | H17: DIAMETER REQUIRED | M17: 14 | N17: 239 | O17: 3825 | R17: 35 | S17: 1406 | T17: 35400 | Y17: 9 | Z17: 20 | AA17: 594 | AB17: 730 | AC17: 6950 | AD17: 11.7003367 | AF17: 10 | AG17: 31 | AH17: 1165 | AI17: 1286 | AJ17: 29200 | AK17: 25.06437768 | AN17: Truck | AO17: 80 | AP17: 80 | AQ17: 99500 | AR17: 1243.75 | AU17: B | AV17: 100 | AW17: 100 | AX17: 610
A18: Interpolation Model for Steel Hopper Bottom Bins | E18: ENTER/VERIFY TO CALCULATE RATE | H18: Enter Diameter and Height to calculate $/Bu rate per Imp/Struct using actual bushels. If actual capacity unknown, calc bushel will override for rate | M18: 16 | N18: 321 | O18: 4125 | R18: 37 | S18: 1527 | T18: 38300 | Y18: 9 | Z18: 22 | AA18: 730 | AB18: 866 | AC18: 7400 | AD18: 10.1369863 | AF18: 10 | AG18: 33 | AH18: 1286 | AI18: 1406 | AJ18: 32300 | AK18: 25.11664075 | AN18: R.R. | AO18: 1 | AP18: 150 | AR18: 933.3333333 | AU18: =$AT$4 -> C | AV18: 1 | AW18: 20 | AX18: 306
A19: DO NOT REMOVE FORMULAS | E19: Diameter (see blue box) | F19: =I22 -> 0 | M19: 19 | N19: 403 | O19: 4425 | R19: 39 | S19: 1647 | T19: 41000 | Y19: 9 | Z19: 25 | AA19: 866 | AB19: 1000 | AC19: 8050 | AD19: 9.295612009 | AF19: 10 | AG19: 35 | AH19: 1406 | AI19: 1527 | AJ19: 35400 | AK19: 25.17780939 | AN19: R.R. | AO19: 150 | AP19: 175 | AQ19: 140000 | AR19: =AQ19/AO19 -> 933.3333333 | AU19: =$AT$4 -> C | AV19: 20 | AW19: 30 | AX19: 306
B20: Bushel | D20: Cost/Bu | E20: Height (see blue box) | F20: =I23 -> 0 | L20: 9' | M20: 14 | N20: 300 | O20: 5350 | Y20: 9 | Z20: 28 | AA20: 1000 | AB20: 1130 | AC20: 8500 | AD20: 8.5 | AF20: 10 | AG20: 37 | AH20: 1527 | AI20: 1647 | AJ20: 38300 | AK20: 25.08185986 | AN20: R.R. | AO20: 175 | AP20: 200 | AQ20: 158000 | AR20: 902.8571429 | AU20: C | AV20: 30 | AW20: 40 | AX20: 360
A21: Bottom of Range | B21: =VLOOKUP(F26,_xlfn._xlws.FILTER($AA$3:$AC$27,$Y$3:$Y$27=F19),1,TRUE) ->  | D21: =VLOOKUP(B21,_xlfn._xlws.FILTER($AA$3:$AD$27,$Y$3:$Y$27=F19),4,TRUE) ->  | E21: $/Bu Adjustment | M21: 17 | N21: 458 | O21: 6400 | Q21: Grain Elevator/Annex | Y21: 9 | Z21: 31 | AA21: 1130 | AB21: 1130 | AC21: 8800 | AD21: 7.787610619 | AF21: 10 | AG21: 39 | AH21: 1647 | AI21: 1647 | AJ21: 41000 | AK21: 24.89374621 | AN21: R.R. | AO21: 200 | AP21: 250 | AQ21: 176000 | AR21: 880 | AU21: C | AV21: 40 | AW21: 50 | AX21: 398
E22: Improve/Structure Name | F22: =OFFSET(' Data Entry-Cost Worksheet'!$A$1,MATCH(A17,' Data Entry-Cost Worksheet'!$A:$A,0)-1,1,1,1) -> 0 | H22: Diameter | M22: 20 | N22: 594 | O22: 6950 | Q22: MS Commercial Section 17 Pg 55 May-23 | Y22: 12 | Z22: 1 | AA22: 1 | AB22: 870 | AC22: 12000 | AD22: 13.79310345 | AN22: R.R. | AO22: 250 | AP22: 300 | AQ22: 219000 | AR22: 876 | AU22: C | AV22: 50 | AW22: 60 | AX22: 436
A23: Top or Range | B23: =VLOOKUP(F26,_xlfn._xlws.FILTER($AA$3:$AC$27,$Y$3:$Y$27=F19),2,TRUE) ->  | D23: =VLOOKUP(B23,_xlfn._xlws.FILTER($AA$3:$AD$27,$Y$3:$Y$27=F19),4,TRUE) ->  | E23: Year Built | F23: =OFFSET(' Data Entry-Cost Worksheet'!$A$1,MATCH(A17,' Data Entry-Cost Worksheet'!$A:$A,0)-1,2,1,1) -> 0 | H23: Height | M23: 22 | N23: 730 | O23: 7400 | Q23: Platform Scales | Y23: 12 | Z23: 20 | AA23: 870 | AB23: 1345 | AC23: 12000 | AD23: 13.79310345 | AN23: R.R. | AO23: 300 | AP23: 350 | AQ23: 277000 | AR23: 923.3333333 | AU23: C | AV23: 60 | AW23: 80 | AX23: 475
A24: RATE for Cost Worksheet per Structure | E24: Total Bushel Capacity | F24: =IF(OFFSET(' Data Entry-Cost Worksheet'!$A$1,MATCH(A17,' Data Entry-Cost Worksheet'!$A:$A,0)-1,3,1,1) = "",I24*F25,OFFSET(' Data Entry-Cost Worksheet'!$A$1,MATCH(A17,' Data Entry-Cost Worksheet'!$A:$A,0)-1,3,1,1)) ->  | H24: Bushels | I24: =IF(I23="","",(I22/2)^2*3.1416*0.8036*I23) ->  | M24: 25 | N24: 866 | O24: 8050 | Q24: Capacity (Lbs.) | R24: Price | Y24: 12 | Z24: 25 | AA24: 1345 | AB24: 1825 | AC24: 13600 | AD24: 10.11152416 | AN24: R.R. | AO24: 350 | AP24: 350 | AQ24: 341000 | AR24: 974.2857143 | AU24: C | AV24: 80 | AW24: 100 | AX24: 530
A25: Rate Calcs | B25: Steel Hopper $/Bu | D25: =_xlfn.SWITCH(B21,B23,D23,1,D21,A30) ->  | E25: # Imp/Struct Identical Units | F25: =OFFSET(' Data Entry-Cost Worksheet'!$A$1,MATCH(A17,' Data Entry-Cost Worksheet'!$A:$A,0)-1,4,1,1) -> 0 | M25: 28 | N25: 1000 | O25: 8500 | Q25: 1000 | R25: 2350 | Y25: 12 | Z25: 31 | AA25: 1825 | AB25: 2300 | AC25: 15500 | AD25: 8.493150685 | AN25: Hopper | AO25: 1 | AP25: 25 | AR25: 1796 | AU25: C | AV25: 100 | AW25: 100 | AX25: 575
A26: =B23-B21 ->  | B26: Adjusted $/Bu | D26: =IF(F21=0,"",D25+F21) ->  | E26: Bu Capacity per Unit | F26: =IF(F25=0,"",F24/F25) ->  | M26: 31 | N26: 1130 | O26: 8800 | Q26: 2000 | R26: 3825 | Y26: 12 | Z26: 36 | AA26: 2300 | AB26: 2780 | AC26: 16700 | AD26: 7.260869565 | AN26: Hopper | AO26: 25 | AP26: 36 | AQ26: 44900 | AR26: =AQ26/AO26 -> 1796 | AU26: =$AT$5 -> D | AV26: 1 | AW26: 20 | AX26: 482
A27: =D21-D23 ->  | B27: Notes: | L27: 12' | M27: 20 | N27: 870 | O27: 12000 | Q27: 4000 | R27: 13900 | Y27: 12 | Z27: 42 | AA27: 2780 | AB27: 2780 | AC27: 18200 | AD27: 6.54676259 | AN27: Hopper | AO27: 36 | AP27: 75 | AQ27: 56500 | AR27: =AQ27/AO27 -> 1569.444444 | AU27: =$AT$5 -> D | AV27: 20 | AW27: 30 | AX27: 482
A28: =A27/A26 ->  | M28: 25 | N28: 1345 | O28: 13600 | Q28: 6000 | R28: 18500 | AN28: Hopper | AO28: 75 | AP28: 100 | AQ28: 98000 | AR28: =AQ28/AO28 -> 1306.666667 | AU28: D | AV28: 30 | AW28: 40 | AX28: 575
A29: =(F26-B21)*A28 ->  | M29: 31 | N29: 1825 | O29: 15500 | Q29: 10000 | R29: 26700 | AN29: Hopper | AO29: 100 | AP29: 100 | AQ29: 107000 | AR29: =AQ29/AO29 -> 1070 | AU29: D | AV29: 40 | AW29: 50 | AX29: 630
A30: =D21-A29 ->  | M30: 36 | N30: 2300 | O30: 16700 | Q30: 20000 | R30: 43200 | AU30: D | AV30: 50 | AW30: 60 | AX30: 745
M31: 42 | N31: 2780 | O31: 18200 | AU31: D | AV31: 60 | AW31: 80 | AX31: 800
AU32: D | AV32: 80 | AW32: 100 | AX32: 915
A33: =LEFT(OFFSET(A33,-16,0),1)& RIGHT(OFFSET(A33,-16,0),LEN(OFFSET(A33,-16,0))-1) +1 -> G3 | B33: =D41+F37 ->  | H33: DIAMETER REQUIRED | Q33: Grain Elevator/Annex | T33: Notes & Adjustments: Scales | AU33: D | AV33: 100 | AW33: 100 | AX33: 1030
A34: Interpolation Model for Fiberglass Hopper Bottom Bins | E34: ENTER/VERIFY TO CALCULATE RATE | H34: Enter Diameter and Height to calculate $/Bu rate per Imp/Struct using actual bushels. If actual capacity unknown, calc bushel will override for rate | Q34: MS Commercial Section 17 Pg 55 May-23 | T34: M&S Commercial Section 17 Pg 55 | X34: 2023-05-01 | AU34: =$AT$6 -> E | AV34: 1 | AW34: 20 | AX34: 352
A35: DO NOT REMOVE FORMULAS | E35: Diameter (see blue box) | F35: =I38 -> 0 | Q35: Truck Scales | T35: Type # | U35: Adjust Desc | X35: Adjustment | AU35: =$AT$6 -> E | AV35: 20 | AW35: 30 | AX35: 352
B36: Bushel | D36: Cost/Bu | E36: Height (see blue box) | F36: =I39 -> 0 | Q36: Capacity (Tons) | R36: Price | T36: 1 | U36: Deduct for wood platform | X36: -0.06 | AU36: E | AV36: 30 | AW36: 40 | AX36: 443
A37: Bottom of Range | B37: =VLOOKUP(F42,_xlfn._xlws.FILTER($AH$3:$AJ$21,$AF$3:$AF$21=F35),1,TRUE) ->  | D37: =VLOOKUP(B37,_xlfn._xlws.FILTER($AH$3:$AK$21,$AF$3:$AF$21=F35),4,TRUE) ->  | E37: $/Bu Adjustment | Q37: 20 | R37: 49800 | T37: 2 | U37: Add for steel plate over platform | X37: 0.05 | Y37: MS Range | AA37: PVD Recommend | AU37: E | AV37: 40 | AW37: 50 | AX37: 530
E38: Improve/Structure Name | F38: =OFFSET(' Data Entry-Cost Worksheet'!$A$1,MATCH(A33,' Data Entry-Cost Worksheet'!$A:$A,0)-1,1,1,1) -> 0 | H38: Diameter | Q38: 30 | R38: 58000 | T38: 3 | U38: Add for card printer | X38: =AA38 -> 2810 | Y38: 2220 | Z38: 3400 | AA38: =AVERAGE(Y38:Z38) -> 2810 | AU38: E | AV38: 50 | AW38: 60 | AX38: 605
A39: Top or Range | B39: =VLOOKUP(F42,_xlfn._xlws.FILTER($AH$3:$AJ$21,$AF$3:$AF$21=F35),2,TRUE) ->  | D39: =VLOOKUP(B39,_xlfn._xlws.FILTER($AH$3:$AK$21,$AF$3:$AF$21=F35),4,TRUE) ->  | E39: Year Built | F39: =OFFSET(' Data Entry-Cost Worksheet'!$A$1,MATCH(A33,' Data Entry-Cost Worksheet'!$A:$A,0)-1,2,1,1) -> 0 | H39: Height | Q39: 40 | R39: 66500 | T39: 4 | U39: Add for remote-control electronic reader | X39: =AA39 -> 12100 | Y39: 10300 | Z39: 13900 | AA39: =AVERAGE(Y39:Z39) -> 12100 | AU39: E | AV39: 60 | AW39: 80 | AX39: 665
A40: RATE for Cost Worksheet per Structure | E40: Total Bushel Capacity | F40: =IF(OFFSET(' Data Entry-Cost Worksheet'!$A$1,MATCH(A33,' Data Entry-Cost Worksheet'!$A:$A,0)-1,3,1,1) = "",I40*F41,OFFSET(' Data Entry-Cost Worksheet'!$A$1,MATCH(A33,' Data Entry-Cost Worksheet'!$A:$A,0)-1,3,1,1)) ->  | H40: Bushels | I40: =IF(I39="","",(I38/2)^2*3.1416*0.8036*I39) ->  | Q40: 50 | R40: 75250 | AU40: E | AV40: 80 | AW40: 100 | AX40: 795
A41: Rate Calcs | B41: Hopper $/Bu | D41: =_xlfn.SWITCH(B37,B39,D39,1,D37,A46) ->  | E41: # Imp/Struct Identical Units | F41: =OFFSET(' Data Entry-Cost Worksheet'!$A$1,MATCH(A33,' Data Entry-Cost Worksheet'!$A:$A,0)-1,4,1,1) -> 0 | Q41: 60 | R41: 85000 | AU41: E | AV41: 100 | AW41: 100 | AX41: 910
A42: =B39-B37 ->  | B42: Adjusted $/Bu | D42: =IF(F37=0,"",D41+F37) ->  | E42: Bu Capacity per Unit | F42: =IF(F41=0,"",F40/F41) ->  | Q42: 70 | R42: 98000
A43: =D37-D39 ->  | B43: Notes: | Q43: 80 | R43: 99500
A44: =A43/A42 -> 
A45: =(F42-B37)*A44 ->  | L45: Grain Elevator/Annex
A46: =D37-A45 ->  | L46: MS Comm Sec17 Pg 55 | M46: 2023-05-23 | Q46: Grain Elevator/Annex
L47: Steel Tanks | Q47: MS Commercial Section 17 Pg 55 May-23
L48: Bushel Capacity | M48: Price | Q48: R.R. Scales
A49: =LEFT(OFFSET(A49,-16,0),1)& RIGHT(OFFSET(A49,-16,0),LEN(OFFSET(A49,-16,0))-1) +1 -> G4 | B49: =D57+F53 ->  | H49: DIAMETER REQUIRED | L49: 500000 | M49: 1034000 | Q49: Capacity (Tons) | R49: Price
A50: Interpolation Model for Fiberglass Hopper Bottom Bins | E50: ENTER/VERIFY TO CALCULATE RATE | H50: Enter Diameter and Height to calculate $/Bu rate per Imp/Struct using actual bushels. If actual capacity unknown, calc bushel will override for rate | L50: 600000 | M50: 1238000 | Q50: 150 | R50: 140000
A51: DO NOT REMOVE FORMULAS | E51: Diameter (see blue box) | F51: =I54 -> 0 | L51: 700000 | M51: 1440000 | Q51: 175 | R51: 158000
B52: Bushel | D52: Cost/Bu | E52: Height (see blue box) | F52: =I55 -> 0 | L52: 800000 | M52: 1644000 | Q52: 200 | R52: 176000
A53: Bottom of Range | B53: =VLOOKUP(F58,_xlfn._xlws.FILTER($AH$3:$AJ$21,$AF$3:$AF$21=F51),1,TRUE) ->  | D53: =VLOOKUP(B53,_xlfn._xlws.FILTER($AH$3:$AK$21,$AF$3:$AF$21=F51),4,TRUE) ->  | E53: $/Bu Adjustment | L53: 900000 | M53: 1846000 | Q53: 250 | R53: 219000
E54: Improve/Structure Name | F54: =OFFSET(' Data Entry-Cost Worksheet'!$A$1,MATCH(A49,' Data Entry-Cost Worksheet'!$A:$A,0)-1,1,1,1) -> 0 | H54: Diameter | L54: 1000000 | M54: 2047000 | Q54: 300 | R54: 277000
A55: Top or Range | B55: =VLOOKUP(F58,_xlfn._xlws.FILTER($AH$3:$AJ$21,$AF$3:$AF$21=F51),2,TRUE) ->  | D55: =VLOOKUP(B55,_xlfn._xlws.FILTER($AH$3:$AK$21,$AF$3:$AF$21=F51),4,TRUE) ->  | E55: Year Built | F55: =OFFSET(' Data Entry-Cost Worksheet'!$A$1,MATCH(A49,' Data Entry-Cost Worksheet'!$A:$A,0)-1,2,1,1) -> 0 | H55: Height | Q55: 350 | R55: 341000
A56: RATE for Cost Worksheet per Structure | E56: Total Bushel Capacity | F56: =IF(OFFSET(' Data Entry-Cost Worksheet'!$A$1,MATCH(A49,' Data Entry-Cost Worksheet'!$A:$A,0)-1,3,1,1) = "",I56*F57,OFFSET(' Data Entry-Cost Worksheet'!$A$1,MATCH(A49,' Data Entry-Cost Worksheet'!$A:$A,0)-1,3,1,1)) ->  | H56: Bushels | I56: =IF(I55="","",(I54/2)^2*3.1416*0.8036*I55) -> 
A57: Rate Calcs | B57: Hopper $/Bu | D57: =_xlfn.SWITCH(B53,B55,D55,1,D53,A62) ->  | E57: # Imp/Struct Identical Units | F57: =OFFSET(' Data Entry-Cost Worksheet'!$A$1,MATCH(A49,' Data Entry-Cost Worksheet'!$A:$A,0)-1,4,1,1) -> 0
A58: =B55-B53 ->  | B58: Adjusted $/Bu | D58: =IF(F53=0,"",D57+F53) ->  | E58: Bu Capacity per Unit | F58: =IF(F57=0,"",F56/F57) ->  | Q58: Grain Elevator/Annex
A59: =D53-D55 ->  | B59: Notes: | Q59: MS Commercial Section 17 Pg 55 May-23
A60: =A59/A58 ->  | Q60: Hopper Scales
A61: =(F58-B53)*A60 ->  | Q61: Capacity (Tons) | R61: Price
A62: =D53-A61 ->  | Q62: 25 | R62: 44900
Q63: 36 | R63: 56500
Q64: 75 | R64: 98000
A65: =LEFT(OFFSET(A65,-16,0),1)& RIGHT(OFFSET(A65,-16,0),LEN(OFFSET(A65,-16,0))-1) +1 -> G5 | B65: =D73+F67 ->  | Q65: 100 | R65: 107000
A66: Interpolation Model for Steel Tanks | E66: ENTER/VERIFY TO CALCULATE RATE
A67: DO NOT REMOVE FORMULAS | E67: $/Bu Adjustment
B68: Bushel | D68: Cost/Bu | E68: Improve/Structure Name | F68: =OFFSET(' Data Entry-Cost Worksheet'!$A$1,MATCH(A65,' Data Entry-Cost Worksheet'!A:A,0)-1,1,1,1) -> 0 | L68: Grain Elevator/Annex | Q68: Grain Elevator/Annex | V68: Grain Elevator/Annex
A69: Bottom of Range | B69: =_xlfn.XLOOKUP(F72,$L$49:$L$54,$L$49:$L$54,,-1) ->  | D69: =_xlfn.XLOOKUP(B69,$L$49:$L$54,$M$49:$M$54,,-1)/B69 ->  | E69: Year Built | F69: =OFFSET(' Data Entry-Cost Worksheet'!$A$1,MATCH(A65,' Data Entry-Cost Worksheet'!$A:$A,0)-1,2,1,1) -> 0 | L69: MS Commercial Section 17 Pg 56 | O69: 2023-05-23 | Q69: MS Commercial Section 17 Pg 56 | T69: 2023-05-23 | V69: MS Commercial Section 17 Pg 56 | X69: 2023-05-23
E70: Total Bushel Capacity | F70: =OFFSET(' Data Entry-Cost Worksheet'!$A$1,MATCH(A65,' Data Entry-Cost Worksheet'!$A:$A,0)-1,3,1,1) -> 0 | L70: Bunker and Trench Silo | Q70: Bunker Silo | V70: Trench Silo
A71: Top or Range | B71: =_xlfn.XLOOKUP(F72,$L$49:$L$54,$L$49:$L$54,,1) ->  | D71: =_xlfn.XLOOKUP(B71,$L$49:$L$54,$M$49:$M$54,,-1)/B71 ->  | E71: # Imp/Struct Identical Units | F71: =OFFSET(' Data Entry-Cost Worksheet'!$A$1,MATCH(A65,' Data Entry-Cost Worksheet'!$A:$A,0)-1,4,1,1) -> 0 | L71: Silo | O71: Type | R71: Type of Silo | W71: Type of Silo
A72: RATE for Cost Worksheet per Structure | E72: Bu Capacity per Unit | F72: =F70/F71 ->  | L72: Bunker - Tilt-Up Concrete Panels & Precast Wall Supports, Sealed | O72: A | Q72: Width (Feet) | R72: A | S72: B | T72: C | V72: Width (Feet) | W72: D | X72: E
A73: RATE CALCS | B73: Steel $/Bu | D73: =_xlfn.IFNA(IF(B69=B71,D69,A78),_xlfn.IFNA(D69,D71)) ->  | L73: Bunker - Poles and Braces,Tilt-Up Concrete Panels, Concrete Floor | O73: B | Q73: 20' | R73: 498 | S73: 360 | T73: 306 | V73: 20' | W73: 482 | X73: 352
A74: =B71-B69 ->  | B74: Adjusted $/Bu | D74: =IF(F67=0,"",D73+F67) ->  | L74: Bunker - Cantilevered Poles, Plywood or T&G Walls, Concrete Floor | O74: C | Q74: 30' | R74: 560 | S74: 406 | T74: 360 | V74: 30' | W74: 575 | X74: 443
A75: =D69-D71 ->  | B75: Notes: | L75: Trench - Concrete Wall Panels and Floor, Sealed | O75: D | Q75: 40' | R75: 620 | S75: 443 | T75: 398 | V75: 40' | W75: 630 | X75: 530
A76: =A75/A74 ->  | L76: Trench - Plywood or T&G Walls, Concrete Floor | O76: E | Q76: 50' | R76: 660 | S76: 482 | T76: 436 | V76: 50' | W76: 745 | X76: 605
A77: =(F72-B69)*A76 ->  | Q77: 60' | R77: 685 | S77: 515 | T77: 475 | V77: 60' | W77: 800 | X77: 665
A78: =D69-A77 ->  | Q78: 80' | R78: 760 | S78: 560 | T78: 530 | V78: 80' | W78: 915 | X78: 795
Q79: 100' | R79: 795 | S79: 610 | T79: 575 | V79: 100' | W79: 1030 | X79: 910
A81: =LEFT(OFFSET(A81,-16,0),1)& RIGHT(OFFSET(A81,-16,0),LEN(OFFSET(A81,-16,0))-1) +1 -> G6 | B81: =D89+F83 -> 
A82: Interpolation Model for Steel Tanks | E82: ENTER/VERIFY TO CALCULATE RATE | Q82: Notes & Adjustments: Horizontal Silos
A83: DO NOT REMOVE FORMULAS | E83: $/Bu Adjustment | Q83: M&S Commercial Section 17 Pg 56 | W83: 2023-05-01
B84: Bushel | D84: Cost/Bu | E84: Improve/Structure Name | F84: =OFFSET(' Data Entry-Cost Worksheet'!$A$1,MATCH(A81,' Data Entry-Cost Worksheet'!A:A,0)-1,1,1,1) -> 0 | Q84: Type # | R84: Adjust Desc | W84: Adjustment
A85: Bottom of Range | B85: =_xlfn.XLOOKUP(F88,$L$49:$L$54,$L$49:$L$54,,-1) ->  | D85: =_xlfn.XLOOKUP(B85,$L$49:$L$54,$M$49:$M$54,,-1)/B85 ->  | E85: Year Built | F85: =OFFSET(' Data Entry-Cost Worksheet'!$A$1,MATCH(A81,' Data Entry-Cost Worksheet'!$A:$A,0)-1,2,1,1) -> 0 | Q85: 1 | R85: Add for each foot of deviation from 12' base height | W85: 0.08
E86: Total Bushel Capacity | F86: =OFFSET(' Data Entry-Cost Worksheet'!$A$1,MATCH(A81,' Data Entry-Cost Worksheet'!$A:$A,0)-1,3,1,1) -> 0 | Q86: 2 | R86: Deduct for each foot of deviation from 12' base height | W86: -0.08
A87: Top or Range | B87: =_xlfn.XLOOKUP(F88,$L$49:$L$54,$L$49:$L$54,,1) ->  | D87: =_xlfn.XLOOKUP(B87,$L$49:$L$54,$M$49:$M$54,,-1)/B87 ->  | E87: # Imp/Struct Identical Units | F87: =OFFSET(' Data Entry-Cost Worksheet'!$A$1,MATCH(A81,' Data Entry-Cost Worksheet'!$A:$A,0)-1,4,1,1) -> 0 | Q87: 3 | R87: Add for each foot of deviation from 12' base height for concrete tilt-up panels on bunker silos 16' and over | W87: 0.1
A88: RATE for Cost Worksheet per Structure | E88: Bu Capacity per Unit | F88: =F86/F87 ->  | Q88: 4 | R88: Deduct for asphalt floor (per sq ft) | W88: -1.23 | X88: MS Range | Z88: PVD Recommend
A89: RATE CALCS | B89: Steel $/Bu | D89: =_xlfn.IFNA(IF(B85=B87,D85,A94),_xlfn.IFNA(D85,D87)) ->  | Q89: 5 | R89: Add for roof cover (per sq ft) | W89: 4.77 | X89: 3.77 | Y89: 5.76 | Z89: =AVERAGE(X89:Y89) -> 4.765
A90: =B87-B85 ->  | B90: Adjusted $/Bu | D90: =IF(F83=0,"",D89+F83) ->  | Q90: 6 | R90: Add for end walls | W90: See Below
A91: =D85-D87 ->  | B91: Notes:
A92: =A91/A90 -> 
A93: =(F88-B85)*A92 ->  | Q93: Additional Adjustments for End Walls per Linear Foot
A94: =D85-A93 ->  | Q94: M&S Commercial Section 17 Pg 56 May-23
Q95: Wall Height (Feet) | S95: Adjustment
Q96: 8' | S96: 110
A97: =LEFT(OFFSET(A97,-16,0),1)& RIGHT(OFFSET(A97,-16,0),LEN(OFFSET(A97,-16,0))-1) +1 -> G7 | B97: =D105+F103 ->  | Q97: 12' | S97: 160
A98: Interpolation Model for Permanent Ground Storage | E98: ENTER/VERIFY TO CALCULATE RATE | H98: Enter Adjust Type # (1-6) from table for adjustment amounts | Q98: 16' | S98: 214
A99: DO NOT REMOVE FORMULAS | E99: Type (See Cost Table For Type)
B100: Width | D100: Cost/Ft | E100: Width
A101: Bottom of Range | B101: =VLOOKUP(F100,_xlfn._xlws.FILTER($AV$2:$AX$41,$AU$2:$AU$41=F99),1,TRUE) ->  | D101: =VLOOKUP(B101,_xlfn._xlws.FILTER($AV$2:$AX$41,$AU$2:$AU$41=F99),3,TRUE) ->  | E101: Length | H101: Per Linear Ft Adjust | Q101: Grain Elevator/Annex
E102: Height | H102: Type # | I102: Adjust $ | Q102: MS Commercial Section 66 Pg 3 | S102: 2023-05-23
A103: Top or Range | B103: =VLOOKUP(F100,_xlfn._xlws.FILTER($AV$2:$AX$41,$AU$2:$AU$41=F99),2,TRUE) ->  | D103: =VLOOKUP(B103,_xlfn._xlws.FILTER($AV$2:$AX$41,$AU$2:$AU$41=F99),3,TRUE) ->  | E103: $/Linear Ft Adjustment | F103: =I109 -> 0 | I103: =_xlfn.SWITCH(H103,$Q$85,IF(F102<=12,0,D105*$W$85*(F102-12)),$Q$86,IF(F102>=12,0,D105*$W$86*(12-F102)),$Q$87,_xlfn.IFS(F99<>$AT$2,0,F102<16,0,F102>=16,(F102-12)*$W$87*D105),$Q$88,$W$88*F100,$Q$89,$W$89*F100, $Q$90,_xlfn.IFS(F102<=8,S96,F102>=16,S98,F102=12,S97,F102<12,$BB$2+((F102-$BA$2)*($BB$3-$BB$2)/($BA$3-$BA$2)),F102>12,$BB$3+((F102-$BA$3)*($BB$4-$BB$3)/($BA$4-$BA$3))),"") ->  | Q103: Railroad Spurs
A104: RATE for Cost Worksheet per Structure | E104: Improve/Structure Name | F104: =OFFSET(' Data Entry-Cost Worksheet'!$A$1,MATCH(A97,' Data Entry-Cost Worksheet'!A:A,0)-1,1,1,1) -> 0 | I104: =_xlfn.SWITCH(H104,$Q$85,IF(F102<=12,0,D105*$W$85*(F102-12)),$Q$86,IF(F102>=12,0,D105*$W$86*(12-F102)),$Q$87,_xlfn.IFS(F99<>$AT$2,0,F102<16,0,F102>=16,(F102-12)*$W$87*D105),$Q$88,$W$88*F100,$Q$89,$W$89*F100, $Q$90,_xlfn.IFS(F102<=8,$S$96,F102>=16,$S$98,F102=12,$S$97,F102<12,$BB$2+((F102-$BA$2)*($BB$3-$BB$2)/($BA$3-$BA$2)),F102>12,$BB$3+((F102-$BA$3)*($BB$4-$BB$3)/($BA$4-$BA$3))),"") ->  | Q104: Weight of Rail # | R104: Size of Rail | S104: Cost Installed | T104: MS Range | V104: PVD Recommend
A105: RATE CALCS | B105: Storage $/Ft | D105: =_xlfn.SWITCH(B101,B103,D103,1,D101,A110) ->  | E105: Year Built | F105: =OFFSET(' Data Entry-Cost Worksheet'!$A$1,MATCH(A97,' Data Entry-Cost Worksheet'!$A:$A,0)-1,2,1,1) -> 0 | I105: =_xlfn.SWITCH(H105,$Q$85,IF(F102<=12,0,D105*$W$85*(F102-12)),$Q$86,IF(F102>=12,0,D105*$W$86*(12-F102)),$Q$87,_xlfn.IFS(F99<>$AT$2,0,F102<16,0,F102>=16,(F102-12)*$W$87*D105),$Q$88,$W$88*F100,$Q$89,$W$89*F100, $Q$90,_xlfn.IFS(F102<=8,$S$96,F102>=16,$S$98,F102=12,$S$97,F102<12,$BB$2+((F102-$BA$2)*($BB$3-$BB$2)/($BA$3-$BA$2)),F102>12,$BB$3+((F102-$BA$3)*($BB$4-$BB$3)/($BA$4-$BA$3))),"") ->  | Q105: 40 | R105: 3 1/2 x 3 1/2 | S105: =AVERAGE(T105:U105) -> 112 | T105: 99 | U105: 125 | V105: =AVERAGE(T105:U105) -> 112
A106: =B103-B101 ->  | B106: Adjusted $/Ft | D106: =IF(F103=0,"",D105+F103) ->  | E106: Total Bushel Capacity | F106: =OFFSET(' Data Entry-Cost Worksheet'!$A$1,MATCH(A97,' Data Entry-Cost Worksheet'!$A:$A,0)-1,3,1,1) -> 0 | I106: =_xlfn.SWITCH(H106,$Q$85,IF(F102<=12,0,D105*$W$85*(F102-12)),$Q$86,IF(F102>=12,0,D105*$W$86*(12-F102)),$Q$87,_xlfn.IFS(F99<>$AT$2,0,F102<16,0,F102>=16,(F102-12)*$W$87*D105),$Q$88,$W$88*F100,$Q$89,$W$89*F100, $Q$90,_xlfn.IFS(F102<=8,$S$96,F102>=16,$S$98,F102=12,$S$97,F102<12,$BB$2+((F102-$BA$2)*($BB$3-$BB$2)/($BA$3-$BA$2)),F102>12,$BB$3+((F102-$BA$3)*($BB$4-$BB$3)/($BA$4-$BA$3))),"") ->  | Q106: 60 | R106: 4 1/4 x 4 1/4 | S106: 142 | T106: 126 | U106: 158 | V106: =AVERAGE(T106:U106) -> 142
A107: =D101-D103 ->  | B107: Notes: | E107: # Imp/Struct Identical Units | F107: =OFFSET(' Data Entry-Cost Worksheet'!$A$1,MATCH(A97,' Data Entry-Cost Worksheet'!$A:$A,0)-1,4,1,1) -> 0 | I107: =_xlfn.SWITCH(H107,$Q$85,IF(F102<=12,0,D105*$W$85*(F102-12)),$Q$86,IF(F102>=12,0,D105*$W$86*(12-F102)),$Q$87,_xlfn.IFS(F99<>$AT$2,0,F102<16,0,F102>=16,(F102-12)*$W$87*D105),$Q$88,$W$88*F100,$Q$89,$W$89*F100, $Q$90,_xlfn.IFS(F102<=8,$S$96,F102>=16,$S$98,F102=12,$S$97,F102<12,$BB$2+((F102-$BA$2)*($BB$3-$BB$2)/($BA$3-$BA$2)),F102>12,$BB$3+((F102-$BA$3)*($BB$4-$BB$3)/($BA$4-$BA$3))),"") ->  | Q107: 80 | R107: 5 x 5 | S107: 165 | T107: 149 | U107: 181 | V107: 165
A108: =A107/A106 ->  | E108: Bu Capacity per Unit | F108: =F106/F107 ->  | I108: =_xlfn.SWITCH(H108,$Q$85,IF(F102<=12,0,D105*$W$85*(F102-12)),$Q$86,IF(F102>=12,0,D105*$W$86*(12-F102)),$Q$87,_xlfn.IFS(F99<>$AT$2,0,F102<16,0,F102>=16,(F102-12)*$W$87*D105),$Q$88,$W$88*F100,$Q$89,$W$89*F100, $Q$90,_xlfn.IFS(F102<=8,$S$96,F102>=16,$S$98,F102=12,$S$97,F102<12,$BB$2+((F102-$BA$2)*($BB$3-$BB$2)/($BA$3-$BA$2)),F102>12,$BB$3+((F102-$BA$3)*($BB$4-$BB$3)/($BA$4-$BA$3))),"") ->  | Q108: 100 | R108: 5 3/8 x 6 5/8 | S108: 187.5 | T108: 165 | U108: 210 | V108: 187.5
A109: =(F100-B101)*A108 ->  | H109: Total | I109: =SUM(I103:I108) -> 0 | Q109: 115 | R109: 5 1/2 x 6 5/8 | S109: 203.5 | T109: 181 | U109: 226 | V109: 203.5
A110: =D101-A109 ->  | Q110: 130 | R110: 6 x 6 3/4 | S110: 222 | T110: 203 | U110: 241 | V110: 222
A113: =LEFT(OFFSET(A113,-16,0),1)& RIGHT(OFFSET(A113,-16,0),LEN(OFFSET(A113,-16,0))-1) +1 -> G8 | B113: =D121+F119 ->  | Q113: Notes & Adjustments: Railroad Spurs
A114: Interpolation Model for Permanent Ground Storage | E114: ENTER/VERIFY TO CALCULATE RATE | H114: Enter Adjust Type # (1-6) from table for adjustment amounts
A115: DO NOT REMOVE FORMULAS | E115: Type (See Cost Table For Type) | Q115: M&S Commercial Section 66 Pg 3 | U115: 2023-05-01
B116: Width | D116: Cost/Ft | E116: Width | Q116: Type # | R116: Adjust Desc | U116: Adjustment
A117: Bottom of Range | B117: =VLOOKUP(F116,_xlfn._xlws.FILTER($AV$2:$AX$41,$AU$2:$AU$41=F115),1,TRUE) ->  | D117: =VLOOKUP(B117,_xlfn._xlws.FILTER($AV$2:$AX$41,$AU$2:$AU$41=F115),3,TRUE) ->  | E117: Length | H117: Per Linear Ft Adjust | Q117: 1 | R117: Add for bumpers | U117: 7150
E118: Height | H118: Type # | I118: Adjust $ | Q118: 2 | R118: Add for crossing signals | U118: 26000
A119: Top or Range | B119: =VLOOKUP(F116,_xlfn._xlws.FILTER($AV$2:$AX$41,$AU$2:$AU$41=F115),2,TRUE) ->  | D119: =VLOOKUP(B119,_xlfn._xlws.FILTER($AV$2:$AX$41,$AU$2:$AU$41=F115),3,TRUE) ->  | E119: $/Linear Ft Adjustment | F119: =I125 -> 0 | I119: =_xlfn.SWITCH(H119,$Q$85,IF(F118<=12,0,D121*$W$85*(F118-12)),$Q$86,IF(F118>=12,0,D121*$W$86*(12-F118)),$Q$87,_xlfn.IFS(F115<>$AT$2,0,F118<16,0,F118>=16,(F118-12)*$W$87*D121),$Q$88,$W$88*F116,$Q$89,$W$89*F116, $Q$90,_xlfn.IFS(F118<=8,S112,F118>=16,S114,F118=12,S113,F118<12,$BB$2+((F118-$BA$2)*($BB$3-$BB$2)/($BA$3-$BA$2)),F118>12,$BB$3+((F118-$BA$3)*($BB$4-$BB$3)/($BA$4-$BA$3))),"") ->  | Q119: 3 | R119: Add for crossing timbers | U119: 590
A120: RATE for Cost Worksheet per Structure | E120: Improve/Structure Name | F120: =OFFSET(' Data Entry-Cost Worksheet'!$A$1,MATCH(A113,' Data Entry-Cost Worksheet'!A:A,0)-1,1,1,1) -> 0 | I120: =_xlfn.SWITCH(H120,$Q$85,IF(F118<=12,0,D121*$W$85*(F118-12)),$Q$86,IF(F118>=12,0,D121*$W$86*(12-F118)),$Q$87,_xlfn.IFS(F115<>$AT$2,0,F118<16,0,F118>=16,(F118-12)*$W$87*D121),$Q$88,$W$88*F116,$Q$89,$W$89*F116, $Q$90,_xlfn.IFS(F118<=8,$S$96,F118>=16,$S$98,F118=12,$S$97,F118<12,$BB$2+((F118-$BA$2)*($BB$3-$BB$2)/($BA$3-$BA$2)),F118>12,$BB$3+((F118-$BA$3)*($BB$4-$BB$3)/($BA$4-$BA$3))),"") ->  | Q120: 4 | R120: Add per pair of wheel stops | U120: 1680
A121: RATE CALCS | B121: Storage $/Ft | D121: =_xlfn.SWITCH(B117,B119,D119,1,D117,A126) ->  | E121: Year Built | F121: =OFFSET(' Data Entry-Cost Worksheet'!$A$1,MATCH(A113,' Data Entry-Cost Worksheet'!$A:$A,0)-1,2,1,1) -> 0 | I121: =_xlfn.SWITCH(H121,$Q$85,IF(F118<=12,0,D121*$W$85*(F118-12)),$Q$86,IF(F118>=12,0,D121*$W$86*(12-F118)),$Q$87,_xlfn.IFS(F115<>$AT$2,0,F118<16,0,F118>=16,(F118-12)*$W$87*D121),$Q$88,$W$88*F116,$Q$89,$W$89*F116, $Q$90,_xlfn.IFS(F118<=8,$S$96,F118>=16,$S$98,F118=12,$S$97,F118<12,$BB$2+((F118-$BA$2)*($BB$3-$BB$2)/($BA$3-$BA$2)),F118>12,$BB$3+((F118-$BA$3)*($BB$4-$BB$3)/($BA$4-$BA$3))),"") ->  | Q121: 5 | R121: Add for switch and turnout | U121: See Below
A122: =B119-B117 ->  | B122: Adjusted $/Ft | D122: =IF(F119=0,"",D121+F119) ->  | E122: Total Bushel Capacity | F122: =OFFSET(' Data Entry-Cost Worksheet'!$A$1,MATCH(A113,' Data Entry-Cost Worksheet'!$A:$A,0)-1,3,1,1) -> 0 | I122: =_xlfn.SWITCH(H122,$Q$85,IF(F118<=12,0,D121*$W$85*(F118-12)),$Q$86,IF(F118>=12,0,D121*$W$86*(12-F118)),$Q$87,_xlfn.IFS(F115<>$AT$2,0,F118<16,0,F118>=16,(F118-12)*$W$87*D121),$Q$88,$W$88*F116,$Q$89,$W$89*F116, $Q$90,_xlfn.IFS(F118<=8,$S$96,F118>=16,$S$98,F118=12,$S$97,F118<12,$BB$2+((F118-$BA$2)*($BB$3-$BB$2)/($BA$3-$BA$2)),F118>12,$BB$3+((F118-$BA$3)*($BB$4-$BB$3)/($BA$4-$BA$3))),"") ->  | Q122: 6 | R122: Add per 100 feet of track under 500 feet | U122: 0.02
A123: =D117-D119 ->  | B123: Notes: | E123: # Imp/Struct Identical Units | F123: =OFFSET(' Data Entry-Cost Worksheet'!$A$1,MATCH(A113,' Data Entry-Cost Worksheet'!$A:$A,0)-1,4,1,1) -> 0 | I123: =_xlfn.SWITCH(H123,$Q$85,IF(F118<=12,0,D121*$W$85*(F118-12)),$Q$86,IF(F118>=12,0,D121*$W$86*(12-F118)),$Q$87,_xlfn.IFS(F115<>$AT$2,0,F118<16,0,F118>=16,(F118-12)*$W$87*D121),$Q$88,$W$88*F116,$Q$89,$W$89*F116, $Q$90,_xlfn.IFS(F118<=8,$S$96,F118>=16,$S$98,F118=12,$S$97,F118<12,$BB$2+((F118-$BA$2)*($BB$3-$BB$2)/($BA$3-$BA$2)),F118>12,$BB$3+((F118-$BA$3)*($BB$4-$BB$3)/($BA$4-$BA$3))),"") ->  | Q123: 7 | R123: Deduct per 100 feet of track over 500 feet (25% max reduce) | U123: -0.02
A124: =A123/A122 ->  | E124: Bu Capacity per Unit | F124: =F122/F123 ->  | I124: =_xlfn.SWITCH(H124,$Q$85,IF(F118<=12,0,D121*$W$85*(F118-12)),$Q$86,IF(F118>=12,0,D121*$W$86*(12-F118)),$Q$87,_xlfn.IFS(F115<>$AT$2,0,F118<16,0,F118>=16,(F118-12)*$W$87*D121),$Q$88,$W$88*F116,$Q$89,$W$89*F116, $Q$90,_xlfn.IFS(F118<=8,$S$96,F118>=16,$S$98,F118=12,$S$97,F118<12,$BB$2+((F118-$BA$2)*($BB$3-$BB$2)/($BA$3-$BA$2)),F118>12,$BB$3+((F118-$BA$3)*($BB$4-$BB$3)/($BA$4-$BA$3))),"") ->  | Q124: 8 | R124: Add per linear foot for concrete roadbed | U124: 165
A125: =(F116-B117)*A124 ->  | H125: Total | I125: =SUM(I119:I124) -> 0
A126: =D117-A125 -> 
P127: Additional Adjustment for Switch and Turnout
P128: M&S Commercial Section 66 Pg 3 | S128: 2023-05-23
A129: =LEFT(OFFSET(A129,-16,0),1)& RIGHT(OFFSET(A129,-16,0),LEN(OFFSET(A129,-16,0))-1) +1 -> G9 | B129: =D137+F135 ->  | P129: Type # | Q129: Weight of Rail | R129: Size of Rail | S129: Switch/Turnout Adjust | T129: MS Range | V129: PVD Recommend
A130: Interpolation Model for Permanent Ground Storage | E130: ENTER/VERIFY TO CALCULATE RATE | H130: Enter Adjust Type # (1-6) from table for adjustment amounts | P130: 5 | Q130: 40 | R130: 3 1/2 x 3 1/2 | S130: =AVERAGE(T130:U130) -> 39100 | T130: 34900 | U130: 43300 | V130: =(T130+U130)/2 -> 39100
A131: DO NOT REMOVE FORMULAS | E131: Type (See Cost Table For Type) | P131: 5 | Q131: 60 | R131: 4 1/4 x 4 1/4 | S131: 46825 | T131: 42400 | U131: 51250 | V131: =(T131+U131)/2 -> 46825
B132: Width | D132: Cost/Ft | E132: Width | P132: 5 | Q132: 80 | R132: 5 x 5 | S132: 54550 | T132: 48600 | U132: 60500 | V132: 54550
A133: Bottom of Range | B133: =VLOOKUP(F132,_xlfn._xlws.FILTER($AV$2:$AX$41,$AU$2:$AU$41=F131),1,TRUE) ->  | D133: =VLOOKUP(B133,_xlfn._xlws.FILTER($AV$2:$AX$41,$AU$2:$AU$41=F131),3,TRUE) ->  | E133: Length | P133: 5 | Q133: 100 | R133: 5 3/8 x 6 5/8 | S133: 60625 | T133: 53750 | U133: 67500 | V133: 60625
E134: Height | I134: Adjust $ | P134: 5 | Q134: 115 | R134: 5 1/2 x 6 5/8 | S134: 65750 | T134: 59250 | U134: 72250 | V134: 65750
A135: Top or Range | B135: =VLOOKUP(F132,_xlfn._xlws.FILTER($AV$2:$AX$41,$AU$2:$AU$41=F131),2,TRUE) ->  | D135: =VLOOKUP(B135,_xlfn._xlws.FILTER($AV$2:$AX$41,$AU$2:$AU$41=F131),3,TRUE) ->  | E135: $/Linear Ft Adjustment | F135: =I141 -> 0 | I135: =_xlfn.SWITCH(H135,$Q$85,IF(F134<=12,0,D137*$W$85*(F134-12)),$Q$86,IF(F134>=12,0,D137*$W$86*(12-F134)),$Q$87,_xlfn.IFS(F131<>$AT$2,0,F134<16,0,F134>=16,(F134-12)*$W$87*D137),$Q$88,$W$88*F132,$Q$89,$W$89*F132, $Q$90,_xlfn.IFS(F134<=8,S128,F134>=16,S130,F134=12,S129,F134<12,$BB$2+((F134-$BA$2)*($BB$3-$BB$2)/($BA$3-$BA$2)),F134>12,$BB$3+((F134-$BA$3)*($BB$4-$BB$3)/($BA$4-$BA$3))),"") ->  | P135: 5 | Q135: 130 | R135: 6 x 6 3/4 | S135: 70750 | T135: 63500 | U135: 78000 | V135: 70750
A136: RATE for Cost Worksheet per Structure | E136: Improve/Structure Name | F136: =OFFSET(' Data Entry-Cost Worksheet'!$A$1,MATCH(A129,' Data Entry-Cost Worksheet'!A:A,0)-1,1,1,1) -> 0 | I136: =_xlfn.SWITCH(H136,$Q$85,IF(F134<=12,0,D137*$W$85*(F134-12)),$Q$86,IF(F134>=12,0,D137*$W$86*(12-F134)),$Q$87,_xlfn.IFS(F131<>$AT$2,0,F134<16,0,F134>=16,(F134-12)*$W$87*D137),$Q$88,$W$88*F132,$Q$89,$W$89*F132, $Q$90,_xlfn.IFS(F134<=8,$S$96,F134>=16,$S$98,F134=12,$S$97,F134<12,$BB$2+((F134-$BA$2)*($BB$3-$BB$2)/($BA$3-$BA$2)),F134>12,$BB$3+((F134-$BA$3)*($BB$4-$BB$3)/($BA$4-$BA$3))),"") -> 
A137: RATE CALCS | B137: Storage $/Ft | D137: =_xlfn.SWITCH(B133,B135,D135,1,D133,A142) ->  | E137: Year Built | F137: =OFFSET(' Data Entry-Cost Worksheet'!$A$1,MATCH(A129,' Data Entry-Cost Worksheet'!$A:$A,0)-1,2,1,1) -> 0 | I137: =_xlfn.SWITCH(H137,$Q$85,IF(F134<=12,0,D137*$W$85*(F134-12)),$Q$86,IF(F134>=12,0,D137*$W$86*(12-F134)),$Q$87,_xlfn.IFS(F131<>$AT$2,0,F134<16,0,F134>=16,(F134-12)*$W$87*D137),$Q$88,$W$88*F132,$Q$89,$W$89*F132, $Q$90,_xlfn.IFS(F134<=8,$S$96,F134>=16,$S$98,F134=12,$S$97,F134<12,$BB$2+((F134-$BA$2)*($BB$3-$BB$2)/($BA$3-$BA$2)),F134>12,$BB$3+((F134-$BA$3)*($BB$4-$BB$3)/($BA$4-$BA$3))),"") -> 
A138: =B135-B133 ->  | B138: Adjusted $/Ft | D138: =IF(F135=0,"",D137+F135) ->  | E138: Total Bushel Capacity | F138: =OFFSET(' Data Entry-Cost Worksheet'!$A$1,MATCH(A129,' Data Entry-Cost Worksheet'!$A:$A,0)-1,3,1,1) -> 0 | I138: =_xlfn.SWITCH(H138,$Q$85,IF(F134<=12,0,D137*$W$85*(F134-12)),$Q$86,IF(F134>=12,0,D137*$W$86*(12-F134)),$Q$87,_xlfn.IFS(F131<>$AT$2,0,F134<16,0,F134>=16,(F134-12)*$W$87*D137),$Q$88,$W$88*F132,$Q$89,$W$89*F132, $Q$90,_xlfn.IFS(F134<=8,$S$96,F134>=16,$S$98,F134=12,$S$97,F134<12,$BB$2+((F134-$BA$2)*($BB$3-$BB$2)/($BA$3-$BA$2)),F134>12,$BB$3+((F134-$BA$3)*($BB$4-$BB$3)/($BA$4-$BA$3))),"") -> 
A139: =D133-D135 ->  | B139: Notes: | E139: # Imp/Struct Identical Units | F139: =OFFSET(' Data Entry-Cost Worksheet'!$A$1,MATCH(A129,' Data Entry-Cost Worksheet'!$A:$A,0)-1,4,1,1) -> 0 | I139: =_xlfn.SWITCH(H139,$Q$85,IF(F134<=12,0,D137*$W$85*(F134-12)),$Q$86,IF(F134>=12,0,D137*$W$86*(12-F134)),$Q$87,_xlfn.IFS(F131<>$AT$2,0,F134<16,0,F134>=16,(F134-12)*$W$87*D137),$Q$88,$W$88*F132,$Q$89,$W$89*F132, $Q$90,_xlfn.IFS(F134<=8,$S$96,F134>=16,$S$98,F134=12,$S$97,F134<12,$BB$2+((F134-$BA$2)*($BB$3-$BB$2)/($BA$3-$BA$2)),F134>12,$BB$3+((F134-$BA$3)*($BB$4-$BB$3)/($BA$4-$BA$3))),"") -> 
A140: =A139/A138 ->  | E140: Bu Capacity per Unit | F140: =F138/F139 ->  | I140: =_xlfn.SWITCH(H140,$Q$85,IF(F134<=12,0,D137*$W$85*(F134-12)),$Q$86,IF(F134>=12,0,D137*$W$86*(12-F134)),$Q$87,_xlfn.IFS(F131<>$AT$2,0,F134<16,0,F134>=16,(F134-12)*$W$87*D137),$Q$88,$W$88*F132,$Q$89,$W$89*F132, $Q$90,_xlfn.IFS(F134<=8,$S$96,F134>=16,$S$98,F134=12,$S$97,F134<12,$BB$2+((F134-$BA$2)*($BB$3-$BB$2)/($BA$3-$BA$2)),F134>12,$BB$3+((F134-$BA$3)*($BB$4-$BB$3)/($BA$4-$BA$3))),"") -> 
A141: =(F132-B133)*A140 ->  | H141: Total | I141: =SUM(I135:I140) -> 0
A142: =D133-A141 -> 
A145: =LEFT(OFFSET(A145,-16,0),1)& RIGHT(OFFSET(A145,-16,0),LEN(OFFSET(A145,-16,0))-1) +1 -> G10 | B145: =D153+F149 -> 
A146: Interpolation Model for Scales | E146: ENTER/VERIFY TO CALCULATE RATE | H146: Enter Adjust Type # (1-4) from table for adjustment amounts
A147: DO NOT REMOVE FORMULAS | E147: Type of Scale
B148: Weight | D148: Cost/Weight | E148: ="Weight Capacity" & IF(F147="Platform", " (Lbs.)", " (Tons)") -> Weight Capacity (Tons)
A149: Bottom of Range | B149: =VLOOKUP(F148,_xlfn._xlws.FILTER($AO$3:$AR$29,$AN$3:$AN$29=F147),1,TRUE) ->  | D149: =VLOOKUP(B149,_xlfn._xlws.FILTER($AO$3:$AR$29,$AN$3:$AN$29=F147),4,TRUE) ->  | E149: $/Weight Adjustment | F149: =I156 ->  | H149: Lump Sum Adjustment
E150: Improve/Structure Name | F150: =OFFSET(' Data Entry-Cost Worksheet'!$A$1,MATCH(A145,' Data Entry-Cost Worksheet'!A:A,0)-1,1,1,1) -> 0 | H150: Type # | I150: Adjust $
A151: Top or Range | B151: =VLOOKUP(F148,_xlfn._xlws.FILTER($AO$3:$AR$29,$AN$3:$AN$29=F147),2,TRUE) ->  | D151: =VLOOKUP(B151,_xlfn._xlws.FILTER($AO$3:$AR$29,$AN$3:$AN$29=F147),4,TRUE) ->  | E151: Year Built | F151: =OFFSET(' Data Entry-Cost Worksheet'!$A$1,MATCH(A145,' Data Entry-Cost Worksheet'!$A:$A,0)-1,2,1,1) -> 0 | I151: =_xlfn.SWITCH(H151,1,D153*F148*$X$36,2,D153*F148*$X$37,3,$X$38,4,$X$39,"") -> 
A152: RATE for Cost Worksheet per Structure | E152: Total Bushel Capacity | F152: =OFFSET(' Data Entry-Cost Worksheet'!$A$1,MATCH(A145,' Data Entry-Cost Worksheet'!$A:$A,0)-1,3,1,1) -> 0 | I152: =_xlfn.SWITCH(H152,1,D153*F148*$X$36,2,D153*F148*$X$37,3,$X$38,4,$X$39,"") -> 
A153: RATE CALCS | B153: Scale $/Weight | D153: =_xlfn.SWITCH(B149,B151,D151,1,D149,A158) ->  | E153: # Imp/Struct Identical Units | F153: =OFFSET(' Data Entry-Cost Worksheet'!$A$1,MATCH(A145,' Data Entry-Cost Worksheet'!$A:$A,0)-1,4,1,1) -> 0 | I153: =_xlfn.SWITCH(H153,1,D153*F148*$X$36,2,D153*F148*$X$37,3,$X$38,4,$X$39,"") -> 
A154: =B151-B149 ->  | B154: Adjusted $/Weight | D154: =IF(F149=0,"",D153+F149) ->  | E154: Bu Capacity per Unit | F154: =F152/F153 ->  | I154: =_xlfn.SWITCH(H154,1,D153*F148*$X$36,2,D153*F148*$X$37,3,$X$38,4,$X$39,"") -> 
A155: =D149-D151 ->  | B155: Notes: | H155: Total | I155: =SUM(I151:I154) -> 0
A156: =A155/A154 ->  | H156: $/Weight | I156: =IFERROR(I155/F148,"") -> 
A157: =(F148-B149)*A156 -> 
A158: =D149-A157 -> 
A161: =LEFT(OFFSET(A161,-16,0),1)& RIGHT(OFFSET(A161,-16,0),LEN(OFFSET(A161,-16,0))-1) +1 -> G11 | B161: =D169+F165 -> 
A162: Interpolation Model for Scales | E162: ENTER/VERIFY TO CALCULATE RATE | H162: Enter Adjust Type # (1-4) from table for adjustment amounts
A163: DO NOT REMOVE FORMULAS | E163: Type of Scale
B164: Weight | D164: Cost/Weight | E164: ="Weight Capacity" & IF(F163="Platform", " (Lbs.)", " (Tons)") -> Weight Capacity (Tons)
A165: Bottom of Range | B165: =VLOOKUP(F164,_xlfn._xlws.FILTER($AO$3:$AR$29,$AN$3:$AN$29=F163),1,TRUE) ->  | D165: =VLOOKUP(B165,_xlfn._xlws.FILTER($AO$3:$AR$29,$AN$3:$AN$29=F163),4,TRUE) ->  | E165: $/Weight Adjustment | F165: =I172 ->  | H165: Lump Sum Adjustment
E166: Improve/Structure Name | F166: =OFFSET(' Data Entry-Cost Worksheet'!$A$1,MATCH(A161,' Data Entry-Cost Worksheet'!A:A,0)-1,1,1,1) -> 0 | H166: Type # | I166: Adjust $
A167: Top or Range | B167: =VLOOKUP(F164,_xlfn._xlws.FILTER($AO$3:$AR$29,$AN$3:$AN$29=F163),2,TRUE) ->  | D167: =VLOOKUP(B167,_xlfn._xlws.FILTER($AO$3:$AR$29,$AN$3:$AN$29=F163),4,TRUE) ->  | E167: Year Built | F167: =OFFSET(' Data Entry-Cost Worksheet'!$A$1,MATCH(A161,' Data Entry-Cost Worksheet'!$A:$A,0)-1,2,1,1) -> 0 | I167: =_xlfn.SWITCH(H167,1,D169*F164*$X$36,2,D169*F164*$X$37,3,$X$38,4,$X$39,"") -> 
A168: RATE for Cost Worksheet per Structure | E168: Total Bushel Capacity | F168: =OFFSET(' Data Entry-Cost Worksheet'!$A$1,MATCH(A161,' Data Entry-Cost Worksheet'!$A:$A,0)-1,3,1,1) -> 0 | I168: =_xlfn.SWITCH(H168,1,D169*F164*$X$36,2,D169*F164*$X$37,3,$X$38,4,$X$39,"") -> 
A169: RATE CALCS | B169: Scale $/Weight | D169: =_xlfn.SWITCH(B165,B167,D167,1,D165,A174) ->  | E169: # Imp/Struct Identical Units | F169: =OFFSET(' Data Entry-Cost Worksheet'!$A$1,MATCH(A161,' Data Entry-Cost Worksheet'!$A:$A,0)-1,4,1,1) -> 0 | I169: =_xlfn.SWITCH(H169,1,D169*F164*$X$36,2,D169*F164*$X$37,3,$X$38,4,$X$39,"") -> 
A170: =B167-B165 ->  | B170: Adjusted $/Weight | D170: =IF(F165=0,"",D169+F165) ->  | E170: Bu Capacity per Unit | F170: =F168/F169 ->  | I170: =_xlfn.SWITCH(H170,1,D169*F164*$X$36,2,D169*F164*$X$37,3,$X$38,4,$X$39,"") -> 
A171: =D165-D167 ->  | B171: Notes: | H171: Total | I171: =SUM(I167:I170) -> 0
A172: =A171/A170 ->  | H172: $/Weight | I172: =IFERROR(I171/F164,"") -> 
A173: =(F164-B165)*A172 -> 
A174: =D165-A173 -> 
A177: =LEFT(OFFSET(A177,-16,0),1)& RIGHT(OFFSET(A177,-16,0),LEN(OFFSET(A177,-16,0))-1) +1 -> G12 | B177: =D185+F181 -> 
A178: Interpolation Model for Railroad Spurs | E178: ENTER/VERIFY TO CALCULATE RATE | H178: Enter Adjust Type # (1-8) from table for adjustment amounts
A179: DO NOT REMOVE FORMULAS | E179: Weight of Rail
B180: Weight | D180: Cost/Weight | E180: Feet of Track
A181: Bottom of Range | B181: =F179 -> 0 | D181: =_xlfn.XLOOKUP(B181,$Q$105:$Q$110,$S$105:$S$110) ->  | E181: $/Ft Track Adjustment | F181: =I193 ->  | H181: Lump Sum Adjustment
E182: Improve/Structure Name | F182: =OFFSET(' Data Entry-Cost Worksheet'!$A$1,MATCH(A177,' Data Entry-Cost Worksheet'!A:A,0)-1,1,1,1) -> 0 | H182: Type # | I182: Adjust $
A183: Top or Range | B183: =F179 -> 0 | D183: =_xlfn.XLOOKUP(B183,$Q$105:$Q$110,$S$105:$S$110) ->  | E183: Year Built | F183: =OFFSET(' Data Entry-Cost Worksheet'!$A$1,MATCH(A177,' Data Entry-Cost Worksheet'!$A:$A,0)-1,2,1,1) -> 0 | I183: =_xlfn.SWITCH(H183,1,$U$117,2,$U$118,3,$U$119,4,$U$120,5,_xlfn.XLOOKUP(F179,$Q$130:$Q$135,$S$130:$S$135),"") -> 
A184: RATE for Cost Worksheet per Structure | E184: Total Bushel Capacity | F184: =OFFSET(' Data Entry-Cost Worksheet'!$A$1,MATCH(A177,' Data Entry-Cost Worksheet'!$A:$A,0)-1,3,1,1) -> 0 | I184: =_xlfn.SWITCH(H184,1,$U$117,2,$U$118,3,$U$119,4,$U$120,5,_xlfn.XLOOKUP(F179,$Q$130:$Q$135,$S$130:$S$135),"") -> 
A185: Rate Calcs | B185: Railroad $/Ft Track | D185: =D183 ->  | E185: # Imp/Struct Identical Units | F185: =OFFSET(' Data Entry-Cost Worksheet'!$A$1,MATCH(A177,' Data Entry-Cost Worksheet'!$A:$A,0)-1,4,1,1) -> 0 | I185: =_xlfn.SWITCH(H185,1,$U$117,2,$U$118,3,$U$119,4,$U$120,5,_xlfn.XLOOKUP(F179,$Q$130:$Q$135,$S$130:$S$135),"") -> 
A186: =B183-B181 -> 0 | B186: Adjusted $/Ft Track | D186: =IF(F181=0,"",D185+F181) ->  | E186: Bu Capacity per Unit | F186: =F184/F185 ->  | H186: Total | I186: =SUM(I183:I185) -> 0
A187: =D181-D183 ->  | B187: Notes: | H187: $/Ft Track | I187: =I186/F180 -> 
A188: =A187/A186 ->  | H188: Per Linear Ft Adjust
A189: =(F184-B181)*A188 ->  | I189: =_xlfn.SWITCH(H189,6,MAX(D185*(500-F180)/100*$U$122,0),7,MIN(MAX((F180-500)/100*$U$123,-0.25)*D185,0),8,$U$124,"") -> 
A190: =D181-A189 ->  | I190: =_xlfn.SWITCH(H190,6,MAX(D185*(500-F180)/100*$U$122,0),7,MIN(MAX((F180-500)/100*$U$123,-0.25)*D185,0),8,$U$124,"") -> 
I191: =_xlfn.SWITCH(H191,6,MAX(D185*(500-F180)/100*$U$122,0),7,MIN(MAX((F180-500)/100*$U$123,-0.25)*D185,0),8,$U$124,"") -> 
H192: Total | I192: =SUM(I189:I191) -> 0
H193: Grand Total $/Ft Track | I193: =(IFERROR(I187+I192,"")) -> 

Sheet Even and Pack
B2: Bin Numbers | C2: Bushels | D2: Percent of | E2: P&E | F2: Bin Bushels | H2: Even & Pack calculation is not part of template automation- licensed capacity is recommended
D3: Total Capacity | E3: Spread over bins | F3: with P&E | H3: User may choose to use even & pack calculation
D4: =IFERROR(C4/$C$32,"") ->  | E4: =D4*$C$36 ->  | F4: =C4+E4 ->  | H4: Total bushel capacity amount to be entered manually into each storage type section in cost worksheet
B32: Total Bushels | C32: =SUM(C4:C31) -> 0 | D32: Total P &E = | E32: =SUM(E4:E31) -> 
B34: Bushels of Pack
B35: Bushels of Even
B36: Total of P & E | C36: =C34+C35 -> 0

Sheet Cost Multipliers
A1: Local Multipliers | F1: Current Multipliers
A2: POSTAL_CODE | B2: CONSTRUCTION_CLASS | C2: MULTIPLIER_VALUE | F2: Sec 17 | G2: 2024-05-23
A3: 66002 | B3: C | C3: 1.06 | F3: C | G3: 0.97
A4: 66002 | B4: D | C4: 1.07 | F4: S | G4: 0.98
A5: 66002 | B5: S | C5: 1.05 | F5: D | G5: 0.96
A6: 66006 | B6: C | C6: 1.06
A7: 66006 | B7: D | C7: 1.07
A8: 66006 | B8: S | C8: 1.05
A9: 66007 | B9: C | C9: 1.06
A10: 66007 | B10: D | C10: 1.07
A11: 66007 | B11: S | C11: 1.05
A12: 66008 | B12: C | C12: 1.06
A13: 66008 | B13: D | C13: 1.07
A14: 66008 | B14: S | C14: 1.05
A15: 66010 | B15: C | C15: 1.06
A16: 66010 | B16: D | C16: 1.07
A17: 66010 | B17: S | C17: 1.05
A18: 66012 | B18: C | C18: 1.07
A19: 66012 | B19: D | C19: 1.08
A20: 66012 | B20: S | C20: 1.08
A21: 66013 | B21: C | C21: 1.06
A22: 66013 | B22: D | C22: 1.07
A23: 66013 | B23: S | C23: 1.05
A24: 66014 | B24: C | C24: 1.06
A25: 66014 | B25: D | C25: 1.07
A26: 66014 | B26: S | C26: 1.05
A27: 66015 | B27: C | C27: 1.06
A28: 66015 | B28: D | C28: 1.07
A29: 66015 | B29: S | C29: 1.05
A30: 66016 | B30: C | C30: 1.06
A31: 66016 | B31: D | C31: 1.07
A32: 66016 | B32: S | C32: 1.05
A33: 66017 | B33: C | C33: 1.06
A34: 66017 | B34: D | C34: 1.07
A35: 66017 | B35: S | C35: 1.05
A36: 66018 | B36: C | C36: 1.08
A37: 66018 | B37: D | C37: 1.08
A38: 66018 | B38: S | C38: 1.08
A39: 66019 | B39: C | C39: 1.08
A40: 66019 | B40: D | C40: 1.08
A41: 66019 | B41: S | C41: 1.08
A42: 66020 | B42: C | C42: 1.06
A43: 66020 | B43: D | C43: 1.07
A44: 66020 | B44: S | C44: 1.05
A45: 66021 | B45: C | C45: 1.08
A46: 66021 | B46: D | C46: 1.08
A47: 66021 | B47: S | C47: 1.08
A48: 66023 | B48: C | C48: 1.06
A49: 66023 | B49: D | C49: 1.07
A50: 66023 | B50: S | C50: 1.05
A51: 66024 | B51: C | C51: 1.06
A52: 66024 | B52: D | C52: 1.07
A53: 66024 | B53: S | C53: 1.05
A54: 66025 | B54: C | C54: 1.06
A55: 66025 | B55: D | C55: 1.07
A56: 66025 | B56: S | C56: 1.05
A57: 66026 | B57: C | C57: 1.06
A58: 66026 | B58: D | C58: 1.07
A59: 66026 | B59: S | C59: 1.05
A60: 66027 | B60: C | C60: 1.06
A61: 66027 | B61: D | C61: 1.07
A62: 66027 | B62: S | C62: 1.05
A63: 66030 | B63: C | C63: 1.08
A64: 66030 | B64: D | C64: 1.08
A65: 66030 | B65: S | C65: 1.08
A66: 66031 | B66: C | C66: 1.08
A67: 66031 | B67: D | C67: 1.08
A68: 66031 | B68: S | C68: 1.08
A69: 66032 | B69: C | C69: 1.06
A70: 66032 | B70: D | C70: 1.07
A71: 66032 | B71: S | C71: 1.05
A72: 66033 | B72: C | C72: 1.06
A73: 66033 | B73: D | C73: 1.07
A74: 66033 | B74: S | C74: 1.05
A75: 66035 | B75: C | C75: 1.06
A76: 66035 | B76: D | C76: 1.07
A77: 66035 | B77: S | C77: 1.05
A78: 66036 | B78: C | C78: 1.06
A79: 66036 | B79: D | C79: 1.07
A80: 66036 | B80: S | C80: 1.05
A81: 66039 | B81: C | C81: 1.06
A82: 66039 | B82: D | C82: 1.07
A83: 66039 | B83: S | C83: 1.05
A84: 66040 | B84: C | C84: 1.06
A85: 66040 | B85: D | C85: 1.07
A86: 66040 | B86: S | C86: 1.05
A87: 66041 | B87: C | C87: 1.06
A88: 66041 | B88: D | C88: 1.07
A89: 66041 | B89: S | C89: 1.05
A90: 66042 | B90: C | C90: 1.06
A91: 66042 | B91: D | C91: 1.07
A92: 66042 | B92: S | C92: 1.05
A93: 66043 | B93: C | C93: 1.06
A94: 66043 | B94: D | C94: 1.07
A95: 66043 | B95: S | C95: 1.05
A96: 66044 | B96: C | C96: 1.06
A97: 66044 | B97: D | C97: 1.07
A98: 66044 | B98: S | C98: 1.05
A99: 66045 | B99: C | C99: 1.06
A100: 66045 | B100: D | C100: 1.07
A101: 66045 | B101: S | C101: 1.05
A102: 66046 | B102: C | C102: 1.06
A103: 66046 | B103: D | C103: 1.07
A104: 66046 | B104: S | C104: 1.05
A105: 66047 | B105: C | C105: 1.06
A106: 66047 | B106: D | C106: 1.07
A107: 66047 | B107: S | C107: 1.05
A108: 66048 | B108: C | C108: 1.06
A109: 66048 | B109: D | C109: 1.07
A110: 66048 | B110: S | C110: 1.05
A111: 66049 | B111: C | C111: 1.06
A112: 66049 | B112: D | C112: 1.07
A113: 66049 | B113: S | C113: 1.05
A114: 66050 | B114: C | C114: 1.06
A115: 66050 | B115: D | C115: 1.07
A116: 66050 | B116: S | C116: 1.05
A117: 66051 | B117: C | C117: 1.08
A118: 66051 | B118: D | C118: 1.08
A119: 66051 | B119: S | C119: 1.08
A120: 66052 | B120: C | C120: 1.06
A121: 66052 | B121: D | C121: 1.07
A122: 66052 | B122: S | C122: 1.05
A123: 66053 | B123: C | C123: 1.06
A124: 66053 | B124: D | C124: 1.07
A125: 66053 | B125: S | C125: 1.05
A126: 66054 | B126: C | C126: 1.06
A127: 66054 | B127: D | C127: 1.07
A128: 66054 | B128: S | C128: 1.05
A129: 66056 | B129: C | C129: 1.06
A130: 66056 | B130: D | C130: 1.07
A131: 66056 | B131: S | C131: 1.05
A132: 66058 | B132: C | C132: 1.06
A133: 66058 | B133: D | C133: 1.07
A134: 66058 | B134: S | C134: 1.05
A135: 66060 | B135: C | C135: 1.06
A136: 66060 | B136: D | C136: 1.07
A137: 66060 | B137: S | C137: 1.05
A138: 66061 | B138: C | C138: 1.08
A139: 66061 | B139: D | C139: 1.08
A140: 66061 | B140: S | C140: 1.08
A141: 66062 | B141: C | C141: 1.08
A142: 66062 | B142: D | C142: 1.08
A143: 66062 | B143: S | C143: 1.08
A144: 66063 | B144: C | C144: 1.08
A145: 66063 | B145: D | C145: 1.08
A146: 66063 | B146: S | C146: 1.08
A147: 66064 | B147: C | C147: 1.06
A148: 66064 | B148: D | C148: 1.07
A149: 66064 | B149: S | C149: 1.05
A150: 66066 | B150: C | C150: 1.06
A151: 66066 | B151: D | C151: 1.07
A152: 66066 | B152: S | C152: 1.05
A153: 66067 | B153: C | C153: 1.06
A154: 66067 | B154: D | C154: 1.07
A155: 66067 | B155: S | C155: 1.05
A156: 66070 | B156: C | C156: 1.06
A157: 66070 | B157: D | C157: 1.07
A158: 66070 | B158: S | C158: 1.05
A159: 66071 | B159: C | C159: 1.06
A160: 66071 | B160: D | C160: 1.07
A161: 66071 | B161: S | C161: 1.05
A162: 66072 | B162: C | C162: 1.06
A163: 66072 | B163: D | C163: 1.07
A164: 66072 | B164: S | C164: 1.05
A165: 66073 | B165: C | C165: 1.06
A166: 66073 | B166: D | C166: 1.07
A167: 66073 | B167: S | C167: 1.05
A168: 66075 | B168: C | C168: 1.06
A169: 66075 | B169: D | C169: 1.07
A170: 66075 | B170: S | C170: 1.05
A171: 66076 | B171: C | C171: 1.06
A172: 66076 | B172: D | C172: 1.07
A173: 66076 | B173: S | C173: 1.05
A174: 66077 | B174: C | C174: 1.06
A175: 66077 | B175: D | C175: 1.07
A176: 66077 | B176: S | C176: 1.05
A177: 66078 | B177: C | C177: 1.06
A178: 66078 | B178: D | C178: 1.07
A179: 66078 | B179: S | C179: 1.05
A180: 66079 | B180: C | C180: 1.06
A181: 66079 | B181: D | C181: 1.07
A182: 66079 | B182: S | C182: 1.05
A183: 66080 | B183: C | C183: 1.06
A184: 66080 | B184: D | C184: 1.07
A185: 66080 | B185: S | C185: 1.05
A186: 66083 | B186: C | C186: 1.07
A187: 66083 | B187: D | C187: 1.08
A188: 66083 | B188: S | C188: 1.07
A189: 66085 | B189: C | C189: 1.07
A190: 66085 | B190: D | C190: 1.08
A191: 66085 | B191: S | C191: 1.07
A192: 66086 | B192: C | C192: 1.06
A193: 66086 | B193: D | C193: 1.07
A194: 66086 | B194: S | C194: 1.05
A195: 66087 | B195: C | C195: 1.06
A196: 66087 | B196: D | C196: 1.07
A197: 66087 | B197: S | C197: 1.05
A198: 66088 | B198: C | C198: 1.06
A199: 66088 | B199: D | C199: 1.07
A200: 66088 | B200: S | C200: 1.05
... 3843 more rows

Sheet MS Screen Prints
